Workbook

Sheet Demand and Usage
B2: Vintage Start Date | C2: 2014-01-01
C4: TOTAL
B5: Date | C5: kWr refrigeration | D5: kWe refrigeration | E5: Electricity Usage
B6: ='Red Vintage Planner'!F23 -> 2014-01-01T09:00:00 | C6: ='Red Vintage Planner'!C23+'White Vintage Planner'!C23+LOOKUP(MONTH(B6),'Brine and COP'!$C$28:$N$28,'Brine and COP'!$C$36:$N$36)+LOOKUP(MONTH(B6),'Brine and COP'!$C$28:$N$28,'Brine and COP'!$C$56:$N$56) -> 4.767028129 | D6: =C6/'Brine and COP'!$B$25 -> 2.26104101
B7: ='Red Vintage Planner'!F24 -> 2014-01-01T21:00:00 | C7: ='Red Vintage Planner'!C24+'White Vintage Planner'!C24+LOOKUP(MONTH(B7),'Brine and COP'!$C$28:$N$28,'Brine and COP'!$C$36:$N$36)+LOOKUP(MONTH(B7),'Brine and COP'!$C$28:$N$28,'Brine and COP'!$C$56:$N$56) -> 4.767028129 | D7: =C7/'Brine and COP'!$B$25 -> 2.26104101 | E7: =D7*(B7-B6)*24 -> 27.13249212
B8: ='Red Vintage Planner'!F25 -> 2014-01-02T09:00:00 | C8: ='Red Vintage Planner'!C25+'White Vintage Planner'!C25+LOOKUP(MONTH(B8),'Brine and COP'!$C$28:$N$28,'Brine and COP'!$C$36:$N$36)+LOOKUP(MONTH(B8),'Brine and COP'!$C$28:$N$28,'Brine and COP'!$C$56:$N$56) -> 4.767028129 | D8: =C8/'Brine and COP'!$B$25 -> 2.26104101 | E8: =D8*(B8-B7)*24 -> 27.13249212
B9: ='Red Vintage Planner'!F26 -> 2014-01-02T21:00:00 | C9: ='Red Vintage Planner'!C26+'White Vintage Planner'!C26+LOOKUP(MONTH(B9),'Brine and COP'!$C$28:$N$28,'Brine and COP'!$C$36:$N$36)+LOOKUP(MONTH(B9),'Brine and COP'!$C$28:$N$28,'Brine and COP'!$C$56:$N$56) -> 4.767028129 | D9: =C9/'Brine and COP'!$B$25 -> 2.26104101 | E9: 27.13249212
B10: ='Red Vintage Planner'!F27 -> 2014-01-03T09:00:00 | C10: ='Red Vintage Planner'!C27+'White Vintage Planner'!C27+LOOKUP(MONTH(B10),'Brine and COP'!$C$28:$N$28,'Brine and COP'!$C$36:$N$36)+LOOKUP(MONTH(B10),'Brine and COP'!$C$28:$N$28,'Brine and COP'!$C$56:$N$56) -> 4.767028129 | D10: =C10/'Brine and COP'!$B$25 -> 2.26104101 | E10: 27.13249212
B11: ='Red Vintage Planner'!F28 -> 2014-01-03T21:00:00 | C11: ='Red Vintage Planner'!C28+'White Vintage Planner'!C28+LOOKUP(MONTH(B11),'Brine and COP'!$C$28:$N$28,'Brine and COP'!$C$36:$N$36)+LOOKUP(MONTH(B11),'Brine and COP'!$C$28:$N$28,'Brine and COP'!$C$56:$N$56) -> 4.767028129 | D11: =C11/'Brine and COP'!$B$25 -> 2.26104101 | E11: 27.13249212
B12: ='Red Vintage Planner'!F29 -> 2014-01-04T09:00:00 | C12: ='Red Vintage Planner'!C29+'White Vintage Planner'!C29+LOOKUP(MONTH(B12),'Brine and COP'!$C$28:$N$28,'Brine and COP'!$C$36:$N$36)+LOOKUP(MONTH(B12),'Brine and COP'!$C$28:$N$28,'Brine and COP'!$C$56:$N$56) -> 4.767028129 | D12: =C12/'Brine and COP'!$B$25 -> 2.26104101 | E12: 27.13249212
B13: ='Red Vintage Planner'!F30 -> 2014-01-04T21:00:00 | C13: ='Red Vintage Planner'!C30+'White Vintage Planner'!C30+LOOKUP(MONTH(B13),'Brine and COP'!$C$28:$N$28,'Brine and COP'!$C$36:$N$36)+LOOKUP(MONTH(B13),'Brine and COP'!$C$28:$N$28,'Brine and COP'!$C$56:$N$56) -> 4.767028129 | D13: =C13/'Brine and COP'!$B$25 -> 2.26104101 | E13: 27.13249212
B14: ='Red Vintage Planner'!F31 -> 2014-01-05T09:00:00 | C14: ='Red Vintage Planner'!C31+'White Vintage Planner'!C31+LOOKUP(MONTH(B14),'Brine and COP'!$C$28:$N$28,'Brine and COP'!$C$36:$N$36)+LOOKUP(MONTH(B14),'Brine and COP'!$C$28:$N$28,'Brine and COP'!$C$56:$N$56) -> 4.767028129 | D14: =C14/'Brine and COP'!$B$25 -> 2.26104101 | E14: 27.13249212
B15: ='Red Vintage Planner'!F32 -> 2014-01-05T21:00:00 | C15: ='Red Vintage Planner'!C32+'White Vintage Planner'!C32+LOOKUP(MONTH(B15),'Brine and COP'!$C$28:$N$28,'Brine and COP'!$C$36:$N$36)+LOOKUP(MONTH(B15),'Brine and COP'!$C$28:$N$28,'Brine and COP'!$C$56:$N$56) -> 4.767028129 | D15: =C15/'Brine and COP'!$B$25 -> 2.26104101 | E15: 27.13249212
B16: ='Red Vintage Planner'!F33 -> 2014-01-06T09:00:00 | C16: ='Red Vintage Planner'!C33+'White Vintage Planner'!C33+LOOKUP(MONTH(B16),'Brine and COP'!$C$28:$N$28,'Brine and COP'!$C$36:$N$36)+LOOKUP(MONTH(B16),'Brine and COP'!$C$28:$N$28,'Brine and COP'!$C$56:$N$56) -> 4.767028129 | D16: =C16/'Brine and COP'!$B$25 -> 2.26104101 | E16: 27.13249212
B17: ='Red Vintage Planner'!F34 -> 2014-01-06T21:00:00 | C17: ='Red Vintage Planner'!C34+'White Vintage Planner'!C34+LOOKUP(MONTH(B17),'Brine and COP'!$C$28:$N$28,'Brine and COP'!$C$36:$N$36)+LOOKUP(MONTH(B17),'Brine and COP'!$C$28:$N$28,'Brine and COP'!$C$56:$N$56) -> 4.767028129 | D17: =C17/'Brine and COP'!$B$25 -> 2.26104101 | E17: 27.13249212
B18: ='Red Vintage Planner'!F35 -> 2014-01-07T09:00:00 | C18: ='Red Vintage Planner'!C35+'White Vintage Planner'!C35+LOOKUP(MONTH(B18),'Brine and COP'!$C$28:$N$28,'Brine and COP'!$C$36:$N$36)+LOOKUP(MONTH(B18),'Brine and COP'!$C$28:$N$28,'Brine and COP'!$C$56:$N$56) -> 4.767028129 | D18: =C18/'Brine and COP'!$B$25 -> 2.26104101 | E18: 27.13249212
B19: ='Red Vintage Planner'!F36 -> 2014-01-07T21:00:00 | C19: ='Red Vintage Planner'!C36+'White Vintage Planner'!C36+LOOKUP(MONTH(B19),'Brine and COP'!$C$28:$N$28,'Brine and COP'!$C$36:$N$36)+LOOKUP(MONTH(B19),'Brine and COP'!$C$28:$N$28,'Brine and COP'!$C$56:$N$56) -> 4.767028129 | D19: =C19/'Brine and COP'!$B$25 -> 2.26104101 | E19: 27.13249212
B20: ='Red Vintage Planner'!F37 -> 2014-01-08T09:00:00 | C20: ='Red Vintage Planner'!C37+'White Vintage Planner'!C37+LOOKUP(MONTH(B20),'Brine and COP'!$C$28:$N$28,'Brine and COP'!$C$36:$N$36)+LOOKUP(MONTH(B20),'Brine and COP'!$C$28:$N$28,'Brine and COP'!$C$56:$N$56) -> 4.767028129 | D20: =C20/'Brine and COP'!$B$25 -> 2.26104101 | E20: 27.13249212
B21: ='Red Vintage Planner'!F38 -> 2014-01-08T21:00:00 | C21: ='Red Vintage Planner'!C38+'White Vintage Planner'!C38+LOOKUP(MONTH(B21),'Brine and COP'!$C$28:$N$28,'Brine and COP'!$C$36:$N$36)+LOOKUP(MONTH(B21),'Brine and COP'!$C$28:$N$28,'Brine and COP'!$C$56:$N$56) -> 4.767028129 | D21: =C21/'Brine and COP'!$B$25 -> 2.26104101 | E21: 27.13249212
B22: ='Red Vintage Planner'!F39 -> 2014-01-09T09:00:00 | C22: ='Red Vintage Planner'!C39+'White Vintage Planner'!C39+LOOKUP(MONTH(B22),'Brine and COP'!$C$28:$N$28,'Brine and COP'!$C$36:$N$36)+LOOKUP(MONTH(B22),'Brine and COP'!$C$28:$N$28,'Brine and COP'!$C$56:$N$56) -> 4.767028129 | D22: =C22/'Brine and COP'!$B$25 -> 2.26104101 | E22: 27.13249212
B23: ='Red Vintage Planner'!F40 -> 2014-01-09T21:00:00 | C23: ='Red Vintage Planner'!C40+'White Vintage Planner'!C40+LOOKUP(MONTH(B23),'Brine and COP'!$C$28:$N$28,'Brine and COP'!$C$36:$N$36)+LOOKUP(MONTH(B23),'Brine and COP'!$C$28:$N$28,'Brine and COP'!$C$56:$N$56) -> 4.767028129 | D23: =C23/'Brine and COP'!$B$25 -> 2.26104101 | E23: 27.13249212
B24: ='Red Vintage Planner'!F41 -> 2014-01-10T09:00:00 | C24: ='Red Vintage Planner'!C41+'White Vintage Planner'!C41+LOOKUP(MONTH(B24),'Brine and COP'!$C$28:$N$28,'Brine and COP'!$C$36:$N$36)+LOOKUP(MONTH(B24),'Brine and COP'!$C$28:$N$28,'Brine and COP'!$C$56:$N$56) -> 4.767028129 | D24: =C24/'Brine and COP'!$B$25 -> 2.26104101 | E24: 27.13249212
B25: ='Red Vintage Planner'!F42 -> 2014-01-10T21:00:00 | C25: ='Red Vintage Planner'!C42+'White Vintage Planner'!C42+LOOKUP(MONTH(B25),'Brine and COP'!$C$28:$N$28,'Brine and COP'!$C$36:$N$36)+LOOKUP(MONTH(B25),'Brine and COP'!$C$28:$N$28,'Brine and COP'!$C$56:$N$56) -> 4.767028129 | D25: =C25/'Brine and COP'!$B$25 -> 2.26104101 | E25: 27.13249212
B26: ='Red Vintage Planner'!F43 -> 2014-01-11T09:00:00 | C26: ='Red Vintage Planner'!C43+'White Vintage Planner'!C43+LOOKUP(MONTH(B26),'Brine and COP'!$C$28:$N$28,'Brine and COP'!$C$36:$N$36)+LOOKUP(MONTH(B26),'Brine and COP'!$C$28:$N$28,'Brine and COP'!$C$56:$N$56) -> 4.767028129 | D26: =C26/'Brine and COP'!$B$25 -> 2.26104101 | E26: 27.13249212
B27: ='Red Vintage Planner'!F44 -> 2014-01-11T21:00:00 | C27: ='Red Vintage Planner'!C44+'White Vintage Planner'!C44+LOOKUP(MONTH(B27),'Brine and COP'!$C$28:$N$28,'Brine and COP'!$C$36:$N$36)+LOOKUP(MONTH(B27),'Brine and COP'!$C$28:$N$28,'Brine and COP'!$C$56:$N$56) -> 4.767028129 | D27: =C27/'Brine and COP'!$B$25 -> 2.26104101 | E27: 27.13249212
B28: ='Red Vintage Planner'!F45 -> 2014-01-12T09:00:00 | C28: ='Red Vintage Planner'!C45+'White Vintage Planner'!C45+LOOKUP(MONTH(B28),'Brine and COP'!$C$28:$N$28,'Brine and COP'!$C$36:$N$36)+LOOKUP(MONTH(B28),'Brine and COP'!$C$28:$N$28,'Brine and COP'!$C$56:$N$56) -> 4.767028129 | D28: =C28/'Brine and COP'!$B$25 -> 2.26104101 | E28: 27.13249212
B29: ='Red Vintage Planner'!F46 -> 2014-01-12T21:00:00 | C29: ='Red Vintage Planner'!C46+'White Vintage Planner'!C46+LOOKUP(MONTH(B29),'Brine and COP'!$C$28:$N$28,'Brine and COP'!$C$36:$N$36)+LOOKUP(MONTH(B29),'Brine and COP'!$C$28:$N$28,'Brine and COP'!$C$56:$N$56) -> 4.767028129 | D29: =C29/'Brine and COP'!$B$25 -> 2.26104101 | E29: 27.13249212
B30: ='Red Vintage Planner'!F47 -> 2014-01-13T09:00:00 | C30: ='Red Vintage Planner'!C47+'White Vintage Planner'!C47+LOOKUP(MONTH(B30),'Brine and COP'!$C$28:$N$28,'Brine and COP'!$C$36:$N$36)+LOOKUP(MONTH(B30),'Brine and COP'!$C$28:$N$28,'Brine and COP'!$C$56:$N$56) -> 4.767028129 | D30: =C30/'Brine and COP'!$B$25 -> 2.26104101 | E30: 27.13249212
B31: ='Red Vintage Planner'!F48 -> 2014-01-13T21:00:00 | C31: ='Red Vintage Planner'!C48+'White Vintage Planner'!C48+LOOKUP(MONTH(B31),'Brine and COP'!$C$28:$N$28,'Brine and COP'!$C$36:$N$36)+LOOKUP(MONTH(B31),'Brine and COP'!$C$28:$N$28,'Brine and COP'!$C$56:$N$56) -> 4.767028129 | D31: =C31/'Brine and COP'!$B$25 -> 2.26104101 | E31: 27.13249212
B32: ='Red Vintage Planner'!F49 -> 2014-01-14T09:00:00 | C32: ='Red Vintage Planner'!C49+'White Vintage Planner'!C49+LOOKUP(MONTH(B32),'Brine and COP'!$C$28:$N$28,'Brine and COP'!$C$36:$N$36)+LOOKUP(MONTH(B32),'Brine and COP'!$C$28:$N$28,'Brine and COP'!$C$56:$N$56) -> 4.767028129 | D32: =C32/'Brine and COP'!$B$25 -> 2.26104101 | E32: 27.13249212
B33: ='Red Vintage Planner'!F50 -> 2014-01-14T21:00:00 | C33: ='Red Vintage Planner'!C50+'White Vintage Planner'!C50+LOOKUP(MONTH(B33),'Brine and COP'!$C$28:$N$28,'Brine and COP'!$C$36:$N$36)+LOOKUP(MONTH(B33),'Brine and COP'!$C$28:$N$28,'Brine and COP'!$C$56:$N$56) -> 4.767028129 | D33: =C33/'Brine and COP'!$B$25 -> 2.26104101 | E33: 27.13249212
B34: ='Red Vintage Planner'!F51 -> 2014-01-15T09:00:00 | C34: ='Red Vintage Planner'!C51+'White Vintage Planner'!C51+LOOKUP(MONTH(B34),'Brine and COP'!$C$28:$N$28,'Brine and COP'!$C$36:$N$36)+LOOKUP(MONTH(B34),'Brine and COP'!$C$28:$N$28,'Brine and COP'!$C$56:$N$56) -> 4.767028129 | D34: =C34/'Brine and COP'!$B$25 -> 2.26104101 | E34: 27.13249212
B35: ='Red Vintage Planner'!F52 -> 2014-01-15T21:00:00 | C35: ='Red Vintage Planner'!C52+'White Vintage Planner'!C52+LOOKUP(MONTH(B35),'Brine and COP'!$C$28:$N$28,'Brine and COP'!$C$36:$N$36)+LOOKUP(MONTH(B35),'Brine and COP'!$C$28:$N$28,'Brine and COP'!$C$56:$N$56) -> 4.767028129 | D35: =C35/'Brine and COP'!$B$25 -> 2.26104101 | E35: 27.13249212
B36: ='Red Vintage Planner'!F53 -> 2014-01-16T09:00:00 | C36: ='Red Vintage Planner'!C53+'White Vintage Planner'!C53+LOOKUP(MONTH(B36),'Brine and COP'!$C$28:$N$28,'Brine and COP'!$C$36:$N$36)+LOOKUP(MONTH(B36),'Brine and COP'!$C$28:$N$28,'Brine and COP'!$C$56:$N$56) -> 4.767028129 | D36: =C36/'Brine and COP'!$B$25 -> 2.26104101 | E36: 27.13249212
B37: ='Red Vintage Planner'!F54 -> 2014-01-16T21:00:00 | C37: ='Red Vintage Planner'!C54+'White Vintage Planner'!C54+LOOKUP(MONTH(B37),'Brine and COP'!$C$28:$N$28,'Brine and COP'!$C$36:$N$36)+LOOKUP(MONTH(B37),'Brine and COP'!$C$28:$N$28,'Brine and COP'!$C$56:$N$56) -> 4.767028129 | D37: =C37/'Brine and COP'!$B$25 -> 2.26104101 | E37: 27.13249212
B38: ='Red Vintage Planner'!F55 -> 2014-01-17T09:00:00 | C38: ='Red Vintage Planner'!C55+'White Vintage Planner'!C55+LOOKUP(MONTH(B38),'Brine and COP'!$C$28:$N$28,'Brine and COP'!$C$36:$N$36)+LOOKUP(MONTH(B38),'Brine and COP'!$C$28:$N$28,'Brine and COP'!$C$56:$N$56) -> 4.767028129 | D38: =C38/'Brine and COP'!$B$25 -> 2.26104101 | E38: 27.13249212
B39: ='Red Vintage Planner'!F56 -> 2014-01-17T21:00:00 | C39: ='Red Vintage Planner'!C56+'White Vintage Planner'!C56+LOOKUP(MONTH(B39),'Brine and COP'!$C$28:$N$28,'Brine and COP'!$C$36:$N$36)+LOOKUP(MONTH(B39),'Brine and COP'!$C$28:$N$28,'Brine and COP'!$C$56:$N$56) -> 4.767028129 | D39: =C39/'Brine and COP'!$B$25 -> 2.26104101 | E39: 27.13249212
B40: ='Red Vintage Planner'!F57 -> 2014-01-18T09:00:00 | C40: ='Red Vintage Planner'!C57+'White Vintage Planner'!C57+LOOKUP(MONTH(B40),'Brine and COP'!$C$28:$N$28,'Brine and COP'!$C$36:$N$36)+LOOKUP(MONTH(B40),'Brine and COP'!$C$28:$N$28,'Brine and COP'!$C$56:$N$56) -> 4.767028129 | D40: =C40/'Brine and COP'!$B$25 -> 2.26104101 | E40: 27.13249212
B41: ='Red Vintage Planner'!F58 -> 2014-01-18T21:00:00 | C41: ='Red Vintage Planner'!C58+'White Vintage Planner'!C58+LOOKUP(MONTH(B41),'Brine and COP'!$C$28:$N$28,'Brine and COP'!$C$36:$N$36)+LOOKUP(MONTH(B41),'Brine and COP'!$C$28:$N$28,'Brine and COP'!$C$56:$N$56) -> 4.767028129 | D41: =C41/'Brine and COP'!$B$25 -> 2.26104101 | E41: 27.13249212
B42: ='Red Vintage Planner'!F59 -> 2014-01-19T09:00:00 | C42: ='Red Vintage Planner'!C59+'White Vintage Planner'!C59+LOOKUP(MONTH(B42),'Brine and COP'!$C$28:$N$28,'Brine and COP'!$C$36:$N$36)+LOOKUP(MONTH(B42),'Brine and COP'!$C$28:$N$28,'Brine and COP'!$C$56:$N$56) -> 4.767028129 | D42: =C42/'Brine and COP'!$B$25 -> 2.26104101 | E42: 27.13249212
B43: ='Red Vintage Planner'!F60 -> 2014-01-19T21:00:00 | C43: ='Red Vintage Planner'!C60+'White Vintage Planner'!C60+LOOKUP(MONTH(B43),'Brine and COP'!$C$28:$N$28,'Brine and COP'!$C$36:$N$36)+LOOKUP(MONTH(B43),'Brine and COP'!$C$28:$N$28,'Brine and COP'!$C$56:$N$56) -> 4.767028129 | D43: =C43/'Brine and COP'!$B$25 -> 2.26104101 | E43: 27.13249212
B44: ='Red Vintage Planner'!F61 -> 2014-01-20T09:00:00 | C44: ='Red Vintage Planner'!C61+'White Vintage Planner'!C61+LOOKUP(MONTH(B44),'Brine and COP'!$C$28:$N$28,'Brine and COP'!$C$36:$N$36)+LOOKUP(MONTH(B44),'Brine and COP'!$C$28:$N$28,'Brine and COP'!$C$56:$N$56) -> 4.767028129 | D44: =C44/'Brine and COP'!$B$25 -> 2.26104101 | E44: 27.13249212
B45: ='Red Vintage Planner'!F62 -> 2014-01-20T21:00:00 | C45: ='Red Vintage Planner'!C62+'White Vintage Planner'!C62+LOOKUP(MONTH(B45),'Brine and COP'!$C$28:$N$28,'Brine and COP'!$C$36:$N$36)+LOOKUP(MONTH(B45),'Brine and COP'!$C$28:$N$28,'Brine and COP'!$C$56:$N$56) -> 4.767028129 | D45: =C45/'Brine and COP'!$B$25 -> 2.26104101 | E45: 27.13249212
B46: ='Red Vintage Planner'!F63 -> 2014-01-21T09:00:00 | C46: ='Red Vintage Planner'!C63+'White Vintage Planner'!C63+LOOKUP(MONTH(B46),'Brine and COP'!$C$28:$N$28,'Brine and COP'!$C$36:$N$36)+LOOKUP(MONTH(B46),'Brine and COP'!$C$28:$N$28,'Brine and COP'!$C$56:$N$56) -> 4.767028129 | D46: =C46/'Brine and COP'!$B$25 -> 2.26104101 | E46: 27.13249212
B47: ='Red Vintage Planner'!F64 -> 2014-01-21T21:00:00 | C47: ='Red Vintage Planner'!C64+'White Vintage Planner'!C64+LOOKUP(MONTH(B47),'Brine and COP'!$C$28:$N$28,'Brine and COP'!$C$36:$N$36)+LOOKUP(MONTH(B47),'Brine and COP'!$C$28:$N$28,'Brine and COP'!$C$56:$N$56) -> 4.767028129 | D47: =C47/'Brine and COP'!$B$25 -> 2.26104101 | E47: 27.13249212
B48: ='Red Vintage Planner'!F65 -> 2014-01-22T09:00:00 | C48: ='Red Vintage Planner'!C65+'White Vintage Planner'!C65+LOOKUP(MONTH(B48),'Brine and COP'!$C$28:$N$28,'Brine and COP'!$C$36:$N$36)+LOOKUP(MONTH(B48),'Brine and COP'!$C$28:$N$28,'Brine and COP'!$C$56:$N$56) -> 4.767028129 | D48: =C48/'Brine and COP'!$B$25 -> 2.26104101 | E48: 27.13249212
B49: ='Red Vintage Planner'!F66 -> 2014-01-22T21:00:00 | C49: ='Red Vintage Planner'!C66+'White Vintage Planner'!C66+LOOKUP(MONTH(B49),'Brine and COP'!$C$28:$N$28,'Brine and COP'!$C$36:$N$36)+LOOKUP(MONTH(B49),'Brine and COP'!$C$28:$N$28,'Brine and COP'!$C$56:$N$56) -> 4.767028129 | D49: =C49/'Brine and COP'!$B$25 -> 2.26104101 | E49: 27.13249212
B50: ='Red Vintage Planner'!F67 -> 2014-01-23T09:00:00 | C50: ='Red Vintage Planner'!C67+'White Vintage Planner'!C67+LOOKUP(MONTH(B50),'Brine and COP'!$C$28:$N$28,'Brine and COP'!$C$36:$N$36)+LOOKUP(MONTH(B50),'Brine and COP'!$C$28:$N$28,'Brine and COP'!$C$56:$N$56) -> 4.767028129 | D50: =C50/'Brine and COP'!$B$25 -> 2.26104101 | E50: 27.13249212
B51: ='Red Vintage Planner'!F68 -> 2014-01-23T21:00:00 | C51: ='Red Vintage Planner'!C68+'White Vintage Planner'!C68+LOOKUP(MONTH(B51),'Brine and COP'!$C$28:$N$28,'Brine and COP'!$C$36:$N$36)+LOOKUP(MONTH(B51),'Brine and COP'!$C$28:$N$28,'Brine and COP'!$C$56:$N$56) -> 4.767028129 | D51: =C51/'Brine and COP'!$B$25 -> 2.26104101 | E51: 27.13249212
B52: ='Red Vintage Planner'!F69 -> 2014-01-24T09:00:00 | C52: ='Red Vintage Planner'!C69+'White Vintage Planner'!C69+LOOKUP(MONTH(B52),'Brine and COP'!$C$28:$N$28,'Brine and COP'!$C$36:$N$36)+LOOKUP(MONTH(B52),'Brine and COP'!$C$28:$N$28,'Brine and COP'!$C$56:$N$56) -> 4.767028129 | D52: =C52/'Brine and COP'!$B$25 -> 2.26104101 | E52: 27.13249212
B53: ='Red Vintage Planner'!F70 -> 2014-01-24T21:00:00 | C53: ='Red Vintage Planner'!C70+'White Vintage Planner'!C70+LOOKUP(MONTH(B53),'Brine and COP'!$C$28:$N$28,'Brine and COP'!$C$36:$N$36)+LOOKUP(MONTH(B53),'Brine and COP'!$C$28:$N$28,'Brine and COP'!$C$56:$N$56) -> 4.767028129 | D53: =C53/'Brine and COP'!$B$25 -> 2.26104101 | E53: 27.13249212
B54: ='Red Vintage Planner'!F71 -> 2014-01-25T09:00:00 | C54: ='Red Vintage Planner'!C71+'White Vintage Planner'!C71+LOOKUP(MONTH(B54),'Brine and COP'!$C$28:$N$28,'Brine and COP'!$C$36:$N$36)+LOOKUP(MONTH(B54),'Brine and COP'!$C$28:$N$28,'Brine and COP'!$C$56:$N$56) -> 4.767028129 | D54: =C54/'Brine and COP'!$B$25 -> 2.26104101 | E54: 27.13249212
B55: ='Red Vintage Planner'!F72 -> 2014-01-25T21:00:00 | C55: ='Red Vintage Planner'!C72+'White Vintage Planner'!C72+LOOKUP(MONTH(B55),'Brine and COP'!$C$28:$N$28,'Brine and COP'!$C$36:$N$36)+LOOKUP(MONTH(B55),'Brine and COP'!$C$28:$N$28,'Brine and COP'!$C$56:$N$56) -> 4.767028129 | D55: =C55/'Brine and COP'!$B$25 -> 2.26104101 | E55: 27.13249212
B56: ='Red Vintage Planner'!F73 -> 2014-01-26T09:00:00 | C56: ='Red Vintage Planner'!C73+'White Vintage Planner'!C73+LOOKUP(MONTH(B56),'Brine and COP'!$C$28:$N$28,'Brine and COP'!$C$36:$N$36)+LOOKUP(MONTH(B56),'Brine and COP'!$C$28:$N$28,'Brine and COP'!$C$56:$N$56) -> 4.767028129 | D56: =C56/'Brine and COP'!$B$25 -> 2.26104101 | E56: 27.13249212
B57: ='Red Vintage Planner'!F74 -> 2014-01-26T21:00:00 | C57: ='Red Vintage Planner'!C74+'White Vintage Planner'!C74+LOOKUP(MONTH(B57),'Brine and COP'!$C$28:$N$28,'Brine and COP'!$C$36:$N$36)+LOOKUP(MONTH(B57),'Brine and COP'!$C$28:$N$28,'Brine and COP'!$C$56:$N$56) -> 4.767028129 | D57: =C57/'Brine and COP'!$B$25 -> 2.26104101 | E57: 27.13249212
B58: ='Red Vintage Planner'!F75 -> 2014-01-27T09:00:00 | C58: ='Red Vintage Planner'!C75+'White Vintage Planner'!C75+LOOKUP(MONTH(B58),'Brine and COP'!$C$28:$N$28,'Brine and COP'!$C$36:$N$36)+LOOKUP(MONTH(B58),'Brine and COP'!$C$28:$N$28,'Brine and COP'!$C$56:$N$56) -> 4.767028129 | D58: =C58/'Brine and COP'!$B$25 -> 2.26104101 | E58: 27.13249212
B59: ='Red Vintage Planner'!F76 -> 2014-01-27T21:00:00 | C59: ='Red Vintage Planner'!C76+'White Vintage Planner'!C76+LOOKUP(MONTH(B59),'Brine and COP'!$C$28:$N$28,'Brine and COP'!$C$36:$N$36)+LOOKUP(MONTH(B59),'Brine and COP'!$C$28:$N$28,'Brine and COP'!$C$56:$N$56) -> 4.767028129 | D59: =C59/'Brine and COP'!$B$25 -> 2.26104101 | E59: 27.13249212
B60: ='Red Vintage Planner'!F77 -> 2014-01-28T09:00:00 | C60: ='Red Vintage Planner'!C77+'White Vintage Planner'!C77+LOOKUP(MONTH(B60),'Brine and COP'!$C$28:$N$28,'Brine and COP'!$C$36:$N$36)+LOOKUP(MONTH(B60),'Brine and COP'!$C$28:$N$28,'Brine and COP'!$C$56:$N$56) -> 4.767028129 | D60: =C60/'Brine and COP'!$B$25 -> 2.26104101 | E60: 27.13249212
B61: ='Red Vintage Planner'!F78 -> 2014-01-28T21:00:00 | C61: ='Red Vintage Planner'!C78+'White Vintage Planner'!C78+LOOKUP(MONTH(B61),'Brine and COP'!$C$28:$N$28,'Brine and COP'!$C$36:$N$36)+LOOKUP(MONTH(B61),'Brine and COP'!$C$28:$N$28,'Brine and COP'!$C$56:$N$56) -> 4.767028129 | D61: =C61/'Brine and COP'!$B$25 -> 2.26104101 | E61: 27.13249212
B62: ='Red Vintage Planner'!F79 -> 2014-01-29T09:00:00 | C62: ='Red Vintage Planner'!C79+'White Vintage Planner'!C79+LOOKUP(MONTH(B62),'Brine and COP'!$C$28:$N$28,'Brine and COP'!$C$36:$N$36)+LOOKUP(MONTH(B62),'Brine and COP'!$C$28:$N$28,'Brine and COP'!$C$56:$N$56) -> 4.767028129 | D62: =C62/'Brine and COP'!$B$25 -> 2.26104101 | E62: 27.13249212
... 74 more rows

Sheet Red Vintage Planner
F2: Start date | G2: ='Demand and Usage'!C2 -> 2014-01-01
G5: =G2 -> 2014-01-01 | H5: =G5+1 -> 2014-01-02 | I5: =H5+1 -> 2014-01-03 | J5: =I5+1 -> 2014-01-04 | K5: =J5+1 -> 2014-01-05 | L5: 2014-01-06 | M5: 2014-01-07 | N5: 2014-01-08 | O5: 2014-01-09 | P5: 2014-01-10 | Q5: 2014-01-11 | R5: 2014-01-12 | S5: 2014-01-13 | T5: 2014-01-14 | U5: 2014-01-15 | V5: 2014-01-16 | W5: 2014-01-17 | X5: 2014-01-18 | Y5: 2014-01-19 | Z5: 2014-01-20 | AA5: 2014-01-21 | AB5: 2014-01-22 | AC5: 2014-01-23 | AD5: 2014-01-24 | AE5: 2014-01-25 | AF5: 2014-01-26 | AG5: 2014-01-27 | AH5: 2014-01-28 | AI5: 2014-01-29 | AJ5: 2014-01-30 | AK5: 2014-01-31 | AL5: 2014-02-01 | AM5: 2014-02-02 | AN5: 2014-02-03 | AO5: 2014-02-04 | AP5: 2014-02-05 | AQ5: 2014-02-06 | AR5: 2014-02-07 | AS5: 2014-02-08 | AT5: 2014-02-09 | AU5: 2014-02-10 | AV5: 2014-02-11 | AW5: 2014-02-12 | AX5: 2014-02-13 | AY5: 2014-02-14 | AZ5: 2014-02-15 | BA5: 2014-02-16 | BB5: 2014-02-17 | BC5: 2014-02-18 | BD5: 2014-02-19 | BE5: 2014-02-20 | BF5: 2014-02-21 | BG5: 2014-02-22 | BH5: 2014-02-23 | BI5: 2014-02-24 | BJ5: 2014-02-25 | BK5: 2014-02-26 | BL5: 2014-02-27 | BM5: 2014-02-28 | BN5: 2014-03-01 | BO5: 2014-03-02 | BP5: 2014-03-03 | BQ5: 2014-03-04 | BR5: 2014-03-05 | BS5: 2014-03-06 | BT5: 2014-03-07 | BU5: 2014-03-08 | BV5: 2014-03-09 | BW5: =BV5+1 -> 2014-03-10 | BX5: 2014-03-11 | BY5: 2014-03-12 | BZ5: 2014-03-13 | CA5: 2014-03-14 | CB5: 2014-03-15 | CC5: 2014-03-16 | CD5: 2014-03-17 | CE5: 2014-03-18 | CF5: 2014-03-19 | CG5: 2014-03-20 | CH5: 2014-03-21 | CI5: 2014-03-22 | CJ5: 2014-03-23 | CK5: 2014-03-24 | CL5: 2014-03-25 | CM5: 2014-03-26 | CN5: 2014-03-27 | CO5: 2014-03-28 | CP5: 2014-03-29 | CQ5: 2014-03-30 | CR5: 2014-03-31 | CS5: 2014-04-01 | CT5: 2014-04-02 | CU5: 2014-04-03 | CV5: 2014-04-04 | CW5: 2014-04-05 | CX5: 2014-04-06 | CY5: 2014-04-07 | CZ5: 2014-04-08 | DA5: 2014-04-09 | DB5: 2014-04-10 | DC5: 2014-04-11 | DD5: 2014-04-12 | DE5: 2014-04-13 | DF5: 2014-04-14 | DG5: 2014-04-15 | DH5: 2014-04-16 | DI5: 2014-04-17 | DJ5: 2014-04-18 | DK5: 2014-04-19 | DL5: 2014-04-20 | DM5: 2014-04-21 | DN5: 2014-04-22 | DO5: 2014-04-23 | DP5: 2014-04-24 | DQ5: 2014-04-25 | DR5: 2014-04-26 | DS5: 2014-04-27 | DT5: 2014-04-28 | DU5: 2014-04-29 | DV5: 2014-04-30 | DW5: 2014-05-01 | DX5: 2014-05-02 | DY5: 2014-05-03 | DZ5: 2014-05-04 | EA5: 2014-05-05 | EB5: 2014-05-06 | EC5: 2014-05-07 | ED5: 2014-05-08 | EE5: 2014-05-09 | EF5: 2014-05-10 | EG5: 2014-05-11 | EH5: 2014-05-12 | EI5: =EH5+1 -> 2014-05-13 | EJ5: 2014-05-14 | EK5: 2014-05-15 | EL5: =EK5+1 -> 2014-05-16 | EM5: =EL5+1 -> 2014-05-17 | EN5: =EM5+1 -> 2014-05-18 | EO5: 2014-05-19 | EP5: 2014-05-20 | EQ5: 2014-05-21 | ER5: 2014-05-22 | ES5: 2014-05-23 | ET5: 2014-05-24 | EU5: 2014-05-25 | EV5: 2014-05-26 | EW5: =EV5+1 -> 2014-05-27 | EX5: =EW5+1 -> 2014-05-28 | EY5: =EX5+1 -> 2014-05-29 | EZ5: 2014-05-30 | FA5: 2014-05-31
F6: Red Intake (tonnes)
F7: Must Chill (%) | G7: 0.5 | H7: =G7 -> 0.5 | I7: =H7 -> 0.5 | J7: 0.5 | K7: 0.5 | L7: 0.5 | M7: 0.5 | N7: 0.5 | O7: 0.5 | P7: 0.5 | Q7: 0.5 | R7: 0.5 | S7: 0.5 | T7: 0.5 | U7: 0.5 | V7: 0.5 | W7: 0.5 | X7: 0.5 | Y7: 0.5 | Z7: 0.5 | AA7: 0.5 | AB7: 0.5 | AC7: 0.5 | AD7: 0.5 | AE7: 0.5 | AF7: 0.5 | AG7: 0.5 | AH7: 0.5 | AI7: 0.5 | AJ7: 0.5 | AK7: 0.5 | AL7: 0.5 | AM7: 0.5 | AN7: 0.5 | AO7: 0.5 | AP7: 0.5 | AQ7: 0.5 | AR7: 0.5 | AS7: 0.5 | AT7: 0.5 | AU7: 0.5 | AV7: 0.5 | AW7: 0.5 | AX7: 0.5 | AY7: 0.5 | AZ7: 0.5 | BA7: 0.5 | BB7: 0.5 | BC7: 0.5 | BD7: 0.5 | BE7: 0.5 | BF7: 0.5 | BG7: 0.5 | BH7: 0.5 | BI7: 0.5 | BJ7: 0.5 | BK7: 0.5 | BL7: 0.5 | BM7: 0.5 | BN7: 0.5 | BO7: 0.5 | BP7: 0.5 | BQ7: 0.5 | BR7: 0.5 | BS7: 0.5 | BT7: 0.5 | BU7: =BT7 -> 0.5 | BV7: 0.5 | BW7: 0.5 | BX7: 0.5 | BY7: 0.5 | BZ7: 0.5 | CA7: 0.5 | CB7: 0.5 | CC7: 0.5 | CD7: 0.5 | CE7: 0.5 | CF7: 0.5 | CG7: 0.5 | CH7: 0.5 | CI7: 0.5 | CJ7: 0.5 | CK7: 0.5 | CL7: 0.5 | CM7: 0.5 | CN7: 0.5 | CO7: 0.5 | CP7: 0.5 | CQ7: 0.5 | CR7: 0.5 | CS7: 0.5 | CT7: 0.5 | CU7: 0.5 | CV7: 0.5 | CW7: 0.5 | CX7: 0.5 | CY7: 0.5 | CZ7: 0.5 | DA7: 0.5 | DB7: 0.5 | DC7: 0.5 | DD7: 0.5 | DE7: 0.5 | DF7: 0.5 | DG7: 0.5 | DH7: 0.5 | DI7: 0.5 | DJ7: 0.5 | DK7: 0.5 | DL7: 0.5 | DM7: 0.5 | DN7: 0.5 | DO7: 0.5 | DP7: 0.5 | DQ7: 0.5 | DR7: 0.5 | DS7: 0.5 | DT7: 0.5 | DU7: 0.5 | DV7: 0.5 | DW7: 0.5 | DX7: 0.5 | DY7: 0.5 | DZ7: 0.5 | EA7: 0.5 | EB7: 0.5 | EC7: 0.5 | ED7: 0.5 | EE7: 0.5 | EF7: 0.5 | EG7: =EF7 -> 0.5 | EH7: 0.5 | EI7: 0.5 | EJ7: 0.5 | EK7: 0.5 | EL7: 0.5 | EM7: 0.5 | EN7: 0.5 | EO7: 0.5 | EP7: 0.5 | EQ7: 0.5 | ER7: 0.5 | ES7: 0.5 | ET7: 0.5 | EU7: 0.5 | EV7: 0.5 | EW7: 0.5 | EX7: 0.5 | EY7: 0.5 | EZ7: 0.5 | FA7: 0.5
E8: Cold Soak | F8: Cold Soak (%) | G8: 0.5 | H8: =G8 -> 0.5 | I8: 0.5 | J8: 0.5 | K8: 0.5 | L8: 0.5 | M8: 0.5 | N8: 0.5 | O8: 0.5 | P8: 0.5 | Q8: 0.5 | R8: 0.5 | S8: 0.5 | T8: 0.5 | U8: 0.5 | V8: 0.5 | W8: 0.5 | X8: 0.5 | Y8: 0.5 | Z8: 0.5 | AA8: 0.5 | AB8: 0.5 | AC8: 0.5 | AD8: 0.5 | AE8: 0.5 | AF8: 0.5 | AG8: 0.5 | AH8: 0.5 | AI8: 0.5 | AJ8: 0.5 | AK8: 0.5 | AL8: 0.5 | AM8: 0.5 | AN8: 0.5 | AO8: 0.5 | AP8: 0.5 | AQ8: 0.5 | AR8: 0.5 | AS8: 0.5 | AT8: 0.5 | AU8: 0.5 | AV8: 0.5 | AW8: 0.5 | AX8: 0.5 | AY8: 0.5 | AZ8: 0.5 | BA8: 0.5 | BB8: 0.5 | BC8: 0.5 | BD8: 0.5 | BE8: 0.5 | BF8: 0.5 | BG8: 0.5 | BH8: 0.5 | BI8: 0.5 | BJ8: 0.5 | BK8: 0.5 | BL8: 0.5 | BM8: 0.5 | BN8: 0.5 | BO8: 0.5 | BP8: 0.5 | BQ8: 0.5 | BR8: 0.5 | BS8: 0.5 | BT8: 0.5 | BU8: 0.5 | BV8: 0.5 | BW8: 0.5 | BX8: 0.5 | BY8: 0.5 | BZ8: 0.5 | CA8: 0.5 | CB8: 0.5 | CC8: 0.5 | CD8: 0.5 | CE8: 0.5 | CF8: 0.5 | CG8: 0.5 | CH8: 0.5 | CI8: 0.5 | CJ8: 0.5 | CK8: 0.5 | CL8: 0.5 | CM8: 0.5 | CN8: 0.5 | CO8: 0.5 | CP8: 0.5 | CQ8: 0.5 | CR8: 0.5 | CS8: 0.5 | CT8: 0.5 | CU8: 0.5 | CV8: 0.5 | CW8: 0.5 | CX8: 0.5 | CY8: 0.5 | CZ8: 0.5 | DA8: 0.5 | DB8: 0.5 | DC8: 0.5 | DD8: 0.5 | DE8: 0.5 | DF8: 0.5 | DG8: 0.5 | DH8: 0.5 | DI8: 0.5 | DJ8: 0.5 | DK8: 0.5 | DL8: 0.5 | DM8: 0.5 | DN8: 0.5 | DO8: 0.5 | DP8: 0.5 | DQ8: 0.5 | DR8: 0.5 | DS8: 0.5 | DT8: 0.5 | DU8: 0.5 | DV8: 0.5 | DW8: 0.5 | DX8: 0.5 | DY8: 0.5 | DZ8: 0.5 | EA8: 0.5 | EB8: 0.5 | EC8: 0.5 | ED8: 0.5 | EE8: 0.5 | EF8: 0.5 | EG8: 0.5 | EH8: 0.5 | EI8: 0.5 | EJ8: 0.5 | EK8: 0.5 | EL8: 0.5 | EM8: 0.5 | EN8: 0.5 | EO8: 0.5 | EP8: 0.5 | EQ8: 0.5 | ER8: 0.5 | ES8: 0.5 | ET8: 0.5 | EU8: 0.5 | EV8: 0.5 | EW8: 0.5 | EX8: 0.5 | EY8: 0.5 | EZ8: 0.5 | FA8: 0.5
F9: Fermenter Type 1 (%) | G9: 0.4 | H9: 0.4 | I9: =H9 -> 0.4 | J9: 0.4 | K9: 0.4 | L9: 0.4 | M9: 0.4 | N9: 0.4 | O9: 0.4 | P9: 0.4 | Q9: 0.4 | R9: 0.4 | S9: 0.4 | T9: 0.4 | U9: 0.4 | V9: 0.4 | W9: 0.4 | X9: 0.4 | Y9: 0.4 | Z9: 0.4 | AA9: 0.4 | AB9: 0.4 | AC9: 0.4 | AD9: 0.4 | AE9: 0.4 | AF9: 0.4 | AG9: 0.4 | AH9: 0.4 | AI9: 0.4 | AJ9: 0.4 | AK9: 0.4 | AL9: 0.4 | AM9: 0.4 | AN9: 0.4 | AO9: 0.4 | AP9: 0.4 | AQ9: 0.4 | AR9: 0.4 | AS9: 0.4 | AT9: 0.4 | AU9: 0.4 | AV9: 0.4 | AW9: 0.4 | AX9: 0.4 | AY9: 0.4 | AZ9: 0.4 | BA9: 0.4 | BB9: 0.4 | BC9: 0.4 | BD9: 0.4 | BE9: 0.4 | BF9: 0.4 | BG9: 0.4 | BH9: 0.4 | BI9: 0.4 | BJ9: 0.4 | BK9: 0.4 | BL9: 0.4 | BM9: 0.4 | BN9: 0.4 | BO9: 0.4 | BP9: 0.4 | BQ9: 0.4 | BR9: 0.4 | BS9: 0.4 | BT9: 0.4 | BU9: 0.4 | BV9: 0.4 | BW9: 0.4 | BX9: 0.4 | BY9: 0.4 | BZ9: 0.4 | CA9: 0.4 | CB9: 0.4 | CC9: 0.4 | CD9: 0.4 | CE9: 0.4 | CF9: 0.4 | CG9: 0.4 | CH9: 0.4 | CI9: 0.4 | CJ9: 0.4 | CK9: 0.4 | CL9: 0.4 | CM9: 0.4 | CN9: 0.4 | CO9: 0.4 | CP9: 0.4 | CQ9: 0.4 | CR9: 0.4 | CS9: 0.4 | CT9: 0.4 | CU9: 0.4 | CV9: 0.4 | CW9: 0.4 | CX9: 0.4 | CY9: 0.4 | CZ9: 0.4 | DA9: 0.4 | DB9: 0.4 | DC9: 0.4 | DD9: 0.4 | DE9: 0.4 | DF9: 0.4 | DG9: 0.4 | DH9: 0.4 | DI9: 0.4 | DJ9: 0.4 | DK9: 0.4 | DL9: 0.4 | DM9: 0.4 | DN9: 0.4 | DO9: 0.4 | DP9: 0.4 | DQ9: 0.4 | DR9: 0.4 | DS9: 0.4 | DT9: 0.4 | DU9: 0.4 | DV9: 0.4 | DW9: 0.4 | DX9: 0.4 | DY9: 0.4 | DZ9: 0.4 | EA9: 0.4 | EB9: 0.4 | EC9: 0.4 | ED9: 0.4 | EE9: 0.4 | EF9: 0.4 | EG9: 0.4 | EH9: 0.4 | EI9: 0.4 | EJ9: 0.4 | EK9: 0.4 | EL9: 0.4 | EM9: 0.4 | EN9: 0.4 | EO9: 0.4 | EP9: 0.4 | EQ9: 0.4 | ER9: 0.4 | ES9: 0.4 | ET9: 0.4 | EU9: 0.4 | EV9: 0.4 | EW9: 0.4 | EX9: 0.4 | EY9: 0.4 | EZ9: 0.4 | FA9: 0.4
F10: Fermenter Type 2 (%) | G10: 0.4 | H10: 0.4 | I10: 0.4 | J10: 0.4 | K10: 0.4 | L10: 0.4 | M10: 0.4 | N10: 0.4 | O10: 0.4 | P10: 0.4 | Q10: 0.4 | R10: 0.4 | S10: 0.4 | T10: 0.4 | U10: 0.4 | V10: 0.4 | W10: 0.4 | X10: 0.4 | Y10: 0.4 | Z10: 0.4 | AA10: 0.4 | AB10: 0.4 | AC10: 0.4 | AD10: 0.4 | AE10: 0.4 | AF10: 0.4 | AG10: 0.4 | AH10: 0.4 | AI10: 0.4 | AJ10: 0.4 | AK10: 0.4 | AL10: 0.4 | AM10: 0.4 | AN10: 0.4 | AO10: 0.4 | AP10: 0.4 | AQ10: 0.4 | AR10: 0.4 | AS10: 0.4 | AT10: 0.4 | AU10: 0.4 | AV10: 0.4 | AW10: 0.4 | AX10: 0.4 | AY10: 0.4 | AZ10: 0.4 | BA10: 0.4 | BB10: 0.4 | BC10: 0.4 | BD10: 0.4 | BE10: 0.4 | BF10: 0.4 | BG10: 0.4 | BH10: 0.4 | BI10: 0.4 | BJ10: 0.4 | BK10: 0.4 | BL10: 0.4 | BM10: 0.4 | BN10: 0.4 | BO10: 0.4 | BP10: 0.4 | BQ10: 0.4 | BR10: 0.4 | BS10: 0.4 | BT10: 0.4 | BU10: 0.4 | BV10: 0.4 | BW10: 0.4 | BX10: 0.4 | BY10: 0.4 | BZ10: 0.4 | CA10: 0.4 | CB10: 0.4 | CC10: 0.4 | CD10: 0.4 | CE10: 0.4 | CF10: 0.4 | CG10: 0.4 | CH10: 0.4 | CI10: 0.4 | CJ10: 0.4 | CK10: 0.4 | CL10: 0.4 | CM10: 0.4 | CN10: 0.4 | CO10: 0.4 | CP10: 0.4 | CQ10: 0.4 | CR10: 0.4 | CS10: 0.4 | CT10: 0.4 | CU10: 0.4 | CV10: 0.4 | CW10: 0.4 | CX10: 0.4 | CY10: 0.4 | CZ10: 0.4 | DA10: 0.4 | DB10: 0.4 | DC10: 0.4 | DD10: 0.4 | DE10: 0.4 | DF10: 0.4 | DG10: 0.4 | DH10: 0.4 | DI10: 0.4 | DJ10: 0.4 | DK10: 0.4 | DL10: 0.4 | DM10: 0.4 | DN10: 0.4 | DO10: 0.4 | DP10: 0.4 | DQ10: 0.4 | DR10: 0.4 | DS10: 0.4 | DT10: 0.4 | DU10: 0.4 | DV10: 0.4 | DW10: 0.4 | DX10: 0.4 | DY10: 0.4 | DZ10: 0.4 | EA10: 0.4 | EB10: 0.4 | EC10: 0.4 | ED10: 0.4 | EE10: 0.4 | EF10: =EE10 -> 0.4 | EG10: 0.4 | EH10: 0.4 | EI10: 0.4 | EJ10: 0.4 | EK10: 0.4 | EL10: 0.4 | EM10: 0.4 | EN10: 0.4 | EO10: 0.4 | EP10: 0.4 | EQ10: 0.4 | ER10: 0.4 | ES10: 0.4 | ET10: 0.4 | EU10: 0.4 | EV10: 0.4 | EW10: 0.4 | EX10: 0.4 | EY10: 0.4 | EZ10: 0.4 | FA10: 0.4
F11: Fermenter Type 3 (%) | G11: 0.2 | H11: 0.2 | I11: 0.2 | J11: 0.2 | K11: 0.2 | L11: 0.2 | M11: 0.2 | N11: 0.2 | O11: 0.2 | P11: 0.2 | Q11: 0.2 | R11: 0.2 | S11: 0.2 | T11: 0.2 | U11: 0.2 | V11: 0.2 | W11: 0.2 | X11: 0.2 | Y11: 0.2 | Z11: 0.2 | AA11: 0.2 | AB11: 0.2 | AC11: 0.2 | AD11: 0.2 | AE11: 0.2 | AF11: 0.2 | AG11: 0.2 | AH11: 0.2 | AI11: 0.2 | AJ11: 0.2 | AK11: 0.2 | AL11: 0.2 | AM11: 0.2 | AN11: 0.2 | AO11: 0.2 | AP11: 0.2 | AQ11: 0.2 | AR11: 0.2 | AS11: 0.2 | AT11: 0.2 | AU11: 0.2 | AV11: 0.2 | AW11: 0.2 | AX11: 0.2 | AY11: 0.2 | AZ11: 0.2 | BA11: 0.2 | BB11: 0.2 | BC11: 0.2 | BD11: 0.2 | BE11: 0.2 | BF11: 0.2 | BG11: 0.2 | BH11: 0.2 | BI11: 0.2 | BJ11: 0.2 | BK11: 0.2 | BL11: 0.2 | BM11: 0.2 | BN11: 0.2 | BO11: 0.2 | BP11: 0.2 | BQ11: 0.2 | BR11: 0.2 | BS11: 0.2 | BT11: 0.2 | BU11: =BT11 -> 0.2 | BV11: 0.2 | BW11: 0.2 | BX11: 0.2 | BY11: 0.2 | BZ11: 0.2 | CA11: 0.2 | CB11: 0.2 | CC11: 0.2 | CD11: 0.2 | CE11: 0.2 | CF11: 0.2 | CG11: 0.2 | CH11: 0.2 | CI11: 0.2 | CJ11: 0.2 | CK11: 0.2 | CL11: 0.2 | CM11: 0.2 | CN11: 0.2 | CO11: 0.2 | CP11: 0.2 | CQ11: 0.2 | CR11: 0.2 | CS11: 0.2 | CT11: 0.2 | CU11: 0.2 | CV11: 0.2 | CW11: 0.2 | CX11: 0.2 | CY11: 0.2 | CZ11: 0.2 | DA11: 0.2 | DB11: 0.2 | DC11: 0.2 | DD11: 0.2 | DE11: 0.2 | DF11: 0.2 | DG11: 0.2 | DH11: 0.2 | DI11: 0.2 | DJ11: 0.2 | DK11: 0.2 | DL11: 0.2 | DM11: 0.2 | DN11: 0.2 | DO11: 0.2 | DP11: 0.2 | DQ11: 0.2 | DR11: 0.2 | DS11: 0.2 | DT11: 0.2 | DU11: 0.2 | DV11: 0.2 | DW11: 0.2 | DX11: 0.2 | DY11: 0.2 | DZ11: 0.2 | EA11: 0.2 | EB11: 0.2 | EC11: 0.2 | ED11: 0.2 | EE11: 0.2 | EF11: 0.2 | EG11: 0.2 | EH11: 0.2 | EI11: 0.2 | EJ11: 0.2 | EK11: 0.2 | EL11: 0.2 | EM11: 0.2 | EN11: 0.2 | EO11: 0.2 | EP11: 0.2 | EQ11: 0.2 | ER11: 0.2 | ES11: 0.2 | ET11: 0.2 | EU11: 0.2 | EV11: 0.2 | EW11: 0.2 | EX11: 0.2 | EY11: 0.2 | EZ11: 0.2 | FA11: 0.2
F12: Non-Cold Soak | G12: =1-G8 -> 0.5 | H12: 0.5 | I12: 0.5 | J12: 0.5 | K12: 0.5 | L12: 0.5 | M12: 0.5 | N12: 0.5 | O12: 0.5 | P12: 0.5 | Q12: 0.5 | R12: 0.5 | S12: 0.5 | T12: 0.5 | U12: 0.5 | V12: 0.5 | W12: 0.5 | X12: 0.5 | Y12: 0.5 | Z12: 0.5 | AA12: 0.5 | AB12: 0.5 | AC12: 0.5 | AD12: 0.5 | AE12: 0.5 | AF12: 0.5 | AG12: 0.5 | AH12: 0.5 | AI12: 0.5 | AJ12: 0.5 | AK12: 0.5 | AL12: 0.5 | AM12: 0.5 | AN12: 0.5 | AO12: 0.5 | AP12: 0.5 | AQ12: 0.5 | AR12: 0.5 | AS12: 0.5 | AT12: 0.5 | AU12: 0.5 | AV12: 0.5 | AW12: 0.5 | AX12: 0.5 | AY12: 0.5 | AZ12: 0.5 | BA12: 0.5 | BB12: 0.5 | BC12: 0.5 | BD12: 0.5 | BE12: 0.5 | BF12: 0.5 | BG12: 0.5 | BH12: 0.5 | BI12: 0.5 | BJ12: 0.5 | BK12: 0.5 | BL12: 0.5 | BM12: 0.5 | BN12: 0.5 | BO12: 0.5 | BP12: 0.5 | BQ12: 0.5 | BR12: 0.5 | BS12: 0.5 | BT12: =BS12 -> 0.5 | BU12: 0.5 | BV12: 0.5 | BW12: 0.5 | BX12: 0.5 | BY12: 0.5 | BZ12: 0.5 | CA12: 0.5 | CB12: 0.5 | CC12: 0.5 | CD12: 0.5 | CE12: 0.5 | CF12: 0.5 | CG12: 0.5 | CH12: 0.5 | CI12: 0.5 | CJ12: 0.5 | CK12: 0.5 | CL12: 0.5 | CM12: 0.5 | CN12: 0.5 | CO12: 0.5 | CP12: 0.5 | CQ12: 0.5 | CR12: 0.5 | CS12: 0.5 | CT12: 0.5 | CU12: 0.5 | CV12: 0.5 | CW12: 0.5 | CX12: 0.5 | CY12: 0.5 | CZ12: 0.5 | DA12: 0.5 | DB12: 0.5 | DC12: 0.5 | DD12: 0.5 | DE12: 0.5 | DF12: 0.5 | DG12: 0.5 | DH12: 0.5 | DI12: 0.5 | DJ12: 0.5 | DK12: 0.5 | DL12: 0.5 | DM12: 0.5 | DN12: 0.5 | DO12: 0.5 | DP12: 0.5 | DQ12: 0.5 | DR12: 0.5 | DS12: 0.5 | DT12: 0.5 | DU12: 0.5 | DV12: 0.5 | DW12: 0.5 | DX12: 0.5 | DY12: 0.5 | DZ12: 0.5 | EA12: 0.5 | EB12: 0.5 | EC12: 0.5 | ED12: 0.5 | EE12: 0.5 | EF12: 0.5 | EG12: 0.5 | EH12: 0.5 | EI12: 0.5 | EJ12: 0.5 | EK12: 0.5 | EL12: 0.5 | EM12: 0.5 | EN12: 0.5 | EO12: 0.5 | EP12: 0.5 | EQ12: 0.5 | ER12: 0.5 | ES12: 0.5 | ET12: 0.5 | EU12: 0.5 | EV12: 0.5 | EW12: 0.5 | EX12: 0.5 | EY12: 0.5 | EZ12: 0.5 | FA12: 0.5
E13: Non-Cold Soak | F13: Fermenter Type 1 (%) | G13: 0.4 | H13: 0.4 | I13: =H13 -> 0.4 | J13: 0.4 | K13: 0.4 | L13: 0.4 | M13: 0.4 | N13: 0.4 | O13: 0.4 | P13: 0.4 | Q13: 0.4 | R13: 0.4 | S13: 0.4 | T13: 0.4 | U13: 0.4 | V13: 0.4 | W13: 0.4 | X13: 0.4 | Y13: 0.4 | Z13: 0.4 | AA13: 0.4 | AB13: 0.4 | AC13: 0.4 | AD13: 0.4 | AE13: 0.4 | AF13: 0.4 | AG13: 0.4 | AH13: 0.4 | AI13: 0.4 | AJ13: 0.4 | AK13: 0.4 | AL13: 0.4 | AM13: 0.4 | AN13: 0.4 | AO13: 0.4 | AP13: 0.4 | AQ13: 0.4 | AR13: 0.4 | AS13: 0.4 | AT13: 0.4 | AU13: 0.4 | AV13: 0.4 | AW13: 0.4 | AX13: 0.4 | AY13: 0.4 | AZ13: 0.4 | BA13: 0.4 | BB13: 0.4 | BC13: 0.4 | BD13: 0.4 | BE13: 0.4 | BF13: 0.4 | BG13: 0.4 | BH13: 0.4 | BI13: 0.4 | BJ13: 0.4 | BK13: 0.4 | BL13: 0.4 | BM13: 0.4 | BN13: 0.4 | BO13: 0.4 | BP13: 0.4 | BQ13: 0.4 | BR13: 0.4 | BS13: 0.4 | BT13: 0.4 | BU13: 0.4 | BV13: 0.4 | BW13: 0.4 | BX13: 0.4 | BY13: 0.4 | BZ13: 0.4 | CA13: 0.4 | CB13: 0.4 | CC13: 0.4 | CD13: 0.4 | CE13: 0.4 | CF13: 0.4 | CG13: 0.4 | CH13: 0.4 | CI13: 0.4 | CJ13: 0.4 | CK13: 0.4 | CL13: 0.4 | CM13: 0.4 | CN13: 0.4 | CO13: 0.4 | CP13: 0.4 | CQ13: 0.4 | CR13: 0.4 | CS13: 0.4 | CT13: 0.4 | CU13: 0.4 | CV13: 0.4 | CW13: 0.4 | CX13: 0.4 | CY13: 0.4 | CZ13: 0.4 | DA13: 0.4 | DB13: 0.4 | DC13: 0.4 | DD13: 0.4 | DE13: 0.4 | DF13: 0.4 | DG13: 0.4 | DH13: 0.4 | DI13: 0.4 | DJ13: 0.4 | DK13: 0.4 | DL13: 0.4 | DM13: 0.4 | DN13: 0.4 | DO13: 0.4 | DP13: 0.4 | DQ13: 0.4 | DR13: 0.4 | DS13: 0.4 | DT13: 0.4 | DU13: 0.4 | DV13: 0.4 | DW13: 0.4 | DX13: 0.4 | DY13: 0.4 | DZ13: 0.4 | EA13: 0.4 | EB13: 0.4 | EC13: 0.4 | ED13: 0.4 | EE13: 0.4 | EF13: 0.4 | EG13: 0.4 | EH13: 0.4 | EI13: 0.4 | EJ13: 0.4 | EK13: 0.4 | EL13: 0.4 | EM13: 0.4 | EN13: 0.4 | EO13: 0.4 | EP13: 0.4 | EQ13: 0.4 | ER13: 0.4 | ES13: 0.4 | ET13: 0.4 | EU13: 0.4 | EV13: 0.4 | EW13: 0.4 | EX13: 0.4 | EY13: 0.4 | EZ13: 0.4 | FA13: 0.4
F14: Fermenter Type 2 (%) | G14: 0.4 | H14: 0.4 | I14: 0.4 | J14: 0.4 | K14: 0.4 | L14: 0.4 | M14: 0.4 | N14: 0.4 | O14: 0.4 | P14: 0.4 | Q14: 0.4 | R14: 0.4 | S14: 0.4 | T14: 0.4 | U14: 0.4 | V14: 0.4 | W14: 0.4 | X14: 0.4 | Y14: 0.4 | Z14: 0.4 | AA14: 0.4 | AB14: 0.4 | AC14: 0.4 | AD14: 0.4 | AE14: 0.4 | AF14: 0.4 | AG14: 0.4 | AH14: 0.4 | AI14: 0.4 | AJ14: 0.4 | AK14: 0.4 | AL14: 0.4 | AM14: 0.4 | AN14: 0.4 | AO14: 0.4 | AP14: 0.4 | AQ14: 0.4 | AR14: 0.4 | AS14: 0.4 | AT14: 0.4 | AU14: 0.4 | AV14: 0.4 | AW14: 0.4 | AX14: 0.4 | AY14: 0.4 | AZ14: 0.4 | BA14: 0.4 | BB14: 0.4 | BC14: 0.4 | BD14: 0.4 | BE14: 0.4 | BF14: 0.4 | BG14: 0.4 | BH14: 0.4 | BI14: 0.4 | BJ14: 0.4 | BK14: 0.4 | BL14: 0.4 | BM14: 0.4 | BN14: 0.4 | BO14: 0.4 | BP14: 0.4 | BQ14: 0.4 | BR14: 0.4 | BS14: 0.4 | BT14: 0.4 | BU14: 0.4 | BV14: 0.4 | BW14: 0.4 | BX14: 0.4 | BY14: 0.4 | BZ14: 0.4 | CA14: 0.4 | CB14: 0.4 | CC14: 0.4 | CD14: 0.4 | CE14: 0.4 | CF14: 0.4 | CG14: 0.4 | CH14: 0.4 | CI14: 0.4 | CJ14: 0.4 | CK14: 0.4 | CL14: 0.4 | CM14: 0.4 | CN14: 0.4 | CO14: 0.4 | CP14: 0.4 | CQ14: 0.4 | CR14: 0.4 | CS14: 0.4 | CT14: 0.4 | CU14: 0.4 | CV14: 0.4 | CW14: 0.4 | CX14: 0.4 | CY14: 0.4 | CZ14: 0.4 | DA14: 0.4 | DB14: 0.4 | DC14: 0.4 | DD14: 0.4 | DE14: 0.4 | DF14: 0.4 | DG14: 0.4 | DH14: 0.4 | DI14: 0.4 | DJ14: 0.4 | DK14: 0.4 | DL14: 0.4 | DM14: 0.4 | DN14: 0.4 | DO14: 0.4 | DP14: 0.4 | DQ14: 0.4 | DR14: 0.4 | DS14: 0.4 | DT14: 0.4 | DU14: 0.4 | DV14: 0.4 | DW14: 0.4 | DX14: 0.4 | DY14: 0.4 | DZ14: 0.4 | EA14: 0.4 | EB14: 0.4 | EC14: 0.4 | ED14: 0.4 | EE14: 0.4 | EF14: 0.4 | EG14: 0.4 | EH14: 0.4 | EI14: 0.4 | EJ14: 0.4 | EK14: 0.4 | EL14: 0.4 | EM14: 0.4 | EN14: 0.4 | EO14: 0.4 | EP14: 0.4 | EQ14: 0.4 | ER14: 0.4 | ES14: 0.4 | ET14: 0.4 | EU14: 0.4 | EV14: 0.4 | EW14: 0.4 | EX14: 0.4 | EY14: 0.4 | EZ14: 0.4 | FA14: 0.4
F15: Fermenter Type 3 (%) | G15: 0.2 | H15: 0.2 | I15: 0.2 | J15: 0.2 | K15: 0.2 | L15: 0.2 | M15: 0.2 | N15: 0.2 | O15: 0.2 | P15: 0.2 | Q15: 0.2 | R15: 0.2 | S15: 0.2 | T15: 0.2 | U15: 0.2 | V15: 0.2 | W15: 0.2 | X15: 0.2 | Y15: 0.2 | Z15: 0.2 | AA15: 0.2 | AB15: 0.2 | AC15: 0.2 | AD15: 0.2 | AE15: 0.2 | AF15: 0.2 | AG15: 0.2 | AH15: 0.2 | AI15: 0.2 | AJ15: 0.2 | AK15: 0.2 | AL15: 0.2 | AM15: 0.2 | AN15: 0.2 | AO15: 0.2 | AP15: 0.2 | AQ15: 0.2 | AR15: 0.2 | AS15: 0.2 | AT15: 0.2 | AU15: 0.2 | AV15: 0.2 | AW15: 0.2 | AX15: 0.2 | AY15: 0.2 | AZ15: 0.2 | BA15: 0.2 | BB15: 0.2 | BC15: 0.2 | BD15: 0.2 | BE15: 0.2 | BF15: 0.2 | BG15: 0.2 | BH15: 0.2 | BI15: 0.2 | BJ15: 0.2 | BK15: 0.2 | BL15: 0.2 | BM15: 0.2 | BN15: 0.2 | BO15: 0.2 | BP15: 0.2 | BQ15: 0.2 | BR15: 0.2 | BS15: 0.2 | BT15: 0.2 | BU15: 0.2 | BV15: 0.2 | BW15: 0.2 | BX15: 0.2 | BY15: 0.2 | BZ15: 0.2 | CA15: 0.2 | CB15: 0.2 | CC15: 0.2 | CD15: 0.2 | CE15: 0.2 | CF15: 0.2 | CG15: 0.2 | CH15: 0.2 | CI15: 0.2 | CJ15: 0.2 | CK15: 0.2 | CL15: 0.2 | CM15: 0.2 | CN15: 0.2 | CO15: 0.2 | CP15: 0.2 | CQ15: 0.2 | CR15: 0.2 | CS15: 0.2 | CT15: 0.2 | CU15: 0.2 | CV15: 0.2 | CW15: 0.2 | CX15: 0.2 | CY15: 0.2 | CZ15: 0.2 | DA15: 0.2 | DB15: 0.2 | DC15: 0.2 | DD15: 0.2 | DE15: 0.2 | DF15: 0.2 | DG15: 0.2 | DH15: 0.2 | DI15: 0.2 | DJ15: 0.2 | DK15: 0.2 | DL15: 0.2 | DM15: 0.2 | DN15: 0.2 | DO15: 0.2 | DP15: 0.2 | DQ15: 0.2 | DR15: 0.2 | DS15: 0.2 | DT15: 0.2 | DU15: 0.2 | DV15: 0.2 | DW15: 0.2 | DX15: 0.2 | DY15: 0.2 | DZ15: 0.2 | EA15: 0.2 | EB15: 0.2 | EC15: 0.2 | ED15: 0.2 | EE15: 0.2 | EF15: 0.2 | EG15: 0.2 | EH15: 0.2 | EI15: 0.2 | EJ15: 0.2 | EK15: 0.2 | EL15: 0.2 | EM15: 0.2 | EN15: 0.2 | EO15: 0.2 | EP15: 0.2 | EQ15: 0.2 | ER15: 0.2 | ES15: 0.2 | ET15: 0.2 | EU15: 0.2 | EV15: 0.2 | EW15: 0.2 | EX15: 0.2 | EY15: 0.2 | EZ15: 0.2 | FA15: 0.2
F16: Maturation Storage Type 1 (%) | G16: 0.5 | H16: 0.5 | I16: 0.5 | J16: 0.5 | K16: 0.5 | L16: 0.5 | M16: 0.5 | N16: 0.5 | O16: 0.5 | P16: 0.5 | Q16: 0.5 | R16: 0.5 | S16: 0.5 | T16: 0.5 | U16: 0.5 | V16: 0.5 | W16: 0.5 | X16: 0.5 | Y16: 0.5 | Z16: 0.5 | AA16: 0.5 | AB16: 0.5 | AC16: 0.5 | AD16: 0.5 | AE16: 0.5 | AF16: 0.5 | AG16: 0.5 | AH16: 0.5 | AI16: 0.5 | AJ16: 0.5 | AK16: 0.5 | AL16: 0.5 | AM16: 0.5 | AN16: 0.5 | AO16: 0.5 | AP16: 0.5 | AQ16: 0.5 | AR16: 0.5 | AS16: 0.5 | AT16: 0.5 | AU16: 0.5 | AV16: 0.5 | AW16: 0.5 | AX16: 0.5 | AY16: 0.5 | AZ16: 0.5 | BA16: 0.5 | BB16: 0.5 | BC16: 0.5 | BD16: 0.5 | BE16: 0.5 | BF16: 0.5 | BG16: 0.5 | BH16: 0.5 | BI16: 0.5 | BJ16: 0.5 | BK16: 0.5 | BL16: 0.5 | BM16: 0.5 | BN16: 0.5 | BO16: 0.5 | BP16: 0.5 | BQ16: 0.5 | BR16: 0.5 | BS16: 0.5 | BT16: =BS16 -> 0.5 | BU16: 0.5 | BV16: 0.5 | BW16: 0.5 | BX16: 0.5 | BY16: 0.5 | BZ16: 0.5 | CA16: 0.5 | CB16: 0.5 | CC16: 0.5 | CD16: 0.5 | CE16: 0.5 | CF16: 0.5 | CG16: 0.5 | CH16: 0.5 | CI16: 0.5 | CJ16: 0.5 | CK16: 0.5 | CL16: 0.5 | CM16: 0.5 | CN16: 0.5 | CO16: 0.5 | CP16: 0.5 | CQ16: 0.5 | CR16: 0.5 | CS16: 0.5 | CT16: 0.5 | CU16: 0.5 | CV16: 0.5 | CW16: 0.5 | CX16: 0.5 | CY16: 0.5 | CZ16: 0.5 | DA16: 0.5 | DB16: 0.5 | DC16: 0.5 | DD16: 0.5 | DE16: 0.5 | DF16: 0.5 | DG16: 0.5 | DH16: 0.5 | DI16: 0.5 | DJ16: 0.5 | DK16: 0.5 | DL16: 0.5 | DM16: 0.5 | DN16: 0.5 | DO16: 0.5 | DP16: 0.5 | DQ16: 0.5 | DR16: 0.5 | DS16: 0.5 | DT16: 0.5 | DU16: 0.5 | DV16: 0.5 | DW16: 0.5 | DX16: 0.5 | DY16: 0.5 | DZ16: 0.5 | EA16: 0.5 | EB16: 0.5 | EC16: 0.5 | ED16: 0.5 | EE16: 0.5 | EF16: 0.5 | EG16: 0.5 | EH16: 0.5 | EI16: 0.5 | EJ16: 0.5 | EK16: 0.5 | EL16: 0.5 | EM16: 0.5 | EN16: 0.5 | EO16: 0.5 | EP16: 0.5 | EQ16: 0.5 | ER16: 0.5 | ES16: 0.5 | ET16: 0.5 | EU16: 0.5 | EV16: 0.5 | EW16: 0.5 | EX16: 0.5 | EY16: 0.5 | EZ16: 0.5 | FA16: 0.5
F17: Maturation Storage Type 2 (%) | G17: 0.3 | H17: 0.3 | I17: =H17 -> 0.3 | J17: 0.3 | K17: 0.3 | L17: 0.3 | M17: 0.3 | N17: 0.3 | O17: 0.3 | P17: 0.3 | Q17: 0.3 | R17: 0.3 | S17: 0.3 | T17: 0.3 | U17: 0.3 | V17: 0.3 | W17: 0.3 | X17: 0.3 | Y17: 0.3 | Z17: 0.3 | AA17: 0.3 | AB17: 0.3 | AC17: 0.3 | AD17: 0.3 | AE17: 0.3 | AF17: 0.3 | AG17: 0.3 | AH17: 0.3 | AI17: 0.3 | AJ17: 0.3 | AK17: 0.3 | AL17: 0.3 | AM17: 0.3 | AN17: 0.3 | AO17: 0.3 | AP17: 0.3 | AQ17: 0.3 | AR17: 0.3 | AS17: 0.3 | AT17: 0.3 | AU17: 0.3 | AV17: 0.3 | AW17: 0.3 | AX17: 0.3 | AY17: 0.3 | AZ17: 0.3 | BA17: 0.3 | BB17: 0.3 | BC17: 0.3 | BD17: 0.3 | BE17: 0.3 | BF17: 0.3 | BG17: 0.3 | BH17: 0.3 | BI17: 0.3 | BJ17: 0.3 | BK17: 0.3 | BL17: 0.3 | BM17: 0.3 | BN17: 0.3 | BO17: 0.3 | BP17: 0.3 | BQ17: 0.3 | BR17: 0.3 | BS17: 0.3 | BT17: 0.3 | BU17: 0.3 | BV17: 0.3 | BW17: 0.3 | BX17: 0.3 | BY17: 0.3 | BZ17: 0.3 | CA17: 0.3 | CB17: 0.3 | CC17: 0.3 | CD17: 0.3 | CE17: 0.3 | CF17: 0.3 | CG17: 0.3 | CH17: 0.3 | CI17: 0.3 | CJ17: 0.3 | CK17: 0.3 | CL17: 0.3 | CM17: 0.3 | CN17: 0.3 | CO17: 0.3 | CP17: 0.3 | CQ17: 0.3 | CR17: 0.3 | CS17: 0.3 | CT17: 0.3 | CU17: 0.3 | CV17: 0.3 | CW17: 0.3 | CX17: 0.3 | CY17: 0.3 | CZ17: 0.3 | DA17: 0.3 | DB17: 0.3 | DC17: 0.3 | DD17: 0.3 | DE17: 0.3 | DF17: 0.3 | DG17: 0.3 | DH17: 0.3 | DI17: 0.3 | DJ17: 0.3 | DK17: 0.3 | DL17: 0.3 | DM17: 0.3 | DN17: 0.3 | DO17: 0.3 | DP17: 0.3 | DQ17: 0.3 | DR17: 0.3 | DS17: 0.3 | DT17: 0.3 | DU17: 0.3 | DV17: 0.3 | DW17: 0.3 | DX17: 0.3 | DY17: 0.3 | DZ17: 0.3 | EA17: 0.3 | EB17: 0.3 | EC17: 0.3 | ED17: 0.3 | EE17: 0.3 | EF17: 0.3 | EG17: 0.3 | EH17: 0.3 | EI17: 0.3 | EJ17: 0.3 | EK17: 0.3 | EL17: 0.3 | EM17: 0.3 | EN17: 0.3 | EO17: 0.3 | EP17: 0.3 | EQ17: 0.3 | ER17: 0.3 | ES17: 0.3 | ET17: 0.3 | EU17: 0.3 | EV17: 0.3 | EW17: 0.3 | EX17: 0.3 | EY17: 0.3 | EZ17: 0.3 | FA17: 0.3
F18: Maturation Storage Type 3 (%) | G18: 0.2 | H18: 0.2 | I18: 0.2 | J18: 0.2 | K18: 0.2 | L18: 0.2 | M18: 0.2 | N18: 0.2 | O18: 0.2 | P18: 0.2 | Q18: 0.2 | R18: 0.2 | S18: 0.2 | T18: 0.2 | U18: 0.2 | V18: 0.2 | W18: 0.2 | X18: 0.2 | Y18: 0.2 | Z18: 0.2 | AA18: 0.2 | AB18: 0.2 | AC18: 0.2 | AD18: 0.2 | AE18: 0.2 | AF18: 0.2 | AG18: 0.2 | AH18: 0.2 | AI18: 0.2 | AJ18: 0.2 | AK18: 0.2 | AL18: 0.2 | AM18: 0.2 | AN18: 0.2 | AO18: 0.2 | AP18: 0.2 | AQ18: 0.2 | AR18: 0.2 | AS18: 0.2 | AT18: 0.2 | AU18: 0.2 | AV18: 0.2 | AW18: 0.2 | AX18: 0.2 | AY18: 0.2 | AZ18: 0.2 | BA18: 0.2 | BB18: 0.2 | BC18: 0.2 | BD18: 0.2 | BE18: 0.2 | BF18: 0.2 | BG18: 0.2 | BH18: 0.2 | BI18: 0.2 | BJ18: 0.2 | BK18: 0.2 | BL18: 0.2 | BM18: 0.2 | BN18: 0.2 | BO18: 0.2 | BP18: 0.2 | BQ18: 0.2 | BR18: 0.2 | BS18: 0.2 | BT18: 0.2 | BU18: 0.2 | BV18: 0.2 | BW18: 0.2 | BX18: 0.2 | BY18: 0.2 | BZ18: 0.2 | CA18: 0.2 | CB18: 0.2 | CC18: 0.2 | CD18: 0.2 | CE18: 0.2 | CF18: 0.2 | CG18: 0.2 | CH18: 0.2 | CI18: 0.2 | CJ18: 0.2 | CK18: 0.2 | CL18: 0.2 | CM18: 0.2 | CN18: 0.2 | CO18: 0.2 | CP18: 0.2 | CQ18: 0.2 | CR18: 0.2 | CS18: 0.2 | CT18: 0.2 | CU18: 0.2 | CV18: 0.2 | CW18: 0.2 | CX18: 0.2 | CY18: 0.2 | CZ18: 0.2 | DA18: 0.2 | DB18: 0.2 | DC18: 0.2 | DD18: 0.2 | DE18: 0.2 | DF18: 0.2 | DG18: 0.2 | DH18: 0.2 | DI18: 0.2 | DJ18: 0.2 | DK18: 0.2 | DL18: 0.2 | DM18: 0.2 | DN18: 0.2 | DO18: 0.2 | DP18: 0.2 | DQ18: 0.2 | DR18: 0.2 | DS18: 0.2 | DT18: 0.2 | DU18: 0.2 | DV18: 0.2 | DW18: 0.2 | DX18: 0.2 | DY18: 0.2 | DZ18: 0.2 | EA18: 0.2 | EB18: 0.2 | EC18: 0.2 | ED18: 0.2 | EE18: 0.2 | EF18: 0.2 | EG18: 0.2 | EH18: 0.2 | EI18: 0.2 | EJ18: 0.2 | EK18: 0.2 | EL18: 0.2 | EM18: 0.2 | EN18: 0.2 | EO18: 0.2 | EP18: 0.2 | EQ18: 0.2 | ER18: 0.2 | ES18: 0.2 | ET18: 0.2 | EU18: 0.2 | EV18: 0.2 | EW18: 0.2 | EX18: 0.2 | EY18: 0.2 | EZ18: 0.2 | FA18: 0.2
F19: Cold Stabilisation (%) | G19: 0.05 | H19: 0.05 | I19: 0.05 | J19: 0.05 | K19: 0.05 | L19: 0.05 | M19: 0.05 | N19: 0.05 | O19: 0.05 | P19: 0.05 | Q19: 0.05 | R19: 0.05 | S19: 0.05 | T19: 0.05 | U19: 0.05 | V19: 0.05 | W19: 0.05 | X19: 0.05 | Y19: 0.05 | Z19: 0.05 | AA19: 0.05 | AB19: 0.05 | AC19: 0.05 | AD19: 0.05 | AE19: 0.05 | AF19: 0.05 | AG19: 0.05 | AH19: 0.05 | AI19: 0.05 | AJ19: 0.05 | AK19: 0.05 | AL19: 0.05 | AM19: 0.05 | AN19: 0.05 | AO19: 0.05 | AP19: 0.05 | AQ19: 0.05 | AR19: 0.05 | AS19: 0.05 | AT19: 0.05 | AU19: 0.05 | AV19: 0.05 | AW19: 0.05 | AX19: 0.05 | AY19: 0.05 | AZ19: 0.05 | BA19: 0.05 | BB19: 0.05 | BC19: 0.05 | BD19: 0.05 | BE19: 0.05 | BF19: 0.05 | BG19: 0.05 | BH19: 0.05 | BI19: 0.05 | BJ19: 0.05 | BK19: 0.05 | BL19: 0.05 | BM19: 0.05 | BN19: 0.05 | BO19: 0.05 | BP19: 0.05 | BQ19: 0.05 | BR19: 0.05 | BS19: 0.05 | BT19: 0.05 | BU19: 0.05 | BV19: 0.05 | BW19: 0.05 | BX19: 0.05 | BY19: 0.05 | BZ19: 0.05 | CA19: 0.05 | CB19: 0.05 | CC19: 0.05 | CD19: 0.05 | CE19: 0.05 | CF19: 0.05 | CG19: 0.05 | CH19: 0.05 | CI19: 0.05 | CJ19: 0.05 | CK19: 0.05 | CL19: 0.05 | CM19: 0.05 | CN19: 0.05 | CO19: 0.05 | CP19: 0.05 | CQ19: 0.05 | CR19: 0.05 | CS19: 0.05 | CT19: 0.05 | CU19: 0.05 | CV19: 0.05 | CW19: 0.05 | CX19: 0.05 | CY19: 0.05 | CZ19: 0.05 | DA19: 0.05 | DB19: 0.05 | DC19: 0.05 | DD19: 0.05 | DE19: 0.05 | DF19: 0.05 | DG19: 0.05 | DH19: 0.05 | DI19: 0.05 | DJ19: 0.05 | DK19: 0.05 | DL19: 0.05 | DM19: 0.05 | DN19: 0.05 | DO19: 0.05 | DP19: 0.05 | DQ19: 0.05 | DR19: 0.05 | DS19: 0.05 | DT19: 0.05 | DU19: 0.05 | DV19: 0.05 | DW19: 0.05 | DX19: 0.05 | DY19: 0.05 | DZ19: 0.05 | EA19: 0.05 | EB19: 0.05 | EC19: 0.05 | ED19: 0.05 | EE19: 0.05 | EF19: 0.05 | EG19: 0.05 | EH19: 0.05 | EI19: 0.05 | EJ19: 0.05 | EK19: 0.05 | EL19: 0.05 | EM19: 0.05 | EN19: 0.05 | EO19: 0.05 | EP19: 0.05 | EQ19: 0.05 | ER19: 0.05 | ES19: 0.05 | ET19: 0.05 | EU19: 0.05 | EV19: 0.05 | EW19: 0.05 | EX19: 0.05 | EY19: 0.05 | EZ19: 0.05 | FA19: 0.05
C21: TOTAL
C22: kWr refrigeration | D22: kWe refrigeration | F22: Date
C23: =SUM(G23:FA23)+SUM('Red Cold Stabilisation'!F38:G38) -> 0 | F23: =G2+9/24 -> 2014-01-01T09:00:00 | G23: =IF(G$6="",0,'Must Chill Cold Settle & Soak'!$C$14) -> 0
C24: =SUM(G24:FA24)+SUM('Red Cold Stabilisation'!F39:G39) -> 0 | F24: =F23+0.5 -> 2014-01-01T21:00:00 | G24: ='Cold Soak Red'!G24+'Non Cold Soak Red'!G24 -> 0
C25: =SUM(G25:FA25)+SUM('Red Cold Stabilisation'!F40:G40) -> 0 | F25: =F24+0.5 -> 2014-01-02T09:00:00 | G25: ='Cold Soak Red'!G25+'Non Cold Soak Red'!G25 -> 0 | H25: =IF(H$6="",0,'Must Chill Cold Settle & Soak'!$C$14) -> 0
C26: =SUM(G26:FA26)+SUM('Red Cold Stabilisation'!F41:G41) -> 0 | F26: 2014-01-02T21:00:00 | G26: ='Cold Soak Red'!G26+'Non Cold Soak Red'!G26 -> 0 | H26: ='Cold Soak Red'!H26+'Non Cold Soak Red'!H26 -> 0
C27: =SUM(G27:FA27)+SUM('Red Cold Stabilisation'!F42:G42) -> 0 | F27: 2014-01-03T09:00:00 | G27: ='Cold Soak Red'!G27+'Non Cold Soak Red'!G27 -> 0 | H27: ='Cold Soak Red'!H27+'Non Cold Soak Red'!H27 -> 0 | I27: =IF(I$6="",0,'Must Chill Cold Settle & Soak'!$C$14) -> 0
C28: =SUM(G28:FA28)+SUM('Red Cold Stabilisation'!F43:G43) -> 0 | F28: 2014-01-03T21:00:00 | G28: ='Cold Soak Red'!G28+'Non Cold Soak Red'!G28 -> 0 | H28: ='Cold Soak Red'!H28+'Non Cold Soak Red'!H28 -> 0 | I28: ='Cold Soak Red'!I28+'Non Cold Soak Red'!I28 -> 0
C29: =SUM(G29:FA29)+SUM('Red Cold Stabilisation'!F44:G44) -> 0 | F29: 2014-01-04T09:00:00 | G29: ='Cold Soak Red'!G29+'Non Cold Soak Red'!G29 -> 0 | H29: ='Cold Soak Red'!H29+'Non Cold Soak Red'!H29 -> 0 | I29: ='Cold Soak Red'!I29+'Non Cold Soak Red'!I29 -> 0 | J29: =IF(J$6="",0,'Must Chill Cold Settle & Soak'!$C$14) -> 0
C30: =SUM(G30:FA30)+SUM('Red Cold Stabilisation'!F45:G45) -> 0 | F30: 2014-01-04T21:00:00 | G30: ='Cold Soak Red'!G30+'Non Cold Soak Red'!G30 -> 0 | H30: ='Cold Soak Red'!H30+'Non Cold Soak Red'!H30 -> 0 | I30: ='Cold Soak Red'!I30+'Non Cold Soak Red'!I30 -> 0 | J30: ='Cold Soak Red'!J30+'Non Cold Soak Red'!J30 -> 0
C31: =SUM(G31:FA31)+SUM('Red Cold Stabilisation'!F46:G46) -> 0 | F31: 2014-01-05T09:00:00 | G31: ='Cold Soak Red'!G31+'Non Cold Soak Red'!G31 -> 0 | H31: ='Cold Soak Red'!H31+'Non Cold Soak Red'!H31 -> 0 | I31: ='Cold Soak Red'!I31+'Non Cold Soak Red'!I31 -> 0 | J31: ='Cold Soak Red'!J31+'Non Cold Soak Red'!J31 -> 0 | K31: =IF(K$6="",0,'Must Chill Cold Settle & Soak'!$C$14) -> 0
C32: =SUM(G32:FA32)+SUM('Red Cold Stabilisation'!F47:G47) -> 0 | F32: 2014-01-05T21:00:00 | G32: ='Cold Soak Red'!G32+'Non Cold Soak Red'!G32 -> 0 | H32: ='Cold Soak Red'!H32+'Non Cold Soak Red'!H32 -> 0 | I32: ='Cold Soak Red'!I32+'Non Cold Soak Red'!I32 -> 0 | J32: ='Cold Soak Red'!J32+'Non Cold Soak Red'!J32 -> 0 | K32: ='Cold Soak Red'!K32+'Non Cold Soak Red'!K32 -> 0
C33: =SUM(G33:FA33)+SUM('Red Cold Stabilisation'!F48:G48) -> 0 | F33: 2014-01-06T09:00:00 | G33: ='Cold Soak Red'!G33+'Non Cold Soak Red'!G33 -> 0 | H33: ='Cold Soak Red'!H33+'Non Cold Soak Red'!H33 -> 0 | I33: ='Cold Soak Red'!I33+'Non Cold Soak Red'!I33 -> 0 | J33: ='Cold Soak Red'!J33+'Non Cold Soak Red'!J33 -> 0 | K33: ='Cold Soak Red'!K33+'Non Cold Soak Red'!K33 -> 0 | L33: =IF(L$6="",0,'Must Chill Cold Settle & Soak'!$C$14) -> 0
C34: =SUM(G34:FA34)+SUM('Red Cold Stabilisation'!F49:G49) -> 0 | F34: 2014-01-06T21:00:00 | G34: ='Cold Soak Red'!G34+'Non Cold Soak Red'!G34 -> 0 | H34: ='Cold Soak Red'!H34+'Non Cold Soak Red'!H34 -> 0 | I34: ='Cold Soak Red'!I34+'Non Cold Soak Red'!I34 -> 0 | J34: ='Cold Soak Red'!J34+'Non Cold Soak Red'!J34 -> 0 | K34: ='Cold Soak Red'!K34+'Non Cold Soak Red'!K34 -> 0 | L34: ='Cold Soak Red'!L34+'Non Cold Soak Red'!L34 -> 0
C35: =SUM(G35:FA35)+SUM('Red Cold Stabilisation'!F50:G50) -> 0 | F35: 2014-01-07T09:00:00 | G35: ='Cold Soak Red'!G35+'Non Cold Soak Red'!G35 -> 0 | H35: ='Cold Soak Red'!H35+'Non Cold Soak Red'!H35 -> 0 | I35: ='Cold Soak Red'!I35+'Non Cold Soak Red'!I35 -> 0 | J35: ='Cold Soak Red'!J35+'Non Cold Soak Red'!J35 -> 0 | K35: ='Cold Soak Red'!K35+'Non Cold Soak Red'!K35 -> 0 | L35: ='Cold Soak Red'!L35+'Non Cold Soak Red'!L35 -> 0 | M35: =IF(M$6="",0,'Must Chill Cold Settle & Soak'!$C$14) -> 0
C36: =SUM(G36:FA36)+SUM('Red Cold Stabilisation'!F51:G51) -> 0 | F36: 2014-01-07T21:00:00 | G36: ='Cold Soak Red'!G36+'Non Cold Soak Red'!G36 -> 0 | H36: ='Cold Soak Red'!H36+'Non Cold Soak Red'!H36 -> 0 | I36: ='Cold Soak Red'!I36+'Non Cold Soak Red'!I36 -> 0 | J36: ='Cold Soak Red'!J36+'Non Cold Soak Red'!J36 -> 0 | K36: ='Cold Soak Red'!K36+'Non Cold Soak Red'!K36 -> 0 | L36: ='Cold Soak Red'!L36+'Non Cold Soak Red'!L36 -> 0 | M36: ='Cold Soak Red'!M36+'Non Cold Soak Red'!M36 -> 0
C37: =SUM(G37:FA37)+SUM('Red Cold Stabilisation'!F52:G52) -> 0 | F37: 2014-01-08T09:00:00 | G37: ='Cold Soak Red'!G37+'Non Cold Soak Red'!G37 -> 0 | H37: ='Cold Soak Red'!H37+'Non Cold Soak Red'!H37 -> 0 | I37: ='Cold Soak Red'!I37+'Non Cold Soak Red'!I37 -> 0 | J37: ='Cold Soak Red'!J37+'Non Cold Soak Red'!J37 -> 0 | K37: ='Cold Soak Red'!K37+'Non Cold Soak Red'!K37 -> 0 | L37: ='Cold Soak Red'!L37+'Non Cold Soak Red'!L37 -> 0 | M37: ='Cold Soak Red'!M37+'Non Cold Soak Red'!M37 -> 0 | N37: =IF(N$6="",0,'Must Chill Cold Settle & Soak'!$C$14) -> 0
C38: =SUM(G38:FA38)+SUM('Red Cold Stabilisation'!F53:G53) -> 0 | F38: 2014-01-08T21:00:00 | G38: ='Cold Soak Red'!G38+'Non Cold Soak Red'!G38 -> 0 | H38: ='Cold Soak Red'!H38+'Non Cold Soak Red'!H38 -> 0 | I38: ='Cold Soak Red'!I38+'Non Cold Soak Red'!I38 -> 0 | J38: ='Cold Soak Red'!J38+'Non Cold Soak Red'!J38 -> 0 | K38: ='Cold Soak Red'!K38+'Non Cold Soak Red'!K38 -> 0 | L38: ='Cold Soak Red'!L38+'Non Cold Soak Red'!L38 -> 0 | M38: ='Cold Soak Red'!M38+'Non Cold Soak Red'!M38 -> 0 | N38: ='Cold Soak Red'!N38+'Non Cold Soak Red'!N38 -> 0
C39: =SUM(G39:FA39)+SUM('Red Cold Stabilisation'!F54:G54) -> 0 | F39: 2014-01-09T09:00:00 | G39: ='Cold Soak Red'!G39+'Non Cold Soak Red'!G39 -> 0 | H39: ='Cold Soak Red'!H39+'Non Cold Soak Red'!H39 -> 0 | I39: ='Cold Soak Red'!I39+'Non Cold Soak Red'!I39 -> 0 | J39: ='Cold Soak Red'!J39+'Non Cold Soak Red'!J39 -> 0 | K39: ='Cold Soak Red'!K39+'Non Cold Soak Red'!K39 -> 0 | L39: ='Cold Soak Red'!L39+'Non Cold Soak Red'!L39 -> 0 | M39: ='Cold Soak Red'!M39+'Non Cold Soak Red'!M39 -> 0 | N39: ='Cold Soak Red'!N39+'Non Cold Soak Red'!N39 -> 0 | O39: =IF(O$6="",0,'Must Chill Cold Settle & Soak'!$C$14) -> 0
C40: =SUM(G40:FA40)+SUM('Red Cold Stabilisation'!F55:G55) -> 0 | F40: 2014-01-09T21:00:00 | G40: ='Cold Soak Red'!G40+'Non Cold Soak Red'!G40 -> 0 | H40: ='Cold Soak Red'!H40+'Non Cold Soak Red'!H40 -> 0 | I40: ='Cold Soak Red'!I40+'Non Cold Soak Red'!I40 -> 0 | J40: ='Cold Soak Red'!J40+'Non Cold Soak Red'!J40 -> 0 | K40: ='Cold Soak Red'!K40+'Non Cold Soak Red'!K40 -> 0 | L40: ='Cold Soak Red'!L40+'Non Cold Soak Red'!L40 -> 0 | M40: ='Cold Soak Red'!M40+'Non Cold Soak Red'!M40 -> 0 | N40: ='Cold Soak Red'!N40+'Non Cold Soak Red'!N40 -> 0 | O40: ='Cold Soak Red'!O40+'Non Cold Soak Red'!O40 -> 0
C41: =SUM(G41:FA41)+SUM('Red Cold Stabilisation'!F56:G56) -> 0 | F41: 2014-01-10T09:00:00 | G41: ='Cold Soak Red'!G41+'Non Cold Soak Red'!G41 -> 0 | H41: ='Cold Soak Red'!H41+'Non Cold Soak Red'!H41 -> 0 | I41: ='Cold Soak Red'!I41+'Non Cold Soak Red'!I41 -> 0 | J41: ='Cold Soak Red'!J41+'Non Cold Soak Red'!J41 -> 0 | K41: ='Cold Soak Red'!K41+'Non Cold Soak Red'!K41 -> 0 | L41: ='Cold Soak Red'!L41+'Non Cold Soak Red'!L41 -> 0 | M41: ='Cold Soak Red'!M41+'Non Cold Soak Red'!M41 -> 0 | N41: ='Cold Soak Red'!N41+'Non Cold Soak Red'!N41 -> 0 | O41: ='Cold Soak Red'!O41+'Non Cold Soak Red'!O41 -> 0 | P41: =IF(P$6="",0,'Must Chill Cold Settle & Soak'!$C$14) -> 0
C42: =SUM(G42:FA42)+SUM('Red Cold Stabilisation'!F57:G57) -> 0 | F42: 2014-01-10T21:00:00 | G42: ='Cold Soak Red'!G42+'Non Cold Soak Red'!G42 -> 0 | H42: ='Cold Soak Red'!H42+'Non Cold Soak Red'!H42 -> 0 | I42: ='Cold Soak Red'!I42+'Non Cold Soak Red'!I42 -> 0 | J42: ='Cold Soak Red'!J42+'Non Cold Soak Red'!J42 -> 0 | K42: ='Cold Soak Red'!K42+'Non Cold Soak Red'!K42 -> 0 | L42: ='Cold Soak Red'!L42+'Non Cold Soak Red'!L42 -> 0 | M42: ='Cold Soak Red'!M42+'Non Cold Soak Red'!M42 -> 0 | N42: ='Cold Soak Red'!N42+'Non Cold Soak Red'!N42 -> 0 | O42: ='Cold Soak Red'!O42+'Non Cold Soak Red'!O42 -> 0 | P42: ='Cold Soak Red'!P42+'Non Cold Soak Red'!P42 -> 0
C43: =SUM(G43:FA43)+SUM('Red Cold Stabilisation'!F58:G58) -> 0 | F43: 2014-01-11T09:00:00 | G43: ='Cold Soak Red'!G43+'Non Cold Soak Red'!G43 -> 0 | H43: ='Cold Soak Red'!H43+'Non Cold Soak Red'!H43 -> 0 | I43: ='Cold Soak Red'!I43+'Non Cold Soak Red'!I43 -> 0 | J43: ='Cold Soak Red'!J43+'Non Cold Soak Red'!J43 -> 0 | K43: ='Cold Soak Red'!K43+'Non Cold Soak Red'!K43 -> 0 | L43: ='Cold Soak Red'!L43+'Non Cold Soak Red'!L43 -> 0 | M43: ='Cold Soak Red'!M43+'Non Cold Soak Red'!M43 -> 0 | N43: ='Cold Soak Red'!N43+'Non Cold Soak Red'!N43 -> 0 | O43: ='Cold Soak Red'!O43+'Non Cold Soak Red'!O43 -> 0 | P43: ='Cold Soak Red'!P43+'Non Cold Soak Red'!P43 -> 0 | Q43: =IF(Q$6="",0,'Must Chill Cold Settle & Soak'!$C$14) -> 0
C44: =SUM(G44:FA44)+SUM('Red Cold Stabilisation'!F59:G59) -> 0 | F44: 2014-01-11T21:00:00 | G44: ='Cold Soak Red'!G44+'Non Cold Soak Red'!G44 -> 0 | H44: ='Cold Soak Red'!H44+'Non Cold Soak Red'!H44 -> 0 | I44: ='Cold Soak Red'!I44+'Non Cold Soak Red'!I44 -> 0 | J44: ='Cold Soak Red'!J44+'Non Cold Soak Red'!J44 -> 0 | K44: ='Cold Soak Red'!K44+'Non Cold Soak Red'!K44 -> 0 | L44: ='Cold Soak Red'!L44+'Non Cold Soak Red'!L44 -> 0 | M44: ='Cold Soak Red'!M44+'Non Cold Soak Red'!M44 -> 0 | N44: ='Cold Soak Red'!N44+'Non Cold Soak Red'!N44 -> 0 | O44: ='Cold Soak Red'!O44+'Non Cold Soak Red'!O44 -> 0 | P44: ='Cold Soak Red'!P44+'Non Cold Soak Red'!P44 -> 0 | Q44: ='Cold Soak Red'!Q44+'Non Cold Soak Red'!Q44 -> 0
C45: =SUM(G45:FA45)+SUM('Red Cold Stabilisation'!F60:G60) -> 0 | F45: 2014-01-12T09:00:00 | G45: ='Cold Soak Red'!G45+'Non Cold Soak Red'!G45 -> 0 | H45: ='Cold Soak Red'!H45+'Non Cold Soak Red'!H45 -> 0 | I45: ='Cold Soak Red'!I45+'Non Cold Soak Red'!I45 -> 0 | J45: ='Cold Soak Red'!J45+'Non Cold Soak Red'!J45 -> 0 | K45: ='Cold Soak Red'!K45+'Non Cold Soak Red'!K45 -> 0 | L45: ='Cold Soak Red'!L45+'Non Cold Soak Red'!L45 -> 0 | M45: ='Cold Soak Red'!M45+'Non Cold Soak Red'!M45 -> 0 | N45: ='Cold Soak Red'!N45+'Non Cold Soak Red'!N45 -> 0 | O45: ='Cold Soak Red'!O45+'Non Cold Soak Red'!O45 -> 0 | P45: ='Cold Soak Red'!P45+'Non Cold Soak Red'!P45 -> 0 | Q45: ='Cold Soak Red'!Q45+'Non Cold Soak Red'!Q45 -> 0 | R45: =IF(R$6="",0,'Must Chill Cold Settle & Soak'!$C$14) -> 0
C46: =SUM(G46:FA46)+SUM('Red Cold Stabilisation'!F61:G61) -> 0 | F46: 2014-01-12T21:00:00 | G46: ='Cold Soak Red'!G46+'Non Cold Soak Red'!G46 -> 0 | H46: ='Cold Soak Red'!H46+'Non Cold Soak Red'!H46 -> 0 | I46: ='Cold Soak Red'!I46+'Non Cold Soak Red'!I46 -> 0 | J46: ='Cold Soak Red'!J46+'Non Cold Soak Red'!J46 -> 0 | K46: ='Cold Soak Red'!K46+'Non Cold Soak Red'!K46 -> 0 | L46: ='Cold Soak Red'!L46+'Non Cold Soak Red'!L46 -> 0 | M46: ='Cold Soak Red'!M46+'Non Cold Soak Red'!M46 -> 0 | N46: ='Cold Soak Red'!N46+'Non Cold Soak Red'!N46 -> 0 | O46: ='Cold Soak Red'!O46+'Non Cold Soak Red'!O46 -> 0 | P46: ='Cold Soak Red'!P46+'Non Cold Soak Red'!P46 -> 0 | Q46: ='Cold Soak Red'!Q46+'Non Cold Soak Red'!Q46 -> 0 | R46: ='Cold Soak Red'!R46+'Non Cold Soak Red'!R46 -> 0
C47: =SUM(G47:FA47)+SUM('Red Cold Stabilisation'!F62:G62) -> 0 | F47: 2014-01-13T09:00:00 | G47: ='Cold Soak Red'!G47+'Non Cold Soak Red'!G47 -> 0 | H47: ='Cold Soak Red'!H47+'Non Cold Soak Red'!H47 -> 0 | I47: ='Cold Soak Red'!I47+'Non Cold Soak Red'!I47 -> 0 | J47: ='Cold Soak Red'!J47+'Non Cold Soak Red'!J47 -> 0 | K47: ='Cold Soak Red'!K47+'Non Cold Soak Red'!K47 -> 0 | L47: ='Cold Soak Red'!L47+'Non Cold Soak Red'!L47 -> 0 | M47: ='Cold Soak Red'!M47+'Non Cold Soak Red'!M47 -> 0 | N47: ='Cold Soak Red'!N47+'Non Cold Soak Red'!N47 -> 0 | O47: ='Cold Soak Red'!O47+'Non Cold Soak Red'!O47 -> 0 | P47: ='Cold Soak Red'!P47+'Non Cold Soak Red'!P47 -> 0 | Q47: ='Cold Soak Red'!Q47+'Non Cold Soak Red'!Q47 -> 0 | R47: ='Cold Soak Red'!R47+'Non Cold Soak Red'!R47 -> 0 | S47: =IF(S$6="",0,'Must Chill Cold Settle & Soak'!$C$14) -> 0
C48: =SUM(G48:FA48)+SUM('Red Cold Stabilisation'!F63:G63) -> 0 | F48: 2014-01-13T21:00:00 | G48: ='Cold Soak Red'!G48+'Non Cold Soak Red'!G48 -> 0 | H48: ='Cold Soak Red'!H48+'Non Cold Soak Red'!H48 -> 0 | I48: ='Cold Soak Red'!I48+'Non Cold Soak Red'!I48 -> 0 | J48: ='Cold Soak Red'!J48+'Non Cold Soak Red'!J48 -> 0 | K48: ='Cold Soak Red'!K48+'Non Cold Soak Red'!K48 -> 0 | L48: ='Cold Soak Red'!L48+'Non Cold Soak Red'!L48 -> 0 | M48: ='Cold Soak Red'!M48+'Non Cold Soak Red'!M48 -> 0 | N48: ='Cold Soak Red'!N48+'Non Cold Soak Red'!N48 -> 0 | O48: ='Cold Soak Red'!O48+'Non Cold Soak Red'!O48 -> 0 | P48: ='Cold Soak Red'!P48+'Non Cold Soak Red'!P48 -> 0 | Q48: ='Cold Soak Red'!Q48+'Non Cold Soak Red'!Q48 -> 0 | R48: ='Cold Soak Red'!R48+'Non Cold Soak Red'!R48 -> 0 | S48: ='Cold Soak Red'!S48+'Non Cold Soak Red'!S48 -> 0
C49: =SUM(G49:FA49)+SUM('Red Cold Stabilisation'!F64:G64) -> 0 | F49: 2014-01-14T09:00:00 | G49: ='Cold Soak Red'!G49+'Non Cold Soak Red'!G49 -> 0 | H49: ='Cold Soak Red'!H49+'Non Cold Soak Red'!H49 -> 0 | I49: ='Cold Soak Red'!I49+'Non Cold Soak Red'!I49 -> 0 | J49: ='Cold Soak Red'!J49+'Non Cold Soak Red'!J49 -> 0 | K49: ='Cold Soak Red'!K49+'Non Cold Soak Red'!K49 -> 0 | L49: ='Cold Soak Red'!L49+'Non Cold Soak Red'!L49 -> 0 | M49: ='Cold Soak Red'!M49+'Non Cold Soak Red'!M49 -> 0 | N49: ='Cold Soak Red'!N49+'Non Cold Soak Red'!N49 -> 0 | O49: ='Cold Soak Red'!O49+'Non Cold Soak Red'!O49 -> 0 | P49: ='Cold Soak Red'!P49+'Non Cold Soak Red'!P49 -> 0 | Q49: ='Cold Soak Red'!Q49+'Non Cold Soak Red'!Q49 -> 0 | R49: ='Cold Soak Red'!R49+'Non Cold Soak Red'!R49 -> 0 | S49: ='Cold Soak Red'!S49+'Non Cold Soak Red'!S49 -> 0 | T49: =IF(T$6="",0,'Must Chill Cold Settle & Soak'!$C$14) -> 0
C50: =SUM(G50:FA50)+SUM('Red Cold Stabilisation'!F65:G65) -> 0 | F50: 2014-01-14T21:00:00 | G50: ='Cold Soak Red'!G50+'Non Cold Soak Red'!G50 -> 0 | H50: ='Cold Soak Red'!H50+'Non Cold Soak Red'!H50 -> 0 | I50: ='Cold Soak Red'!I50+'Non Cold Soak Red'!I50 -> 0 | J50: ='Cold Soak Red'!J50+'Non Cold Soak Red'!J50 -> 0 | K50: ='Cold Soak Red'!K50+'Non Cold Soak Red'!K50 -> 0 | L50: ='Cold Soak Red'!L50+'Non Cold Soak Red'!L50 -> 0 | M50: ='Cold Soak Red'!M50+'Non Cold Soak Red'!M50 -> 0 | N50: ='Cold Soak Red'!N50+'Non Cold Soak Red'!N50 -> 0 | O50: ='Cold Soak Red'!O50+'Non Cold Soak Red'!O50 -> 0 | P50: ='Cold Soak Red'!P50+'Non Cold Soak Red'!P50 -> 0 | Q50: ='Cold Soak Red'!Q50+'Non Cold Soak Red'!Q50 -> 0 | R50: ='Cold Soak Red'!R50+'Non Cold Soak Red'!R50 -> 0 | S50: ='Cold Soak Red'!S50+'Non Cold Soak Red'!S50 -> 0 | T50: ='Cold Soak Red'!T50+'Non Cold Soak Red'!T50 -> 0
C51: =SUM(G51:FA51)+SUM('Red Cold Stabilisation'!F66:G66) -> 0 | F51: 2014-01-15T09:00:00 | G51: ='Cold Soak Red'!G51+'Non Cold Soak Red'!G51 -> 0 | H51: ='Cold Soak Red'!H51+'Non Cold Soak Red'!H51 -> 0 | I51: ='Cold Soak Red'!I51+'Non Cold Soak Red'!I51 -> 0 | J51: ='Cold Soak Red'!J51+'Non Cold Soak Red'!J51 -> 0 | K51: ='Cold Soak Red'!K51+'Non Cold Soak Red'!K51 -> 0 | L51: ='Cold Soak Red'!L51+'Non Cold Soak Red'!L51 -> 0 | M51: ='Cold Soak Red'!M51+'Non Cold Soak Red'!M51 -> 0 | N51: ='Cold Soak Red'!N51+'Non Cold Soak Red'!N51 -> 0 | O51: ='Cold Soak Red'!O51+'Non Cold Soak Red'!O51 -> 0 | P51: ='Cold Soak Red'!P51+'Non Cold Soak Red'!P51 -> 0 | Q51: ='Cold Soak Red'!Q51+'Non Cold Soak Red'!Q51 -> 0 | R51: ='Cold Soak Red'!R51+'Non Cold Soak Red'!R51 -> 0 | S51: ='Cold Soak Red'!S51+'Non Cold Soak Red'!S51 -> 0 | T51: ='Cold Soak Red'!T51+'Non Cold Soak Red'!T51 -> 0 | U51: =IF(U$6="",0,'Must Chill Cold Settle & Soak'!$C$14) -> 0
C52: =SUM(G52:FA52)+SUM('Red Cold Stabilisation'!F67:G67) -> 0 | F52: 2014-01-15T21:00:00 | G52: ='Cold Soak Red'!G52+'Non Cold Soak Red'!G52 -> 0 | H52: ='Cold Soak Red'!H52+'Non Cold Soak Red'!H52 -> 0 | I52: ='Cold Soak Red'!I52+'Non Cold Soak Red'!I52 -> 0 | J52: ='Cold Soak Red'!J52+'Non Cold Soak Red'!J52 -> 0 | K52: ='Cold Soak Red'!K52+'Non Cold Soak Red'!K52 -> 0 | L52: ='Cold Soak Red'!L52+'Non Cold Soak Red'!L52 -> 0 | M52: ='Cold Soak Red'!M52+'Non Cold Soak Red'!M52 -> 0 | N52: ='Cold Soak Red'!N52+'Non Cold Soak Red'!N52 -> 0 | O52: ='Cold Soak Red'!O52+'Non Cold Soak Red'!O52 -> 0 | P52: ='Cold Soak Red'!P52+'Non Cold Soak Red'!P52 -> 0 | Q52: ='Cold Soak Red'!Q52+'Non Cold Soak Red'!Q52 -> 0 | R52: ='Cold Soak Red'!R52+'Non Cold Soak Red'!R52 -> 0 | S52: ='Cold Soak Red'!S52+'Non Cold Soak Red'!S52 -> 0 | T52: ='Cold Soak Red'!T52+'Non Cold Soak Red'!T52 -> 0 | U52: ='Cold Soak Red'!U52+'Non Cold Soak Red'!U52 -> 0
C53: =SUM(G53:FA53)+SUM('Red Cold Stabilisation'!F68:G68) -> 0 | F53: 2014-01-16T09:00:00 | G53: ='Cold Soak Red'!G53+'Non Cold Soak Red'!G53 -> 0 | H53: ='Cold Soak Red'!H53+'Non Cold Soak Red'!H53 -> 0 | I53: ='Cold Soak Red'!I53+'Non Cold Soak Red'!I53 -> 0 | J53: ='Cold Soak Red'!J53+'Non Cold Soak Red'!J53 -> 0 | K53: ='Cold Soak Red'!K53+'Non Cold Soak Red'!K53 -> 0 | L53: ='Cold Soak Red'!L53+'Non Cold Soak Red'!L53 -> 0 | M53: ='Cold Soak Red'!M53+'Non Cold Soak Red'!M53 -> 0 | N53: ='Cold Soak Red'!N53+'Non Cold Soak Red'!N53 -> 0 | O53: ='Cold Soak Red'!O53+'Non Cold Soak Red'!O53 -> 0 | P53: ='Cold Soak Red'!P53+'Non Cold Soak Red'!P53 -> 0 | Q53: ='Cold Soak Red'!Q53+'Non Cold Soak Red'!Q53 -> 0 | R53: ='Cold Soak Red'!R53+'Non Cold Soak Red'!R53 -> 0 | S53: ='Cold Soak Red'!S53+'Non Cold Soak Red'!S53 -> 0 | T53: ='Cold Soak Red'!T53+'Non Cold Soak Red'!T53 -> 0 | U53: ='Cold Soak Red'!U53+'Non Cold Soak Red'!U53 -> 0 | V53: =IF(V$6="",0,'Must Chill Cold Settle & Soak'!$C$14) -> 0
C54: =SUM(G54:FA54)+SUM('Red Cold Stabilisation'!F69:G69) -> 0 | F54: 2014-01-16T21:00:00 | G54: ='Cold Soak Red'!G54+'Non Cold Soak Red'!G54 -> 0 | H54: ='Cold Soak Red'!H54+'Non Cold Soak Red'!H54 -> 0 | I54: ='Cold Soak Red'!I54+'Non Cold Soak Red'!I54 -> 0 | J54: ='Cold Soak Red'!J54+'Non Cold Soak Red'!J54 -> 0 | K54: ='Cold Soak Red'!K54+'Non Cold Soak Red'!K54 -> 0 | L54: ='Cold Soak Red'!L54+'Non Cold Soak Red'!L54 -> 0 | M54: ='Cold Soak Red'!M54+'Non Cold Soak Red'!M54 -> 0 | N54: ='Cold Soak Red'!N54+'Non Cold Soak Red'!N54 -> 0 | O54: ='Cold Soak Red'!O54+'Non Cold Soak Red'!O54 -> 0 | P54: ='Cold Soak Red'!P54+'Non Cold Soak Red'!P54 -> 0 | Q54: ='Cold Soak Red'!Q54+'Non Cold Soak Red'!Q54 -> 0 | R54: ='Cold Soak Red'!R54+'Non Cold Soak Red'!R54 -> 0 | S54: ='Cold Soak Red'!S54+'Non Cold Soak Red'!S54 -> 0 | T54: ='Cold Soak Red'!T54+'Non Cold Soak Red'!T54 -> 0 | U54: ='Cold Soak Red'!U54+'Non Cold Soak Red'!U54 -> 0 | V54: ='Cold Soak Red'!V54+'Non Cold Soak Red'!V54 -> 0
C55: =SUM(G55:FA55)+SUM('Red Cold Stabilisation'!F70:G70) -> 0 | F55: 2014-01-17T09:00:00 | G55: ='Cold Soak Red'!G55+'Non Cold Soak Red'!G55 -> 0 | H55: ='Cold Soak Red'!H55+'Non Cold Soak Red'!H55 -> 0 | I55: ='Cold Soak Red'!I55+'Non Cold Soak Red'!I55 -> 0 | J55: ='Cold Soak Red'!J55+'Non Cold Soak Red'!J55 -> 0 | K55: ='Cold Soak Red'!K55+'Non Cold Soak Red'!K55 -> 0 | L55: ='Cold Soak Red'!L55+'Non Cold Soak Red'!L55 -> 0 | M55: ='Cold Soak Red'!M55+'Non Cold Soak Red'!M55 -> 0 | N55: ='Cold Soak Red'!N55+'Non Cold Soak Red'!N55 -> 0 | O55: ='Cold Soak Red'!O55+'Non Cold Soak Red'!O55 -> 0 | P55: ='Cold Soak Red'!P55+'Non Cold Soak Red'!P55 -> 0 | Q55: ='Cold Soak Red'!Q55+'Non Cold Soak Red'!Q55 -> 0 | R55: ='Cold Soak Red'!R55+'Non Cold Soak Red'!R55 -> 0 | S55: ='Cold Soak Red'!S55+'Non Cold Soak Red'!S55 -> 0 | T55: ='Cold Soak Red'!T55+'Non Cold Soak Red'!T55 -> 0 | U55: ='Cold Soak Red'!U55+'Non Cold Soak Red'!U55 -> 0 | V55: ='Cold Soak Red'!V55+'Non Cold Soak Red'!V55 -> 0 | W55: =IF(W$6="",0,'Must Chill Cold Settle & Soak'!$C$14) -> 0
C56: =SUM(G56:FA56)+SUM('Red Cold Stabilisation'!F71:G71) -> 0 | F56: 2014-01-17T21:00:00 | G56: ='Cold Soak Red'!G56+'Non Cold Soak Red'!G56 -> 0 | H56: ='Cold Soak Red'!H56+'Non Cold Soak Red'!H56 -> 0 | I56: ='Cold Soak Red'!I56+'Non Cold Soak Red'!I56 -> 0 | J56: ='Cold Soak Red'!J56+'Non Cold Soak Red'!J56 -> 0 | K56: ='Cold Soak Red'!K56+'Non Cold Soak Red'!K56 -> 0 | L56: ='Cold Soak Red'!L56+'Non Cold Soak Red'!L56 -> 0 | M56: ='Cold Soak Red'!M56+'Non Cold Soak Red'!M56 -> 0 | N56: ='Cold Soak Red'!N56+'Non Cold Soak Red'!N56 -> 0 | O56: ='Cold Soak Red'!O56+'Non Cold Soak Red'!O56 -> 0 | P56: ='Cold Soak Red'!P56+'Non Cold Soak Red'!P56 -> 0 | Q56: ='Cold Soak Red'!Q56+'Non Cold Soak Red'!Q56 -> 0 | R56: ='Cold Soak Red'!R56+'Non Cold Soak Red'!R56 -> 0 | S56: ='Cold Soak Red'!S56+'Non Cold Soak Red'!S56 -> 0 | T56: ='Cold Soak Red'!T56+'Non Cold Soak Red'!T56 -> 0 | U56: ='Cold Soak Red'!U56+'Non Cold Soak Red'!U56 -> 0 | V56: ='Cold Soak Red'!V56+'Non Cold Soak Red'!V56 -> 0 | W56: ='Cold Soak Red'!W56+'Non Cold Soak Red'!W56 -> 0
C57: =SUM(G57:FA57)+SUM('Red Cold Stabilisation'!F72:G72) -> 0 | F57: 2014-01-18T09:00:00 | G57: ='Cold Soak Red'!G57+'Non Cold Soak Red'!G57 -> 0 | H57: ='Cold Soak Red'!H57+'Non Cold Soak Red'!H57 -> 0 | I57: ='Cold Soak Red'!I57+'Non Cold Soak Red'!I57 -> 0 | J57: ='Cold Soak Red'!J57+'Non Cold Soak Red'!J57 -> 0 | K57: ='Cold Soak Red'!K57+'Non Cold Soak Red'!K57 -> 0 | L57: ='Cold Soak Red'!L57+'Non Cold Soak Red'!L57 -> 0 | M57: ='Cold Soak Red'!M57+'Non Cold Soak Red'!M57 -> 0 | N57: ='Cold Soak Red'!N57+'Non Cold Soak Red'!N57 -> 0 | O57: ='Cold Soak Red'!O57+'Non Cold Soak Red'!O57 -> 0 | P57: ='Cold Soak Red'!P57+'Non Cold Soak Red'!P57 -> 0 | Q57: ='Cold Soak Red'!Q57+'Non Cold Soak Red'!Q57 -> 0 | R57: ='Cold Soak Red'!R57+'Non Cold Soak Red'!R57 -> 0 | S57: ='Cold Soak Red'!S57+'Non Cold Soak Red'!S57 -> 0 | T57: ='Cold Soak Red'!T57+'Non Cold Soak Red'!T57 -> 0 | U57: ='Cold Soak Red'!U57+'Non Cold Soak Red'!U57 -> 0 | V57: ='Cold Soak Red'!V57+'Non Cold Soak Red'!V57 -> 0 | W57: ='Cold Soak Red'!W57+'Non Cold Soak Red'!W57 -> 0 | X57: =IF(X$6="",0,'Must Chill Cold Settle & Soak'!$C$14) -> 0
C58: =SUM(G58:FA58)+SUM('Red Cold Stabilisation'!F73:G73) -> 0 | F58: 2014-01-18T21:00:00 | G58: ='Cold Soak Red'!G58+'Non Cold Soak Red'!G58 -> 0 | H58: ='Cold Soak Red'!H58+'Non Cold Soak Red'!H58 -> 0 | I58: ='Cold Soak Red'!I58+'Non Cold Soak Red'!I58 -> 0 | J58: ='Cold Soak Red'!J58+'Non Cold Soak Red'!J58 -> 0 | K58: ='Cold Soak Red'!K58+'Non Cold Soak Red'!K58 -> 0 | L58: ='Cold Soak Red'!L58+'Non Cold Soak Red'!L58 -> 0 | M58: ='Cold Soak Red'!M58+'Non Cold Soak Red'!M58 -> 0 | N58: ='Cold Soak Red'!N58+'Non Cold Soak Red'!N58 -> 0 | O58: ='Cold Soak Red'!O58+'Non Cold Soak Red'!O58 -> 0 | P58: ='Cold Soak Red'!P58+'Non Cold Soak Red'!P58 -> 0 | Q58: ='Cold Soak Red'!Q58+'Non Cold Soak Red'!Q58 -> 0 | R58: ='Cold Soak Red'!R58+'Non Cold Soak Red'!R58 -> 0 | S58: ='Cold Soak Red'!S58+'Non Cold Soak Red'!S58 -> 0 | T58: ='Cold Soak Red'!T58+'Non Cold Soak Red'!T58 -> 0 | U58: ='Cold Soak Red'!U58+'Non Cold Soak Red'!U58 -> 0 | V58: ='Cold Soak Red'!V58+'Non Cold Soak Red'!V58 -> 0 | W58: ='Cold Soak Red'!W58+'Non Cold Soak Red'!W58 -> 0 | X58: ='Cold Soak Red'!X58+'Non Cold Soak Red'!X58 -> 0
C59: =SUM(G59:FA59)+SUM('Red Cold Stabilisation'!F74:G74) -> 0 | F59: 2014-01-19T09:00:00 | G59: ='Cold Soak Red'!G59+'Non Cold Soak Red'!G59 -> 0 | H59: ='Cold Soak Red'!H59+'Non Cold Soak Red'!H59 -> 0 | I59: ='Cold Soak Red'!I59+'Non Cold Soak Red'!I59 -> 0 | J59: ='Cold Soak Red'!J59+'Non Cold Soak Red'!J59 -> 0 | K59: ='Cold Soak Red'!K59+'Non Cold Soak Red'!K59 -> 0 | L59: ='Cold Soak Red'!L59+'Non Cold Soak Red'!L59 -> 0 | M59: ='Cold Soak Red'!M59+'Non Cold Soak Red'!M59 -> 0 | N59: ='Cold Soak Red'!N59+'Non Cold Soak Red'!N59 -> 0 | O59: ='Cold Soak Red'!O59+'Non Cold Soak Red'!O59 -> 0 | P59: ='Cold Soak Red'!P59+'Non Cold Soak Red'!P59 -> 0 | Q59: ='Cold Soak Red'!Q59+'Non Cold Soak Red'!Q59 -> 0 | R59: ='Cold Soak Red'!R59+'Non Cold Soak Red'!R59 -> 0 | S59: ='Cold Soak Red'!S59+'Non Cold Soak Red'!S59 -> 0 | T59: ='Cold Soak Red'!T59+'Non Cold Soak Red'!T59 -> 0 | U59: ='Cold Soak Red'!U59+'Non Cold Soak Red'!U59 -> 0 | V59: ='Cold Soak Red'!V59+'Non Cold Soak Red'!V59 -> 0 | W59: ='Cold Soak Red'!W59+'Non Cold Soak Red'!W59 -> 0 | X59: ='Cold Soak Red'!X59+'Non Cold Soak Red'!X59 -> 0 | Y59: =IF(Y$6="",0,'Must Chill Cold Settle & Soak'!$C$14) -> 0
C60: =SUM(G60:FA60)+SUM('Red Cold Stabilisation'!F75:G75) -> 0 | F60: 2014-01-19T21:00:00 | G60: ='Cold Soak Red'!G60+'Non Cold Soak Red'!G60 -> 0 | H60: ='Cold Soak Red'!H60+'Non Cold Soak Red'!H60 -> 0 | I60: ='Cold Soak Red'!I60+'Non Cold Soak Red'!I60 -> 0 | J60: ='Cold Soak Red'!J60+'Non Cold Soak Red'!J60 -> 0 | K60: ='Cold Soak Red'!K60+'Non Cold Soak Red'!K60 -> 0 | L60: ='Cold Soak Red'!L60+'Non Cold Soak Red'!L60 -> 0 | M60: ='Cold Soak Red'!M60+'Non Cold Soak Red'!M60 -> 0 | N60: ='Cold Soak Red'!N60+'Non Cold Soak Red'!N60 -> 0 | O60: ='Cold Soak Red'!O60+'Non Cold Soak Red'!O60 -> 0 | P60: ='Cold Soak Red'!P60+'Non Cold Soak Red'!P60 -> 0 | Q60: ='Cold Soak Red'!Q60+'Non Cold Soak Red'!Q60 -> 0 | R60: ='Cold Soak Red'!R60+'Non Cold Soak Red'!R60 -> 0 | S60: ='Cold Soak Red'!S60+'Non Cold Soak Red'!S60 -> 0 | T60: ='Cold Soak Red'!T60+'Non Cold Soak Red'!T60 -> 0 | U60: ='Cold Soak Red'!U60+'Non Cold Soak Red'!U60 -> 0 | V60: ='Cold Soak Red'!V60+'Non Cold Soak Red'!V60 -> 0 | W60: ='Cold Soak Red'!W60+'Non Cold Soak Red'!W60 -> 0 | X60: ='Cold Soak Red'!X60+'Non Cold Soak Red'!X60 -> 0 | Y60: ='Cold Soak Red'!Y60+'Non Cold Soak Red'!Y60 -> 0
C61: =SUM(G61:FA61)+SUM('Red Cold Stabilisation'!F76:G76) -> 0 | F61: 2014-01-20T09:00:00 | G61: ='Cold Soak Red'!G61+'Non Cold Soak Red'!G61 -> 0 | H61: ='Cold Soak Red'!H61+'Non Cold Soak Red'!H61 -> 0 | I61: ='Cold Soak Red'!I61+'Non Cold Soak Red'!I61 -> 0 | J61: ='Cold Soak Red'!J61+'Non Cold Soak Red'!J61 -> 0 | K61: ='Cold Soak Red'!K61+'Non Cold Soak Red'!K61 -> 0 | L61: ='Cold Soak Red'!L61+'Non Cold Soak Red'!L61 -> 0 | M61: ='Cold Soak Red'!M61+'Non Cold Soak Red'!M61 -> 0 | N61: ='Cold Soak Red'!N61+'Non Cold Soak Red'!N61 -> 0 | O61: ='Cold Soak Red'!O61+'Non Cold Soak Red'!O61 -> 0 | P61: ='Cold Soak Red'!P61+'Non Cold Soak Red'!P61 -> 0 | Q61: ='Cold Soak Red'!Q61+'Non Cold Soak Red'!Q61 -> 0 | R61: ='Cold Soak Red'!R61+'Non Cold Soak Red'!R61 -> 0 | S61: ='Cold Soak Red'!S61+'Non Cold Soak Red'!S61 -> 0 | T61: ='Cold Soak Red'!T61+'Non Cold Soak Red'!T61 -> 0 | U61: ='Cold Soak Red'!U61+'Non Cold Soak Red'!U61 -> 0 | V61: ='Cold Soak Red'!V61+'Non Cold Soak Red'!V61 -> 0 | W61: ='Cold Soak Red'!W61+'Non Cold Soak Red'!W61 -> 0 | X61: ='Cold Soak Red'!X61+'Non Cold Soak Red'!X61 -> 0 | Y61: ='Cold Soak Red'!Y61+'Non Cold Soak Red'!Y61 -> 0 | Z61: =IF(Z$6="",0,'Must Chill Cold Settle & Soak'!$C$14) -> 0
C62: =SUM(G62:FA62)+SUM('Red Cold Stabilisation'!F77:G77) -> 0 | F62: 2014-01-20T21:00:00 | G62: ='Cold Soak Red'!G62+'Non Cold Soak Red'!G62 -> 0 | H62: ='Cold Soak Red'!H62+'Non Cold Soak Red'!H62 -> 0 | I62: ='Cold Soak Red'!I62+'Non Cold Soak Red'!I62 -> 0 | J62: ='Cold Soak Red'!J62+'Non Cold Soak Red'!J62 -> 0 | K62: ='Cold Soak Red'!K62+'Non Cold Soak Red'!K62 -> 0 | L62: ='Cold Soak Red'!L62+'Non Cold Soak Red'!L62 -> 0 | M62: ='Cold Soak Red'!M62+'Non Cold Soak Red'!M62 -> 0 | N62: ='Cold Soak Red'!N62+'Non Cold Soak Red'!N62 -> 0 | O62: ='Cold Soak Red'!O62+'Non Cold Soak Red'!O62 -> 0 | P62: ='Cold Soak Red'!P62+'Non Cold Soak Red'!P62 -> 0 | Q62: ='Cold Soak Red'!Q62+'Non Cold Soak Red'!Q62 -> 0 | R62: ='Cold Soak Red'!R62+'Non Cold Soak Red'!R62 -> 0 | S62: ='Cold Soak Red'!S62+'Non Cold Soak Red'!S62 -> 0 | T62: ='Cold Soak Red'!T62+'Non Cold Soak Red'!T62 -> 0 | U62: ='Cold Soak Red'!U62+'Non Cold Soak Red'!U62 -> 0 | V62: ='Cold Soak Red'!V62+'Non Cold Soak Red'!V62 -> 0 | W62: ='Cold Soak Red'!W62+'Non Cold Soak Red'!W62 -> 0 | X62: ='Cold Soak Red'!X62+'Non Cold Soak Red'!X62 -> 0 | Y62: ='Cold Soak Red'!Y62+'Non Cold Soak Red'!Y62 -> 0 | Z62: ='Cold Soak Red'!Z62+'Non Cold Soak Red'!Z62 -> 0
... 77 more rows

Sheet Cold Soak Red
F2: Start date | G2: ='Red Vintage Planner'!G2 -> 2014-01-01
G5: =G2 -> 2014-01-01 | H5: =G5+1 -> 2014-01-02 | I5: =H5+1 -> 2014-01-03 | J5: =I5+1 -> 2014-01-04 | K5: =J5+1 -> 2014-01-05 | L5: 2014-01-06 | M5: 2014-01-07 | N5: 2014-01-08 | O5: 2014-01-09 | P5: 2014-01-10 | Q5: 2014-01-11 | R5: 2014-01-12 | S5: 2014-01-13 | T5: 2014-01-14 | U5: 2014-01-15 | V5: 2014-01-16 | W5: 2014-01-17 | X5: 2014-01-18 | Y5: 2014-01-19 | Z5: 2014-01-20 | AA5: 2014-01-21 | AB5: 2014-01-22 | AC5: 2014-01-23 | AD5: 2014-01-24 | AE5: 2014-01-25 | AF5: 2014-01-26 | AG5: 2014-01-27 | AH5: 2014-01-28 | AI5: 2014-01-29 | AJ5: 2014-01-30 | AK5: 2014-01-31 | AL5: 2014-02-01 | AM5: 2014-02-02 | AN5: 2014-02-03 | AO5: 2014-02-04 | AP5: 2014-02-05 | AQ5: 2014-02-06 | AR5: 2014-02-07 | AS5: 2014-02-08 | AT5: 2014-02-09 | AU5: 2014-02-10 | AV5: 2014-02-11 | AW5: 2014-02-12 | AX5: 2014-02-13 | AY5: 2014-02-14 | AZ5: 2014-02-15 | BA5: 2014-02-16 | BB5: 2014-02-17 | BC5: 2014-02-18 | BD5: 2014-02-19 | BE5: 2014-02-20 | BF5: 2014-02-21 | BG5: 2014-02-22 | BH5: 2014-02-23 | BI5: 2014-02-24 | BJ5: 2014-02-25 | BK5: 2014-02-26 | BL5: 2014-02-27 | BM5: 2014-02-28 | BN5: 2014-03-01 | BO5: 2014-03-02 | BP5: 2014-03-03 | BQ5: 2014-03-04 | BR5: 2014-03-05 | BS5: 2014-03-06 | BT5: 2014-03-07 | BU5: 2014-03-08 | BV5: 2014-03-09 | BW5: =BV5+1 -> 2014-03-10 | BX5: 2014-03-11 | BY5: 2014-03-12 | BZ5: 2014-03-13 | CA5: 2014-03-14 | CB5: 2014-03-15 | CC5: 2014-03-16 | CD5: 2014-03-17 | CE5: 2014-03-18 | CF5: 2014-03-19 | CG5: 2014-03-20 | CH5: 2014-03-21 | CI5: 2014-03-22 | CJ5: 2014-03-23 | CK5: 2014-03-24 | CL5: 2014-03-25 | CM5: 2014-03-26 | CN5: 2014-03-27 | CO5: 2014-03-28 | CP5: 2014-03-29 | CQ5: 2014-03-30 | CR5: 2014-03-31 | CS5: 2014-04-01 | CT5: 2014-04-02 | CU5: 2014-04-03 | CV5: 2014-04-04 | CW5: 2014-04-05 | CX5: 2014-04-06 | CY5: 2014-04-07 | CZ5: 2014-04-08 | DA5: 2014-04-09 | DB5: 2014-04-10 | DC5: 2014-04-11 | DD5: 2014-04-12 | DE5: 2014-04-13 | DF5: =DE5+1 -> 2014-04-14 | DG5: =DF5+1 -> 2014-04-15 | DH5: =DG5+1 -> 2014-04-16 | DI5: 2014-04-17 | DJ5: 2014-04-18 | DK5: 2014-04-19 | DL5: 2014-04-20 | DM5: 2014-04-21 | DN5: 2014-04-22 | DO5: 2014-04-23 | DP5: 2014-04-24 | DQ5: 2014-04-25 | DR5: 2014-04-26 | DS5: 2014-04-27 | DT5: 2014-04-28 | DU5: 2014-04-29 | DV5: 2014-04-30 | DW5: 2014-05-01 | DX5: 2014-05-02 | DY5: 2014-05-03 | DZ5: 2014-05-04 | EA5: 2014-05-05 | EB5: 2014-05-06 | EC5: 2014-05-07 | ED5: 2014-05-08 | EE5: 2014-05-09 | EF5: 2014-05-10 | EG5: 2014-05-11 | EH5: 2014-05-12 | EI5: 2014-05-13 | EJ5: 2014-05-14 | EK5: 2014-05-15 | EL5: 2014-05-16 | EM5: 2014-05-17 | EN5: 2014-05-18 | EO5: 2014-05-19 | EP5: 2014-05-20 | EQ5: 2014-05-21 | ER5: 2014-05-22 | ES5: 2014-05-23 | ET5: 2014-05-24 | EU5: 2014-05-25 | EV5: 2014-05-26 | EW5: 2014-05-27 | EX5: 2014-05-28 | EY5: 2014-05-29 | EZ5: 2014-05-30 | FA5: 2014-05-31
F6: Red Intake (tonnes) | G6: ='Red Vintage Planner'!G6 -> 0 | H6: ='Red Vintage Planner'!H6 -> 0 | I6: ='Red Vintage Planner'!I6 -> 0 | J6: ='Red Vintage Planner'!J6 -> 0 | K6: ='Red Vintage Planner'!K6 -> 0 | L6: ='Red Vintage Planner'!L6 -> 0 | M6: ='Red Vintage Planner'!M6 -> 0 | N6: ='Red Vintage Planner'!N6 -> 0 | O6: ='Red Vintage Planner'!O6 -> 0 | P6: ='Red Vintage Planner'!P6 -> 0 | Q6: ='Red Vintage Planner'!Q6 -> 0 | R6: ='Red Vintage Planner'!R6 -> 0 | S6: ='Red Vintage Planner'!S6 -> 0 | T6: ='Red Vintage Planner'!T6 -> 0 | U6: ='Red Vintage Planner'!U6 -> 0 | V6: ='Red Vintage Planner'!V6 -> 0 | W6: ='Red Vintage Planner'!W6 -> 0 | X6: ='Red Vintage Planner'!X6 -> 0 | Y6: ='Red Vintage Planner'!Y6 -> 0 | Z6: ='Red Vintage Planner'!Z6 -> 0 | AA6: ='Red Vintage Planner'!AA6 -> 0 | AB6: ='Red Vintage Planner'!AB6 -> 0 | AC6: ='Red Vintage Planner'!AC6 -> 0 | AD6: ='Red Vintage Planner'!AD6 -> 0 | AE6: ='Red Vintage Planner'!AE6 -> 0 | AF6: ='Red Vintage Planner'!AF6 -> 0 | AG6: ='Red Vintage Planner'!AG6 -> 0 | AH6: ='Red Vintage Planner'!AH6 -> 0 | AI6: ='Red Vintage Planner'!AI6 -> 0 | AJ6: ='Red Vintage Planner'!AJ6 -> 0 | AK6: ='Red Vintage Planner'!AK6 -> 0 | AL6: ='Red Vintage Planner'!AL6 -> 0 | AM6: ='Red Vintage Planner'!AM6 -> 0 | AN6: ='Red Vintage Planner'!AN6 -> 0 | AO6: ='Red Vintage Planner'!AO6 -> 0 | AP6: ='Red Vintage Planner'!AP6 -> 0 | AQ6: ='Red Vintage Planner'!AQ6 -> 0 | AR6: ='Red Vintage Planner'!AR6 -> 0 | AS6: ='Red Vintage Planner'!AS6 -> 0 | AT6: ='Red Vintage Planner'!AT6 -> 0 | AU6: ='Red Vintage Planner'!AU6 -> 0 | AV6: ='Red Vintage Planner'!AV6 -> 0 | AW6: ='Red Vintage Planner'!AW6 -> 0 | AX6: ='Red Vintage Planner'!AX6 -> 0 | AY6: ='Red Vintage Planner'!AY6 -> 0 | AZ6: ='Red Vintage Planner'!AZ6 -> 0 | BA6: ='Red Vintage Planner'!BA6 -> 0 | BB6: ='Red Vintage Planner'!BB6 -> 0 | BC6: ='Red Vintage Planner'!BC6 -> 0 | BD6: ='Red Vintage Planner'!BD6 -> 0 | BE6: ='Red Vintage Planner'!BE6 -> 0 | BF6: ='Red Vintage Planner'!BF6 -> 0 | BG6: ='Red Vintage Planner'!BG6 -> 0 | BH6: ='Red Vintage Planner'!BH6 -> 0 | BI6: ='Red Vintage Planner'!BI6 -> 0 | BJ6: ='Red Vintage Planner'!BJ6 -> 0 | BK6: ='Red Vintage Planner'!BK6 -> 0 | BL6: ='Red Vintage Planner'!BL6 -> 0 | BM6: ='Red Vintage Planner'!BM6 -> 0 | BN6: ='Red Vintage Planner'!BN6 -> 0 | BO6: ='Red Vintage Planner'!BO6 -> 0 | BP6: ='Red Vintage Planner'!BP6 -> 0 | BQ6: ='Red Vintage Planner'!BQ6 -> 0 | BR6: ='Red Vintage Planner'!BR6 -> 0 | BS6: ='Red Vintage Planner'!BS6 -> 0 | BT6: ='Red Vintage Planner'!BT6 -> 0 | BU6: ='Red Vintage Planner'!BU6 -> 0 | BV6: ='Red Vintage Planner'!BV6 -> 0 | BW6: ='Red Vintage Planner'!BW6 -> 0 | BX6: ='Red Vintage Planner'!BX6 -> 0 | BY6: ='Red Vintage Planner'!BY6 -> 0 | BZ6: ='Red Vintage Planner'!BZ6 -> 0 | CA6: ='Red Vintage Planner'!CA6 -> 0 | CB6: ='Red Vintage Planner'!CB6 -> 0 | CC6: ='Red Vintage Planner'!CC6 -> 0 | CD6: ='Red Vintage Planner'!CD6 -> 0 | CE6: ='Red Vintage Planner'!CE6 -> 0 | CF6: ='Red Vintage Planner'!CF6 -> 0 | CG6: ='Red Vintage Planner'!CG6 -> 0 | CH6: ='Red Vintage Planner'!CH6 -> 0 | CI6: ='Red Vintage Planner'!CI6 -> 0 | CJ6: ='Red Vintage Planner'!CJ6 -> 0 | CK6: ='Red Vintage Planner'!CK6 -> 0 | CL6: ='Red Vintage Planner'!CL6 -> 0 | CM6: ='Red Vintage Planner'!CM6 -> 0 | CN6: ='Red Vintage Planner'!CN6 -> 0 | CO6: ='Red Vintage Planner'!CO6 -> 0 | CP6: ='Red Vintage Planner'!CP6 -> 0 | CQ6: ='Red Vintage Planner'!CQ6 -> 0 | CR6: ='Red Vintage Planner'!CR6 -> 0 | CS6: ='Red Vintage Planner'!CS6 -> 0 | CT6: ='Red Vintage Planner'!CT6 -> 0 | CU6: ='Red Vintage Planner'!CU6 -> 0 | CV6: ='Red Vintage Planner'!CV6 -> 0 | CW6: ='Red Vintage Planner'!CW6 -> 0 | CX6: ='Red Vintage Planner'!CX6 -> 0 | CY6: ='Red Vintage Planner'!CY6 -> 0 | CZ6: ='Red Vintage Planner'!CZ6 -> 0 | DA6: ='Red Vintage Planner'!DA6 -> 0 | DB6: ='Red Vintage Planner'!DB6 -> 0 | DC6: ='Red Vintage Planner'!DC6 -> 0 | DD6: ='Red Vintage Planner'!DD6 -> 0 | DE6: ='Red Vintage Planner'!DE6 -> 0 | DF6: ='Red Vintage Planner'!DF6 -> 0 | DG6: ='Red Vintage Planner'!DG6 -> 0 | DH6: ='Red Vintage Planner'!DH6 -> 0 | DI6: ='Red Vintage Planner'!DI6 -> 0 | DJ6: ='Red Vintage Planner'!DJ6 -> 0 | DK6: ='Red Vintage Planner'!DK6 -> 0 | DL6: ='Red Vintage Planner'!DL6 -> 0 | DM6: ='Red Vintage Planner'!DM6 -> 0 | DN6: ='Red Vintage Planner'!DN6 -> 0 | DO6: ='Red Vintage Planner'!DO6 -> 0 | DP6: ='Red Vintage Planner'!DP6 -> 0 | DQ6: ='Red Vintage Planner'!DQ6 -> 0 | DR6: ='Red Vintage Planner'!DR6 -> 0 | DS6: ='Red Vintage Planner'!DS6 -> 0 | DT6: ='Red Vintage Planner'!DT6 -> 0 | DU6: ='Red Vintage Planner'!DU6 -> 0 | DV6: ='Red Vintage Planner'!DV6 -> 0 | DW6: ='Red Vintage Planner'!DW6 -> 0 | DX6: ='Red Vintage Planner'!DX6 -> 0 | DY6: ='Red Vintage Planner'!DY6 -> 0 | DZ6: ='Red Vintage Planner'!DZ6 -> 0 | EA6: ='Red Vintage Planner'!EA6 -> 0 | EB6: ='Red Vintage Planner'!EB6 -> 0 | EC6: ='Red Vintage Planner'!EC6 -> 0 | ED6: ='Red Vintage Planner'!ED6 -> 0 | EE6: ='Red Vintage Planner'!EE6 -> 0 | EF6: ='Red Vintage Planner'!EF6 -> 0 | EG6: ='Red Vintage Planner'!EG6 -> 0 | EH6: ='Red Vintage Planner'!EH6 -> 0 | EI6: ='Red Vintage Planner'!EI6 -> 0 | EJ6: ='Red Vintage Planner'!EJ6 -> 0 | EK6: ='Red Vintage Planner'!EK6 -> 0 | EL6: ='Red Vintage Planner'!EL6 -> 0 | EM6: ='Red Vintage Planner'!EM6 -> 0 | EN6: ='Red Vintage Planner'!EN6 -> 0 | EO6: ='Red Vintage Planner'!EO6 -> 0 | EP6: ='Red Vintage Planner'!EP6 -> 0 | EQ6: ='Red Vintage Planner'!EQ6 -> 0 | ER6: ='Red Vintage Planner'!ER6 -> 0 | ES6: ='Red Vintage Planner'!ES6 -> 0 | ET6: ='Red Vintage Planner'!ET6 -> 0 | EU6: ='Red Vintage Planner'!EU6 -> 0 | EV6: ='Red Vintage Planner'!EV6 -> 0 | EW6: ='Red Vintage Planner'!EW6 -> 0 | EX6: ='Red Vintage Planner'!EX6 -> 0 | EY6: ='Red Vintage Planner'!EY6 -> 0 | EZ6: ='Red Vintage Planner'!EZ6 -> 0 | FA6: ='Red Vintage Planner'!FA6 -> 0
F7: Must Chill (%) | G7: ='Red Vintage Planner'!G7 -> 0.5 | H7: ='Red Vintage Planner'!H7 -> 0.5 | I7: ='Red Vintage Planner'!I7 -> 0.5 | J7: ='Red Vintage Planner'!J7 -> 0.5 | K7: ='Red Vintage Planner'!K7 -> 0.5 | L7: ='Red Vintage Planner'!L7 -> 0.5 | M7: ='Red Vintage Planner'!M7 -> 0.5 | N7: ='Red Vintage Planner'!N7 -> 0.5 | O7: ='Red Vintage Planner'!O7 -> 0.5 | P7: ='Red Vintage Planner'!P7 -> 0.5 | Q7: ='Red Vintage Planner'!Q7 -> 0.5 | R7: ='Red Vintage Planner'!R7 -> 0.5 | S7: ='Red Vintage Planner'!S7 -> 0.5 | T7: ='Red Vintage Planner'!T7 -> 0.5 | U7: ='Red Vintage Planner'!U7 -> 0.5 | V7: ='Red Vintage Planner'!V7 -> 0.5 | W7: ='Red Vintage Planner'!W7 -> 0.5 | X7: ='Red Vintage Planner'!X7 -> 0.5 | Y7: ='Red Vintage Planner'!Y7 -> 0.5 | Z7: ='Red Vintage Planner'!Z7 -> 0.5 | AA7: ='Red Vintage Planner'!AA7 -> 0.5 | AB7: ='Red Vintage Planner'!AB7 -> 0.5 | AC7: ='Red Vintage Planner'!AC7 -> 0.5 | AD7: ='Red Vintage Planner'!AD7 -> 0.5 | AE7: ='Red Vintage Planner'!AE7 -> 0.5 | AF7: ='Red Vintage Planner'!AF7 -> 0.5 | AG7: ='Red Vintage Planner'!AG7 -> 0.5 | AH7: ='Red Vintage Planner'!AH7 -> 0.5 | AI7: ='Red Vintage Planner'!AI7 -> 0.5 | AJ7: ='Red Vintage Planner'!AJ7 -> 0.5 | AK7: ='Red Vintage Planner'!AK7 -> 0.5 | AL7: ='Red Vintage Planner'!AL7 -> 0.5 | AM7: ='Red Vintage Planner'!AM7 -> 0.5 | AN7: ='Red Vintage Planner'!AN7 -> 0.5 | AO7: ='Red Vintage Planner'!AO7 -> 0.5 | AP7: ='Red Vintage Planner'!AP7 -> 0.5 | AQ7: ='Red Vintage Planner'!AQ7 -> 0.5 | AR7: ='Red Vintage Planner'!AR7 -> 0.5 | AS7: ='Red Vintage Planner'!AS7 -> 0.5 | AT7: ='Red Vintage Planner'!AT7 -> 0.5 | AU7: ='Red Vintage Planner'!AU7 -> 0.5 | AV7: ='Red Vintage Planner'!AV7 -> 0.5 | AW7: ='Red Vintage Planner'!AW7 -> 0.5 | AX7: ='Red Vintage Planner'!AX7 -> 0.5 | AY7: ='Red Vintage Planner'!AY7 -> 0.5 | AZ7: ='Red Vintage Planner'!AZ7 -> 0.5 | BA7: ='Red Vintage Planner'!BA7 -> 0.5 | BB7: ='Red Vintage Planner'!BB7 -> 0.5 | BC7: ='Red Vintage Planner'!BC7 -> 0.5 | BD7: ='Red Vintage Planner'!BD7 -> 0.5 | BE7: ='Red Vintage Planner'!BE7 -> 0.5 | BF7: ='Red Vintage Planner'!BF7 -> 0.5 | BG7: ='Red Vintage Planner'!BG7 -> 0.5 | BH7: ='Red Vintage Planner'!BH7 -> 0.5 | BI7: ='Red Vintage Planner'!BI7 -> 0.5 | BJ7: ='Red Vintage Planner'!BJ7 -> 0.5 | BK7: ='Red Vintage Planner'!BK7 -> 0.5 | BL7: ='Red Vintage Planner'!BL7 -> 0.5 | BM7: ='Red Vintage Planner'!BM7 -> 0.5 | BN7: ='Red Vintage Planner'!BN7 -> 0.5 | BO7: ='Red Vintage Planner'!BO7 -> 0.5 | BP7: ='Red Vintage Planner'!BP7 -> 0.5 | BQ7: ='Red Vintage Planner'!BQ7 -> 0.5 | BR7: ='Red Vintage Planner'!BR7 -> 0.5 | BS7: ='Red Vintage Planner'!BS7 -> 0.5 | BT7: ='Red Vintage Planner'!BT7 -> 0.5 | BU7: ='Red Vintage Planner'!BU7 -> 0.5 | BV7: ='Red Vintage Planner'!BV7 -> 0.5 | BW7: ='Red Vintage Planner'!BW7 -> 0.5 | BX7: ='Red Vintage Planner'!BX7 -> 0.5 | BY7: ='Red Vintage Planner'!BY7 -> 0.5 | BZ7: ='Red Vintage Planner'!BZ7 -> 0.5 | CA7: ='Red Vintage Planner'!CA7 -> 0.5 | CB7: ='Red Vintage Planner'!CB7 -> 0.5 | CC7: ='Red Vintage Planner'!CC7 -> 0.5 | CD7: ='Red Vintage Planner'!CD7 -> 0.5 | CE7: ='Red Vintage Planner'!CE7 -> 0.5 | CF7: ='Red Vintage Planner'!CF7 -> 0.5 | CG7: ='Red Vintage Planner'!CG7 -> 0.5 | CH7: ='Red Vintage Planner'!CH7 -> 0.5 | CI7: ='Red Vintage Planner'!CI7 -> 0.5 | CJ7: ='Red Vintage Planner'!CJ7 -> 0.5 | CK7: ='Red Vintage Planner'!CK7 -> 0.5 | CL7: ='Red Vintage Planner'!CL7 -> 0.5 | CM7: ='Red Vintage Planner'!CM7 -> 0.5 | CN7: ='Red Vintage Planner'!CN7 -> 0.5 | CO7: ='Red Vintage Planner'!CO7 -> 0.5 | CP7: ='Red Vintage Planner'!CP7 -> 0.5 | CQ7: ='Red Vintage Planner'!CQ7 -> 0.5 | CR7: ='Red Vintage Planner'!CR7 -> 0.5 | CS7: ='Red Vintage Planner'!CS7 -> 0.5 | CT7: ='Red Vintage Planner'!CT7 -> 0.5 | CU7: ='Red Vintage Planner'!CU7 -> 0.5 | CV7: ='Red Vintage Planner'!CV7 -> 0.5 | CW7: ='Red Vintage Planner'!CW7 -> 0.5 | CX7: ='Red Vintage Planner'!CX7 -> 0.5 | CY7: ='Red Vintage Planner'!CY7 -> 0.5 | CZ7: ='Red Vintage Planner'!CZ7 -> 0.5 | DA7: ='Red Vintage Planner'!DA7 -> 0.5 | DB7: ='Red Vintage Planner'!DB7 -> 0.5 | DC7: ='Red Vintage Planner'!DC7 -> 0.5 | DD7: ='Red Vintage Planner'!DD7 -> 0.5 | DE7: ='Red Vintage Planner'!DE7 -> 0.5 | DF7: ='Red Vintage Planner'!DF7 -> 0.5 | DG7: ='Red Vintage Planner'!DG7 -> 0.5 | DH7: ='Red Vintage Planner'!DH7 -> 0.5 | DI7: ='Red Vintage Planner'!DI7 -> 0.5 | DJ7: ='Red Vintage Planner'!DJ7 -> 0.5 | DK7: ='Red Vintage Planner'!DK7 -> 0.5 | DL7: ='Red Vintage Planner'!DL7 -> 0.5 | DM7: ='Red Vintage Planner'!DM7 -> 0.5 | DN7: ='Red Vintage Planner'!DN7 -> 0.5 | DO7: ='Red Vintage Planner'!DO7 -> 0.5 | DP7: ='Red Vintage Planner'!DP7 -> 0.5 | DQ7: ='Red Vintage Planner'!DQ7 -> 0.5 | DR7: ='Red Vintage Planner'!DR7 -> 0.5 | DS7: ='Red Vintage Planner'!DS7 -> 0.5 | DT7: ='Red Vintage Planner'!DT7 -> 0.5 | DU7: ='Red Vintage Planner'!DU7 -> 0.5 | DV7: ='Red Vintage Planner'!DV7 -> 0.5 | DW7: ='Red Vintage Planner'!DW7 -> 0.5 | DX7: ='Red Vintage Planner'!DX7 -> 0.5 | DY7: ='Red Vintage Planner'!DY7 -> 0.5 | DZ7: ='Red Vintage Planner'!DZ7 -> 0.5 | EA7: ='Red Vintage Planner'!EA7 -> 0.5 | EB7: ='Red Vintage Planner'!EB7 -> 0.5 | EC7: ='Red Vintage Planner'!EC7 -> 0.5 | ED7: ='Red Vintage Planner'!ED7 -> 0.5 | EE7: ='Red Vintage Planner'!EE7 -> 0.5 | EF7: ='Red Vintage Planner'!EF7 -> 0.5 | EG7: ='Red Vintage Planner'!EG7 -> 0.5 | EH7: ='Red Vintage Planner'!EH7 -> 0.5 | EI7: ='Red Vintage Planner'!EI7 -> 0.5 | EJ7: ='Red Vintage Planner'!EJ7 -> 0.5 | EK7: ='Red Vintage Planner'!EK7 -> 0.5 | EL7: ='Red Vintage Planner'!EL7 -> 0.5 | EM7: ='Red Vintage Planner'!EM7 -> 0.5 | EN7: ='Red Vintage Planner'!EN7 -> 0.5 | EO7: ='Red Vintage Planner'!EO7 -> 0.5 | EP7: ='Red Vintage Planner'!EP7 -> 0.5 | EQ7: ='Red Vintage Planner'!EQ7 -> 0.5 | ER7: ='Red Vintage Planner'!ER7 -> 0.5 | ES7: ='Red Vintage Planner'!ES7 -> 0.5 | ET7: ='Red Vintage Planner'!ET7 -> 0.5 | EU7: ='Red Vintage Planner'!EU7 -> 0.5 | EV7: ='Red Vintage Planner'!EV7 -> 0.5 | EW7: ='Red Vintage Planner'!EW7 -> 0.5 | EX7: ='Red Vintage Planner'!EX7 -> 0.5 | EY7: ='Red Vintage Planner'!EY7 -> 0.5 | EZ7: ='Red Vintage Planner'!EZ7 -> 0.5 | FA7: ='Red Vintage Planner'!FA7 -> 0.5
E8: Cold Soak | F8: Cold Soak (%) | G8: ='Red Vintage Planner'!G8 -> 0.5 | H8: ='Red Vintage Planner'!H8 -> 0.5 | I8: ='Red Vintage Planner'!I8 -> 0.5 | J8: ='Red Vintage Planner'!J8 -> 0.5 | K8: ='Red Vintage Planner'!K8 -> 0.5 | L8: ='Red Vintage Planner'!L8 -> 0.5 | M8: ='Red Vintage Planner'!M8 -> 0.5 | N8: ='Red Vintage Planner'!N8 -> 0.5 | O8: ='Red Vintage Planner'!O8 -> 0.5 | P8: ='Red Vintage Planner'!P8 -> 0.5 | Q8: ='Red Vintage Planner'!Q8 -> 0.5 | R8: ='Red Vintage Planner'!R8 -> 0.5 | S8: ='Red Vintage Planner'!S8 -> 0.5 | T8: ='Red Vintage Planner'!T8 -> 0.5 | U8: ='Red Vintage Planner'!U8 -> 0.5 | V8: ='Red Vintage Planner'!V8 -> 0.5 | W8: ='Red Vintage Planner'!W8 -> 0.5 | X8: ='Red Vintage Planner'!X8 -> 0.5 | Y8: ='Red Vintage Planner'!Y8 -> 0.5 | Z8: ='Red Vintage Planner'!Z8 -> 0.5 | AA8: ='Red Vintage Planner'!AA8 -> 0.5 | AB8: ='Red Vintage Planner'!AB8 -> 0.5 | AC8: ='Red Vintage Planner'!AC8 -> 0.5 | AD8: ='Red Vintage Planner'!AD8 -> 0.5 | AE8: ='Red Vintage Planner'!AE8 -> 0.5 | AF8: ='Red Vintage Planner'!AF8 -> 0.5 | AG8: ='Red Vintage Planner'!AG8 -> 0.5 | AH8: ='Red Vintage Planner'!AH8 -> 0.5 | AI8: ='Red Vintage Planner'!AI8 -> 0.5 | AJ8: ='Red Vintage Planner'!AJ8 -> 0.5 | AK8: ='Red Vintage Planner'!AK8 -> 0.5 | AL8: ='Red Vintage Planner'!AL8 -> 0.5 | AM8: ='Red Vintage Planner'!AM8 -> 0.5 | AN8: ='Red Vintage Planner'!AN8 -> 0.5 | AO8: ='Red Vintage Planner'!AO8 -> 0.5 | AP8: ='Red Vintage Planner'!AP8 -> 0.5 | AQ8: ='Red Vintage Planner'!AQ8 -> 0.5 | AR8: ='Red Vintage Planner'!AR8 -> 0.5 | AS8: ='Red Vintage Planner'!AS8 -> 0.5 | AT8: ='Red Vintage Planner'!AT8 -> 0.5 | AU8: ='Red Vintage Planner'!AU8 -> 0.5 | AV8: ='Red Vintage Planner'!AV8 -> 0.5 | AW8: ='Red Vintage Planner'!AW8 -> 0.5 | AX8: ='Red Vintage Planner'!AX8 -> 0.5 | AY8: ='Red Vintage Planner'!AY8 -> 0.5 | AZ8: ='Red Vintage Planner'!AZ8 -> 0.5 | BA8: ='Red Vintage Planner'!BA8 -> 0.5 | BB8: ='Red Vintage Planner'!BB8 -> 0.5 | BC8: ='Red Vintage Planner'!BC8 -> 0.5 | BD8: ='Red Vintage Planner'!BD8 -> 0.5 | BE8: ='Red Vintage Planner'!BE8 -> 0.5 | BF8: ='Red Vintage Planner'!BF8 -> 0.5 | BG8: ='Red Vintage Planner'!BG8 -> 0.5 | BH8: ='Red Vintage Planner'!BH8 -> 0.5 | BI8: ='Red Vintage Planner'!BI8 -> 0.5 | BJ8: ='Red Vintage Planner'!BJ8 -> 0.5 | BK8: ='Red Vintage Planner'!BK8 -> 0.5 | BL8: ='Red Vintage Planner'!BL8 -> 0.5 | BM8: ='Red Vintage Planner'!BM8 -> 0.5 | BN8: ='Red Vintage Planner'!BN8 -> 0.5 | BO8: ='Red Vintage Planner'!BO8 -> 0.5 | BP8: ='Red Vintage Planner'!BP8 -> 0.5 | BQ8: ='Red Vintage Planner'!BQ8 -> 0.5 | BR8: ='Red Vintage Planner'!BR8 -> 0.5 | BS8: ='Red Vintage Planner'!BS8 -> 0.5 | BT8: ='Red Vintage Planner'!BT8 -> 0.5 | BU8: ='Red Vintage Planner'!BU8 -> 0.5 | BV8: ='Red Vintage Planner'!BV8 -> 0.5 | BW8: ='Red Vintage Planner'!BW8 -> 0.5 | BX8: ='Red Vintage Planner'!BX8 -> 0.5 | BY8: ='Red Vintage Planner'!BY8 -> 0.5 | BZ8: ='Red Vintage Planner'!BZ8 -> 0.5 | CA8: ='Red Vintage Planner'!CA8 -> 0.5 | CB8: ='Red Vintage Planner'!CB8 -> 0.5 | CC8: ='Red Vintage Planner'!CC8 -> 0.5 | CD8: ='Red Vintage Planner'!CD8 -> 0.5 | CE8: ='Red Vintage Planner'!CE8 -> 0.5 | CF8: ='Red Vintage Planner'!CF8 -> 0.5 | CG8: ='Red Vintage Planner'!CG8 -> 0.5 | CH8: ='Red Vintage Planner'!CH8 -> 0.5 | CI8: ='Red Vintage Planner'!CI8 -> 0.5 | CJ8: ='Red Vintage Planner'!CJ8 -> 0.5 | CK8: ='Red Vintage Planner'!CK8 -> 0.5 | CL8: ='Red Vintage Planner'!CL8 -> 0.5 | CM8: ='Red Vintage Planner'!CM8 -> 0.5 | CN8: ='Red Vintage Planner'!CN8 -> 0.5 | CO8: ='Red Vintage Planner'!CO8 -> 0.5 | CP8: ='Red Vintage Planner'!CP8 -> 0.5 | CQ8: ='Red Vintage Planner'!CQ8 -> 0.5 | CR8: ='Red Vintage Planner'!CR8 -> 0.5 | CS8: ='Red Vintage Planner'!CS8 -> 0.5 | CT8: ='Red Vintage Planner'!CT8 -> 0.5 | CU8: ='Red Vintage Planner'!CU8 -> 0.5 | CV8: ='Red Vintage Planner'!CV8 -> 0.5 | CW8: ='Red Vintage Planner'!CW8 -> 0.5 | CX8: ='Red Vintage Planner'!CX8 -> 0.5 | CY8: ='Red Vintage Planner'!CY8 -> 0.5 | CZ8: ='Red Vintage Planner'!CZ8 -> 0.5 | DA8: ='Red Vintage Planner'!DA8 -> 0.5 | DB8: ='Red Vintage Planner'!DB8 -> 0.5 | DC8: ='Red Vintage Planner'!DC8 -> 0.5 | DD8: ='Red Vintage Planner'!DD8 -> 0.5 | DE8: ='Red Vintage Planner'!DE8 -> 0.5 | DF8: ='Red Vintage Planner'!DF8 -> 0.5 | DG8: ='Red Vintage Planner'!DG8 -> 0.5 | DH8: ='Red Vintage Planner'!DH8 -> 0.5 | DI8: ='Red Vintage Planner'!DI8 -> 0.5 | DJ8: ='Red Vintage Planner'!DJ8 -> 0.5 | DK8: ='Red Vintage Planner'!DK8 -> 0.5 | DL8: ='Red Vintage Planner'!DL8 -> 0.5 | DM8: ='Red Vintage Planner'!DM8 -> 0.5 | DN8: ='Red Vintage Planner'!DN8 -> 0.5 | DO8: ='Red Vintage Planner'!DO8 -> 0.5 | DP8: ='Red Vintage Planner'!DP8 -> 0.5 | DQ8: ='Red Vintage Planner'!DQ8 -> 0.5 | DR8: ='Red Vintage Planner'!DR8 -> 0.5 | DS8: ='Red Vintage Planner'!DS8 -> 0.5 | DT8: ='Red Vintage Planner'!DT8 -> 0.5 | DU8: ='Red Vintage Planner'!DU8 -> 0.5 | DV8: ='Red Vintage Planner'!DV8 -> 0.5 | DW8: ='Red Vintage Planner'!DW8 -> 0.5 | DX8: ='Red Vintage Planner'!DX8 -> 0.5 | DY8: ='Red Vintage Planner'!DY8 -> 0.5 | DZ8: ='Red Vintage Planner'!DZ8 -> 0.5 | EA8: ='Red Vintage Planner'!EA8 -> 0.5 | EB8: ='Red Vintage Planner'!EB8 -> 0.5 | EC8: ='Red Vintage Planner'!EC8 -> 0.5 | ED8: ='Red Vintage Planner'!ED8 -> 0.5 | EE8: ='Red Vintage Planner'!EE8 -> 0.5 | EF8: ='Red Vintage Planner'!EF8 -> 0.5 | EG8: ='Red Vintage Planner'!EG8 -> 0.5 | EH8: ='Red Vintage Planner'!EH8 -> 0.5 | EI8: ='Red Vintage Planner'!EI8 -> 0.5 | EJ8: ='Red Vintage Planner'!EJ8 -> 0.5 | EK8: ='Red Vintage Planner'!EK8 -> 0.5 | EL8: ='Red Vintage Planner'!EL8 -> 0.5 | EM8: ='Red Vintage Planner'!EM8 -> 0.5 | EN8: ='Red Vintage Planner'!EN8 -> 0.5 | EO8: ='Red Vintage Planner'!EO8 -> 0.5 | EP8: ='Red Vintage Planner'!EP8 -> 0.5 | EQ8: ='Red Vintage Planner'!EQ8 -> 0.5 | ER8: ='Red Vintage Planner'!ER8 -> 0.5 | ES8: ='Red Vintage Planner'!ES8 -> 0.5 | ET8: ='Red Vintage Planner'!ET8 -> 0.5 | EU8: ='Red Vintage Planner'!EU8 -> 0.5 | EV8: ='Red Vintage Planner'!EV8 -> 0.5 | EW8: ='Red Vintage Planner'!EW8 -> 0.5 | EX8: ='Red Vintage Planner'!EX8 -> 0.5 | EY8: ='Red Vintage Planner'!EY8 -> 0.5 | EZ8: ='Red Vintage Planner'!EZ8 -> 0.5 | FA8: ='Red Vintage Planner'!FA8 -> 0.5
F9: Fermenter Type 1 (%) | G9: ='Red Vintage Planner'!G9 -> 0.4 | H9: ='Red Vintage Planner'!H9 -> 0.4 | I9: ='Red Vintage Planner'!I9 -> 0.4 | J9: ='Red Vintage Planner'!J9 -> 0.4 | K9: ='Red Vintage Planner'!K9 -> 0.4 | L9: ='Red Vintage Planner'!L9 -> 0.4 | M9: ='Red Vintage Planner'!M9 -> 0.4 | N9: ='Red Vintage Planner'!N9 -> 0.4 | O9: ='Red Vintage Planner'!O9 -> 0.4 | P9: ='Red Vintage Planner'!P9 -> 0.4 | Q9: ='Red Vintage Planner'!Q9 -> 0.4 | R9: ='Red Vintage Planner'!R9 -> 0.4 | S9: ='Red Vintage Planner'!S9 -> 0.4 | T9: ='Red Vintage Planner'!T9 -> 0.4 | U9: ='Red Vintage Planner'!U9 -> 0.4 | V9: ='Red Vintage Planner'!V9 -> 0.4 | W9: ='Red Vintage Planner'!W9 -> 0.4 | X9: ='Red Vintage Planner'!X9 -> 0.4 | Y9: ='Red Vintage Planner'!Y9 -> 0.4 | Z9: ='Red Vintage Planner'!Z9 -> 0.4 | AA9: ='Red Vintage Planner'!AA9 -> 0.4 | AB9: ='Red Vintage Planner'!AB9 -> 0.4 | AC9: ='Red Vintage Planner'!AC9 -> 0.4 | AD9: ='Red Vintage Planner'!AD9 -> 0.4 | AE9: ='Red Vintage Planner'!AE9 -> 0.4 | AF9: ='Red Vintage Planner'!AF9 -> 0.4 | AG9: ='Red Vintage Planner'!AG9 -> 0.4 | AH9: ='Red Vintage Planner'!AH9 -> 0.4 | AI9: ='Red Vintage Planner'!AI9 -> 0.4 | AJ9: ='Red Vintage Planner'!AJ9 -> 0.4 | AK9: ='Red Vintage Planner'!AK9 -> 0.4 | AL9: ='Red Vintage Planner'!AL9 -> 0.4 | AM9: ='Red Vintage Planner'!AM9 -> 0.4 | AN9: ='Red Vintage Planner'!AN9 -> 0.4 | AO9: ='Red Vintage Planner'!AO9 -> 0.4 | AP9: ='Red Vintage Planner'!AP9 -> 0.4 | AQ9: ='Red Vintage Planner'!AQ9 -> 0.4 | AR9: ='Red Vintage Planner'!AR9 -> 0.4 | AS9: ='Red Vintage Planner'!AS9 -> 0.4 | AT9: ='Red Vintage Planner'!AT9 -> 0.4 | AU9: ='Red Vintage Planner'!AU9 -> 0.4 | AV9: ='Red Vintage Planner'!AV9 -> 0.4 | AW9: ='Red Vintage Planner'!AW9 -> 0.4 | AX9: ='Red Vintage Planner'!AX9 -> 0.4 | AY9: ='Red Vintage Planner'!AY9 -> 0.4 | AZ9: ='Red Vintage Planner'!AZ9 -> 0.4 | BA9: ='Red Vintage Planner'!BA9 -> 0.4 | BB9: ='Red Vintage Planner'!BB9 -> 0.4 | BC9: ='Red Vintage Planner'!BC9 -> 0.4 | BD9: ='Red Vintage Planner'!BD9 -> 0.4 | BE9: ='Red Vintage Planner'!BE9 -> 0.4 | BF9: ='Red Vintage Planner'!BF9 -> 0.4 | BG9: ='Red Vintage Planner'!BG9 -> 0.4 | BH9: ='Red Vintage Planner'!BH9 -> 0.4 | BI9: ='Red Vintage Planner'!BI9 -> 0.4 | BJ9: ='Red Vintage Planner'!BJ9 -> 0.4 | BK9: ='Red Vintage Planner'!BK9 -> 0.4 | BL9: ='Red Vintage Planner'!BL9 -> 0.4 | BM9: ='Red Vintage Planner'!BM9 -> 0.4 | BN9: ='Red Vintage Planner'!BN9 -> 0.4 | BO9: ='Red Vintage Planner'!BO9 -> 0.4 | BP9: ='Red Vintage Planner'!BP9 -> 0.4 | BQ9: ='Red Vintage Planner'!BQ9 -> 0.4 | BR9: ='Red Vintage Planner'!BR9 -> 0.4 | BS9: ='Red Vintage Planner'!BS9 -> 0.4 | BT9: ='Red Vintage Planner'!BT9 -> 0.4 | BU9: ='Red Vintage Planner'!BU9 -> 0.4 | BV9: ='Red Vintage Planner'!BV9 -> 0.4 | BW9: ='Red Vintage Planner'!BW9 -> 0.4 | BX9: ='Red Vintage Planner'!BX9 -> 0.4 | BY9: ='Red Vintage Planner'!BY9 -> 0.4 | BZ9: ='Red Vintage Planner'!BZ9 -> 0.4 | CA9: ='Red Vintage Planner'!CA9 -> 0.4 | CB9: ='Red Vintage Planner'!CB9 -> 0.4 | CC9: ='Red Vintage Planner'!CC9 -> 0.4 | CD9: ='Red Vintage Planner'!CD9 -> 0.4 | CE9: ='Red Vintage Planner'!CE9 -> 0.4 | CF9: ='Red Vintage Planner'!CF9 -> 0.4 | CG9: ='Red Vintage Planner'!CG9 -> 0.4 | CH9: ='Red Vintage Planner'!CH9 -> 0.4 | CI9: ='Red Vintage Planner'!CI9 -> 0.4 | CJ9: ='Red Vintage Planner'!CJ9 -> 0.4 | CK9: ='Red Vintage Planner'!CK9 -> 0.4 | CL9: ='Red Vintage Planner'!CL9 -> 0.4 | CM9: ='Red Vintage Planner'!CM9 -> 0.4 | CN9: ='Red Vintage Planner'!CN9 -> 0.4 | CO9: ='Red Vintage Planner'!CO9 -> 0.4 | CP9: ='Red Vintage Planner'!CP9 -> 0.4 | CQ9: ='Red Vintage Planner'!CQ9 -> 0.4 | CR9: ='Red Vintage Planner'!CR9 -> 0.4 | CS9: ='Red Vintage Planner'!CS9 -> 0.4 | CT9: ='Red Vintage Planner'!CT9 -> 0.4 | CU9: ='Red Vintage Planner'!CU9 -> 0.4 | CV9: ='Red Vintage Planner'!CV9 -> 0.4 | CW9: ='Red Vintage Planner'!CW9 -> 0.4 | CX9: ='Red Vintage Planner'!CX9 -> 0.4 | CY9: ='Red Vintage Planner'!CY9 -> 0.4 | CZ9: ='Red Vintage Planner'!CZ9 -> 0.4 | DA9: ='Red Vintage Planner'!DA9 -> 0.4 | DB9: ='Red Vintage Planner'!DB9 -> 0.4 | DC9: ='Red Vintage Planner'!DC9 -> 0.4 | DD9: ='Red Vintage Planner'!DD9 -> 0.4 | DE9: ='Red Vintage Planner'!DE9 -> 0.4 | DF9: ='Red Vintage Planner'!DF9 -> 0.4 | DG9: ='Red Vintage Planner'!DG9 -> 0.4 | DH9: ='Red Vintage Planner'!DH9 -> 0.4 | DI9: ='Red Vintage Planner'!DI9 -> 0.4 | DJ9: ='Red Vintage Planner'!DJ9 -> 0.4 | DK9: ='Red Vintage Planner'!DK9 -> 0.4 | DL9: ='Red Vintage Planner'!DL9 -> 0.4 | DM9: ='Red Vintage Planner'!DM9 -> 0.4 | DN9: ='Red Vintage Planner'!DN9 -> 0.4 | DO9: ='Red Vintage Planner'!DO9 -> 0.4 | DP9: ='Red Vintage Planner'!DP9 -> 0.4 | DQ9: ='Red Vintage Planner'!DQ9 -> 0.4 | DR9: ='Red Vintage Planner'!DR9 -> 0.4 | DS9: ='Red Vintage Planner'!DS9 -> 0.4 | DT9: ='Red Vintage Planner'!DT9 -> 0.4 | DU9: ='Red Vintage Planner'!DU9 -> 0.4 | DV9: ='Red Vintage Planner'!DV9 -> 0.4 | DW9: ='Red Vintage Planner'!DW9 -> 0.4 | DX9: ='Red Vintage Planner'!DX9 -> 0.4 | DY9: ='Red Vintage Planner'!DY9 -> 0.4 | DZ9: ='Red Vintage Planner'!DZ9 -> 0.4 | EA9: ='Red Vintage Planner'!EA9 -> 0.4 | EB9: ='Red Vintage Planner'!EB9 -> 0.4 | EC9: ='Red Vintage Planner'!EC9 -> 0.4 | ED9: ='Red Vintage Planner'!ED9 -> 0.4 | EE9: ='Red Vintage Planner'!EE9 -> 0.4 | EF9: ='Red Vintage Planner'!EF9 -> 0.4 | EG9: ='Red Vintage Planner'!EG9 -> 0.4 | EH9: ='Red Vintage Planner'!EH9 -> 0.4 | EI9: ='Red Vintage Planner'!EI9 -> 0.4 | EJ9: ='Red Vintage Planner'!EJ9 -> 0.4 | EK9: ='Red Vintage Planner'!EK9 -> 0.4 | EL9: ='Red Vintage Planner'!EL9 -> 0.4 | EM9: ='Red Vintage Planner'!EM9 -> 0.4 | EN9: ='Red Vintage Planner'!EN9 -> 0.4 | EO9: ='Red Vintage Planner'!EO9 -> 0.4 | EP9: ='Red Vintage Planner'!EP9 -> 0.4 | EQ9: ='Red Vintage Planner'!EQ9 -> 0.4 | ER9: ='Red Vintage Planner'!ER9 -> 0.4 | ES9: ='Red Vintage Planner'!ES9 -> 0.4 | ET9: ='Red Vintage Planner'!ET9 -> 0.4 | EU9: ='Red Vintage Planner'!EU9 -> 0.4 | EV9: ='Red Vintage Planner'!EV9 -> 0.4 | EW9: ='Red Vintage Planner'!EW9 -> 0.4 | EX9: ='Red Vintage Planner'!EX9 -> 0.4 | EY9: ='Red Vintage Planner'!EY9 -> 0.4 | EZ9: ='Red Vintage Planner'!EZ9 -> 0.4 | FA9: ='Red Vintage Planner'!FA9 -> 0.4
F10: Fermenter Type 2 (%) | G10: ='Red Vintage Planner'!G10 -> 0.4 | H10: ='Red Vintage Planner'!H10 -> 0.4 | I10: ='Red Vintage Planner'!I10 -> 0.4 | J10: ='Red Vintage Planner'!J10 -> 0.4 | K10: ='Red Vintage Planner'!K10 -> 0.4 | L10: ='Red Vintage Planner'!L10 -> 0.4 | M10: ='Red Vintage Planner'!M10 -> 0.4 | N10: ='Red Vintage Planner'!N10 -> 0.4 | O10: ='Red Vintage Planner'!O10 -> 0.4 | P10: ='Red Vintage Planner'!P10 -> 0.4 | Q10: ='Red Vintage Planner'!Q10 -> 0.4 | R10: ='Red Vintage Planner'!R10 -> 0.4 | S10: ='Red Vintage Planner'!S10 -> 0.4 | T10: ='Red Vintage Planner'!T10 -> 0.4 | U10: ='Red Vintage Planner'!U10 -> 0.4 | V10: ='Red Vintage Planner'!V10 -> 0.4 | W10: ='Red Vintage Planner'!W10 -> 0.4 | X10: ='Red Vintage Planner'!X10 -> 0.4 | Y10: ='Red Vintage Planner'!Y10 -> 0.4 | Z10: ='Red Vintage Planner'!Z10 -> 0.4 | AA10: ='Red Vintage Planner'!AA10 -> 0.4 | AB10: ='Red Vintage Planner'!AB10 -> 0.4 | AC10: ='Red Vintage Planner'!AC10 -> 0.4 | AD10: ='Red Vintage Planner'!AD10 -> 0.4 | AE10: ='Red Vintage Planner'!AE10 -> 0.4 | AF10: ='Red Vintage Planner'!AF10 -> 0.4 | AG10: ='Red Vintage Planner'!AG10 -> 0.4 | AH10: ='Red Vintage Planner'!AH10 -> 0.4 | AI10: ='Red Vintage Planner'!AI10 -> 0.4 | AJ10: ='Red Vintage Planner'!AJ10 -> 0.4 | AK10: ='Red Vintage Planner'!AK10 -> 0.4 | AL10: ='Red Vintage Planner'!AL10 -> 0.4 | AM10: ='Red Vintage Planner'!AM10 -> 0.4 | AN10: ='Red Vintage Planner'!AN10 -> 0.4 | AO10: ='Red Vintage Planner'!AO10 -> 0.4 | AP10: ='Red Vintage Planner'!AP10 -> 0.4 | AQ10: ='Red Vintage Planner'!AQ10 -> 0.4 | AR10: ='Red Vintage Planner'!AR10 -> 0.4 | AS10: ='Red Vintage Planner'!AS10 -> 0.4 | AT10: ='Red Vintage Planner'!AT10 -> 0.4 | AU10: ='Red Vintage Planner'!AU10 -> 0.4 | AV10: ='Red Vintage Planner'!AV10 -> 0.4 | AW10: ='Red Vintage Planner'!AW10 -> 0.4 | AX10: ='Red Vintage Planner'!AX10 -> 0.4 | AY10: ='Red Vintage Planner'!AY10 -> 0.4 | AZ10: ='Red Vintage Planner'!AZ10 -> 0.4 | BA10: ='Red Vintage Planner'!BA10 -> 0.4 | BB10: ='Red Vintage Planner'!BB10 -> 0.4 | BC10: ='Red Vintage Planner'!BC10 -> 0.4 | BD10: ='Red Vintage Planner'!BD10 -> 0.4 | BE10: ='Red Vintage Planner'!BE10 -> 0.4 | BF10: ='Red Vintage Planner'!BF10 -> 0.4 | BG10: ='Red Vintage Planner'!BG10 -> 0.4 | BH10: ='Red Vintage Planner'!BH10 -> 0.4 | BI10: ='Red Vintage Planner'!BI10 -> 0.4 | BJ10: ='Red Vintage Planner'!BJ10 -> 0.4 | BK10: ='Red Vintage Planner'!BK10 -> 0.4 | BL10: ='Red Vintage Planner'!BL10 -> 0.4 | BM10: ='Red Vintage Planner'!BM10 -> 0.4 | BN10: ='Red Vintage Planner'!BN10 -> 0.4 | BO10: ='Red Vintage Planner'!BO10 -> 0.4 | BP10: ='Red Vintage Planner'!BP10 -> 0.4 | BQ10: ='Red Vintage Planner'!BQ10 -> 0.4 | BR10: ='Red Vintage Planner'!BR10 -> 0.4 | BS10: ='Red Vintage Planner'!BS10 -> 0.4 | BT10: ='Red Vintage Planner'!BT10 -> 0.4 | BU10: ='Red Vintage Planner'!BU10 -> 0.4 | BV10: ='Red Vintage Planner'!BV10 -> 0.4 | BW10: ='Red Vintage Planner'!BW10 -> 0.4 | BX10: ='Red Vintage Planner'!BX10 -> 0.4 | BY10: ='Red Vintage Planner'!BY10 -> 0.4 | BZ10: ='Red Vintage Planner'!BZ10 -> 0.4 | CA10: ='Red Vintage Planner'!CA10 -> 0.4 | CB10: ='Red Vintage Planner'!CB10 -> 0.4 | CC10: ='Red Vintage Planner'!CC10 -> 0.4 | CD10: ='Red Vintage Planner'!CD10 -> 0.4 | CE10: ='Red Vintage Planner'!CE10 -> 0.4 | CF10: ='Red Vintage Planner'!CF10 -> 0.4 | CG10: ='Red Vintage Planner'!CG10 -> 0.4 | CH10: ='Red Vintage Planner'!CH10 -> 0.4 | CI10: ='Red Vintage Planner'!CI10 -> 0.4 | CJ10: ='Red Vintage Planner'!CJ10 -> 0.4 | CK10: ='Red Vintage Planner'!CK10 -> 0.4 | CL10: ='Red Vintage Planner'!CL10 -> 0.4 | CM10: ='Red Vintage Planner'!CM10 -> 0.4 | CN10: ='Red Vintage Planner'!CN10 -> 0.4 | CO10: ='Red Vintage Planner'!CO10 -> 0.4 | CP10: ='Red Vintage Planner'!CP10 -> 0.4 | CQ10: ='Red Vintage Planner'!CQ10 -> 0.4 | CR10: ='Red Vintage Planner'!CR10 -> 0.4 | CS10: ='Red Vintage Planner'!CS10 -> 0.4 | CT10: ='Red Vintage Planner'!CT10 -> 0.4 | CU10: ='Red Vintage Planner'!CU10 -> 0.4 | CV10: ='Red Vintage Planner'!CV10 -> 0.4 | CW10: ='Red Vintage Planner'!CW10 -> 0.4 | CX10: ='Red Vintage Planner'!CX10 -> 0.4 | CY10: ='Red Vintage Planner'!CY10 -> 0.4 | CZ10: ='Red Vintage Planner'!CZ10 -> 0.4 | DA10: ='Red Vintage Planner'!DA10 -> 0.4 | DB10: ='Red Vintage Planner'!DB10 -> 0.4 | DC10: ='Red Vintage Planner'!DC10 -> 0.4 | DD10: ='Red Vintage Planner'!DD10 -> 0.4 | DE10: ='Red Vintage Planner'!DE10 -> 0.4 | DF10: ='Red Vintage Planner'!DF10 -> 0.4 | DG10: ='Red Vintage Planner'!DG10 -> 0.4 | DH10: ='Red Vintage Planner'!DH10 -> 0.4 | DI10: ='Red Vintage Planner'!DI10 -> 0.4 | DJ10: ='Red Vintage Planner'!DJ10 -> 0.4 | DK10: ='Red Vintage Planner'!DK10 -> 0.4 | DL10: ='Red Vintage Planner'!DL10 -> 0.4 | DM10: ='Red Vintage Planner'!DM10 -> 0.4 | DN10: ='Red Vintage Planner'!DN10 -> 0.4 | DO10: ='Red Vintage Planner'!DO10 -> 0.4 | DP10: ='Red Vintage Planner'!DP10 -> 0.4 | DQ10: ='Red Vintage Planner'!DQ10 -> 0.4 | DR10: ='Red Vintage Planner'!DR10 -> 0.4 | DS10: ='Red Vintage Planner'!DS10 -> 0.4 | DT10: ='Red Vintage Planner'!DT10 -> 0.4 | DU10: ='Red Vintage Planner'!DU10 -> 0.4 | DV10: ='Red Vintage Planner'!DV10 -> 0.4 | DW10: ='Red Vintage Planner'!DW10 -> 0.4 | DX10: ='Red Vintage Planner'!DX10 -> 0.4 | DY10: ='Red Vintage Planner'!DY10 -> 0.4 | DZ10: ='Red Vintage Planner'!DZ10 -> 0.4 | EA10: ='Red Vintage Planner'!EA10 -> 0.4 | EB10: ='Red Vintage Planner'!EB10 -> 0.4 | EC10: ='Red Vintage Planner'!EC10 -> 0.4 | ED10: ='Red Vintage Planner'!ED10 -> 0.4 | EE10: ='Red Vintage Planner'!EE10 -> 0.4 | EF10: ='Red Vintage Planner'!EF10 -> 0.4 | EG10: ='Red Vintage Planner'!EG10 -> 0.4 | EH10: ='Red Vintage Planner'!EH10 -> 0.4 | EI10: ='Red Vintage Planner'!EI10 -> 0.4 | EJ10: ='Red Vintage Planner'!EJ10 -> 0.4 | EK10: ='Red Vintage Planner'!EK10 -> 0.4 | EL10: ='Red Vintage Planner'!EL10 -> 0.4 | EM10: ='Red Vintage Planner'!EM10 -> 0.4 | EN10: ='Red Vintage Planner'!EN10 -> 0.4 | EO10: ='Red Vintage Planner'!EO10 -> 0.4 | EP10: ='Red Vintage Planner'!EP10 -> 0.4 | EQ10: ='Red Vintage Planner'!EQ10 -> 0.4 | ER10: ='Red Vintage Planner'!ER10 -> 0.4 | ES10: ='Red Vintage Planner'!ES10 -> 0.4 | ET10: ='Red Vintage Planner'!ET10 -> 0.4 | EU10: ='Red Vintage Planner'!EU10 -> 0.4 | EV10: ='Red Vintage Planner'!EV10 -> 0.4 | EW10: ='Red Vintage Planner'!EW10 -> 0.4 | EX10: ='Red Vintage Planner'!EX10 -> 0.4 | EY10: ='Red Vintage Planner'!EY10 -> 0.4 | EZ10: ='Red Vintage Planner'!EZ10 -> 0.4 | FA10: ='Red Vintage Planner'!FA10 -> 0.4
F11: Fermenter Type 3 (%) | G11: ='Red Vintage Planner'!G11 -> 0.2 | H11: ='Red Vintage Planner'!H11 -> 0.2 | I11: ='Red Vintage Planner'!I11 -> 0.2 | J11: ='Red Vintage Planner'!J11 -> 0.2 | K11: ='Red Vintage Planner'!K11 -> 0.2 | L11: ='Red Vintage Planner'!L11 -> 0.2 | M11: ='Red Vintage Planner'!M11 -> 0.2 | N11: ='Red Vintage Planner'!N11 -> 0.2 | O11: ='Red Vintage Planner'!O11 -> 0.2 | P11: ='Red Vintage Planner'!P11 -> 0.2 | Q11: ='Red Vintage Planner'!Q11 -> 0.2 | R11: ='Red Vintage Planner'!R11 -> 0.2 | S11: ='Red Vintage Planner'!S11 -> 0.2 | T11: ='Red Vintage Planner'!T11 -> 0.2 | U11: ='Red Vintage Planner'!U11 -> 0.2 | V11: ='Red Vintage Planner'!V11 -> 0.2 | W11: ='Red Vintage Planner'!W11 -> 0.2 | X11: ='Red Vintage Planner'!X11 -> 0.2 | Y11: ='Red Vintage Planner'!Y11 -> 0.2 | Z11: ='Red Vintage Planner'!Z11 -> 0.2 | AA11: ='Red Vintage Planner'!AA11 -> 0.2 | AB11: ='Red Vintage Planner'!AB11 -> 0.2 | AC11: ='Red Vintage Planner'!AC11 -> 0.2 | AD11: ='Red Vintage Planner'!AD11 -> 0.2 | AE11: ='Red Vintage Planner'!AE11 -> 0.2 | AF11: ='Red Vintage Planner'!AF11 -> 0.2 | AG11: ='Red Vintage Planner'!AG11 -> 0.2 | AH11: ='Red Vintage Planner'!AH11 -> 0.2 | AI11: ='Red Vintage Planner'!AI11 -> 0.2 | AJ11: ='Red Vintage Planner'!AJ11 -> 0.2 | AK11: ='Red Vintage Planner'!AK11 -> 0.2 | AL11: ='Red Vintage Planner'!AL11 -> 0.2 | AM11: ='Red Vintage Planner'!AM11 -> 0.2 | AN11: ='Red Vintage Planner'!AN11 -> 0.2 | AO11: ='Red Vintage Planner'!AO11 -> 0.2 | AP11: ='Red Vintage Planner'!AP11 -> 0.2 | AQ11: ='Red Vintage Planner'!AQ11 -> 0.2 | AR11: ='Red Vintage Planner'!AR11 -> 0.2 | AS11: ='Red Vintage Planner'!AS11 -> 0.2 | AT11: ='Red Vintage Planner'!AT11 -> 0.2 | AU11: ='Red Vintage Planner'!AU11 -> 0.2 | AV11: ='Red Vintage Planner'!AV11 -> 0.2 | AW11: ='Red Vintage Planner'!AW11 -> 0.2 | AX11: ='Red Vintage Planner'!AX11 -> 0.2 | AY11: ='Red Vintage Planner'!AY11 -> 0.2 | AZ11: ='Red Vintage Planner'!AZ11 -> 0.2 | BA11: ='Red Vintage Planner'!BA11 -> 0.2 | BB11: ='Red Vintage Planner'!BB11 -> 0.2 | BC11: ='Red Vintage Planner'!BC11 -> 0.2 | BD11: ='Red Vintage Planner'!BD11 -> 0.2 | BE11: ='Red Vintage Planner'!BE11 -> 0.2 | BF11: ='Red Vintage Planner'!BF11 -> 0.2 | BG11: ='Red Vintage Planner'!BG11 -> 0.2 | BH11: ='Red Vintage Planner'!BH11 -> 0.2 | BI11: ='Red Vintage Planner'!BI11 -> 0.2 | BJ11: ='Red Vintage Planner'!BJ11 -> 0.2 | BK11: ='Red Vintage Planner'!BK11 -> 0.2 | BL11: ='Red Vintage Planner'!BL11 -> 0.2 | BM11: ='Red Vintage Planner'!BM11 -> 0.2 | BN11: ='Red Vintage Planner'!BN11 -> 0.2 | BO11: ='Red Vintage Planner'!BO11 -> 0.2 | BP11: ='Red Vintage Planner'!BP11 -> 0.2 | BQ11: ='Red Vintage Planner'!BQ11 -> 0.2 | BR11: ='Red Vintage Planner'!BR11 -> 0.2 | BS11: ='Red Vintage Planner'!BS11 -> 0.2 | BT11: ='Red Vintage Planner'!BT11 -> 0.2 | BU11: ='Red Vintage Planner'!BU11 -> 0.2 | BV11: ='Red Vintage Planner'!BV11 -> 0.2 | BW11: ='Red Vintage Planner'!BW11 -> 0.2 | BX11: ='Red Vintage Planner'!BX11 -> 0.2 | BY11: ='Red Vintage Planner'!BY11 -> 0.2 | BZ11: ='Red Vintage Planner'!BZ11 -> 0.2 | CA11: ='Red Vintage Planner'!CA11 -> 0.2 | CB11: ='Red Vintage Planner'!CB11 -> 0.2 | CC11: ='Red Vintage Planner'!CC11 -> 0.2 | CD11: ='Red Vintage Planner'!CD11 -> 0.2 | CE11: ='Red Vintage Planner'!CE11 -> 0.2 | CF11: ='Red Vintage Planner'!CF11 -> 0.2 | CG11: ='Red Vintage Planner'!CG11 -> 0.2 | CH11: ='Red Vintage Planner'!CH11 -> 0.2 | CI11: ='Red Vintage Planner'!CI11 -> 0.2 | CJ11: ='Red Vintage Planner'!CJ11 -> 0.2 | CK11: ='Red Vintage Planner'!CK11 -> 0.2 | CL11: ='Red Vintage Planner'!CL11 -> 0.2 | CM11: ='Red Vintage Planner'!CM11 -> 0.2 | CN11: ='Red Vintage Planner'!CN11 -> 0.2 | CO11: ='Red Vintage Planner'!CO11 -> 0.2 | CP11: ='Red Vintage Planner'!CP11 -> 0.2 | CQ11: ='Red Vintage Planner'!CQ11 -> 0.2 | CR11: ='Red Vintage Planner'!CR11 -> 0.2 | CS11: ='Red Vintage Planner'!CS11 -> 0.2 | CT11: ='Red Vintage Planner'!CT11 -> 0.2 | CU11: ='Red Vintage Planner'!CU11 -> 0.2 | CV11: ='Red Vintage Planner'!CV11 -> 0.2 | CW11: ='Red Vintage Planner'!CW11 -> 0.2 | CX11: ='Red Vintage Planner'!CX11 -> 0.2 | CY11: ='Red Vintage Planner'!CY11 -> 0.2 | CZ11: ='Red Vintage Planner'!CZ11 -> 0.2 | DA11: ='Red Vintage Planner'!DA11 -> 0.2 | DB11: ='Red Vintage Planner'!DB11 -> 0.2 | DC11: ='Red Vintage Planner'!DC11 -> 0.2 | DD11: ='Red Vintage Planner'!DD11 -> 0.2 | DE11: ='Red Vintage Planner'!DE11 -> 0.2 | DF11: ='Red Vintage Planner'!DF11 -> 0.2 | DG11: ='Red Vintage Planner'!DG11 -> 0.2 | DH11: ='Red Vintage Planner'!DH11 -> 0.2 | DI11: ='Red Vintage Planner'!DI11 -> 0.2 | DJ11: ='Red Vintage Planner'!DJ11 -> 0.2 | DK11: ='Red Vintage Planner'!DK11 -> 0.2 | DL11: ='Red Vintage Planner'!DL11 -> 0.2 | DM11: ='Red Vintage Planner'!DM11 -> 0.2 | DN11: ='Red Vintage Planner'!DN11 -> 0.2 | DO11: ='Red Vintage Planner'!DO11 -> 0.2 | DP11: ='Red Vintage Planner'!DP11 -> 0.2 | DQ11: ='Red Vintage Planner'!DQ11 -> 0.2 | DR11: ='Red Vintage Planner'!DR11 -> 0.2 | DS11: ='Red Vintage Planner'!DS11 -> 0.2 | DT11: ='Red Vintage Planner'!DT11 -> 0.2 | DU11: ='Red Vintage Planner'!DU11 -> 0.2 | DV11: ='Red Vintage Planner'!DV11 -> 0.2 | DW11: ='Red Vintage Planner'!DW11 -> 0.2 | DX11: ='Red Vintage Planner'!DX11 -> 0.2 | DY11: ='Red Vintage Planner'!DY11 -> 0.2 | DZ11: ='Red Vintage Planner'!DZ11 -> 0.2 | EA11: ='Red Vintage Planner'!EA11 -> 0.2 | EB11: ='Red Vintage Planner'!EB11 -> 0.2 | EC11: ='Red Vintage Planner'!EC11 -> 0.2 | ED11: ='Red Vintage Planner'!ED11 -> 0.2 | EE11: ='Red Vintage Planner'!EE11 -> 0.2 | EF11: ='Red Vintage Planner'!EF11 -> 0.2 | EG11: ='Red Vintage Planner'!EG11 -> 0.2 | EH11: ='Red Vintage Planner'!EH11 -> 0.2 | EI11: ='Red Vintage Planner'!EI11 -> 0.2 | EJ11: ='Red Vintage Planner'!EJ11 -> 0.2 | EK11: ='Red Vintage Planner'!EK11 -> 0.2 | EL11: ='Red Vintage Planner'!EL11 -> 0.2 | EM11: ='Red Vintage Planner'!EM11 -> 0.2 | EN11: ='Red Vintage Planner'!EN11 -> 0.2 | EO11: ='Red Vintage Planner'!EO11 -> 0.2 | EP11: ='Red Vintage Planner'!EP11 -> 0.2 | EQ11: ='Red Vintage Planner'!EQ11 -> 0.2 | ER11: ='Red Vintage Planner'!ER11 -> 0.2 | ES11: ='Red Vintage Planner'!ES11 -> 0.2 | ET11: ='Red Vintage Planner'!ET11 -> 0.2 | EU11: ='Red Vintage Planner'!EU11 -> 0.2 | EV11: ='Red Vintage Planner'!EV11 -> 0.2 | EW11: ='Red Vintage Planner'!EW11 -> 0.2 | EX11: ='Red Vintage Planner'!EX11 -> 0.2 | EY11: ='Red Vintage Planner'!EY11 -> 0.2 | EZ11: ='Red Vintage Planner'!EZ11 -> 0.2 | FA11: ='Red Vintage Planner'!FA11 -> 0.2
F12: Non-Cold Soak | G12: ='Red Vintage Planner'!G12 -> 0.5 | H12: ='Red Vintage Planner'!H12 -> 0.5 | I12: ='Red Vintage Planner'!I12 -> 0.5 | J12: ='Red Vintage Planner'!J12 -> 0.5 | K12: ='Red Vintage Planner'!K12 -> 0.5 | L12: ='Red Vintage Planner'!L12 -> 0.5 | M12: ='Red Vintage Planner'!M12 -> 0.5 | N12: ='Red Vintage Planner'!N12 -> 0.5 | O12: ='Red Vintage Planner'!O12 -> 0.5 | P12: ='Red Vintage Planner'!P12 -> 0.5 | Q12: ='Red Vintage Planner'!Q12 -> 0.5 | R12: ='Red Vintage Planner'!R12 -> 0.5 | S12: ='Red Vintage Planner'!S12 -> 0.5 | T12: ='Red Vintage Planner'!T12 -> 0.5 | U12: ='Red Vintage Planner'!U12 -> 0.5 | V12: ='Red Vintage Planner'!V12 -> 0.5 | W12: ='Red Vintage Planner'!W12 -> 0.5 | X12: ='Red Vintage Planner'!X12 -> 0.5 | Y12: ='Red Vintage Planner'!Y12 -> 0.5 | Z12: ='Red Vintage Planner'!Z12 -> 0.5 | AA12: ='Red Vintage Planner'!AA12 -> 0.5 | AB12: ='Red Vintage Planner'!AB12 -> 0.5 | AC12: ='Red Vintage Planner'!AC12 -> 0.5 | AD12: ='Red Vintage Planner'!AD12 -> 0.5 | AE12: ='Red Vintage Planner'!AE12 -> 0.5 | AF12: ='Red Vintage Planner'!AF12 -> 0.5 | AG12: ='Red Vintage Planner'!AG12 -> 0.5 | AH12: ='Red Vintage Planner'!AH12 -> 0.5 | AI12: ='Red Vintage Planner'!AI12 -> 0.5 | AJ12: ='Red Vintage Planner'!AJ12 -> 0.5 | AK12: ='Red Vintage Planner'!AK12 -> 0.5 | AL12: ='Red Vintage Planner'!AL12 -> 0.5 | AM12: ='Red Vintage Planner'!AM12 -> 0.5 | AN12: ='Red Vintage Planner'!AN12 -> 0.5 | AO12: ='Red Vintage Planner'!AO12 -> 0.5 | AP12: ='Red Vintage Planner'!AP12 -> 0.5 | AQ12: ='Red Vintage Planner'!AQ12 -> 0.5 | AR12: ='Red Vintage Planner'!AR12 -> 0.5 | AS12: ='Red Vintage Planner'!AS12 -> 0.5 | AT12: ='Red Vintage Planner'!AT12 -> 0.5 | AU12: ='Red Vintage Planner'!AU12 -> 0.5 | AV12: ='Red Vintage Planner'!AV12 -> 0.5 | AW12: ='Red Vintage Planner'!AW12 -> 0.5 | AX12: ='Red Vintage Planner'!AX12 -> 0.5 | AY12: ='Red Vintage Planner'!AY12 -> 0.5 | AZ12: ='Red Vintage Planner'!AZ12 -> 0.5 | BA12: ='Red Vintage Planner'!BA12 -> 0.5 | BB12: ='Red Vintage Planner'!BB12 -> 0.5 | BC12: ='Red Vintage Planner'!BC12 -> 0.5 | BD12: ='Red Vintage Planner'!BD12 -> 0.5 | BE12: ='Red Vintage Planner'!BE12 -> 0.5 | BF12: ='Red Vintage Planner'!BF12 -> 0.5 | BG12: ='Red Vintage Planner'!BG12 -> 0.5 | BH12: ='Red Vintage Planner'!BH12 -> 0.5 | BI12: ='Red Vintage Planner'!BI12 -> 0.5 | BJ12: ='Red Vintage Planner'!BJ12 -> 0.5 | BK12: ='Red Vintage Planner'!BK12 -> 0.5 | BL12: ='Red Vintage Planner'!BL12 -> 0.5 | BM12: ='Red Vintage Planner'!BM12 -> 0.5 | BN12: ='Red Vintage Planner'!BN12 -> 0.5 | BO12: ='Red Vintage Planner'!BO12 -> 0.5 | BP12: ='Red Vintage Planner'!BP12 -> 0.5 | BQ12: ='Red Vintage Planner'!BQ12 -> 0.5 | BR12: ='Red Vintage Planner'!BR12 -> 0.5 | BS12: ='Red Vintage Planner'!BS12 -> 0.5 | BT12: ='Red Vintage Planner'!BT12 -> 0.5 | BU12: ='Red Vintage Planner'!BU12 -> 0.5 | BV12: ='Red Vintage Planner'!BV12 -> 0.5 | BW12: ='Red Vintage Planner'!BW12 -> 0.5 | BX12: ='Red Vintage Planner'!BX12 -> 0.5 | BY12: ='Red Vintage Planner'!BY12 -> 0.5 | BZ12: ='Red Vintage Planner'!BZ12 -> 0.5 | CA12: ='Red Vintage Planner'!CA12 -> 0.5 | CB12: ='Red Vintage Planner'!CB12 -> 0.5 | CC12: ='Red Vintage Planner'!CC12 -> 0.5 | CD12: ='Red Vintage Planner'!CD12 -> 0.5 | CE12: ='Red Vintage Planner'!CE12 -> 0.5 | CF12: ='Red Vintage Planner'!CF12 -> 0.5 | CG12: ='Red Vintage Planner'!CG12 -> 0.5 | CH12: ='Red Vintage Planner'!CH12 -> 0.5 | CI12: ='Red Vintage Planner'!CI12 -> 0.5 | CJ12: ='Red Vintage Planner'!CJ12 -> 0.5 | CK12: ='Red Vintage Planner'!CK12 -> 0.5 | CL12: ='Red Vintage Planner'!CL12 -> 0.5 | CM12: ='Red Vintage Planner'!CM12 -> 0.5 | CN12: ='Red Vintage Planner'!CN12 -> 0.5 | CO12: ='Red Vintage Planner'!CO12 -> 0.5 | CP12: ='Red Vintage Planner'!CP12 -> 0.5 | CQ12: ='Red Vintage Planner'!CQ12 -> 0.5 | CR12: ='Red Vintage Planner'!CR12 -> 0.5 | CS12: ='Red Vintage Planner'!CS12 -> 0.5 | CT12: ='Red Vintage Planner'!CT12 -> 0.5 | CU12: ='Red Vintage Planner'!CU12 -> 0.5 | CV12: ='Red Vintage Planner'!CV12 -> 0.5 | CW12: ='Red Vintage Planner'!CW12 -> 0.5 | CX12: ='Red Vintage Planner'!CX12 -> 0.5 | CY12: ='Red Vintage Planner'!CY12 -> 0.5 | CZ12: ='Red Vintage Planner'!CZ12 -> 0.5 | DA12: ='Red Vintage Planner'!DA12 -> 0.5 | DB12: ='Red Vintage Planner'!DB12 -> 0.5 | DC12: ='Red Vintage Planner'!DC12 -> 0.5 | DD12: ='Red Vintage Planner'!DD12 -> 0.5 | DE12: ='Red Vintage Planner'!DE12 -> 0.5 | DF12: ='Red Vintage Planner'!DF12 -> 0.5 | DG12: ='Red Vintage Planner'!DG12 -> 0.5 | DH12: ='Red Vintage Planner'!DH12 -> 0.5 | DI12: ='Red Vintage Planner'!DI12 -> 0.5 | DJ12: ='Red Vintage Planner'!DJ12 -> 0.5 | DK12: ='Red Vintage Planner'!DK12 -> 0.5 | DL12: ='Red Vintage Planner'!DL12 -> 0.5 | DM12: ='Red Vintage Planner'!DM12 -> 0.5 | DN12: ='Red Vintage Planner'!DN12 -> 0.5 | DO12: ='Red Vintage Planner'!DO12 -> 0.5 | DP12: ='Red Vintage Planner'!DP12 -> 0.5 | DQ12: ='Red Vintage Planner'!DQ12 -> 0.5 | DR12: ='Red Vintage Planner'!DR12 -> 0.5 | DS12: ='Red Vintage Planner'!DS12 -> 0.5 | DT12: ='Red Vintage Planner'!DT12 -> 0.5 | DU12: ='Red Vintage Planner'!DU12 -> 0.5 | DV12: ='Red Vintage Planner'!DV12 -> 0.5 | DW12: ='Red Vintage Planner'!DW12 -> 0.5 | DX12: ='Red Vintage Planner'!DX12 -> 0.5 | DY12: ='Red Vintage Planner'!DY12 -> 0.5 | DZ12: ='Red Vintage Planner'!DZ12 -> 0.5 | EA12: ='Red Vintage Planner'!EA12 -> 0.5 | EB12: ='Red Vintage Planner'!EB12 -> 0.5 | EC12: ='Red Vintage Planner'!EC12 -> 0.5 | ED12: ='Red Vintage Planner'!ED12 -> 0.5 | EE12: ='Red Vintage Planner'!EE12 -> 0.5 | EF12: ='Red Vintage Planner'!EF12 -> 0.5 | EG12: ='Red Vintage Planner'!EG12 -> 0.5 | EH12: ='Red Vintage Planner'!EH12 -> 0.5 | EI12: ='Red Vintage Planner'!EI12 -> 0.5 | EJ12: ='Red Vintage Planner'!EJ12 -> 0.5 | EK12: ='Red Vintage Planner'!EK12 -> 0.5 | EL12: ='Red Vintage Planner'!EL12 -> 0.5 | EM12: ='Red Vintage Planner'!EM12 -> 0.5 | EN12: ='Red Vintage Planner'!EN12 -> 0.5 | EO12: ='Red Vintage Planner'!EO12 -> 0.5 | EP12: ='Red Vintage Planner'!EP12 -> 0.5 | EQ12: ='Red Vintage Planner'!EQ12 -> 0.5 | ER12: ='Red Vintage Planner'!ER12 -> 0.5 | ES12: ='Red Vintage Planner'!ES12 -> 0.5 | ET12: ='Red Vintage Planner'!ET12 -> 0.5 | EU12: ='Red Vintage Planner'!EU12 -> 0.5 | EV12: ='Red Vintage Planner'!EV12 -> 0.5 | EW12: ='Red Vintage Planner'!EW12 -> 0.5 | EX12: ='Red Vintage Planner'!EX12 -> 0.5 | EY12: ='Red Vintage Planner'!EY12 -> 0.5 | EZ12: ='Red Vintage Planner'!EZ12 -> 0.5 | FA12: ='Red Vintage Planner'!FA12 -> 0.5
E13: Non-Cold Soak | F13: Fermenter Type 1 (%) | G13: ='Red Vintage Planner'!G13 -> 0.4 | H13: ='Red Vintage Planner'!H13 -> 0.4 | I13: ='Red Vintage Planner'!I13 -> 0.4 | J13: ='Red Vintage Planner'!J13 -> 0.4 | K13: ='Red Vintage Planner'!K13 -> 0.4 | L13: ='Red Vintage Planner'!L13 -> 0.4 | M13: ='Red Vintage Planner'!M13 -> 0.4 | N13: ='Red Vintage Planner'!N13 -> 0.4 | O13: ='Red Vintage Planner'!O13 -> 0.4 | P13: ='Red Vintage Planner'!P13 -> 0.4 | Q13: ='Red Vintage Planner'!Q13 -> 0.4 | R13: ='Red Vintage Planner'!R13 -> 0.4 | S13: ='Red Vintage Planner'!S13 -> 0.4 | T13: ='Red Vintage Planner'!T13 -> 0.4 | U13: ='Red Vintage Planner'!U13 -> 0.4 | V13: ='Red Vintage Planner'!V13 -> 0.4 | W13: ='Red Vintage Planner'!W13 -> 0.4 | X13: ='Red Vintage Planner'!X13 -> 0.4 | Y13: ='Red Vintage Planner'!Y13 -> 0.4 | Z13: ='Red Vintage Planner'!Z13 -> 0.4 | AA13: ='Red Vintage Planner'!AA13 -> 0.4 | AB13: ='Red Vintage Planner'!AB13 -> 0.4 | AC13: ='Red Vintage Planner'!AC13 -> 0.4 | AD13: ='Red Vintage Planner'!AD13 -> 0.4 | AE13: ='Red Vintage Planner'!AE13 -> 0.4 | AF13: ='Red Vintage Planner'!AF13 -> 0.4 | AG13: ='Red Vintage Planner'!AG13 -> 0.4 | AH13: ='Red Vintage Planner'!AH13 -> 0.4 | AI13: ='Red Vintage Planner'!AI13 -> 0.4 | AJ13: ='Red Vintage Planner'!AJ13 -> 0.4 | AK13: ='Red Vintage Planner'!AK13 -> 0.4 | AL13: ='Red Vintage Planner'!AL13 -> 0.4 | AM13: ='Red Vintage Planner'!AM13 -> 0.4 | AN13: ='Red Vintage Planner'!AN13 -> 0.4 | AO13: ='Red Vintage Planner'!AO13 -> 0.4 | AP13: ='Red Vintage Planner'!AP13 -> 0.4 | AQ13: ='Red Vintage Planner'!AQ13 -> 0.4 | AR13: ='Red Vintage Planner'!AR13 -> 0.4 | AS13: ='Red Vintage Planner'!AS13 -> 0.4 | AT13: ='Red Vintage Planner'!AT13 -> 0.4 | AU13: ='Red Vintage Planner'!AU13 -> 0.4 | AV13: ='Red Vintage Planner'!AV13 -> 0.4 | AW13: ='Red Vintage Planner'!AW13 -> 0.4 | AX13: ='Red Vintage Planner'!AX13 -> 0.4 | AY13: ='Red Vintage Planner'!AY13 -> 0.4 | AZ13: ='Red Vintage Planner'!AZ13 -> 0.4 | BA13: ='Red Vintage Planner'!BA13 -> 0.4 | BB13: ='Red Vintage Planner'!BB13 -> 0.4 | BC13: ='Red Vintage Planner'!BC13 -> 0.4 | BD13: ='Red Vintage Planner'!BD13 -> 0.4 | BE13: ='Red Vintage Planner'!BE13 -> 0.4 | BF13: ='Red Vintage Planner'!BF13 -> 0.4 | BG13: ='Red Vintage Planner'!BG13 -> 0.4 | BH13: ='Red Vintage Planner'!BH13 -> 0.4 | BI13: ='Red Vintage Planner'!BI13 -> 0.4 | BJ13: ='Red Vintage Planner'!BJ13 -> 0.4 | BK13: ='Red Vintage Planner'!BK13 -> 0.4 | BL13: ='Red Vintage Planner'!BL13 -> 0.4 | BM13: ='Red Vintage Planner'!BM13 -> 0.4 | BN13: ='Red Vintage Planner'!BN13 -> 0.4 | BO13: ='Red Vintage Planner'!BO13 -> 0.4 | BP13: ='Red Vintage Planner'!BP13 -> 0.4 | BQ13: ='Red Vintage Planner'!BQ13 -> 0.4 | BR13: ='Red Vintage Planner'!BR13 -> 0.4 | BS13: ='Red Vintage Planner'!BS13 -> 0.4 | BT13: ='Red Vintage Planner'!BT13 -> 0.4 | BU13: ='Red Vintage Planner'!BU13 -> 0.4 | BV13: ='Red Vintage Planner'!BV13 -> 0.4 | BW13: ='Red Vintage Planner'!BW13 -> 0.4 | BX13: ='Red Vintage Planner'!BX13 -> 0.4 | BY13: ='Red Vintage Planner'!BY13 -> 0.4 | BZ13: ='Red Vintage Planner'!BZ13 -> 0.4 | CA13: ='Red Vintage Planner'!CA13 -> 0.4 | CB13: ='Red Vintage Planner'!CB13 -> 0.4 | CC13: ='Red Vintage Planner'!CC13 -> 0.4 | CD13: ='Red Vintage Planner'!CD13 -> 0.4 | CE13: ='Red Vintage Planner'!CE13 -> 0.4 | CF13: ='Red Vintage Planner'!CF13 -> 0.4 | CG13: ='Red Vintage Planner'!CG13 -> 0.4 | CH13: ='Red Vintage Planner'!CH13 -> 0.4 | CI13: ='Red Vintage Planner'!CI13 -> 0.4 | CJ13: ='Red Vintage Planner'!CJ13 -> 0.4 | CK13: ='Red Vintage Planner'!CK13 -> 0.4 | CL13: ='Red Vintage Planner'!CL13 -> 0.4 | CM13: ='Red Vintage Planner'!CM13 -> 0.4 | CN13: ='Red Vintage Planner'!CN13 -> 0.4 | CO13: ='Red Vintage Planner'!CO13 -> 0.4 | CP13: ='Red Vintage Planner'!CP13 -> 0.4 | CQ13: ='Red Vintage Planner'!CQ13 -> 0.4 | CR13: ='Red Vintage Planner'!CR13 -> 0.4 | CS13: ='Red Vintage Planner'!CS13 -> 0.4 | CT13: ='Red Vintage Planner'!CT13 -> 0.4 | CU13: ='Red Vintage Planner'!CU13 -> 0.4 | CV13: ='Red Vintage Planner'!CV13 -> 0.4 | CW13: ='Red Vintage Planner'!CW13 -> 0.4 | CX13: ='Red Vintage Planner'!CX13 -> 0.4 | CY13: ='Red Vintage Planner'!CY13 -> 0.4 | CZ13: ='Red Vintage Planner'!CZ13 -> 0.4 | DA13: ='Red Vintage Planner'!DA13 -> 0.4 | DB13: ='Red Vintage Planner'!DB13 -> 0.4 | DC13: ='Red Vintage Planner'!DC13 -> 0.4 | DD13: ='Red Vintage Planner'!DD13 -> 0.4 | DE13: ='Red Vintage Planner'!DE13 -> 0.4 | DF13: ='Red Vintage Planner'!DF13 -> 0.4 | DG13: ='Red Vintage Planner'!DG13 -> 0.4 | DH13: ='Red Vintage Planner'!DH13 -> 0.4 | DI13: ='Red Vintage Planner'!DI13 -> 0.4 | DJ13: ='Red Vintage Planner'!DJ13 -> 0.4 | DK13: ='Red Vintage Planner'!DK13 -> 0.4 | DL13: ='Red Vintage Planner'!DL13 -> 0.4 | DM13: ='Red Vintage Planner'!DM13 -> 0.4 | DN13: ='Red Vintage Planner'!DN13 -> 0.4 | DO13: ='Red Vintage Planner'!DO13 -> 0.4 | DP13: ='Red Vintage Planner'!DP13 -> 0.4 | DQ13: ='Red Vintage Planner'!DQ13 -> 0.4 | DR13: ='Red Vintage Planner'!DR13 -> 0.4 | DS13: ='Red Vintage Planner'!DS13 -> 0.4 | DT13: ='Red Vintage Planner'!DT13 -> 0.4 | DU13: ='Red Vintage Planner'!DU13 -> 0.4 | DV13: ='Red Vintage Planner'!DV13 -> 0.4 | DW13: ='Red Vintage Planner'!DW13 -> 0.4 | DX13: ='Red Vintage Planner'!DX13 -> 0.4 | DY13: ='Red Vintage Planner'!DY13 -> 0.4 | DZ13: ='Red Vintage Planner'!DZ13 -> 0.4 | EA13: ='Red Vintage Planner'!EA13 -> 0.4 | EB13: ='Red Vintage Planner'!EB13 -> 0.4 | EC13: ='Red Vintage Planner'!EC13 -> 0.4 | ED13: ='Red Vintage Planner'!ED13 -> 0.4 | EE13: ='Red Vintage Planner'!EE13 -> 0.4 | EF13: ='Red Vintage Planner'!EF13 -> 0.4 | EG13: ='Red Vintage Planner'!EG13 -> 0.4 | EH13: ='Red Vintage Planner'!EH13 -> 0.4 | EI13: ='Red Vintage Planner'!EI13 -> 0.4 | EJ13: ='Red Vintage Planner'!EJ13 -> 0.4 | EK13: ='Red Vintage Planner'!EK13 -> 0.4 | EL13: ='Red Vintage Planner'!EL13 -> 0.4 | EM13: ='Red Vintage Planner'!EM13 -> 0.4 | EN13: ='Red Vintage Planner'!EN13 -> 0.4 | EO13: ='Red Vintage Planner'!EO13 -> 0.4 | EP13: ='Red Vintage Planner'!EP13 -> 0.4 | EQ13: ='Red Vintage Planner'!EQ13 -> 0.4 | ER13: ='Red Vintage Planner'!ER13 -> 0.4 | ES13: ='Red Vintage Planner'!ES13 -> 0.4 | ET13: ='Red Vintage Planner'!ET13 -> 0.4 | EU13: ='Red Vintage Planner'!EU13 -> 0.4 | EV13: ='Red Vintage Planner'!EV13 -> 0.4 | EW13: ='Red Vintage Planner'!EW13 -> 0.4 | EX13: ='Red Vintage Planner'!EX13 -> 0.4 | EY13: ='Red Vintage Planner'!EY13 -> 0.4 | EZ13: ='Red Vintage Planner'!EZ13 -> 0.4 | FA13: ='Red Vintage Planner'!FA13 -> 0.4
F14: Fermenter Type 2 (%) | G14: ='Red Vintage Planner'!G14 -> 0.4 | H14: ='Red Vintage Planner'!H14 -> 0.4 | I14: ='Red Vintage Planner'!I14 -> 0.4 | J14: ='Red Vintage Planner'!J14 -> 0.4 | K14: ='Red Vintage Planner'!K14 -> 0.4 | L14: ='Red Vintage Planner'!L14 -> 0.4 | M14: ='Red Vintage Planner'!M14 -> 0.4 | N14: ='Red Vintage Planner'!N14 -> 0.4 | O14: ='Red Vintage Planner'!O14 -> 0.4 | P14: ='Red Vintage Planner'!P14 -> 0.4 | Q14: ='Red Vintage Planner'!Q14 -> 0.4 | R14: ='Red Vintage Planner'!R14 -> 0.4 | S14: ='Red Vintage Planner'!S14 -> 0.4 | T14: ='Red Vintage Planner'!T14 -> 0.4 | U14: ='Red Vintage Planner'!U14 -> 0.4 | V14: ='Red Vintage Planner'!V14 -> 0.4 | W14: ='Red Vintage Planner'!W14 -> 0.4 | X14: ='Red Vintage Planner'!X14 -> 0.4 | Y14: ='Red Vintage Planner'!Y14 -> 0.4 | Z14: ='Red Vintage Planner'!Z14 -> 0.4 | AA14: ='Red Vintage Planner'!AA14 -> 0.4 | AB14: ='Red Vintage Planner'!AB14 -> 0.4 | AC14: ='Red Vintage Planner'!AC14 -> 0.4 | AD14: ='Red Vintage Planner'!AD14 -> 0.4 | AE14: ='Red Vintage Planner'!AE14 -> 0.4 | AF14: ='Red Vintage Planner'!AF14 -> 0.4 | AG14: ='Red Vintage Planner'!AG14 -> 0.4 | AH14: ='Red Vintage Planner'!AH14 -> 0.4 | AI14: ='Red Vintage Planner'!AI14 -> 0.4 | AJ14: ='Red Vintage Planner'!AJ14 -> 0.4 | AK14: ='Red Vintage Planner'!AK14 -> 0.4 | AL14: ='Red Vintage Planner'!AL14 -> 0.4 | AM14: ='Red Vintage Planner'!AM14 -> 0.4 | AN14: ='Red Vintage Planner'!AN14 -> 0.4 | AO14: ='Red Vintage Planner'!AO14 -> 0.4 | AP14: ='Red Vintage Planner'!AP14 -> 0.4 | AQ14: ='Red Vintage Planner'!AQ14 -> 0.4 | AR14: ='Red Vintage Planner'!AR14 -> 0.4 | AS14: ='Red Vintage Planner'!AS14 -> 0.4 | AT14: ='Red Vintage Planner'!AT14 -> 0.4 | AU14: ='Red Vintage Planner'!AU14 -> 0.4 | AV14: ='Red Vintage Planner'!AV14 -> 0.4 | AW14: ='Red Vintage Planner'!AW14 -> 0.4 | AX14: ='Red Vintage Planner'!AX14 -> 0.4 | AY14: ='Red Vintage Planner'!AY14 -> 0.4 | AZ14: ='Red Vintage Planner'!AZ14 -> 0.4 | BA14: ='Red Vintage Planner'!BA14 -> 0.4 | BB14: ='Red Vintage Planner'!BB14 -> 0.4 | BC14: ='Red Vintage Planner'!BC14 -> 0.4 | BD14: ='Red Vintage Planner'!BD14 -> 0.4 | BE14: ='Red Vintage Planner'!BE14 -> 0.4 | BF14: ='Red Vintage Planner'!BF14 -> 0.4 | BG14: ='Red Vintage Planner'!BG14 -> 0.4 | BH14: ='Red Vintage Planner'!BH14 -> 0.4 | BI14: ='Red Vintage Planner'!BI14 -> 0.4 | BJ14: ='Red Vintage Planner'!BJ14 -> 0.4 | BK14: ='Red Vintage Planner'!BK14 -> 0.4 | BL14: ='Red Vintage Planner'!BL14 -> 0.4 | BM14: ='Red Vintage Planner'!BM14 -> 0.4 | BN14: ='Red Vintage Planner'!BN14 -> 0.4 | BO14: ='Red Vintage Planner'!BO14 -> 0.4 | BP14: ='Red Vintage Planner'!BP14 -> 0.4 | BQ14: ='Red Vintage Planner'!BQ14 -> 0.4 | BR14: ='Red Vintage Planner'!BR14 -> 0.4 | BS14: ='Red Vintage Planner'!BS14 -> 0.4 | BT14: ='Red Vintage Planner'!BT14 -> 0.4 | BU14: ='Red Vintage Planner'!BU14 -> 0.4 | BV14: ='Red Vintage Planner'!BV14 -> 0.4 | BW14: ='Red Vintage Planner'!BW14 -> 0.4 | BX14: ='Red Vintage Planner'!BX14 -> 0.4 | BY14: ='Red Vintage Planner'!BY14 -> 0.4 | BZ14: ='Red Vintage Planner'!BZ14 -> 0.4 | CA14: ='Red Vintage Planner'!CA14 -> 0.4 | CB14: ='Red Vintage Planner'!CB14 -> 0.4 | CC14: ='Red Vintage Planner'!CC14 -> 0.4 | CD14: ='Red Vintage Planner'!CD14 -> 0.4 | CE14: ='Red Vintage Planner'!CE14 -> 0.4 | CF14: ='Red Vintage Planner'!CF14 -> 0.4 | CG14: ='Red Vintage Planner'!CG14 -> 0.4 | CH14: ='Red Vintage Planner'!CH14 -> 0.4 | CI14: ='Red Vintage Planner'!CI14 -> 0.4 | CJ14: ='Red Vintage Planner'!CJ14 -> 0.4 | CK14: ='Red Vintage Planner'!CK14 -> 0.4 | CL14: ='Red Vintage Planner'!CL14 -> 0.4 | CM14: ='Red Vintage Planner'!CM14 -> 0.4 | CN14: ='Red Vintage Planner'!CN14 -> 0.4 | CO14: ='Red Vintage Planner'!CO14 -> 0.4 | CP14: ='Red Vintage Planner'!CP14 -> 0.4 | CQ14: ='Red Vintage Planner'!CQ14 -> 0.4 | CR14: ='Red Vintage Planner'!CR14 -> 0.4 | CS14: ='Red Vintage Planner'!CS14 -> 0.4 | CT14: ='Red Vintage Planner'!CT14 -> 0.4 | CU14: ='Red Vintage Planner'!CU14 -> 0.4 | CV14: ='Red Vintage Planner'!CV14 -> 0.4 | CW14: ='Red Vintage Planner'!CW14 -> 0.4 | CX14: ='Red Vintage Planner'!CX14 -> 0.4 | CY14: ='Red Vintage Planner'!CY14 -> 0.4 | CZ14: ='Red Vintage Planner'!CZ14 -> 0.4 | DA14: ='Red Vintage Planner'!DA14 -> 0.4 | DB14: ='Red Vintage Planner'!DB14 -> 0.4 | DC14: ='Red Vintage Planner'!DC14 -> 0.4 | DD14: ='Red Vintage Planner'!DD14 -> 0.4 | DE14: ='Red Vintage Planner'!DE14 -> 0.4 | DF14: ='Red Vintage Planner'!DF14 -> 0.4 | DG14: ='Red Vintage Planner'!DG14 -> 0.4 | DH14: ='Red Vintage Planner'!DH14 -> 0.4 | DI14: ='Red Vintage Planner'!DI14 -> 0.4 | DJ14: ='Red Vintage Planner'!DJ14 -> 0.4 | DK14: ='Red Vintage Planner'!DK14 -> 0.4 | DL14: ='Red Vintage Planner'!DL14 -> 0.4 | DM14: ='Red Vintage Planner'!DM14 -> 0.4 | DN14: ='Red Vintage Planner'!DN14 -> 0.4 | DO14: ='Red Vintage Planner'!DO14 -> 0.4 | DP14: ='Red Vintage Planner'!DP14 -> 0.4 | DQ14: ='Red Vintage Planner'!DQ14 -> 0.4 | DR14: ='Red Vintage Planner'!DR14 -> 0.4 | DS14: ='Red Vintage Planner'!DS14 -> 0.4 | DT14: ='Red Vintage Planner'!DT14 -> 0.4 | DU14: ='Red Vintage Planner'!DU14 -> 0.4 | DV14: ='Red Vintage Planner'!DV14 -> 0.4 | DW14: ='Red Vintage Planner'!DW14 -> 0.4 | DX14: ='Red Vintage Planner'!DX14 -> 0.4 | DY14: ='Red Vintage Planner'!DY14 -> 0.4 | DZ14: ='Red Vintage Planner'!DZ14 -> 0.4 | EA14: ='Red Vintage Planner'!EA14 -> 0.4 | EB14: ='Red Vintage Planner'!EB14 -> 0.4 | EC14: ='Red Vintage Planner'!EC14 -> 0.4 | ED14: ='Red Vintage Planner'!ED14 -> 0.4 | EE14: ='Red Vintage Planner'!EE14 -> 0.4 | EF14: ='Red Vintage Planner'!EF14 -> 0.4 | EG14: ='Red Vintage Planner'!EG14 -> 0.4 | EH14: ='Red Vintage Planner'!EH14 -> 0.4 | EI14: ='Red Vintage Planner'!EI14 -> 0.4 | EJ14: ='Red Vintage Planner'!EJ14 -> 0.4 | EK14: ='Red Vintage Planner'!EK14 -> 0.4 | EL14: ='Red Vintage Planner'!EL14 -> 0.4 | EM14: ='Red Vintage Planner'!EM14 -> 0.4 | EN14: ='Red Vintage Planner'!EN14 -> 0.4 | EO14: ='Red Vintage Planner'!EO14 -> 0.4 | EP14: ='Red Vintage Planner'!EP14 -> 0.4 | EQ14: ='Red Vintage Planner'!EQ14 -> 0.4 | ER14: ='Red Vintage Planner'!ER14 -> 0.4 | ES14: ='Red Vintage Planner'!ES14 -> 0.4 | ET14: ='Red Vintage Planner'!ET14 -> 0.4 | EU14: ='Red Vintage Planner'!EU14 -> 0.4 | EV14: ='Red Vintage Planner'!EV14 -> 0.4 | EW14: ='Red Vintage Planner'!EW14 -> 0.4 | EX14: ='Red Vintage Planner'!EX14 -> 0.4 | EY14: ='Red Vintage Planner'!EY14 -> 0.4 | EZ14: ='Red Vintage Planner'!EZ14 -> 0.4 | FA14: ='Red Vintage Planner'!FA14 -> 0.4
F15: Fermenter Type 3 (%) | G15: ='Red Vintage Planner'!G15 -> 0.2 | H15: ='Red Vintage Planner'!H15 -> 0.2 | I15: ='Red Vintage Planner'!I15 -> 0.2 | J15: ='Red Vintage Planner'!J15 -> 0.2 | K15: ='Red Vintage Planner'!K15 -> 0.2 | L15: ='Red Vintage Planner'!L15 -> 0.2 | M15: ='Red Vintage Planner'!M15 -> 0.2 | N15: ='Red Vintage Planner'!N15 -> 0.2 | O15: ='Red Vintage Planner'!O15 -> 0.2 | P15: ='Red Vintage Planner'!P15 -> 0.2 | Q15: ='Red Vintage Planner'!Q15 -> 0.2 | R15: ='Red Vintage Planner'!R15 -> 0.2 | S15: ='Red Vintage Planner'!S15 -> 0.2 | T15: ='Red Vintage Planner'!T15 -> 0.2 | U15: ='Red Vintage Planner'!U15 -> 0.2 | V15: ='Red Vintage Planner'!V15 -> 0.2 | W15: ='Red Vintage Planner'!W15 -> 0.2 | X15: ='Red Vintage Planner'!X15 -> 0.2 | Y15: ='Red Vintage Planner'!Y15 -> 0.2 | Z15: ='Red Vintage Planner'!Z15 -> 0.2 | AA15: ='Red Vintage Planner'!AA15 -> 0.2 | AB15: ='Red Vintage Planner'!AB15 -> 0.2 | AC15: ='Red Vintage Planner'!AC15 -> 0.2 | AD15: ='Red Vintage Planner'!AD15 -> 0.2 | AE15: ='Red Vintage Planner'!AE15 -> 0.2 | AF15: ='Red Vintage Planner'!AF15 -> 0.2 | AG15: ='Red Vintage Planner'!AG15 -> 0.2 | AH15: ='Red Vintage Planner'!AH15 -> 0.2 | AI15: ='Red Vintage Planner'!AI15 -> 0.2 | AJ15: ='Red Vintage Planner'!AJ15 -> 0.2 | AK15: ='Red Vintage Planner'!AK15 -> 0.2 | AL15: ='Red Vintage Planner'!AL15 -> 0.2 | AM15: ='Red Vintage Planner'!AM15 -> 0.2 | AN15: ='Red Vintage Planner'!AN15 -> 0.2 | AO15: ='Red Vintage Planner'!AO15 -> 0.2 | AP15: ='Red Vintage Planner'!AP15 -> 0.2 | AQ15: ='Red Vintage Planner'!AQ15 -> 0.2 | AR15: ='Red Vintage Planner'!AR15 -> 0.2 | AS15: ='Red Vintage Planner'!AS15 -> 0.2 | AT15: ='Red Vintage Planner'!AT15 -> 0.2 | AU15: ='Red Vintage Planner'!AU15 -> 0.2 | AV15: ='Red Vintage Planner'!AV15 -> 0.2 | AW15: ='Red Vintage Planner'!AW15 -> 0.2 | AX15: ='Red Vintage Planner'!AX15 -> 0.2 | AY15: ='Red Vintage Planner'!AY15 -> 0.2 | AZ15: ='Red Vintage Planner'!AZ15 -> 0.2 | BA15: ='Red Vintage Planner'!BA15 -> 0.2 | BB15: ='Red Vintage Planner'!BB15 -> 0.2 | BC15: ='Red Vintage Planner'!BC15 -> 0.2 | BD15: ='Red Vintage Planner'!BD15 -> 0.2 | BE15: ='Red Vintage Planner'!BE15 -> 0.2 | BF15: ='Red Vintage Planner'!BF15 -> 0.2 | BG15: ='Red Vintage Planner'!BG15 -> 0.2 | BH15: ='Red Vintage Planner'!BH15 -> 0.2 | BI15: ='Red Vintage Planner'!BI15 -> 0.2 | BJ15: ='Red Vintage Planner'!BJ15 -> 0.2 | BK15: ='Red Vintage Planner'!BK15 -> 0.2 | BL15: ='Red Vintage Planner'!BL15 -> 0.2 | BM15: ='Red Vintage Planner'!BM15 -> 0.2 | BN15: ='Red Vintage Planner'!BN15 -> 0.2 | BO15: ='Red Vintage Planner'!BO15 -> 0.2 | BP15: ='Red Vintage Planner'!BP15 -> 0.2 | BQ15: ='Red Vintage Planner'!BQ15 -> 0.2 | BR15: ='Red Vintage Planner'!BR15 -> 0.2 | BS15: ='Red Vintage Planner'!BS15 -> 0.2 | BT15: ='Red Vintage Planner'!BT15 -> 0.2 | BU15: ='Red Vintage Planner'!BU15 -> 0.2 | BV15: ='Red Vintage Planner'!BV15 -> 0.2 | BW15: ='Red Vintage Planner'!BW15 -> 0.2 | BX15: ='Red Vintage Planner'!BX15 -> 0.2 | BY15: ='Red Vintage Planner'!BY15 -> 0.2 | BZ15: ='Red Vintage Planner'!BZ15 -> 0.2 | CA15: ='Red Vintage Planner'!CA15 -> 0.2 | CB15: ='Red Vintage Planner'!CB15 -> 0.2 | CC15: ='Red Vintage Planner'!CC15 -> 0.2 | CD15: ='Red Vintage Planner'!CD15 -> 0.2 | CE15: ='Red Vintage Planner'!CE15 -> 0.2 | CF15: ='Red Vintage Planner'!CF15 -> 0.2 | CG15: ='Red Vintage Planner'!CG15 -> 0.2 | CH15: ='Red Vintage Planner'!CH15 -> 0.2 | CI15: ='Red Vintage Planner'!CI15 -> 0.2 | CJ15: ='Red Vintage Planner'!CJ15 -> 0.2 | CK15: ='Red Vintage Planner'!CK15 -> 0.2 | CL15: ='Red Vintage Planner'!CL15 -> 0.2 | CM15: ='Red Vintage Planner'!CM15 -> 0.2 | CN15: ='Red Vintage Planner'!CN15 -> 0.2 | CO15: ='Red Vintage Planner'!CO15 -> 0.2 | CP15: ='Red Vintage Planner'!CP15 -> 0.2 | CQ15: ='Red Vintage Planner'!CQ15 -> 0.2 | CR15: ='Red Vintage Planner'!CR15 -> 0.2 | CS15: ='Red Vintage Planner'!CS15 -> 0.2 | CT15: ='Red Vintage Planner'!CT15 -> 0.2 | CU15: ='Red Vintage Planner'!CU15 -> 0.2 | CV15: ='Red Vintage Planner'!CV15 -> 0.2 | CW15: ='Red Vintage Planner'!CW15 -> 0.2 | CX15: ='Red Vintage Planner'!CX15 -> 0.2 | CY15: ='Red Vintage Planner'!CY15 -> 0.2 | CZ15: ='Red Vintage Planner'!CZ15 -> 0.2 | DA15: ='Red Vintage Planner'!DA15 -> 0.2 | DB15: ='Red Vintage Planner'!DB15 -> 0.2 | DC15: ='Red Vintage Planner'!DC15 -> 0.2 | DD15: ='Red Vintage Planner'!DD15 -> 0.2 | DE15: ='Red Vintage Planner'!DE15 -> 0.2 | DF15: ='Red Vintage Planner'!DF15 -> 0.2 | DG15: ='Red Vintage Planner'!DG15 -> 0.2 | DH15: ='Red Vintage Planner'!DH15 -> 0.2 | DI15: ='Red Vintage Planner'!DI15 -> 0.2 | DJ15: ='Red Vintage Planner'!DJ15 -> 0.2 | DK15: ='Red Vintage Planner'!DK15 -> 0.2 | DL15: ='Red Vintage Planner'!DL15 -> 0.2 | DM15: ='Red Vintage Planner'!DM15 -> 0.2 | DN15: ='Red Vintage Planner'!DN15 -> 0.2 | DO15: ='Red Vintage Planner'!DO15 -> 0.2 | DP15: ='Red Vintage Planner'!DP15 -> 0.2 | DQ15: ='Red Vintage Planner'!DQ15 -> 0.2 | DR15: ='Red Vintage Planner'!DR15 -> 0.2 | DS15: ='Red Vintage Planner'!DS15 -> 0.2 | DT15: ='Red Vintage Planner'!DT15 -> 0.2 | DU15: ='Red Vintage Planner'!DU15 -> 0.2 | DV15: ='Red Vintage Planner'!DV15 -> 0.2 | DW15: ='Red Vintage Planner'!DW15 -> 0.2 | DX15: ='Red Vintage Planner'!DX15 -> 0.2 | DY15: ='Red Vintage Planner'!DY15 -> 0.2 | DZ15: ='Red Vintage Planner'!DZ15 -> 0.2 | EA15: ='Red Vintage Planner'!EA15 -> 0.2 | EB15: ='Red Vintage Planner'!EB15 -> 0.2 | EC15: ='Red Vintage Planner'!EC15 -> 0.2 | ED15: ='Red Vintage Planner'!ED15 -> 0.2 | EE15: ='Red Vintage Planner'!EE15 -> 0.2 | EF15: ='Red Vintage Planner'!EF15 -> 0.2 | EG15: ='Red Vintage Planner'!EG15 -> 0.2 | EH15: ='Red Vintage Planner'!EH15 -> 0.2 | EI15: ='Red Vintage Planner'!EI15 -> 0.2 | EJ15: ='Red Vintage Planner'!EJ15 -> 0.2 | EK15: ='Red Vintage Planner'!EK15 -> 0.2 | EL15: ='Red Vintage Planner'!EL15 -> 0.2 | EM15: ='Red Vintage Planner'!EM15 -> 0.2 | EN15: ='Red Vintage Planner'!EN15 -> 0.2 | EO15: ='Red Vintage Planner'!EO15 -> 0.2 | EP15: ='Red Vintage Planner'!EP15 -> 0.2 | EQ15: ='Red Vintage Planner'!EQ15 -> 0.2 | ER15: ='Red Vintage Planner'!ER15 -> 0.2 | ES15: ='Red Vintage Planner'!ES15 -> 0.2 | ET15: ='Red Vintage Planner'!ET15 -> 0.2 | EU15: ='Red Vintage Planner'!EU15 -> 0.2 | EV15: ='Red Vintage Planner'!EV15 -> 0.2 | EW15: ='Red Vintage Planner'!EW15 -> 0.2 | EX15: ='Red Vintage Planner'!EX15 -> 0.2 | EY15: ='Red Vintage Planner'!EY15 -> 0.2 | EZ15: ='Red Vintage Planner'!EZ15 -> 0.2 | FA15: ='Red Vintage Planner'!FA15 -> 0.2
F16: Maturation Storage Type 1 (%) | G16: ='Red Vintage Planner'!G16 -> 0.5 | H16: ='Red Vintage Planner'!H16 -> 0.5 | I16: ='Red Vintage Planner'!I16 -> 0.5 | J16: ='Red Vintage Planner'!J16 -> 0.5 | K16: ='Red Vintage Planner'!K16 -> 0.5 | L16: ='Red Vintage Planner'!L16 -> 0.5 | M16: ='Red Vintage Planner'!M16 -> 0.5 | N16: ='Red Vintage Planner'!N16 -> 0.5 | O16: ='Red Vintage Planner'!O16 -> 0.5 | P16: ='Red Vintage Planner'!P16 -> 0.5 | Q16: ='Red Vintage Planner'!Q16 -> 0.5 | R16: ='Red Vintage Planner'!R16 -> 0.5 | S16: ='Red Vintage Planner'!S16 -> 0.5 | T16: ='Red Vintage Planner'!T16 -> 0.5 | U16: ='Red Vintage Planner'!U16 -> 0.5 | V16: ='Red Vintage Planner'!V16 -> 0.5 | W16: ='Red Vintage Planner'!W16 -> 0.5 | X16: ='Red Vintage Planner'!X16 -> 0.5 | Y16: ='Red Vintage Planner'!Y16 -> 0.5 | Z16: ='Red Vintage Planner'!Z16 -> 0.5 | AA16: ='Red Vintage Planner'!AA16 -> 0.5 | AB16: ='Red Vintage Planner'!AB16 -> 0.5 | AC16: ='Red Vintage Planner'!AC16 -> 0.5 | AD16: ='Red Vintage Planner'!AD16 -> 0.5 | AE16: ='Red Vintage Planner'!AE16 -> 0.5 | AF16: ='Red Vintage Planner'!AF16 -> 0.5 | AG16: ='Red Vintage Planner'!AG16 -> 0.5 | AH16: ='Red Vintage Planner'!AH16 -> 0.5 | AI16: ='Red Vintage Planner'!AI16 -> 0.5 | AJ16: ='Red Vintage Planner'!AJ16 -> 0.5 | AK16: ='Red Vintage Planner'!AK16 -> 0.5 | AL16: ='Red Vintage Planner'!AL16 -> 0.5 | AM16: ='Red Vintage Planner'!AM16 -> 0.5 | AN16: ='Red Vintage Planner'!AN16 -> 0.5 | AO16: ='Red Vintage Planner'!AO16 -> 0.5 | AP16: ='Red Vintage Planner'!AP16 -> 0.5 | AQ16: ='Red Vintage Planner'!AQ16 -> 0.5 | AR16: ='Red Vintage Planner'!AR16 -> 0.5 | AS16: ='Red Vintage Planner'!AS16 -> 0.5 | AT16: ='Red Vintage Planner'!AT16 -> 0.5 | AU16: ='Red Vintage Planner'!AU16 -> 0.5 | AV16: ='Red Vintage Planner'!AV16 -> 0.5 | AW16: ='Red Vintage Planner'!AW16 -> 0.5 | AX16: ='Red Vintage Planner'!AX16 -> 0.5 | AY16: ='Red Vintage Planner'!AY16 -> 0.5 | AZ16: ='Red Vintage Planner'!AZ16 -> 0.5 | BA16: ='Red Vintage Planner'!BA16 -> 0.5 | BB16: ='Red Vintage Planner'!BB16 -> 0.5 | BC16: ='Red Vintage Planner'!BC16 -> 0.5 | BD16: ='Red Vintage Planner'!BD16 -> 0.5 | BE16: ='Red Vintage Planner'!BE16 -> 0.5 | BF16: ='Red Vintage Planner'!BF16 -> 0.5 | BG16: ='Red Vintage Planner'!BG16 -> 0.5 | BH16: ='Red Vintage Planner'!BH16 -> 0.5 | BI16: ='Red Vintage Planner'!BI16 -> 0.5 | BJ16: ='Red Vintage Planner'!BJ16 -> 0.5 | BK16: ='Red Vintage Planner'!BK16 -> 0.5 | BL16: ='Red Vintage Planner'!BL16 -> 0.5 | BM16: ='Red Vintage Planner'!BM16 -> 0.5 | BN16: ='Red Vintage Planner'!BN16 -> 0.5 | BO16: ='Red Vintage Planner'!BO16 -> 0.5 | BP16: ='Red Vintage Planner'!BP16 -> 0.5 | BQ16: ='Red Vintage Planner'!BQ16 -> 0.5 | BR16: ='Red Vintage Planner'!BR16 -> 0.5 | BS16: ='Red Vintage Planner'!BS16 -> 0.5 | BT16: ='Red Vintage Planner'!BT16 -> 0.5 | BU16: ='Red Vintage Planner'!BU16 -> 0.5 | BV16: ='Red Vintage Planner'!BV16 -> 0.5 | BW16: ='Red Vintage Planner'!BW16 -> 0.5 | BX16: ='Red Vintage Planner'!BX16 -> 0.5 | BY16: ='Red Vintage Planner'!BY16 -> 0.5 | BZ16: ='Red Vintage Planner'!BZ16 -> 0.5 | CA16: ='Red Vintage Planner'!CA16 -> 0.5 | CB16: ='Red Vintage Planner'!CB16 -> 0.5 | CC16: ='Red Vintage Planner'!CC16 -> 0.5 | CD16: ='Red Vintage Planner'!CD16 -> 0.5 | CE16: ='Red Vintage Planner'!CE16 -> 0.5 | CF16: ='Red Vintage Planner'!CF16 -> 0.5 | CG16: ='Red Vintage Planner'!CG16 -> 0.5 | CH16: ='Red Vintage Planner'!CH16 -> 0.5 | CI16: ='Red Vintage Planner'!CI16 -> 0.5 | CJ16: ='Red Vintage Planner'!CJ16 -> 0.5 | CK16: ='Red Vintage Planner'!CK16 -> 0.5 | CL16: ='Red Vintage Planner'!CL16 -> 0.5 | CM16: ='Red Vintage Planner'!CM16 -> 0.5 | CN16: ='Red Vintage Planner'!CN16 -> 0.5 | CO16: ='Red Vintage Planner'!CO16 -> 0.5 | CP16: ='Red Vintage Planner'!CP16 -> 0.5 | CQ16: ='Red Vintage Planner'!CQ16 -> 0.5 | CR16: ='Red Vintage Planner'!CR16 -> 0.5 | CS16: ='Red Vintage Planner'!CS16 -> 0.5 | CT16: ='Red Vintage Planner'!CT16 -> 0.5 | CU16: ='Red Vintage Planner'!CU16 -> 0.5 | CV16: ='Red Vintage Planner'!CV16 -> 0.5 | CW16: ='Red Vintage Planner'!CW16 -> 0.5 | CX16: ='Red Vintage Planner'!CX16 -> 0.5 | CY16: ='Red Vintage Planner'!CY16 -> 0.5 | CZ16: ='Red Vintage Planner'!CZ16 -> 0.5 | DA16: ='Red Vintage Planner'!DA16 -> 0.5 | DB16: ='Red Vintage Planner'!DB16 -> 0.5 | DC16: ='Red Vintage Planner'!DC16 -> 0.5 | DD16: ='Red Vintage Planner'!DD16 -> 0.5 | DE16: ='Red Vintage Planner'!DE16 -> 0.5 | DF16: ='Red Vintage Planner'!DF16 -> 0.5 | DG16: ='Red Vintage Planner'!DG16 -> 0.5 | DH16: ='Red Vintage Planner'!DH16 -> 0.5 | DI16: ='Red Vintage Planner'!DI16 -> 0.5 | DJ16: ='Red Vintage Planner'!DJ16 -> 0.5 | DK16: ='Red Vintage Planner'!DK16 -> 0.5 | DL16: ='Red Vintage Planner'!DL16 -> 0.5 | DM16: ='Red Vintage Planner'!DM16 -> 0.5 | DN16: ='Red Vintage Planner'!DN16 -> 0.5 | DO16: ='Red Vintage Planner'!DO16 -> 0.5 | DP16: ='Red Vintage Planner'!DP16 -> 0.5 | DQ16: ='Red Vintage Planner'!DQ16 -> 0.5 | DR16: ='Red Vintage Planner'!DR16 -> 0.5 | DS16: ='Red Vintage Planner'!DS16 -> 0.5 | DT16: ='Red Vintage Planner'!DT16 -> 0.5 | DU16: ='Red Vintage Planner'!DU16 -> 0.5 | DV16: ='Red Vintage Planner'!DV16 -> 0.5 | DW16: ='Red Vintage Planner'!DW16 -> 0.5 | DX16: ='Red Vintage Planner'!DX16 -> 0.5 | DY16: ='Red Vintage Planner'!DY16 -> 0.5 | DZ16: ='Red Vintage Planner'!DZ16 -> 0.5 | EA16: ='Red Vintage Planner'!EA16 -> 0.5 | EB16: ='Red Vintage Planner'!EB16 -> 0.5 | EC16: ='Red Vintage Planner'!EC16 -> 0.5 | ED16: ='Red Vintage Planner'!ED16 -> 0.5 | EE16: ='Red Vintage Planner'!EE16 -> 0.5 | EF16: ='Red Vintage Planner'!EF16 -> 0.5 | EG16: ='Red Vintage Planner'!EG16 -> 0.5 | EH16: ='Red Vintage Planner'!EH16 -> 0.5 | EI16: ='Red Vintage Planner'!EI16 -> 0.5 | EJ16: ='Red Vintage Planner'!EJ16 -> 0.5 | EK16: ='Red Vintage Planner'!EK16 -> 0.5 | EL16: ='Red Vintage Planner'!EL16 -> 0.5 | EM16: ='Red Vintage Planner'!EM16 -> 0.5 | EN16: ='Red Vintage Planner'!EN16 -> 0.5 | EO16: ='Red Vintage Planner'!EO16 -> 0.5 | EP16: ='Red Vintage Planner'!EP16 -> 0.5 | EQ16: ='Red Vintage Planner'!EQ16 -> 0.5 | ER16: ='Red Vintage Planner'!ER16 -> 0.5 | ES16: ='Red Vintage Planner'!ES16 -> 0.5 | ET16: ='Red Vintage Planner'!ET16 -> 0.5 | EU16: ='Red Vintage Planner'!EU16 -> 0.5 | EV16: ='Red Vintage Planner'!EV16 -> 0.5 | EW16: ='Red Vintage Planner'!EW16 -> 0.5 | EX16: ='Red Vintage Planner'!EX16 -> 0.5 | EY16: ='Red Vintage Planner'!EY16 -> 0.5 | EZ16: ='Red Vintage Planner'!EZ16 -> 0.5 | FA16: ='Red Vintage Planner'!FA16 -> 0.5
F17: Maturation Storage Type 2 (%) | G17: ='Red Vintage Planner'!G17 -> 0.3 | H17: ='Red Vintage Planner'!H17 -> 0.3 | I17: ='Red Vintage Planner'!I17 -> 0.3 | J17: ='Red Vintage Planner'!J17 -> 0.3 | K17: ='Red Vintage Planner'!K17 -> 0.3 | L17: ='Red Vintage Planner'!L17 -> 0.3 | M17: ='Red Vintage Planner'!M17 -> 0.3 | N17: ='Red Vintage Planner'!N17 -> 0.3 | O17: ='Red Vintage Planner'!O17 -> 0.3 | P17: ='Red Vintage Planner'!P17 -> 0.3 | Q17: ='Red Vintage Planner'!Q17 -> 0.3 | R17: ='Red Vintage Planner'!R17 -> 0.3 | S17: ='Red Vintage Planner'!S17 -> 0.3 | T17: ='Red Vintage Planner'!T17 -> 0.3 | U17: ='Red Vintage Planner'!U17 -> 0.3 | V17: ='Red Vintage Planner'!V17 -> 0.3 | W17: ='Red Vintage Planner'!W17 -> 0.3 | X17: ='Red Vintage Planner'!X17 -> 0.3 | Y17: ='Red Vintage Planner'!Y17 -> 0.3 | Z17: ='Red Vintage Planner'!Z17 -> 0.3 | AA17: ='Red Vintage Planner'!AA17 -> 0.3 | AB17: ='Red Vintage Planner'!AB17 -> 0.3 | AC17: ='Red Vintage Planner'!AC17 -> 0.3 | AD17: ='Red Vintage Planner'!AD17 -> 0.3 | AE17: ='Red Vintage Planner'!AE17 -> 0.3 | AF17: ='Red Vintage Planner'!AF17 -> 0.3 | AG17: ='Red Vintage Planner'!AG17 -> 0.3 | AH17: ='Red Vintage Planner'!AH17 -> 0.3 | AI17: ='Red Vintage Planner'!AI17 -> 0.3 | AJ17: ='Red Vintage Planner'!AJ17 -> 0.3 | AK17: ='Red Vintage Planner'!AK17 -> 0.3 | AL17: ='Red Vintage Planner'!AL17 -> 0.3 | AM17: ='Red Vintage Planner'!AM17 -> 0.3 | AN17: ='Red Vintage Planner'!AN17 -> 0.3 | AO17: ='Red Vintage Planner'!AO17 -> 0.3 | AP17: ='Red Vintage Planner'!AP17 -> 0.3 | AQ17: ='Red Vintage Planner'!AQ17 -> 0.3 | AR17: ='Red Vintage Planner'!AR17 -> 0.3 | AS17: ='Red Vintage Planner'!AS17 -> 0.3 | AT17: ='Red Vintage Planner'!AT17 -> 0.3 | AU17: ='Red Vintage Planner'!AU17 -> 0.3 | AV17: ='Red Vintage Planner'!AV17 -> 0.3 | AW17: ='Red Vintage Planner'!AW17 -> 0.3 | AX17: ='Red Vintage Planner'!AX17 -> 0.3 | AY17: ='Red Vintage Planner'!AY17 -> 0.3 | AZ17: ='Red Vintage Planner'!AZ17 -> 0.3 | BA17: ='Red Vintage Planner'!BA17 -> 0.3 | BB17: ='Red Vintage Planner'!BB17 -> 0.3 | BC17: ='Red Vintage Planner'!BC17 -> 0.3 | BD17: ='Red Vintage Planner'!BD17 -> 0.3 | BE17: ='Red Vintage Planner'!BE17 -> 0.3 | BF17: ='Red Vintage Planner'!BF17 -> 0.3 | BG17: ='Red Vintage Planner'!BG17 -> 0.3 | BH17: ='Red Vintage Planner'!BH17 -> 0.3 | BI17: ='Red Vintage Planner'!BI17 -> 0.3 | BJ17: ='Red Vintage Planner'!BJ17 -> 0.3 | BK17: ='Red Vintage Planner'!BK17 -> 0.3 | BL17: ='Red Vintage Planner'!BL17 -> 0.3 | BM17: ='Red Vintage Planner'!BM17 -> 0.3 | BN17: ='Red Vintage Planner'!BN17 -> 0.3 | BO17: ='Red Vintage Planner'!BO17 -> 0.3 | BP17: ='Red Vintage Planner'!BP17 -> 0.3 | BQ17: ='Red Vintage Planner'!BQ17 -> 0.3 | BR17: ='Red Vintage Planner'!BR17 -> 0.3 | BS17: ='Red Vintage Planner'!BS17 -> 0.3 | BT17: ='Red Vintage Planner'!BT17 -> 0.3 | BU17: ='Red Vintage Planner'!BU17 -> 0.3 | BV17: ='Red Vintage Planner'!BV17 -> 0.3 | BW17: ='Red Vintage Planner'!BW17 -> 0.3 | BX17: ='Red Vintage Planner'!BX17 -> 0.3 | BY17: ='Red Vintage Planner'!BY17 -> 0.3 | BZ17: ='Red Vintage Planner'!BZ17 -> 0.3 | CA17: ='Red Vintage Planner'!CA17 -> 0.3 | CB17: ='Red Vintage Planner'!CB17 -> 0.3 | CC17: ='Red Vintage Planner'!CC17 -> 0.3 | CD17: ='Red Vintage Planner'!CD17 -> 0.3 | CE17: ='Red Vintage Planner'!CE17 -> 0.3 | CF17: ='Red Vintage Planner'!CF17 -> 0.3 | CG17: ='Red Vintage Planner'!CG17 -> 0.3 | CH17: ='Red Vintage Planner'!CH17 -> 0.3 | CI17: ='Red Vintage Planner'!CI17 -> 0.3 | CJ17: ='Red Vintage Planner'!CJ17 -> 0.3 | CK17: ='Red Vintage Planner'!CK17 -> 0.3 | CL17: ='Red Vintage Planner'!CL17 -> 0.3 | CM17: ='Red Vintage Planner'!CM17 -> 0.3 | CN17: ='Red Vintage Planner'!CN17 -> 0.3 | CO17: ='Red Vintage Planner'!CO17 -> 0.3 | CP17: ='Red Vintage Planner'!CP17 -> 0.3 | CQ17: ='Red Vintage Planner'!CQ17 -> 0.3 | CR17: ='Red Vintage Planner'!CR17 -> 0.3 | CS17: ='Red Vintage Planner'!CS17 -> 0.3 | CT17: ='Red Vintage Planner'!CT17 -> 0.3 | CU17: ='Red Vintage Planner'!CU17 -> 0.3 | CV17: ='Red Vintage Planner'!CV17 -> 0.3 | CW17: ='Red Vintage Planner'!CW17 -> 0.3 | CX17: ='Red Vintage Planner'!CX17 -> 0.3 | CY17: ='Red Vintage Planner'!CY17 -> 0.3 | CZ17: ='Red Vintage Planner'!CZ17 -> 0.3 | DA17: ='Red Vintage Planner'!DA17 -> 0.3 | DB17: ='Red Vintage Planner'!DB17 -> 0.3 | DC17: ='Red Vintage Planner'!DC17 -> 0.3 | DD17: ='Red Vintage Planner'!DD17 -> 0.3 | DE17: ='Red Vintage Planner'!DE17 -> 0.3 | DF17: ='Red Vintage Planner'!DF17 -> 0.3 | DG17: ='Red Vintage Planner'!DG17 -> 0.3 | DH17: ='Red Vintage Planner'!DH17 -> 0.3 | DI17: ='Red Vintage Planner'!DI17 -> 0.3 | DJ17: ='Red Vintage Planner'!DJ17 -> 0.3 | DK17: ='Red Vintage Planner'!DK17 -> 0.3 | DL17: ='Red Vintage Planner'!DL17 -> 0.3 | DM17: ='Red Vintage Planner'!DM17 -> 0.3 | DN17: ='Red Vintage Planner'!DN17 -> 0.3 | DO17: ='Red Vintage Planner'!DO17 -> 0.3 | DP17: ='Red Vintage Planner'!DP17 -> 0.3 | DQ17: ='Red Vintage Planner'!DQ17 -> 0.3 | DR17: ='Red Vintage Planner'!DR17 -> 0.3 | DS17: ='Red Vintage Planner'!DS17 -> 0.3 | DT17: ='Red Vintage Planner'!DT17 -> 0.3 | DU17: ='Red Vintage Planner'!DU17 -> 0.3 | DV17: ='Red Vintage Planner'!DV17 -> 0.3 | DW17: ='Red Vintage Planner'!DW17 -> 0.3 | DX17: ='Red Vintage Planner'!DX17 -> 0.3 | DY17: ='Red Vintage Planner'!DY17 -> 0.3 | DZ17: ='Red Vintage Planner'!DZ17 -> 0.3 | EA17: ='Red Vintage Planner'!EA17 -> 0.3 | EB17: ='Red Vintage Planner'!EB17 -> 0.3 | EC17: ='Red Vintage Planner'!EC17 -> 0.3 | ED17: ='Red Vintage Planner'!ED17 -> 0.3 | EE17: ='Red Vintage Planner'!EE17 -> 0.3 | EF17: ='Red Vintage Planner'!EF17 -> 0.3 | EG17: ='Red Vintage Planner'!EG17 -> 0.3 | EH17: ='Red Vintage Planner'!EH17 -> 0.3 | EI17: ='Red Vintage Planner'!EI17 -> 0.3 | EJ17: ='Red Vintage Planner'!EJ17 -> 0.3 | EK17: ='Red Vintage Planner'!EK17 -> 0.3 | EL17: ='Red Vintage Planner'!EL17 -> 0.3 | EM17: ='Red Vintage Planner'!EM17 -> 0.3 | EN17: ='Red Vintage Planner'!EN17 -> 0.3 | EO17: ='Red Vintage Planner'!EO17 -> 0.3 | EP17: ='Red Vintage Planner'!EP17 -> 0.3 | EQ17: ='Red Vintage Planner'!EQ17 -> 0.3 | ER17: ='Red Vintage Planner'!ER17 -> 0.3 | ES17: ='Red Vintage Planner'!ES17 -> 0.3 | ET17: ='Red Vintage Planner'!ET17 -> 0.3 | EU17: ='Red Vintage Planner'!EU17 -> 0.3 | EV17: ='Red Vintage Planner'!EV17 -> 0.3 | EW17: ='Red Vintage Planner'!EW17 -> 0.3 | EX17: ='Red Vintage Planner'!EX17 -> 0.3 | EY17: ='Red Vintage Planner'!EY17 -> 0.3 | EZ17: ='Red Vintage Planner'!EZ17 -> 0.3 | FA17: ='Red Vintage Planner'!FA17 -> 0.3
F18: Maturation Storage Type 3 (%) | G18: ='Red Vintage Planner'!G18 -> 0.2 | H18: ='Red Vintage Planner'!H18 -> 0.2 | I18: ='Red Vintage Planner'!I18 -> 0.2 | J18: ='Red Vintage Planner'!J18 -> 0.2 | K18: ='Red Vintage Planner'!K18 -> 0.2 | L18: ='Red Vintage Planner'!L18 -> 0.2 | M18: ='Red Vintage Planner'!M18 -> 0.2 | N18: ='Red Vintage Planner'!N18 -> 0.2 | O18: ='Red Vintage Planner'!O18 -> 0.2 | P18: ='Red Vintage Planner'!P18 -> 0.2 | Q18: ='Red Vintage Planner'!Q18 -> 0.2 | R18: ='Red Vintage Planner'!R18 -> 0.2 | S18: ='Red Vintage Planner'!S18 -> 0.2 | T18: ='Red Vintage Planner'!T18 -> 0.2 | U18: ='Red Vintage Planner'!U18 -> 0.2 | V18: ='Red Vintage Planner'!V18 -> 0.2 | W18: ='Red Vintage Planner'!W18 -> 0.2 | X18: ='Red Vintage Planner'!X18 -> 0.2 | Y18: ='Red Vintage Planner'!Y18 -> 0.2 | Z18: ='Red Vintage Planner'!Z18 -> 0.2 | AA18: ='Red Vintage Planner'!AA18 -> 0.2 | AB18: ='Red Vintage Planner'!AB18 -> 0.2 | AC18: ='Red Vintage Planner'!AC18 -> 0.2 | AD18: ='Red Vintage Planner'!AD18 -> 0.2 | AE18: ='Red Vintage Planner'!AE18 -> 0.2 | AF18: ='Red Vintage Planner'!AF18 -> 0.2 | AG18: ='Red Vintage Planner'!AG18 -> 0.2 | AH18: ='Red Vintage Planner'!AH18 -> 0.2 | AI18: ='Red Vintage Planner'!AI18 -> 0.2 | AJ18: ='Red Vintage Planner'!AJ18 -> 0.2 | AK18: ='Red Vintage Planner'!AK18 -> 0.2 | AL18: ='Red Vintage Planner'!AL18 -> 0.2 | AM18: ='Red Vintage Planner'!AM18 -> 0.2 | AN18: ='Red Vintage Planner'!AN18 -> 0.2 | AO18: ='Red Vintage Planner'!AO18 -> 0.2 | AP18: ='Red Vintage Planner'!AP18 -> 0.2 | AQ18: ='Red Vintage Planner'!AQ18 -> 0.2 | AR18: ='Red Vintage Planner'!AR18 -> 0.2 | AS18: ='Red Vintage Planner'!AS18 -> 0.2 | AT18: ='Red Vintage Planner'!AT18 -> 0.2 | AU18: ='Red Vintage Planner'!AU18 -> 0.2 | AV18: ='Red Vintage Planner'!AV18 -> 0.2 | AW18: ='Red Vintage Planner'!AW18 -> 0.2 | AX18: ='Red Vintage Planner'!AX18 -> 0.2 | AY18: ='Red Vintage Planner'!AY18 -> 0.2 | AZ18: ='Red Vintage Planner'!AZ18 -> 0.2 | BA18: ='Red Vintage Planner'!BA18 -> 0.2 | BB18: ='Red Vintage Planner'!BB18 -> 0.2 | BC18: ='Red Vintage Planner'!BC18 -> 0.2 | BD18: ='Red Vintage Planner'!BD18 -> 0.2 | BE18: ='Red Vintage Planner'!BE18 -> 0.2 | BF18: ='Red Vintage Planner'!BF18 -> 0.2 | BG18: ='Red Vintage Planner'!BG18 -> 0.2 | BH18: ='Red Vintage Planner'!BH18 -> 0.2 | BI18: ='Red Vintage Planner'!BI18 -> 0.2 | BJ18: ='Red Vintage Planner'!BJ18 -> 0.2 | BK18: ='Red Vintage Planner'!BK18 -> 0.2 | BL18: ='Red Vintage Planner'!BL18 -> 0.2 | BM18: ='Red Vintage Planner'!BM18 -> 0.2 | BN18: ='Red Vintage Planner'!BN18 -> 0.2 | BO18: ='Red Vintage Planner'!BO18 -> 0.2 | BP18: ='Red Vintage Planner'!BP18 -> 0.2 | BQ18: ='Red Vintage Planner'!BQ18 -> 0.2 | BR18: ='Red Vintage Planner'!BR18 -> 0.2 | BS18: ='Red Vintage Planner'!BS18 -> 0.2 | BT18: ='Red Vintage Planner'!BT18 -> 0.2 | BU18: ='Red Vintage Planner'!BU18 -> 0.2 | BV18: ='Red Vintage Planner'!BV18 -> 0.2 | BW18: ='Red Vintage Planner'!BW18 -> 0.2 | BX18: ='Red Vintage Planner'!BX18 -> 0.2 | BY18: ='Red Vintage Planner'!BY18 -> 0.2 | BZ18: ='Red Vintage Planner'!BZ18 -> 0.2 | CA18: ='Red Vintage Planner'!CA18 -> 0.2 | CB18: ='Red Vintage Planner'!CB18 -> 0.2 | CC18: ='Red Vintage Planner'!CC18 -> 0.2 | CD18: ='Red Vintage Planner'!CD18 -> 0.2 | CE18: ='Red Vintage Planner'!CE18 -> 0.2 | CF18: ='Red Vintage Planner'!CF18 -> 0.2 | CG18: ='Red Vintage Planner'!CG18 -> 0.2 | CH18: ='Red Vintage Planner'!CH18 -> 0.2 | CI18: ='Red Vintage Planner'!CI18 -> 0.2 | CJ18: ='Red Vintage Planner'!CJ18 -> 0.2 | CK18: ='Red Vintage Planner'!CK18 -> 0.2 | CL18: ='Red Vintage Planner'!CL18 -> 0.2 | CM18: ='Red Vintage Planner'!CM18 -> 0.2 | CN18: ='Red Vintage Planner'!CN18 -> 0.2 | CO18: ='Red Vintage Planner'!CO18 -> 0.2 | CP18: ='Red Vintage Planner'!CP18 -> 0.2 | CQ18: ='Red Vintage Planner'!CQ18 -> 0.2 | CR18: ='Red Vintage Planner'!CR18 -> 0.2 | CS18: ='Red Vintage Planner'!CS18 -> 0.2 | CT18: ='Red Vintage Planner'!CT18 -> 0.2 | CU18: ='Red Vintage Planner'!CU18 -> 0.2 | CV18: ='Red Vintage Planner'!CV18 -> 0.2 | CW18: ='Red Vintage Planner'!CW18 -> 0.2 | CX18: ='Red Vintage Planner'!CX18 -> 0.2 | CY18: ='Red Vintage Planner'!CY18 -> 0.2 | CZ18: ='Red Vintage Planner'!CZ18 -> 0.2 | DA18: ='Red Vintage Planner'!DA18 -> 0.2 | DB18: ='Red Vintage Planner'!DB18 -> 0.2 | DC18: ='Red Vintage Planner'!DC18 -> 0.2 | DD18: ='Red Vintage Planner'!DD18 -> 0.2 | DE18: ='Red Vintage Planner'!DE18 -> 0.2 | DF18: ='Red Vintage Planner'!DF18 -> 0.2 | DG18: ='Red Vintage Planner'!DG18 -> 0.2 | DH18: ='Red Vintage Planner'!DH18 -> 0.2 | DI18: ='Red Vintage Planner'!DI18 -> 0.2 | DJ18: ='Red Vintage Planner'!DJ18 -> 0.2 | DK18: ='Red Vintage Planner'!DK18 -> 0.2 | DL18: ='Red Vintage Planner'!DL18 -> 0.2 | DM18: ='Red Vintage Planner'!DM18 -> 0.2 | DN18: ='Red Vintage Planner'!DN18 -> 0.2 | DO18: ='Red Vintage Planner'!DO18 -> 0.2 | DP18: ='Red Vintage Planner'!DP18 -> 0.2 | DQ18: ='Red Vintage Planner'!DQ18 -> 0.2 | DR18: ='Red Vintage Planner'!DR18 -> 0.2 | DS18: ='Red Vintage Planner'!DS18 -> 0.2 | DT18: ='Red Vintage Planner'!DT18 -> 0.2 | DU18: ='Red Vintage Planner'!DU18 -> 0.2 | DV18: ='Red Vintage Planner'!DV18 -> 0.2 | DW18: ='Red Vintage Planner'!DW18 -> 0.2 | DX18: ='Red Vintage Planner'!DX18 -> 0.2 | DY18: ='Red Vintage Planner'!DY18 -> 0.2 | DZ18: ='Red Vintage Planner'!DZ18 -> 0.2 | EA18: ='Red Vintage Planner'!EA18 -> 0.2 | EB18: ='Red Vintage Planner'!EB18 -> 0.2 | EC18: ='Red Vintage Planner'!EC18 -> 0.2 | ED18: ='Red Vintage Planner'!ED18 -> 0.2 | EE18: ='Red Vintage Planner'!EE18 -> 0.2 | EF18: ='Red Vintage Planner'!EF18 -> 0.2 | EG18: ='Red Vintage Planner'!EG18 -> 0.2 | EH18: ='Red Vintage Planner'!EH18 -> 0.2 | EI18: ='Red Vintage Planner'!EI18 -> 0.2 | EJ18: ='Red Vintage Planner'!EJ18 -> 0.2 | EK18: ='Red Vintage Planner'!EK18 -> 0.2 | EL18: ='Red Vintage Planner'!EL18 -> 0.2 | EM18: ='Red Vintage Planner'!EM18 -> 0.2 | EN18: ='Red Vintage Planner'!EN18 -> 0.2 | EO18: ='Red Vintage Planner'!EO18 -> 0.2 | EP18: ='Red Vintage Planner'!EP18 -> 0.2 | EQ18: ='Red Vintage Planner'!EQ18 -> 0.2 | ER18: ='Red Vintage Planner'!ER18 -> 0.2 | ES18: ='Red Vintage Planner'!ES18 -> 0.2 | ET18: ='Red Vintage Planner'!ET18 -> 0.2 | EU18: ='Red Vintage Planner'!EU18 -> 0.2 | EV18: ='Red Vintage Planner'!EV18 -> 0.2 | EW18: ='Red Vintage Planner'!EW18 -> 0.2 | EX18: ='Red Vintage Planner'!EX18 -> 0.2 | EY18: ='Red Vintage Planner'!EY18 -> 0.2 | EZ18: ='Red Vintage Planner'!EZ18 -> 0.2 | FA18: ='Red Vintage Planner'!FA18 -> 0.2
F19: Cold Stabilisation (%) | G19: ='Red Vintage Planner'!G19 -> 0.05 | H19: ='Red Vintage Planner'!H19 -> 0.05 | I19: ='Red Vintage Planner'!I19 -> 0.05 | J19: ='Red Vintage Planner'!J19 -> 0.05 | K19: ='Red Vintage Planner'!K19 -> 0.05 | L19: ='Red Vintage Planner'!L19 -> 0.05 | M19: ='Red Vintage Planner'!M19 -> 0.05 | N19: ='Red Vintage Planner'!N19 -> 0.05 | O19: ='Red Vintage Planner'!O19 -> 0.05 | P19: ='Red Vintage Planner'!P19 -> 0.05 | Q19: ='Red Vintage Planner'!Q19 -> 0.05 | R19: ='Red Vintage Planner'!R19 -> 0.05 | S19: ='Red Vintage Planner'!S19 -> 0.05 | T19: ='Red Vintage Planner'!T19 -> 0.05 | U19: ='Red Vintage Planner'!U19 -> 0.05 | V19: ='Red Vintage Planner'!V19 -> 0.05 | W19: ='Red Vintage Planner'!W19 -> 0.05 | X19: ='Red Vintage Planner'!X19 -> 0.05 | Y19: ='Red Vintage Planner'!Y19 -> 0.05 | Z19: ='Red Vintage Planner'!Z19 -> 0.05 | AA19: ='Red Vintage Planner'!AA19 -> 0.05 | AB19: ='Red Vintage Planner'!AB19 -> 0.05 | AC19: ='Red Vintage Planner'!AC19 -> 0.05 | AD19: ='Red Vintage Planner'!AD19 -> 0.05 | AE19: ='Red Vintage Planner'!AE19 -> 0.05 | AF19: ='Red Vintage Planner'!AF19 -> 0.05 | AG19: ='Red Vintage Planner'!AG19 -> 0.05 | AH19: ='Red Vintage Planner'!AH19 -> 0.05 | AI19: ='Red Vintage Planner'!AI19 -> 0.05 | AJ19: ='Red Vintage Planner'!AJ19 -> 0.05 | AK19: ='Red Vintage Planner'!AK19 -> 0.05 | AL19: ='Red Vintage Planner'!AL19 -> 0.05 | AM19: ='Red Vintage Planner'!AM19 -> 0.05 | AN19: ='Red Vintage Planner'!AN19 -> 0.05 | AO19: ='Red Vintage Planner'!AO19 -> 0.05 | AP19: ='Red Vintage Planner'!AP19 -> 0.05 | AQ19: ='Red Vintage Planner'!AQ19 -> 0.05 | AR19: ='Red Vintage Planner'!AR19 -> 0.05 | AS19: ='Red Vintage Planner'!AS19 -> 0.05 | AT19: ='Red Vintage Planner'!AT19 -> 0.05 | AU19: ='Red Vintage Planner'!AU19 -> 0.05 | AV19: ='Red Vintage Planner'!AV19 -> 0.05 | AW19: ='Red Vintage Planner'!AW19 -> 0.05 | AX19: ='Red Vintage Planner'!AX19 -> 0.05 | AY19: ='Red Vintage Planner'!AY19 -> 0.05 | AZ19: ='Red Vintage Planner'!AZ19 -> 0.05 | BA19: ='Red Vintage Planner'!BA19 -> 0.05 | BB19: ='Red Vintage Planner'!BB19 -> 0.05 | BC19: ='Red Vintage Planner'!BC19 -> 0.05 | BD19: ='Red Vintage Planner'!BD19 -> 0.05 | BE19: ='Red Vintage Planner'!BE19 -> 0.05 | BF19: ='Red Vintage Planner'!BF19 -> 0.05 | BG19: ='Red Vintage Planner'!BG19 -> 0.05 | BH19: ='Red Vintage Planner'!BH19 -> 0.05 | BI19: ='Red Vintage Planner'!BI19 -> 0.05 | BJ19: ='Red Vintage Planner'!BJ19 -> 0.05 | BK19: ='Red Vintage Planner'!BK19 -> 0.05 | BL19: ='Red Vintage Planner'!BL19 -> 0.05 | BM19: ='Red Vintage Planner'!BM19 -> 0.05 | BN19: ='Red Vintage Planner'!BN19 -> 0.05 | BO19: ='Red Vintage Planner'!BO19 -> 0.05 | BP19: ='Red Vintage Planner'!BP19 -> 0.05 | BQ19: ='Red Vintage Planner'!BQ19 -> 0.05 | BR19: ='Red Vintage Planner'!BR19 -> 0.05 | BS19: ='Red Vintage Planner'!BS19 -> 0.05 | BT19: ='Red Vintage Planner'!BT19 -> 0.05 | BU19: ='Red Vintage Planner'!BU19 -> 0.05 | BV19: ='Red Vintage Planner'!BV19 -> 0.05 | BW19: ='Red Vintage Planner'!BW19 -> 0.05 | BX19: ='Red Vintage Planner'!BX19 -> 0.05 | BY19: ='Red Vintage Planner'!BY19 -> 0.05 | BZ19: ='Red Vintage Planner'!BZ19 -> 0.05 | CA19: ='Red Vintage Planner'!CA19 -> 0.05 | CB19: ='Red Vintage Planner'!CB19 -> 0.05 | CC19: ='Red Vintage Planner'!CC19 -> 0.05 | CD19: ='Red Vintage Planner'!CD19 -> 0.05 | CE19: ='Red Vintage Planner'!CE19 -> 0.05 | CF19: ='Red Vintage Planner'!CF19 -> 0.05 | CG19: ='Red Vintage Planner'!CG19 -> 0.05 | CH19: ='Red Vintage Planner'!CH19 -> 0.05 | CI19: ='Red Vintage Planner'!CI19 -> 0.05 | CJ19: ='Red Vintage Planner'!CJ19 -> 0.05 | CK19: ='Red Vintage Planner'!CK19 -> 0.05 | CL19: ='Red Vintage Planner'!CL19 -> 0.05 | CM19: ='Red Vintage Planner'!CM19 -> 0.05 | CN19: ='Red Vintage Planner'!CN19 -> 0.05 | CO19: ='Red Vintage Planner'!CO19 -> 0.05 | CP19: ='Red Vintage Planner'!CP19 -> 0.05 | CQ19: ='Red Vintage Planner'!CQ19 -> 0.05 | CR19: ='Red Vintage Planner'!CR19 -> 0.05 | CS19: ='Red Vintage Planner'!CS19 -> 0.05 | CT19: ='Red Vintage Planner'!CT19 -> 0.05 | CU19: ='Red Vintage Planner'!CU19 -> 0.05 | CV19: ='Red Vintage Planner'!CV19 -> 0.05 | CW19: ='Red Vintage Planner'!CW19 -> 0.05 | CX19: ='Red Vintage Planner'!CX19 -> 0.05 | CY19: ='Red Vintage Planner'!CY19 -> 0.05 | CZ19: ='Red Vintage Planner'!CZ19 -> 0.05 | DA19: ='Red Vintage Planner'!DA19 -> 0.05 | DB19: ='Red Vintage Planner'!DB19 -> 0.05 | DC19: ='Red Vintage Planner'!DC19 -> 0.05 | DD19: ='Red Vintage Planner'!DD19 -> 0.05 | DE19: ='Red Vintage Planner'!DE19 -> 0.05 | DF19: ='Red Vintage Planner'!DF19 -> 0.05 | DG19: ='Red Vintage Planner'!DG19 -> 0.05 | DH19: ='Red Vintage Planner'!DH19 -> 0.05 | DI19: ='Red Vintage Planner'!DI19 -> 0.05 | DJ19: ='Red Vintage Planner'!DJ19 -> 0.05 | DK19: ='Red Vintage Planner'!DK19 -> 0.05 | DL19: ='Red Vintage Planner'!DL19 -> 0.05 | DM19: ='Red Vintage Planner'!DM19 -> 0.05 | DN19: ='Red Vintage Planner'!DN19 -> 0.05 | DO19: ='Red Vintage Planner'!DO19 -> 0.05 | DP19: ='Red Vintage Planner'!DP19 -> 0.05 | DQ19: ='Red Vintage Planner'!DQ19 -> 0.05 | DR19: ='Red Vintage Planner'!DR19 -> 0.05 | DS19: ='Red Vintage Planner'!DS19 -> 0.05 | DT19: ='Red Vintage Planner'!DT19 -> 0.05 | DU19: ='Red Vintage Planner'!DU19 -> 0.05 | DV19: ='Red Vintage Planner'!DV19 -> 0.05 | DW19: ='Red Vintage Planner'!DW19 -> 0.05 | DX19: ='Red Vintage Planner'!DX19 -> 0.05 | DY19: ='Red Vintage Planner'!DY19 -> 0.05 | DZ19: ='Red Vintage Planner'!DZ19 -> 0.05 | EA19: ='Red Vintage Planner'!EA19 -> 0.05 | EB19: ='Red Vintage Planner'!EB19 -> 0.05 | EC19: ='Red Vintage Planner'!EC19 -> 0.05 | ED19: ='Red Vintage Planner'!ED19 -> 0.05 | EE19: ='Red Vintage Planner'!EE19 -> 0.05 | EF19: ='Red Vintage Planner'!EF19 -> 0.05 | EG19: ='Red Vintage Planner'!EG19 -> 0.05 | EH19: ='Red Vintage Planner'!EH19 -> 0.05 | EI19: ='Red Vintage Planner'!EI19 -> 0.05 | EJ19: ='Red Vintage Planner'!EJ19 -> 0.05 | EK19: ='Red Vintage Planner'!EK19 -> 0.05 | EL19: ='Red Vintage Planner'!EL19 -> 0.05 | EM19: ='Red Vintage Planner'!EM19 -> 0.05 | EN19: ='Red Vintage Planner'!EN19 -> 0.05 | EO19: ='Red Vintage Planner'!EO19 -> 0.05 | EP19: ='Red Vintage Planner'!EP19 -> 0.05 | EQ19: ='Red Vintage Planner'!EQ19 -> 0.05 | ER19: ='Red Vintage Planner'!ER19 -> 0.05 | ES19: ='Red Vintage Planner'!ES19 -> 0.05 | ET19: ='Red Vintage Planner'!ET19 -> 0.05 | EU19: ='Red Vintage Planner'!EU19 -> 0.05 | EV19: ='Red Vintage Planner'!EV19 -> 0.05 | EW19: ='Red Vintage Planner'!EW19 -> 0.05 | EX19: ='Red Vintage Planner'!EX19 -> 0.05 | EY19: ='Red Vintage Planner'!EY19 -> 0.05 | EZ19: ='Red Vintage Planner'!EZ19 -> 0.05 | FA19: ='Red Vintage Planner'!FA19 -> 0.05
C21: TOTAL
C22: kWr refrigeration | D22: Taverage | E22: Cold Soak | F22: Date
D23: =LOOKUP(MONTH(F23),'Brine and COP'!$C$28:$N$28,'Brine and COP'!$C$30:$N$30) -> 26.71982625 | E23: ='Red Fermentation Equipment'!$B$40 -> 4 | F23: =G2+9/24 -> 2014-01-01T09:00:00
D24: =LOOKUP(MONTH(F24),'Brine and COP'!$C$28:$N$28,'Brine and COP'!$C$30:$N$30) -> 26.71982625 | E24: ='Red Fermentation Equipment'!$B$40 -> 4 | F24: =F23+0.5 -> 2014-01-01T21:00:00 | G24: =G$6*G$8*($D24-$E24)*(G$9*'Red Fermentation Equipment'!$B$11*'Red Fermentation Equipment'!$B$6/'Red Fermentation Equipment'!$B$3+G$10*'Red Fermentation Equipment'!$B$23*'Red Fermentation Equipment'!$B$18/'Red Fermentation Equipment'!$B$15+'Cold Soak Red'!G$11*'Red Fermentation Equipment'!$B$35*'Red Fermentation Equipment'!$B$30/'Red Fermentation Equipment'!$B$27) -> 0
D25: =LOOKUP(MONTH(F25),'Brine and COP'!$C$28:$N$28,'Brine and COP'!$C$30:$N$30) -> 26.71982625 | E25: ='Red Fermentation Equipment'!$B$40 -> 4 | F25: =F24+0.5 -> 2014-01-02T09:00:00 | G25: =G24 -> 0
D26: =LOOKUP(MONTH(F26),'Brine and COP'!$C$28:$N$28,'Brine and COP'!$C$30:$N$30) -> 26.71982625 | E26: ='Red Fermentation Equipment'!$B$40 -> 4 | F26: 2014-01-02T21:00:00 | G26: =IF('Red Fermentation Total'!$A$4<'Red Fermentation (1)'!$D$8,G$6*1.4*G$8*(G$9*'Red Fermentation Total'!$B$4+G$10*'Red Fermentation Total'!$C$4+G$11*'Red Fermentation Total'!$D$4)/1.09,G$6*G$8*0.7*($D26-'Wine storage'!$H$8)*(G$16*'Wine storage'!$B$10*'Wine storage'!$B$6/'Wine storage'!$B$4+G$17*'Wine storage'!$B$22*'Wine storage'!$B$18/'Wine storage'!$B$16+G$18*'Wine storage'!$B$36*'Wine storage'!$B$32/'Wine storage'!$B$30)/1000) -> 0 | H26: =H$6*H$8*($D26-$E26)*(H$9*'Red Fermentation Equipment'!$B$11*'Red Fermentation Equipment'!$B$6/'Red Fermentation Equipment'!$B$3+H$10*'Red Fermentation Equipment'!$B$23*'Red Fermentation Equipment'!$B$18/'Red Fermentation Equipment'!$B$15+'Cold Soak Red'!H$11*'Red Fermentation Equipment'!$B$35*'Red Fermentation Equipment'!$B$30/'Red Fermentation Equipment'!$B$27) -> 0
D27: =LOOKUP(MONTH(F27),'Brine and COP'!$C$28:$N$28,'Brine and COP'!$C$30:$N$30) -> 26.71982625 | E27: ='Red Fermentation Equipment'!$B$40 -> 4 | F27: 2014-01-03T09:00:00 | G27: =IF('Red Fermentation Total'!$A$5<'Red Fermentation (1)'!$D$8,G$6*1.4*G$8*(G$9*'Red Fermentation Total'!$B$5+G$10*'Red Fermentation Total'!$C$5+G$11*'Red Fermentation Total'!$D$5)/1.09,G$6*G$8*0.7*($D27-'Wine storage'!$H$8)*(G$16*'Wine storage'!$B$10*'Wine storage'!$B$6/'Wine storage'!$B$4+G$17*'Wine storage'!$B$22*'Wine storage'!$B$18/'Wine storage'!$B$16+G$18*'Wine storage'!$B$36*'Wine storage'!$B$32/'Wine storage'!$B$30)/1000) -> 0 | H27: =H26 -> 0
D28: =LOOKUP(MONTH(F28),'Brine and COP'!$C$28:$N$28,'Brine and COP'!$C$30:$N$30) -> 26.71982625 | E28: ='Red Fermentation Equipment'!$B$40 -> 4 | F28: 2014-01-03T21:00:00 | G28: =IF('Red Fermentation Total'!$A$6<'Red Fermentation (1)'!$D$8,G$6*1.4*G$8*(G$9*'Red Fermentation Total'!$B$6+G$10*'Red Fermentation Total'!$C$6+G$11*'Red Fermentation Total'!$D$6)/1.09,G$6*G$8*0.7*($D28-'Wine storage'!$H$8)*(G$16*'Wine storage'!$B$10*'Wine storage'!$B$6/'Wine storage'!$B$4+G$17*'Wine storage'!$B$22*'Wine storage'!$B$18/'Wine storage'!$B$16+G$18*'Wine storage'!$B$36*'Wine storage'!$B$32/'Wine storage'!$B$30)/1000) -> 0 | H28: =IF('Red Fermentation Total'!$A$4<'Red Fermentation (1)'!$D$8,H$6*1.4*H$8*(H$9*'Red Fermentation Total'!$B$4+H$10*'Red Fermentation Total'!$C$4+H$11*'Red Fermentation Total'!$D$4)/1.09,H$6*H$8*0.7*($D28-'Wine storage'!$H$8)*(H$16*'Wine storage'!$B$10*'Wine storage'!$B$6/'Wine storage'!$B$4+H$17*'Wine storage'!$B$22*'Wine storage'!$B$18/'Wine storage'!$B$16+H$18*'Wine storage'!$B$36*'Wine storage'!$B$32/'Wine storage'!$B$30)/1000) -> 0 | I28: =I$6*I$8*($D28-$E28)*(I$9*'Red Fermentation Equipment'!$B$11*'Red Fermentation Equipment'!$B$6/'Red Fermentation Equipment'!$B$3+I$10*'Red Fermentation Equipment'!$B$23*'Red Fermentation Equipment'!$B$18/'Red Fermentation Equipment'!$B$15+'Cold Soak Red'!I$11*'Red Fermentation Equipment'!$B$35*'Red Fermentation Equipment'!$B$30/'Red Fermentation Equipment'!$B$27) -> 0
D29: =LOOKUP(MONTH(F29),'Brine and COP'!$C$28:$N$28,'Brine and COP'!$C$30:$N$30) -> 26.71982625 | E29: ='Red Fermentation Equipment'!$B$40 -> 4 | F29: 2014-01-04T09:00:00 | G29: =IF('Red Fermentation Total'!$A$7<'Red Fermentation (1)'!$D$8,G$6*1.4*G$8*(G$9*'Red Fermentation Total'!$B$7+G$10*'Red Fermentation Total'!$C$7+G$11*'Red Fermentation Total'!$D$7)/1.09,G$6*G$8*0.7*($D29-'Wine storage'!$H$8)*(G$16*'Wine storage'!$B$10*'Wine storage'!$B$6/'Wine storage'!$B$4+G$17*'Wine storage'!$B$22*'Wine storage'!$B$18/'Wine storage'!$B$16+G$18*'Wine storage'!$B$36*'Wine storage'!$B$32/'Wine storage'!$B$30)/1000) -> 0 | H29: =IF('Red Fermentation Total'!$A$5<'Red Fermentation (1)'!$D$8,H$6*1.4*H$8*(H$9*'Red Fermentation Total'!$B$5+H$10*'Red Fermentation Total'!$C$5+H$11*'Red Fermentation Total'!$D$5)/1.09,H$6*H$8*0.7*($D29-'Wine storage'!$H$8)*(H$16*'Wine storage'!$B$10*'Wine storage'!$B$6/'Wine storage'!$B$4+H$17*'Wine storage'!$B$22*'Wine storage'!$B$18/'Wine storage'!$B$16+H$18*'Wine storage'!$B$36*'Wine storage'!$B$32/'Wine storage'!$B$30)/1000) -> 0 | I29: =I28 -> 0
D30: =LOOKUP(MONTH(F30),'Brine and COP'!$C$28:$N$28,'Brine and COP'!$C$30:$N$30) -> 26.71982625 | E30: ='Red Fermentation Equipment'!$B$40 -> 4 | F30: 2014-01-04T21:00:00 | G30: =IF('Red Fermentation Total'!$A$8<'Red Fermentation (1)'!$D$8,G$6*1.4*G$8*(G$9*'Red Fermentation Total'!$B$8+G$10*'Red Fermentation Total'!$C$8+G$11*'Red Fermentation Total'!$D$8)/1.09,G$6*G$8*0.7*($D30-'Wine storage'!$H$8)*(G$16*'Wine storage'!$B$10*'Wine storage'!$B$6/'Wine storage'!$B$4+G$17*'Wine storage'!$B$22*'Wine storage'!$B$18/'Wine storage'!$B$16+G$18*'Wine storage'!$B$36*'Wine storage'!$B$32/'Wine storage'!$B$30)/1000) -> 0 | H30: =IF('Red Fermentation Total'!$A$6<'Red Fermentation (1)'!$D$8,H$6*1.4*H$8*(H$9*'Red Fermentation Total'!$B$6+H$10*'Red Fermentation Total'!$C$6+H$11*'Red Fermentation Total'!$D$6)/1.09,H$6*H$8*0.7*($D30-'Wine storage'!$H$8)*(H$16*'Wine storage'!$B$10*'Wine storage'!$B$6/'Wine storage'!$B$4+H$17*'Wine storage'!$B$22*'Wine storage'!$B$18/'Wine storage'!$B$16+H$18*'Wine storage'!$B$36*'Wine storage'!$B$32/'Wine storage'!$B$30)/1000) -> 0 | I30: =IF('Red Fermentation Total'!$A$4<'Red Fermentation (1)'!$D$8,I$6*1.4*I$8*(I$9*'Red Fermentation Total'!$B$4+I$10*'Red Fermentation Total'!$C$4+I$11*'Red Fermentation Total'!$D$4)/1.09,I$6*I$8*0.7*($D30-'Wine storage'!$H$8)*(I$16*'Wine storage'!$B$10*'Wine storage'!$B$6/'Wine storage'!$B$4+I$17*'Wine storage'!$B$22*'Wine storage'!$B$18/'Wine storage'!$B$16+I$18*'Wine storage'!$B$36*'Wine storage'!$B$32/'Wine storage'!$B$30)/1000) -> 0 | J30: =J$6*J$8*($D30-$E30)*(J$9*'Red Fermentation Equipment'!$B$11*'Red Fermentation Equipment'!$B$6/'Red Fermentation Equipment'!$B$3+J$10*'Red Fermentation Equipment'!$B$23*'Red Fermentation Equipment'!$B$18/'Red Fermentation Equipment'!$B$15+'Cold Soak Red'!J$11*'Red Fermentation Equipment'!$B$35*'Red Fermentation Equipment'!$B$30/'Red Fermentation Equipment'!$B$27) -> 0
D31: =LOOKUP(MONTH(F31),'Brine and COP'!$C$28:$N$28,'Brine and COP'!$C$30:$N$30) -> 26.71982625 | E31: ='Red Fermentation Equipment'!$B$40 -> 4 | F31: 2014-01-05T09:00:00 | G31: =IF('Red Fermentation Total'!$A$9<'Red Fermentation (1)'!$D$8,G$6*1.4*G$8*(G$9*'Red Fermentation Total'!$B$9+G$10*'Red Fermentation Total'!$C$9+G$11*'Red Fermentation Total'!$D$9)/1.09,G$6*G$8*0.7*($D31-'Wine storage'!$H$8)*(G$16*'Wine storage'!$B$10*'Wine storage'!$B$6/'Wine storage'!$B$4+G$17*'Wine storage'!$B$22*'Wine storage'!$B$18/'Wine storage'!$B$16+G$18*'Wine storage'!$B$36*'Wine storage'!$B$32/'Wine storage'!$B$30)/1000) -> 0 | H31: =IF('Red Fermentation Total'!$A$7<'Red Fermentation (1)'!$D$8,H$6*1.4*H$8*(H$9*'Red Fermentation Total'!$B$7+H$10*'Red Fermentation Total'!$C$7+H$11*'Red Fermentation Total'!$D$7)/1.09,H$6*H$8*0.7*($D31-'Wine storage'!$H$8)*(H$16*'Wine storage'!$B$10*'Wine storage'!$B$6/'Wine storage'!$B$4+H$17*'Wine storage'!$B$22*'Wine storage'!$B$18/'Wine storage'!$B$16+H$18*'Wine storage'!$B$36*'Wine storage'!$B$32/'Wine storage'!$B$30)/1000) -> 0 | I31: =IF('Red Fermentation Total'!$A$5<'Red Fermentation (1)'!$D$8,I$6*1.4*I$8*(I$9*'Red Fermentation Total'!$B$5+I$10*'Red Fermentation Total'!$C$5+I$11*'Red Fermentation Total'!$D$5)/1.09,I$6*I$8*0.7*($D31-'Wine storage'!$H$8)*(I$16*'Wine storage'!$B$10*'Wine storage'!$B$6/'Wine storage'!$B$4+I$17*'Wine storage'!$B$22*'Wine storage'!$B$18/'Wine storage'!$B$16+I$18*'Wine storage'!$B$36*'Wine storage'!$B$32/'Wine storage'!$B$30)/1000) -> 0 | J31: =J30 -> 0
D32: =LOOKUP(MONTH(F32),'Brine and COP'!$C$28:$N$28,'Brine and COP'!$C$30:$N$30) -> 26.71982625 | E32: ='Red Fermentation Equipment'!$B$40 -> 4 | F32: 2014-01-05T21:00:00 | G32: =IF('Red Fermentation Total'!$A$10<'Red Fermentation (1)'!$D$8,G$6*1.4*G$8*(G$9*'Red Fermentation Total'!$B$10+G$10*'Red Fermentation Total'!$C$10+G$11*'Red Fermentation Total'!$D$10)/1.09,G$6*G$8*0.7*($D32-'Wine storage'!$H$8)*(G$16*'Wine storage'!$B$10*'Wine storage'!$B$6/'Wine storage'!$B$4+G$17*'Wine storage'!$B$22*'Wine storage'!$B$18/'Wine storage'!$B$16+G$18*'Wine storage'!$B$36*'Wine storage'!$B$32/'Wine storage'!$B$30)/1000) -> 0 | H32: =IF('Red Fermentation Total'!$A$8<'Red Fermentation (1)'!$D$8,H$6*1.4*H$8*(H$9*'Red Fermentation Total'!$B$8+H$10*'Red Fermentation Total'!$C$8+H$11*'Red Fermentation Total'!$D$8)/1.09,H$6*H$8*0.7*($D32-'Wine storage'!$H$8)*(H$16*'Wine storage'!$B$10*'Wine storage'!$B$6/'Wine storage'!$B$4+H$17*'Wine storage'!$B$22*'Wine storage'!$B$18/'Wine storage'!$B$16+H$18*'Wine storage'!$B$36*'Wine storage'!$B$32/'Wine storage'!$B$30)/1000) -> 0 | I32: =IF('Red Fermentation Total'!$A$6<'Red Fermentation (1)'!$D$8,I$6*1.4*I$8*(I$9*'Red Fermentation Total'!$B$6+I$10*'Red Fermentation Total'!$C$6+I$11*'Red Fermentation Total'!$D$6)/1.09,I$6*I$8*0.7*($D32-'Wine storage'!$H$8)*(I$16*'Wine storage'!$B$10*'Wine storage'!$B$6/'Wine storage'!$B$4+I$17*'Wine storage'!$B$22*'Wine storage'!$B$18/'Wine storage'!$B$16+I$18*'Wine storage'!$B$36*'Wine storage'!$B$32/'Wine storage'!$B$30)/1000) -> 0 | J32: =IF('Red Fermentation Total'!$A$4<'Red Fermentation (1)'!$D$8,J$6*1.4*J$8*(J$9*'Red Fermentation Total'!$B$4+J$10*'Red Fermentation Total'!$C$4+J$11*'Red Fermentation Total'!$D$4)/1.09,J$6*J$8*0.7*($D32-'Wine storage'!$H$8)*(J$16*'Wine storage'!$B$10*'Wine storage'!$B$6/'Wine storage'!$B$4+J$17*'Wine storage'!$B$22*'Wine storage'!$B$18/'Wine storage'!$B$16+J$18*'Wine storage'!$B$36*'Wine storage'!$B$32/'Wine storage'!$B$30)/1000) -> 0 | K32: =K$6*K$8*($D32-$E32)*(K$9*'Red Fermentation Equipment'!$B$11*'Red Fermentation Equipment'!$B$6/'Red Fermentation Equipment'!$B$3+K$10*'Red Fermentation Equipment'!$B$23*'Red Fermentation Equipment'!$B$18/'Red Fermentation Equipment'!$B$15+'Cold Soak Red'!K$11*'Red Fermentation Equipment'!$B$35*'Red Fermentation Equipment'!$B$30/'Red Fermentation Equipment'!$B$27) -> 0
D33: =LOOKUP(MONTH(F33),'Brine and COP'!$C$28:$N$28,'Brine and COP'!$C$30:$N$30) -> 26.71982625 | E33: ='Red Fermentation Equipment'!$B$40 -> 4 | F33: 2014-01-06T09:00:00 | G33: =IF('Red Fermentation Total'!$A$11<'Red Fermentation (1)'!$D$8,G$6*1.4*G$8*(G$9*'Red Fermentation Total'!$B$11+G$10*'Red Fermentation Total'!$C$11+G$11*'Red Fermentation Total'!$D$11)/1.09,G$6*G$8*0.7*($D33-'Wine storage'!$H$8)*(G$16*'Wine storage'!$B$10*'Wine storage'!$B$6/'Wine storage'!$B$4+G$17*'Wine storage'!$B$22*'Wine storage'!$B$18/'Wine storage'!$B$16+G$18*'Wine storage'!$B$36*'Wine storage'!$B$32/'Wine storage'!$B$30)/1000) -> 0 | H33: =IF('Red Fermentation Total'!$A$9<'Red Fermentation (1)'!$D$8,H$6*1.4*H$8*(H$9*'Red Fermentation Total'!$B$9+H$10*'Red Fermentation Total'!$C$9+H$11*'Red Fermentation Total'!$D$9)/1.09,H$6*H$8*0.7*($D33-'Wine storage'!$H$8)*(H$16*'Wine storage'!$B$10*'Wine storage'!$B$6/'Wine storage'!$B$4+H$17*'Wine storage'!$B$22*'Wine storage'!$B$18/'Wine storage'!$B$16+H$18*'Wine storage'!$B$36*'Wine storage'!$B$32/'Wine storage'!$B$30)/1000) -> 0 | I33: =IF('Red Fermentation Total'!$A$7<'Red Fermentation (1)'!$D$8,I$6*1.4*I$8*(I$9*'Red Fermentation Total'!$B$7+I$10*'Red Fermentation Total'!$C$7+I$11*'Red Fermentation Total'!$D$7)/1.09,I$6*I$8*0.7*($D33-'Wine storage'!$H$8)*(I$16*'Wine storage'!$B$10*'Wine storage'!$B$6/'Wine storage'!$B$4+I$17*'Wine storage'!$B$22*'Wine storage'!$B$18/'Wine storage'!$B$16+I$18*'Wine storage'!$B$36*'Wine storage'!$B$32/'Wine storage'!$B$30)/1000) -> 0 | J33: =IF('Red Fermentation Total'!$A$5<'Red Fermentation (1)'!$D$8,J$6*1.4*J$8*(J$9*'Red Fermentation Total'!$B$5+J$10*'Red Fermentation Total'!$C$5+J$11*'Red Fermentation Total'!$D$5)/1.09,J$6*J$8*0.7*($D33-'Wine storage'!$H$8)*(J$16*'Wine storage'!$B$10*'Wine storage'!$B$6/'Wine storage'!$B$4+J$17*'Wine storage'!$B$22*'Wine storage'!$B$18/'Wine storage'!$B$16+J$18*'Wine storage'!$B$36*'Wine storage'!$B$32/'Wine storage'!$B$30)/1000) -> 0 | K33: =K32 -> 0
D34: =LOOKUP(MONTH(F34),'Brine and COP'!$C$28:$N$28,'Brine and COP'!$C$30:$N$30) -> 26.71982625 | E34: ='Red Fermentation Equipment'!$B$40 -> 4 | F34: 2014-01-06T21:00:00 | G34: =IF('Red Fermentation Total'!$A$12<'Red Fermentation (1)'!$D$8,G$6*1.4*G$8*(G$9*'Red Fermentation Total'!$B$12+G$10*'Red Fermentation Total'!$C$12+G$11*'Red Fermentation Total'!$D$12)/1.09,G$6*G$8*0.7*($D34-'Wine storage'!$H$8)*(G$16*'Wine storage'!$B$10*'Wine storage'!$B$6/'Wine storage'!$B$4+G$17*'Wine storage'!$B$22*'Wine storage'!$B$18/'Wine storage'!$B$16+G$18*'Wine storage'!$B$36*'Wine storage'!$B$32/'Wine storage'!$B$30)/1000) -> 0 | H34: =IF('Red Fermentation Total'!$A$10<'Red Fermentation (1)'!$D$8,H$6*1.4*H$8*(H$9*'Red Fermentation Total'!$B$10+H$10*'Red Fermentation Total'!$C$10+H$11*'Red Fermentation Total'!$D$10)/1.09,H$6*H$8*0.7*($D34-'Wine storage'!$H$8)*(H$16*'Wine storage'!$B$10*'Wine storage'!$B$6/'Wine storage'!$B$4+H$17*'Wine storage'!$B$22*'Wine storage'!$B$18/'Wine storage'!$B$16+H$18*'Wine storage'!$B$36*'Wine storage'!$B$32/'Wine storage'!$B$30)/1000) -> 0 | I34: =IF('Red Fermentation Total'!$A$8<'Red Fermentation (1)'!$D$8,I$6*1.4*I$8*(I$9*'Red Fermentation Total'!$B$8+I$10*'Red Fermentation Total'!$C$8+I$11*'Red Fermentation Total'!$D$8)/1.09,I$6*I$8*0.7*($D34-'Wine storage'!$H$8)*(I$16*'Wine storage'!$B$10*'Wine storage'!$B$6/'Wine storage'!$B$4+I$17*'Wine storage'!$B$22*'Wine storage'!$B$18/'Wine storage'!$B$16+I$18*'Wine storage'!$B$36*'Wine storage'!$B$32/'Wine storage'!$B$30)/1000) -> 0 | J34: =IF('Red Fermentation Total'!$A$6<'Red Fermentation (1)'!$D$8,J$6*1.4*J$8*(J$9*'Red Fermentation Total'!$B$6+J$10*'Red Fermentation Total'!$C$6+J$11*'Red Fermentation Total'!$D$6)/1.09,J$6*J$8*0.7*($D34-'Wine storage'!$H$8)*(J$16*'Wine storage'!$B$10*'Wine storage'!$B$6/'Wine storage'!$B$4+J$17*'Wine storage'!$B$22*'Wine storage'!$B$18/'Wine storage'!$B$16+J$18*'Wine storage'!$B$36*'Wine storage'!$B$32/'Wine storage'!$B$30)/1000) -> 0 | K34: =IF('Red Fermentation Total'!$A$4<'Red Fermentation (1)'!$D$8,K$6*1.4*K$8*(K$9*'Red Fermentation Total'!$B$4+K$10*'Red Fermentation Total'!$C$4+K$11*'Red Fermentation Total'!$D$4)/1.09,K$6*K$8*0.7*($D34-'Wine storage'!$H$8)*(K$16*'Wine storage'!$B$10*'Wine storage'!$B$6/'Wine storage'!$B$4+K$17*'Wine storage'!$B$22*'Wine storage'!$B$18/'Wine storage'!$B$16+K$18*'Wine storage'!$B$36*'Wine storage'!$B$32/'Wine storage'!$B$30)/1000) -> 0 | L34: =L$6*L$8*($D34-$E34)*(L$9*'Red Fermentation Equipment'!$B$11*'Red Fermentation Equipment'!$B$6/'Red Fermentation Equipment'!$B$3+L$10*'Red Fermentation Equipment'!$B$23*'Red Fermentation Equipment'!$B$18/'Red Fermentation Equipment'!$B$15+'Cold Soak Red'!L$11*'Red Fermentation Equipment'!$B$35*'Red Fermentation Equipment'!$B$30/'Red Fermentation Equipment'!$B$27) -> 0
D35: =LOOKUP(MONTH(F35),'Brine and COP'!$C$28:$N$28,'Brine and COP'!$C$30:$N$30) -> 26.71982625 | E35: ='Red Fermentation Equipment'!$B$40 -> 4 | F35: 2014-01-07T09:00:00 | G35: =IF('Red Fermentation Total'!$A$13<'Red Fermentation (1)'!$D$8,G$6*1.4*G$8*(G$9*'Red Fermentation Total'!$B$13+G$10*'Red Fermentation Total'!$C$13+G$11*'Red Fermentation Total'!$D$13)/1.09,G$6*G$8*0.7*($D35-'Wine storage'!$H$8)*(G$16*'Wine storage'!$B$10*'Wine storage'!$B$6/'Wine storage'!$B$4+G$17*'Wine storage'!$B$22*'Wine storage'!$B$18/'Wine storage'!$B$16+G$18*'Wine storage'!$B$36*'Wine storage'!$B$32/'Wine storage'!$B$30)/1000) -> 0 | H35: =IF('Red Fermentation Total'!$A$11<'Red Fermentation (1)'!$D$8,H$6*1.4*H$8*(H$9*'Red Fermentation Total'!$B$11+H$10*'Red Fermentation Total'!$C$11+H$11*'Red Fermentation Total'!$D$11)/1.09,H$6*H$8*0.7*($D35-'Wine storage'!$H$8)*(H$16*'Wine storage'!$B$10*'Wine storage'!$B$6/'Wine storage'!$B$4+H$17*'Wine storage'!$B$22*'Wine storage'!$B$18/'Wine storage'!$B$16+H$18*'Wine storage'!$B$36*'Wine storage'!$B$32/'Wine storage'!$B$30)/1000) -> 0 | I35: =IF('Red Fermentation Total'!$A$9<'Red Fermentation (1)'!$D$8,I$6*1.4*I$8*(I$9*'Red Fermentation Total'!$B$9+I$10*'Red Fermentation Total'!$C$9+I$11*'Red Fermentation Total'!$D$9)/1.09,I$6*I$8*0.7*($D35-'Wine storage'!$H$8)*(I$16*'Wine storage'!$B$10*'Wine storage'!$B$6/'Wine storage'!$B$4+I$17*'Wine storage'!$B$22*'Wine storage'!$B$18/'Wine storage'!$B$16+I$18*'Wine storage'!$B$36*'Wine storage'!$B$32/'Wine storage'!$B$30)/1000) -> 0 | J35: =IF('Red Fermentation Total'!$A$7<'Red Fermentation (1)'!$D$8,J$6*1.4*J$8*(J$9*'Red Fermentation Total'!$B$7+J$10*'Red Fermentation Total'!$C$7+J$11*'Red Fermentation Total'!$D$7)/1.09,J$6*J$8*0.7*($D35-'Wine storage'!$H$8)*(J$16*'Wine storage'!$B$10*'Wine storage'!$B$6/'Wine storage'!$B$4+J$17*'Wine storage'!$B$22*'Wine storage'!$B$18/'Wine storage'!$B$16+J$18*'Wine storage'!$B$36*'Wine storage'!$B$32/'Wine storage'!$B$30)/1000) -> 0 | K35: =IF('Red Fermentation Total'!$A$5<'Red Fermentation (1)'!$D$8,K$6*1.4*K$8*(K$9*'Red Fermentation Total'!$B$5+K$10*'Red Fermentation Total'!$C$5+K$11*'Red Fermentation Total'!$D$5)/1.09,K$6*K$8*0.7*($D35-'Wine storage'!$H$8)*(K$16*'Wine storage'!$B$10*'Wine storage'!$B$6/'Wine storage'!$B$4+K$17*'Wine storage'!$B$22*'Wine storage'!$B$18/'Wine storage'!$B$16+K$18*'Wine storage'!$B$36*'Wine storage'!$B$32/'Wine storage'!$B$30)/1000) -> 0 | L35: =L34 -> 0
D36: =LOOKUP(MONTH(F36),'Brine and COP'!$C$28:$N$28,'Brine and COP'!$C$30:$N$30) -> 26.71982625 | E36: ='Red Fermentation Equipment'!$B$40 -> 4 | F36: 2014-01-07T21:00:00 | G36: =IF('Red Fermentation Total'!$A$14<'Red Fermentation (1)'!$D$8,G$6*1.4*G$8*(G$9*'Red Fermentation Total'!$B$14+G$10*'Red Fermentation Total'!$C$14+G$11*'Red Fermentation Total'!$D$14)/1.09,G$6*G$8*0.7*($D36-'Wine storage'!$H$8)*(G$16*'Wine storage'!$B$10*'Wine storage'!$B$6/'Wine storage'!$B$4+G$17*'Wine storage'!$B$22*'Wine storage'!$B$18/'Wine storage'!$B$16+G$18*'Wine storage'!$B$36*'Wine storage'!$B$32/'Wine storage'!$B$30)/1000) -> 0 | H36: =IF('Red Fermentation Total'!$A$12<'Red Fermentation (1)'!$D$8,H$6*1.4*H$8*(H$9*'Red Fermentation Total'!$B$12+H$10*'Red Fermentation Total'!$C$12+H$11*'Red Fermentation Total'!$D$12)/1.09,H$6*H$8*0.7*($D36-'Wine storage'!$H$8)*(H$16*'Wine storage'!$B$10*'Wine storage'!$B$6/'Wine storage'!$B$4+H$17*'Wine storage'!$B$22*'Wine storage'!$B$18/'Wine storage'!$B$16+H$18*'Wine storage'!$B$36*'Wine storage'!$B$32/'Wine storage'!$B$30)/1000) -> 0 | I36: =IF('Red Fermentation Total'!$A$10<'Red Fermentation (1)'!$D$8,I$6*1.4*I$8*(I$9*'Red Fermentation Total'!$B$10+I$10*'Red Fermentation Total'!$C$10+I$11*'Red Fermentation Total'!$D$10)/1.09,I$6*I$8*0.7*($D36-'Wine storage'!$H$8)*(I$16*'Wine storage'!$B$10*'Wine storage'!$B$6/'Wine storage'!$B$4+I$17*'Wine storage'!$B$22*'Wine storage'!$B$18/'Wine storage'!$B$16+I$18*'Wine storage'!$B$36*'Wine storage'!$B$32/'Wine storage'!$B$30)/1000) -> 0 | J36: =IF('Red Fermentation Total'!$A$8<'Red Fermentation (1)'!$D$8,J$6*1.4*J$8*(J$9*'Red Fermentation Total'!$B$8+J$10*'Red Fermentation Total'!$C$8+J$11*'Red Fermentation Total'!$D$8)/1.09,J$6*J$8*0.7*($D36-'Wine storage'!$H$8)*(J$16*'Wine storage'!$B$10*'Wine storage'!$B$6/'Wine storage'!$B$4+J$17*'Wine storage'!$B$22*'Wine storage'!$B$18/'Wine storage'!$B$16+J$18*'Wine storage'!$B$36*'Wine storage'!$B$32/'Wine storage'!$B$30)/1000) -> 0 | K36: =IF('Red Fermentation Total'!$A$6<'Red Fermentation (1)'!$D$8,K$6*1.4*K$8*(K$9*'Red Fermentation Total'!$B$6+K$10*'Red Fermentation Total'!$C$6+K$11*'Red Fermentation Total'!$D$6)/1.09,K$6*K$8*0.7*($D36-'Wine storage'!$H$8)*(K$16*'Wine storage'!$B$10*'Wine storage'!$B$6/'Wine storage'!$B$4+K$17*'Wine storage'!$B$22*'Wine storage'!$B$18/'Wine storage'!$B$16+K$18*'Wine storage'!$B$36*'Wine storage'!$B$32/'Wine storage'!$B$30)/1000) -> 0 | L36: =IF('Red Fermentation Total'!$A$4<'Red Fermentation (1)'!$D$8,L$6*1.4*L$8*(L$9*'Red Fermentation Total'!$B$4+L$10*'Red Fermentation Total'!$C$4+L$11*'Red Fermentation Total'!$D$4)/1.09,L$6*L$8*0.7*($D36-'Wine storage'!$H$8)*(L$16*'Wine storage'!$B$10*'Wine storage'!$B$6/'Wine storage'!$B$4+L$17*'Wine storage'!$B$22*'Wine storage'!$B$18/'Wine storage'!$B$16+L$18*'Wine storage'!$B$36*'Wine storage'!$B$32/'Wine storage'!$B$30)/1000) -> 0 | M36: =M$6*M$8*($D36-$E36)*(M$9*'Red Fermentation Equipment'!$B$11*'Red Fermentation Equipment'!$B$6/'Red Fermentation Equipment'!$B$3+M$10*'Red Fermentation Equipment'!$B$23*'Red Fermentation Equipment'!$B$18/'Red Fermentation Equipment'!$B$15+'Cold Soak Red'!M$11*'Red Fermentation Equipment'!$B$35*'Red Fermentation Equipment'!$B$30/'Red Fermentation Equipment'!$B$27) -> 0
D37: =LOOKUP(MONTH(F37),'Brine and COP'!$C$28:$N$28,'Brine and COP'!$C$30:$N$30) -> 26.71982625 | E37: ='Red Fermentation Equipment'!$B$40 -> 4 | F37: 2014-01-08T09:00:00 | G37: =IF('Red Fermentation Total'!$A$15<'Red Fermentation (1)'!$D$8,G$6*1.4*G$8*(G$9*'Red Fermentation Total'!$B$15+G$10*'Red Fermentation Total'!$C$15+G$11*'Red Fermentation Total'!$D$15)/1.09,G$6*G$8*0.7*($D37-'Wine storage'!$H$8)*(G$16*'Wine storage'!$B$10*'Wine storage'!$B$6/'Wine storage'!$B$4+G$17*'Wine storage'!$B$22*'Wine storage'!$B$18/'Wine storage'!$B$16+G$18*'Wine storage'!$B$36*'Wine storage'!$B$32/'Wine storage'!$B$30)/1000) -> 0 | H37: =IF('Red Fermentation Total'!$A$13<'Red Fermentation (1)'!$D$8,H$6*1.4*H$8*(H$9*'Red Fermentation Total'!$B$13+H$10*'Red Fermentation Total'!$C$13+H$11*'Red Fermentation Total'!$D$13)/1.09,H$6*H$8*0.7*($D37-'Wine storage'!$H$8)*(H$16*'Wine storage'!$B$10*'Wine storage'!$B$6/'Wine storage'!$B$4+H$17*'Wine storage'!$B$22*'Wine storage'!$B$18/'Wine storage'!$B$16+H$18*'Wine storage'!$B$36*'Wine storage'!$B$32/'Wine storage'!$B$30)/1000) -> 0 | I37: =IF('Red Fermentation Total'!$A$11<'Red Fermentation (1)'!$D$8,I$6*1.4*I$8*(I$9*'Red Fermentation Total'!$B$11+I$10*'Red Fermentation Total'!$C$11+I$11*'Red Fermentation Total'!$D$11)/1.09,I$6*I$8*0.7*($D37-'Wine storage'!$H$8)*(I$16*'Wine storage'!$B$10*'Wine storage'!$B$6/'Wine storage'!$B$4+I$17*'Wine storage'!$B$22*'Wine storage'!$B$18/'Wine storage'!$B$16+I$18*'Wine storage'!$B$36*'Wine storage'!$B$32/'Wine storage'!$B$30)/1000) -> 0 | J37: =IF('Red Fermentation Total'!$A$9<'Red Fermentation (1)'!$D$8,J$6*1.4*J$8*(J$9*'Red Fermentation Total'!$B$9+J$10*'Red Fermentation Total'!$C$9+J$11*'Red Fermentation Total'!$D$9)/1.09,J$6*J$8*0.7*($D37-'Wine storage'!$H$8)*(J$16*'Wine storage'!$B$10*'Wine storage'!$B$6/'Wine storage'!$B$4+J$17*'Wine storage'!$B$22*'Wine storage'!$B$18/'Wine storage'!$B$16+J$18*'Wine storage'!$B$36*'Wine storage'!$B$32/'Wine storage'!$B$30)/1000) -> 0 | K37: =IF('Red Fermentation Total'!$A$7<'Red Fermentation (1)'!$D$8,K$6*1.4*K$8*(K$9*'Red Fermentation Total'!$B$7+K$10*'Red Fermentation Total'!$C$7+K$11*'Red Fermentation Total'!$D$7)/1.09,K$6*K$8*0.7*($D37-'Wine storage'!$H$8)*(K$16*'Wine storage'!$B$10*'Wine storage'!$B$6/'Wine storage'!$B$4+K$17*'Wine storage'!$B$22*'Wine storage'!$B$18/'Wine storage'!$B$16+K$18*'Wine storage'!$B$36*'Wine storage'!$B$32/'Wine storage'!$B$30)/1000) -> 0 | L37: =IF('Red Fermentation Total'!$A$5<'Red Fermentation (1)'!$D$8,L$6*1.4*L$8*(L$9*'Red Fermentation Total'!$B$5+L$10*'Red Fermentation Total'!$C$5+L$11*'Red Fermentation Total'!$D$5)/1.09,L$6*L$8*0.7*($D37-'Wine storage'!$H$8)*(L$16*'Wine storage'!$B$10*'Wine storage'!$B$6/'Wine storage'!$B$4+L$17*'Wine storage'!$B$22*'Wine storage'!$B$18/'Wine storage'!$B$16+L$18*'Wine storage'!$B$36*'Wine storage'!$B$32/'Wine storage'!$B$30)/1000) -> 0 | M37: =M36 -> 0
D38: =LOOKUP(MONTH(F38),'Brine and COP'!$C$28:$N$28,'Brine and COP'!$C$30:$N$30) -> 26.71982625 | E38: ='Red Fermentation Equipment'!$B$40 -> 4 | F38: 2014-01-08T21:00:00 | G38: =IF('Red Fermentation Total'!$A$16<'Red Fermentation (1)'!$D$8,G$6*1.4*G$8*(G$9*'Red Fermentation Total'!$B$16+G$10*'Red Fermentation Total'!$C$16+G$11*'Red Fermentation Total'!$D$16)/1.09,G$6*G$8*0.7*($D38-'Wine storage'!$H$8)*(G$16*'Wine storage'!$B$10*'Wine storage'!$B$6/'Wine storage'!$B$4+G$17*'Wine storage'!$B$22*'Wine storage'!$B$18/'Wine storage'!$B$16+G$18*'Wine storage'!$B$36*'Wine storage'!$B$32/'Wine storage'!$B$30)/1000) -> 0 | H38: =IF('Red Fermentation Total'!$A$14<'Red Fermentation (1)'!$D$8,H$6*1.4*H$8*(H$9*'Red Fermentation Total'!$B$14+H$10*'Red Fermentation Total'!$C$14+H$11*'Red Fermentation Total'!$D$14)/1.09,H$6*H$8*0.7*($D38-'Wine storage'!$H$8)*(H$16*'Wine storage'!$B$10*'Wine storage'!$B$6/'Wine storage'!$B$4+H$17*'Wine storage'!$B$22*'Wine storage'!$B$18/'Wine storage'!$B$16+H$18*'Wine storage'!$B$36*'Wine storage'!$B$32/'Wine storage'!$B$30)/1000) -> 0 | I38: =IF('Red Fermentation Total'!$A$12<'Red Fermentation (1)'!$D$8,I$6*1.4*I$8*(I$9*'Red Fermentation Total'!$B$12+I$10*'Red Fermentation Total'!$C$12+I$11*'Red Fermentation Total'!$D$12)/1.09,I$6*I$8*0.7*($D38-'Wine storage'!$H$8)*(I$16*'Wine storage'!$B$10*'Wine storage'!$B$6/'Wine storage'!$B$4+I$17*'Wine storage'!$B$22*'Wine storage'!$B$18/'Wine storage'!$B$16+I$18*'Wine storage'!$B$36*'Wine storage'!$B$32/'Wine storage'!$B$30)/1000) -> 0 | J38: =IF('Red Fermentation Total'!$A$10<'Red Fermentation (1)'!$D$8,J$6*1.4*J$8*(J$9*'Red Fermentation Total'!$B$10+J$10*'Red Fermentation Total'!$C$10+J$11*'Red Fermentation Total'!$D$10)/1.09,J$6*J$8*0.7*($D38-'Wine storage'!$H$8)*(J$16*'Wine storage'!$B$10*'Wine storage'!$B$6/'Wine storage'!$B$4+J$17*'Wine storage'!$B$22*'Wine storage'!$B$18/'Wine storage'!$B$16+J$18*'Wine storage'!$B$36*'Wine storage'!$B$32/'Wine storage'!$B$30)/1000) -> 0 | K38: =IF('Red Fermentation Total'!$A$8<'Red Fermentation (1)'!$D$8,K$6*1.4*K$8*(K$9*'Red Fermentation Total'!$B$8+K$10*'Red Fermentation Total'!$C$8+K$11*'Red Fermentation Total'!$D$8)/1.09,K$6*K$8*0.7*($D38-'Wine storage'!$H$8)*(K$16*'Wine storage'!$B$10*'Wine storage'!$B$6/'Wine storage'!$B$4+K$17*'Wine storage'!$B$22*'Wine storage'!$B$18/'Wine storage'!$B$16+K$18*'Wine storage'!$B$36*'Wine storage'!$B$32/'Wine storage'!$B$30)/1000) -> 0 | L38: =IF('Red Fermentation Total'!$A$6<'Red Fermentation (1)'!$D$8,L$6*1.4*L$8*(L$9*'Red Fermentation Total'!$B$6+L$10*'Red Fermentation Total'!$C$6+L$11*'Red Fermentation Total'!$D$6)/1.09,L$6*L$8*0.7*($D38-'Wine storage'!$H$8)*(L$16*'Wine storage'!$B$10*'Wine storage'!$B$6/'Wine storage'!$B$4+L$17*'Wine storage'!$B$22*'Wine storage'!$B$18/'Wine storage'!$B$16+L$18*'Wine storage'!$B$36*'Wine storage'!$B$32/'Wine storage'!$B$30)/1000) -> 0 | M38: =IF('Red Fermentation Total'!$A$4<'Red Fermentation (1)'!$D$8,M$6*1.4*M$8*(M$9*'Red Fermentation Total'!$B$4+M$10*'Red Fermentation Total'!$C$4+M$11*'Red Fermentation Total'!$D$4)/1.09,M$6*M$8*0.7*($D38-'Wine storage'!$H$8)*(M$16*'Wine storage'!$B$10*'Wine storage'!$B$6/'Wine storage'!$B$4+M$17*'Wine storage'!$B$22*'Wine storage'!$B$18/'Wine storage'!$B$16+M$18*'Wine storage'!$B$36*'Wine storage'!$B$32/'Wine storage'!$B$30)/1000) -> 0 | N38: =N$6*N$8*($D38-$E38)*(N$9*'Red Fermentation Equipment'!$B$11*'Red Fermentation Equipment'!$B$6/'Red Fermentation Equipment'!$B$3+N$10*'Red Fermentation Equipment'!$B$23*'Red Fermentation Equipment'!$B$18/'Red Fermentation Equipment'!$B$15+'Cold Soak Red'!N$11*'Red Fermentation Equipment'!$B$35*'Red Fermentation Equipment'!$B$30/'Red Fermentation Equipment'!$B$27) -> 0
D39: =LOOKUP(MONTH(F39),'Brine and COP'!$C$28:$N$28,'Brine and COP'!$C$30:$N$30) -> 26.71982625 | E39: ='Red Fermentation Equipment'!$B$40 -> 4 | F39: 2014-01-09T09:00:00 | G39: =IF('Red Fermentation Total'!$A$17<'Red Fermentation (1)'!$D$8,G$6*1.4*G$8*(G$9*'Red Fermentation Total'!$B$17+G$10*'Red Fermentation Total'!$C$17+G$11*'Red Fermentation Total'!$D$17)/1.09,G$6*G$8*0.7*($D39-'Wine storage'!$H$8)*(G$16*'Wine storage'!$B$10*'Wine storage'!$B$6/'Wine storage'!$B$4+G$17*'Wine storage'!$B$22*'Wine storage'!$B$18/'Wine storage'!$B$16+G$18*'Wine storage'!$B$36*'Wine storage'!$B$32/'Wine storage'!$B$30)/1000) -> 0 | H39: =IF('Red Fermentation Total'!$A$15<'Red Fermentation (1)'!$D$8,H$6*1.4*H$8*(H$9*'Red Fermentation Total'!$B$15+H$10*'Red Fermentation Total'!$C$15+H$11*'Red Fermentation Total'!$D$15)/1.09,H$6*H$8*0.7*($D39-'Wine storage'!$H$8)*(H$16*'Wine storage'!$B$10*'Wine storage'!$B$6/'Wine storage'!$B$4+H$17*'Wine storage'!$B$22*'Wine storage'!$B$18/'Wine storage'!$B$16+H$18*'Wine storage'!$B$36*'Wine storage'!$B$32/'Wine storage'!$B$30)/1000) -> 0 | I39: =IF('Red Fermentation Total'!$A$13<'Red Fermentation (1)'!$D$8,I$6*1.4*I$8*(I$9*'Red Fermentation Total'!$B$13+I$10*'Red Fermentation Total'!$C$13+I$11*'Red Fermentation Total'!$D$13)/1.09,I$6*I$8*0.7*($D39-'Wine storage'!$H$8)*(I$16*'Wine storage'!$B$10*'Wine storage'!$B$6/'Wine storage'!$B$4+I$17*'Wine storage'!$B$22*'Wine storage'!$B$18/'Wine storage'!$B$16+I$18*'Wine storage'!$B$36*'Wine storage'!$B$32/'Wine storage'!$B$30)/1000) -> 0 | J39: =IF('Red Fermentation Total'!$A$11<'Red Fermentation (1)'!$D$8,J$6*1.4*J$8*(J$9*'Red Fermentation Total'!$B$11+J$10*'Red Fermentation Total'!$C$11+J$11*'Red Fermentation Total'!$D$11)/1.09,J$6*J$8*0.7*($D39-'Wine storage'!$H$8)*(J$16*'Wine storage'!$B$10*'Wine storage'!$B$6/'Wine storage'!$B$4+J$17*'Wine storage'!$B$22*'Wine storage'!$B$18/'Wine storage'!$B$16+J$18*'Wine storage'!$B$36*'Wine storage'!$B$32/'Wine storage'!$B$30)/1000) -> 0 | K39: =IF('Red Fermentation Total'!$A$9<'Red Fermentation (1)'!$D$8,K$6*1.4*K$8*(K$9*'Red Fermentation Total'!$B$9+K$10*'Red Fermentation Total'!$C$9+K$11*'Red Fermentation Total'!$D$9)/1.09,K$6*K$8*0.7*($D39-'Wine storage'!$H$8)*(K$16*'Wine storage'!$B$10*'Wine storage'!$B$6/'Wine storage'!$B$4+K$17*'Wine storage'!$B$22*'Wine storage'!$B$18/'Wine storage'!$B$16+K$18*'Wine storage'!$B$36*'Wine storage'!$B$32/'Wine storage'!$B$30)/1000) -> 0 | L39: =IF('Red Fermentation Total'!$A$7<'Red Fermentation (1)'!$D$8,L$6*1.4*L$8*(L$9*'Red Fermentation Total'!$B$7+L$10*'Red Fermentation Total'!$C$7+L$11*'Red Fermentation Total'!$D$7)/1.09,L$6*L$8*0.7*($D39-'Wine storage'!$H$8)*(L$16*'Wine storage'!$B$10*'Wine storage'!$B$6/'Wine storage'!$B$4+L$17*'Wine storage'!$B$22*'Wine storage'!$B$18/'Wine storage'!$B$16+L$18*'Wine storage'!$B$36*'Wine storage'!$B$32/'Wine storage'!$B$30)/1000) -> 0 | M39: =IF('Red Fermentation Total'!$A$5<'Red Fermentation (1)'!$D$8,M$6*1.4*M$8*(M$9*'Red Fermentation Total'!$B$5+M$10*'Red Fermentation Total'!$C$5+M$11*'Red Fermentation Total'!$D$5)/1.09,M$6*M$8*0.7*($D39-'Wine storage'!$H$8)*(M$16*'Wine storage'!$B$10*'Wine storage'!$B$6/'Wine storage'!$B$4+M$17*'Wine storage'!$B$22*'Wine storage'!$B$18/'Wine storage'!$B$16+M$18*'Wine storage'!$B$36*'Wine storage'!$B$32/'Wine storage'!$B$30)/1000) -> 0 | N39: =N38 -> 0
D40: =LOOKUP(MONTH(F40),'Brine and COP'!$C$28:$N$28,'Brine and COP'!$C$30:$N$30) -> 26.71982625 | E40: ='Red Fermentation Equipment'!$B$40 -> 4 | F40: 2014-01-09T21:00:00 | G40: =IF('Red Fermentation Total'!$A$18<'Red Fermentation (1)'!$D$8,G$6*1.4*G$8*(G$9*'Red Fermentation Total'!$B$18+G$10*'Red Fermentation Total'!$C$18+G$11*'Red Fermentation Total'!$D$18)/1.09,G$6*G$8*0.7*($D40-'Wine storage'!$H$8)*(G$16*'Wine storage'!$B$10*'Wine storage'!$B$6/'Wine storage'!$B$4+G$17*'Wine storage'!$B$22*'Wine storage'!$B$18/'Wine storage'!$B$16+G$18*'Wine storage'!$B$36*'Wine storage'!$B$32/'Wine storage'!$B$30)/1000) -> 0 | H40: =IF('Red Fermentation Total'!$A$16<'Red Fermentation (1)'!$D$8,H$6*1.4*H$8*(H$9*'Red Fermentation Total'!$B$16+H$10*'Red Fermentation Total'!$C$16+H$11*'Red Fermentation Total'!$D$16)/1.09,H$6*H$8*0.7*($D40-'Wine storage'!$H$8)*(H$16*'Wine storage'!$B$10*'Wine storage'!$B$6/'Wine storage'!$B$4+H$17*'Wine storage'!$B$22*'Wine storage'!$B$18/'Wine storage'!$B$16+H$18*'Wine storage'!$B$36*'Wine storage'!$B$32/'Wine storage'!$B$30)/1000) -> 0 | I40: =IF('Red Fermentation Total'!$A$14<'Red Fermentation (1)'!$D$8,I$6*1.4*I$8*(I$9*'Red Fermentation Total'!$B$14+I$10*'Red Fermentation Total'!$C$14+I$11*'Red Fermentation Total'!$D$14)/1.09,I$6*I$8*0.7*($D40-'Wine storage'!$H$8)*(I$16*'Wine storage'!$B$10*'Wine storage'!$B$6/'Wine storage'!$B$4+I$17*'Wine storage'!$B$22*'Wine storage'!$B$18/'Wine storage'!$B$16+I$18*'Wine storage'!$B$36*'Wine storage'!$B$32/'Wine storage'!$B$30)/1000) -> 0 | J40: =IF('Red Fermentation Total'!$A$12<'Red Fermentation (1)'!$D$8,J$6*1.4*J$8*(J$9*'Red Fermentation Total'!$B$12+J$10*'Red Fermentation Total'!$C$12+J$11*'Red Fermentation Total'!$D$12)/1.09,J$6*J$8*0.7*($D40-'Wine storage'!$H$8)*(J$16*'Wine storage'!$B$10*'Wine storage'!$B$6/'Wine storage'!$B$4+J$17*'Wine storage'!$B$22*'Wine storage'!$B$18/'Wine storage'!$B$16+J$18*'Wine storage'!$B$36*'Wine storage'!$B$32/'Wine storage'!$B$30)/1000) -> 0 | K40: =IF('Red Fermentation Total'!$A$10<'Red Fermentation (1)'!$D$8,K$6*1.4*K$8*(K$9*'Red Fermentation Total'!$B$10+K$10*'Red Fermentation Total'!$C$10+K$11*'Red Fermentation Total'!$D$10)/1.09,K$6*K$8*0.7*($D40-'Wine storage'!$H$8)*(K$16*'Wine storage'!$B$10*'Wine storage'!$B$6/'Wine storage'!$B$4+K$17*'Wine storage'!$B$22*'Wine storage'!$B$18/'Wine storage'!$B$16+K$18*'Wine storage'!$B$36*'Wine storage'!$B$32/'Wine storage'!$B$30)/1000) -> 0 | L40: =IF('Red Fermentation Total'!$A$8<'Red Fermentation (1)'!$D$8,L$6*1.4*L$8*(L$9*'Red Fermentation Total'!$B$8+L$10*'Red Fermentation Total'!$C$8+L$11*'Red Fermentation Total'!$D$8)/1.09,L$6*L$8*0.7*($D40-'Wine storage'!$H$8)*(L$16*'Wine storage'!$B$10*'Wine storage'!$B$6/'Wine storage'!$B$4+L$17*'Wine storage'!$B$22*'Wine storage'!$B$18/'Wine storage'!$B$16+L$18*'Wine storage'!$B$36*'Wine storage'!$B$32/'Wine storage'!$B$30)/1000) -> 0 | M40: =IF('Red Fermentation Total'!$A$6<'Red Fermentation (1)'!$D$8,M$6*1.4*M$8*(M$9*'Red Fermentation Total'!$B$6+M$10*'Red Fermentation Total'!$C$6+M$11*'Red Fermentation Total'!$D$6)/1.09,M$6*M$8*0.7*($D40-'Wine storage'!$H$8)*(M$16*'Wine storage'!$B$10*'Wine storage'!$B$6/'Wine storage'!$B$4+M$17*'Wine storage'!$B$22*'Wine storage'!$B$18/'Wine storage'!$B$16+M$18*'Wine storage'!$B$36*'Wine storage'!$B$32/'Wine storage'!$B$30)/1000) -> 0 | N40: =IF('Red Fermentation Total'!$A$4<'Red Fermentation (1)'!$D$8,N$6*1.4*N$8*(N$9*'Red Fermentation Total'!$B$4+N$10*'Red Fermentation Total'!$C$4+N$11*'Red Fermentation Total'!$D$4)/1.09,N$6*N$8*0.7*($D40-'Wine storage'!$H$8)*(N$16*'Wine storage'!$B$10*'Wine storage'!$B$6/'Wine storage'!$B$4+N$17*'Wine storage'!$B$22*'Wine storage'!$B$18/'Wine storage'!$B$16+N$18*'Wine storage'!$B$36*'Wine storage'!$B$32/'Wine storage'!$B$30)/1000) -> 0 | O40: =O$6*O$8*($D40-$E40)*(O$9*'Red Fermentation Equipment'!$B$11*'Red Fermentation Equipment'!$B$6/'Red Fermentation Equipment'!$B$3+O$10*'Red Fermentation Equipment'!$B$23*'Red Fermentation Equipment'!$B$18/'Red Fermentation Equipment'!$B$15+'Cold Soak Red'!O$11*'Red Fermentation Equipment'!$B$35*'Red Fermentation Equipment'!$B$30/'Red Fermentation Equipment'!$B$27) -> 0
D41: =LOOKUP(MONTH(F41),'Brine and COP'!$C$28:$N$28,'Brine and COP'!$C$30:$N$30) -> 26.71982625 | E41: ='Red Fermentation Equipment'!$B$40 -> 4 | F41: 2014-01-10T09:00:00 | G41: =IF('Red Fermentation Total'!$A$19<'Red Fermentation (1)'!$D$8,G$6*1.4*G$8*(G$9*'Red Fermentation Total'!$B$19+G$10*'Red Fermentation Total'!$C$19+G$11*'Red Fermentation Total'!$D$19)/1.09,G$6*G$8*0.7*($D41-'Wine storage'!$H$8)*(G$16*'Wine storage'!$B$10*'Wine storage'!$B$6/'Wine storage'!$B$4+G$17*'Wine storage'!$B$22*'Wine storage'!$B$18/'Wine storage'!$B$16+G$18*'Wine storage'!$B$36*'Wine storage'!$B$32/'Wine storage'!$B$30)/1000) -> 0 | H41: =IF('Red Fermentation Total'!$A$17<'Red Fermentation (1)'!$D$8,H$6*1.4*H$8*(H$9*'Red Fermentation Total'!$B$17+H$10*'Red Fermentation Total'!$C$17+H$11*'Red Fermentation Total'!$D$17)/1.09,H$6*H$8*0.7*($D41-'Wine storage'!$H$8)*(H$16*'Wine storage'!$B$10*'Wine storage'!$B$6/'Wine storage'!$B$4+H$17*'Wine storage'!$B$22*'Wine storage'!$B$18/'Wine storage'!$B$16+H$18*'Wine storage'!$B$36*'Wine storage'!$B$32/'Wine storage'!$B$30)/1000) -> 0 | I41: =IF('Red Fermentation Total'!$A$15<'Red Fermentation (1)'!$D$8,I$6*1.4*I$8*(I$9*'Red Fermentation Total'!$B$15+I$10*'Red Fermentation Total'!$C$15+I$11*'Red Fermentation Total'!$D$15)/1.09,I$6*I$8*0.7*($D41-'Wine storage'!$H$8)*(I$16*'Wine storage'!$B$10*'Wine storage'!$B$6/'Wine storage'!$B$4+I$17*'Wine storage'!$B$22*'Wine storage'!$B$18/'Wine storage'!$B$16+I$18*'Wine storage'!$B$36*'Wine storage'!$B$32/'Wine storage'!$B$30)/1000) -> 0 | J41: =IF('Red Fermentation Total'!$A$13<'Red Fermentation (1)'!$D$8,J$6*1.4*J$8*(J$9*'Red Fermentation Total'!$B$13+J$10*'Red Fermentation Total'!$C$13+J$11*'Red Fermentation Total'!$D$13)/1.09,J$6*J$8*0.7*($D41-'Wine storage'!$H$8)*(J$16*'Wine storage'!$B$10*'Wine storage'!$B$6/'Wine storage'!$B$4+J$17*'Wine storage'!$B$22*'Wine storage'!$B$18/'Wine storage'!$B$16+J$18*'Wine storage'!$B$36*'Wine storage'!$B$32/'Wine storage'!$B$30)/1000) -> 0 | K41: =IF('Red Fermentation Total'!$A$11<'Red Fermentation (1)'!$D$8,K$6*1.4*K$8*(K$9*'Red Fermentation Total'!$B$11+K$10*'Red Fermentation Total'!$C$11+K$11*'Red Fermentation Total'!$D$11)/1.09,K$6*K$8*0.7*($D41-'Wine storage'!$H$8)*(K$16*'Wine storage'!$B$10*'Wine storage'!$B$6/'Wine storage'!$B$4+K$17*'Wine storage'!$B$22*'Wine storage'!$B$18/'Wine storage'!$B$16+K$18*'Wine storage'!$B$36*'Wine storage'!$B$32/'Wine storage'!$B$30)/1000) -> 0 | L41: =IF('Red Fermentation Total'!$A$9<'Red Fermentation (1)'!$D$8,L$6*1.4*L$8*(L$9*'Red Fermentation Total'!$B$9+L$10*'Red Fermentation Total'!$C$9+L$11*'Red Fermentation Total'!$D$9)/1.09,L$6*L$8*0.7*($D41-'Wine storage'!$H$8)*(L$16*'Wine storage'!$B$10*'Wine storage'!$B$6/'Wine storage'!$B$4+L$17*'Wine storage'!$B$22*'Wine storage'!$B$18/'Wine storage'!$B$16+L$18*'Wine storage'!$B$36*'Wine storage'!$B$32/'Wine storage'!$B$30)/1000) -> 0 | M41: =IF('Red Fermentation Total'!$A$7<'Red Fermentation (1)'!$D$8,M$6*1.4*M$8*(M$9*'Red Fermentation Total'!$B$7+M$10*'Red Fermentation Total'!$C$7+M$11*'Red Fermentation Total'!$D$7)/1.09,M$6*M$8*0.7*($D41-'Wine storage'!$H$8)*(M$16*'Wine storage'!$B$10*'Wine storage'!$B$6/'Wine storage'!$B$4+M$17*'Wine storage'!$B$22*'Wine storage'!$B$18/'Wine storage'!$B$16+M$18*'Wine storage'!$B$36*'Wine storage'!$B$32/'Wine storage'!$B$30)/1000) -> 0 | N41: =IF('Red Fermentation Total'!$A$5<'Red Fermentation (1)'!$D$8,N$6*1.4*N$8*(N$9*'Red Fermentation Total'!$B$5+N$10*'Red Fermentation Total'!$C$5+N$11*'Red Fermentation Total'!$D$5)/1.09,N$6*N$8*0.7*($D41-'Wine storage'!$H$8)*(N$16*'Wine storage'!$B$10*'Wine storage'!$B$6/'Wine storage'!$B$4+N$17*'Wine storage'!$B$22*'Wine storage'!$B$18/'Wine storage'!$B$16+N$18*'Wine storage'!$B$36*'Wine storage'!$B$32/'Wine storage'!$B$30)/1000) -> 0 | O41: =O40 -> 0
D42: =LOOKUP(MONTH(F42),'Brine and COP'!$C$28:$N$28,'Brine and COP'!$C$30:$N$30) -> 26.71982625 | E42: ='Red Fermentation Equipment'!$B$40 -> 4 | F42: 2014-01-10T21:00:00 | G42: =IF('Red Fermentation Total'!$A$20<'Red Fermentation (1)'!$D$8,G$6*1.4*G$8*(G$9*'Red Fermentation Total'!$B$20+G$10*'Red Fermentation Total'!$C$20+G$11*'Red Fermentation Total'!$D$20)/1.09,G$6*G$8*0.7*($D42-'Wine storage'!$H$8)*(G$16*'Wine storage'!$B$10*'Wine storage'!$B$6/'Wine storage'!$B$4+G$17*'Wine storage'!$B$22*'Wine storage'!$B$18/'Wine storage'!$B$16+G$18*'Wine storage'!$B$36*'Wine storage'!$B$32/'Wine storage'!$B$30)/1000) -> 0 | H42: =IF('Red Fermentation Total'!$A$18<'Red Fermentation (1)'!$D$8,H$6*1.4*H$8*(H$9*'Red Fermentation Total'!$B$18+H$10*'Red Fermentation Total'!$C$18+H$11*'Red Fermentation Total'!$D$18)/1.09,H$6*H$8*0.7*($D42-'Wine storage'!$H$8)*(H$16*'Wine storage'!$B$10*'Wine storage'!$B$6/'Wine storage'!$B$4+H$17*'Wine storage'!$B$22*'Wine storage'!$B$18/'Wine storage'!$B$16+H$18*'Wine storage'!$B$36*'Wine storage'!$B$32/'Wine storage'!$B$30)/1000) -> 0 | I42: =IF('Red Fermentation Total'!$A$16<'Red Fermentation (1)'!$D$8,I$6*1.4*I$8*(I$9*'Red Fermentation Total'!$B$16+I$10*'Red Fermentation Total'!$C$16+I$11*'Red Fermentation Total'!$D$16)/1.09,I$6*I$8*0.7*($D42-'Wine storage'!$H$8)*(I$16*'Wine storage'!$B$10*'Wine storage'!$B$6/'Wine storage'!$B$4+I$17*'Wine storage'!$B$22*'Wine storage'!$B$18/'Wine storage'!$B$16+I$18*'Wine storage'!$B$36*'Wine storage'!$B$32/'Wine storage'!$B$30)/1000) -> 0 | J42: =IF('Red Fermentation Total'!$A$14<'Red Fermentation (1)'!$D$8,J$6*1.4*J$8*(J$9*'Red Fermentation Total'!$B$14+J$10*'Red Fermentation Total'!$C$14+J$11*'Red Fermentation Total'!$D$14)/1.09,J$6*J$8*0.7*($D42-'Wine storage'!$H$8)*(J$16*'Wine storage'!$B$10*'Wine storage'!$B$6/'Wine storage'!$B$4+J$17*'Wine storage'!$B$22*'Wine storage'!$B$18/'Wine storage'!$B$16+J$18*'Wine storage'!$B$36*'Wine storage'!$B$32/'Wine storage'!$B$30)/1000) -> 0 | K42: =IF('Red Fermentation Total'!$A$12<'Red Fermentation (1)'!$D$8,K$6*1.4*K$8*(K$9*'Red Fermentation Total'!$B$12+K$10*'Red Fermentation Total'!$C$12+K$11*'Red Fermentation Total'!$D$12)/1.09,K$6*K$8*0.7*($D42-'Wine storage'!$H$8)*(K$16*'Wine storage'!$B$10*'Wine storage'!$B$6/'Wine storage'!$B$4+K$17*'Wine storage'!$B$22*'Wine storage'!$B$18/'Wine storage'!$B$16+K$18*'Wine storage'!$B$36*'Wine storage'!$B$32/'Wine storage'!$B$30)/1000) -> 0 | L42: =IF('Red Fermentation Total'!$A$10<'Red Fermentation (1)'!$D$8,L$6*1.4*L$8*(L$9*'Red Fermentation Total'!$B$10+L$10*'Red Fermentation Total'!$C$10+L$11*'Red Fermentation Total'!$D$10)/1.09,L$6*L$8*0.7*($D42-'Wine storage'!$H$8)*(L$16*'Wine storage'!$B$10*'Wine storage'!$B$6/'Wine storage'!$B$4+L$17*'Wine storage'!$B$22*'Wine storage'!$B$18/'Wine storage'!$B$16+L$18*'Wine storage'!$B$36*'Wine storage'!$B$32/'Wine storage'!$B$30)/1000) -> 0 | M42: =IF('Red Fermentation Total'!$A$8<'Red Fermentation (1)'!$D$8,M$6*1.4*M$8*(M$9*'Red Fermentation Total'!$B$8+M$10*'Red Fermentation Total'!$C$8+M$11*'Red Fermentation Total'!$D$8)/1.09,M$6*M$8*0.7*($D42-'Wine storage'!$H$8)*(M$16*'Wine storage'!$B$10*'Wine storage'!$B$6/'Wine storage'!$B$4+M$17*'Wine storage'!$B$22*'Wine storage'!$B$18/'Wine storage'!$B$16+M$18*'Wine storage'!$B$36*'Wine storage'!$B$32/'Wine storage'!$B$30)/1000) -> 0 | N42: =IF('Red Fermentation Total'!$A$6<'Red Fermentation (1)'!$D$8,N$6*1.4*N$8*(N$9*'Red Fermentation Total'!$B$6+N$10*'Red Fermentation Total'!$C$6+N$11*'Red Fermentation Total'!$D$6)/1.09,N$6*N$8*0.7*($D42-'Wine storage'!$H$8)*(N$16*'Wine storage'!$B$10*'Wine storage'!$B$6/'Wine storage'!$B$4+N$17*'Wine storage'!$B$22*'Wine storage'!$B$18/'Wine storage'!$B$16+N$18*'Wine storage'!$B$36*'Wine storage'!$B$32/'Wine storage'!$B$30)/1000) -> 0 | O42: =IF('Red Fermentation Total'!$A$4<'Red Fermentation (1)'!$D$8,O$6*1.4*O$8*(O$9*'Red Fermentation Total'!$B$4+O$10*'Red Fermentation Total'!$C$4+O$11*'Red Fermentation Total'!$D$4)/1.09,O$6*O$8*0.7*($D42-'Wine storage'!$H$8)*(O$16*'Wine storage'!$B$10*'Wine storage'!$B$6/'Wine storage'!$B$4+O$17*'Wine storage'!$B$22*'Wine storage'!$B$18/'Wine storage'!$B$16+O$18*'Wine storage'!$B$36*'Wine storage'!$B$32/'Wine storage'!$B$30)/1000) -> 0 | P42: =P$6*P$8*($D42-$E42)*(P$9*'Red Fermentation Equipment'!$B$11*'Red Fermentation Equipment'!$B$6/'Red Fermentation Equipment'!$B$3+P$10*'Red Fermentation Equipment'!$B$23*'Red Fermentation Equipment'!$B$18/'Red Fermentation Equipment'!$B$15+'Cold Soak Red'!P$11*'Red Fermentation Equipment'!$B$35*'Red Fermentation Equipment'!$B$30/'Red Fermentation Equipment'!$B$27) -> 0
D43: =LOOKUP(MONTH(F43),'Brine and COP'!$C$28:$N$28,'Brine and COP'!$C$30:$N$30) -> 26.71982625 | E43: ='Red Fermentation Equipment'!$B$40 -> 4 | F43: 2014-01-11T09:00:00 | G43: =IF('Red Fermentation Total'!$A$21<'Red Fermentation (1)'!$D$8,G$6*1.4*G$8*(G$9*'Red Fermentation Total'!$B$21+G$10*'Red Fermentation Total'!$C$21+G$11*'Red Fermentation Total'!$D$21)/1.09,G$6*G$8*0.7*($D43-'Wine storage'!$H$8)*(G$16*'Wine storage'!$B$10*'Wine storage'!$B$6/'Wine storage'!$B$4+G$17*'Wine storage'!$B$22*'Wine storage'!$B$18/'Wine storage'!$B$16+G$18*'Wine storage'!$B$36*'Wine storage'!$B$32/'Wine storage'!$B$30)/1000) -> 0 | H43: =IF('Red Fermentation Total'!$A$19<'Red Fermentation (1)'!$D$8,H$6*1.4*H$8*(H$9*'Red Fermentation Total'!$B$19+H$10*'Red Fermentation Total'!$C$19+H$11*'Red Fermentation Total'!$D$19)/1.09,H$6*H$8*0.7*($D43-'Wine storage'!$H$8)*(H$16*'Wine storage'!$B$10*'Wine storage'!$B$6/'Wine storage'!$B$4+H$17*'Wine storage'!$B$22*'Wine storage'!$B$18/'Wine storage'!$B$16+H$18*'Wine storage'!$B$36*'Wine storage'!$B$32/'Wine storage'!$B$30)/1000) -> 0 | I43: =IF('Red Fermentation Total'!$A$17<'Red Fermentation (1)'!$D$8,I$6*1.4*I$8*(I$9*'Red Fermentation Total'!$B$17+I$10*'Red Fermentation Total'!$C$17+I$11*'Red Fermentation Total'!$D$17)/1.09,I$6*I$8*0.7*($D43-'Wine storage'!$H$8)*(I$16*'Wine storage'!$B$10*'Wine storage'!$B$6/'Wine storage'!$B$4+I$17*'Wine storage'!$B$22*'Wine storage'!$B$18/'Wine storage'!$B$16+I$18*'Wine storage'!$B$36*'Wine storage'!$B$32/'Wine storage'!$B$30)/1000) -> 0 | J43: =IF('Red Fermentation Total'!$A$15<'Red Fermentation (1)'!$D$8,J$6*1.4*J$8*(J$9*'Red Fermentation Total'!$B$15+J$10*'Red Fermentation Total'!$C$15+J$11*'Red Fermentation Total'!$D$15)/1.09,J$6*J$8*0.7*($D43-'Wine storage'!$H$8)*(J$16*'Wine storage'!$B$10*'Wine storage'!$B$6/'Wine storage'!$B$4+J$17*'Wine storage'!$B$22*'Wine storage'!$B$18/'Wine storage'!$B$16+J$18*'Wine storage'!$B$36*'Wine storage'!$B$32/'Wine storage'!$B$30)/1000) -> 0 | K43: =IF('Red Fermentation Total'!$A$13<'Red Fermentation (1)'!$D$8,K$6*1.4*K$8*(K$9*'Red Fermentation Total'!$B$13+K$10*'Red Fermentation Total'!$C$13+K$11*'Red Fermentation Total'!$D$13)/1.09,K$6*K$8*0.7*($D43-'Wine storage'!$H$8)*(K$16*'Wine storage'!$B$10*'Wine storage'!$B$6/'Wine storage'!$B$4+K$17*'Wine storage'!$B$22*'Wine storage'!$B$18/'Wine storage'!$B$16+K$18*'Wine storage'!$B$36*'Wine storage'!$B$32/'Wine storage'!$B$30)/1000) -> 0 | L43: =IF('Red Fermentation Total'!$A$11<'Red Fermentation (1)'!$D$8,L$6*1.4*L$8*(L$9*'Red Fermentation Total'!$B$11+L$10*'Red Fermentation Total'!$C$11+L$11*'Red Fermentation Total'!$D$11)/1.09,L$6*L$8*0.7*($D43-'Wine storage'!$H$8)*(L$16*'Wine storage'!$B$10*'Wine storage'!$B$6/'Wine storage'!$B$4+L$17*'Wine storage'!$B$22*'Wine storage'!$B$18/'Wine storage'!$B$16+L$18*'Wine storage'!$B$36*'Wine storage'!$B$32/'Wine storage'!$B$30)/1000) -> 0 | M43: =IF('Red Fermentation Total'!$A$9<'Red Fermentation (1)'!$D$8,M$6*1.4*M$8*(M$9*'Red Fermentation Total'!$B$9+M$10*'Red Fermentation Total'!$C$9+M$11*'Red Fermentation Total'!$D$9)/1.09,M$6*M$8*0.7*($D43-'Wine storage'!$H$8)*(M$16*'Wine storage'!$B$10*'Wine storage'!$B$6/'Wine storage'!$B$4+M$17*'Wine storage'!$B$22*'Wine storage'!$B$18/'Wine storage'!$B$16+M$18*'Wine storage'!$B$36*'Wine storage'!$B$32/'Wine storage'!$B$30)/1000) -> 0 | N43: =IF('Red Fermentation Total'!$A$7<'Red Fermentation (1)'!$D$8,N$6*1.4*N$8*(N$9*'Red Fermentation Total'!$B$7+N$10*'Red Fermentation Total'!$C$7+N$11*'Red Fermentation Total'!$D$7)/1.09,N$6*N$8*0.7*($D43-'Wine storage'!$H$8)*(N$16*'Wine storage'!$B$10*'Wine storage'!$B$6/'Wine storage'!$B$4+N$17*'Wine storage'!$B$22*'Wine storage'!$B$18/'Wine storage'!$B$16+N$18*'Wine storage'!$B$36*'Wine storage'!$B$32/'Wine storage'!$B$30)/1000) -> 0 | O43: =IF('Red Fermentation Total'!$A$5<'Red Fermentation (1)'!$D$8,O$6*1.4*O$8*(O$9*'Red Fermentation Total'!$B$5+O$10*'Red Fermentation Total'!$C$5+O$11*'Red Fermentation Total'!$D$5)/1.09,O$6*O$8*0.7*($D43-'Wine storage'!$H$8)*(O$16*'Wine storage'!$B$10*'Wine storage'!$B$6/'Wine storage'!$B$4+O$17*'Wine storage'!$B$22*'Wine storage'!$B$18/'Wine storage'!$B$16+O$18*'Wine storage'!$B$36*'Wine storage'!$B$32/'Wine storage'!$B$30)/1000) -> 0 | P43: =P42 -> 0
D44: =LOOKUP(MONTH(F44),'Brine and COP'!$C$28:$N$28,'Brine and COP'!$C$30:$N$30) -> 26.71982625 | E44: ='Red Fermentation Equipment'!$B$40 -> 4 | F44: 2014-01-11T21:00:00 | G44: =IF('Red Fermentation Total'!$A$22<'Red Fermentation (1)'!$D$8,G$6*1.4*G$8*(G$9*'Red Fermentation Total'!$B$22+G$10*'Red Fermentation Total'!$C$22+G$11*'Red Fermentation Total'!$D$22)/1.09,G$6*G$8*0.7*($D44-'Wine storage'!$H$8)*(G$16*'Wine storage'!$B$10*'Wine storage'!$B$6/'Wine storage'!$B$4+G$17*'Wine storage'!$B$22*'Wine storage'!$B$18/'Wine storage'!$B$16+G$18*'Wine storage'!$B$36*'Wine storage'!$B$32/'Wine storage'!$B$30)/1000) -> 0 | H44: =IF('Red Fermentation Total'!$A$20<'Red Fermentation (1)'!$D$8,H$6*1.4*H$8*(H$9*'Red Fermentation Total'!$B$20+H$10*'Red Fermentation Total'!$C$20+H$11*'Red Fermentation Total'!$D$20)/1.09,H$6*H$8*0.7*($D44-'Wine storage'!$H$8)*(H$16*'Wine storage'!$B$10*'Wine storage'!$B$6/'Wine storage'!$B$4+H$17*'Wine storage'!$B$22*'Wine storage'!$B$18/'Wine storage'!$B$16+H$18*'Wine storage'!$B$36*'Wine storage'!$B$32/'Wine storage'!$B$30)/1000) -> 0 | I44: =IF('Red Fermentation Total'!$A$18<'Red Fermentation (1)'!$D$8,I$6*1.4*I$8*(I$9*'Red Fermentation Total'!$B$18+I$10*'Red Fermentation Total'!$C$18+I$11*'Red Fermentation Total'!$D$18)/1.09,I$6*I$8*0.7*($D44-'Wine storage'!$H$8)*(I$16*'Wine storage'!$B$10*'Wine storage'!$B$6/'Wine storage'!$B$4+I$17*'Wine storage'!$B$22*'Wine storage'!$B$18/'Wine storage'!$B$16+I$18*'Wine storage'!$B$36*'Wine storage'!$B$32/'Wine storage'!$B$30)/1000) -> 0 | J44: =IF('Red Fermentation Total'!$A$16<'Red Fermentation (1)'!$D$8,J$6*1.4*J$8*(J$9*'Red Fermentation Total'!$B$16+J$10*'Red Fermentation Total'!$C$16+J$11*'Red Fermentation Total'!$D$16)/1.09,J$6*J$8*0.7*($D44-'Wine storage'!$H$8)*(J$16*'Wine storage'!$B$10*'Wine storage'!$B$6/'Wine storage'!$B$4+J$17*'Wine storage'!$B$22*'Wine storage'!$B$18/'Wine storage'!$B$16+J$18*'Wine storage'!$B$36*'Wine storage'!$B$32/'Wine storage'!$B$30)/1000) -> 0 | K44: =IF('Red Fermentation Total'!$A$14<'Red Fermentation (1)'!$D$8,K$6*1.4*K$8*(K$9*'Red Fermentation Total'!$B$14+K$10*'Red Fermentation Total'!$C$14+K$11*'Red Fermentation Total'!$D$14)/1.09,K$6*K$8*0.7*($D44-'Wine storage'!$H$8)*(K$16*'Wine storage'!$B$10*'Wine storage'!$B$6/'Wine storage'!$B$4+K$17*'Wine storage'!$B$22*'Wine storage'!$B$18/'Wine storage'!$B$16+K$18*'Wine storage'!$B$36*'Wine storage'!$B$32/'Wine storage'!$B$30)/1000) -> 0 | L44: =IF('Red Fermentation Total'!$A$12<'Red Fermentation (1)'!$D$8,L$6*1.4*L$8*(L$9*'Red Fermentation Total'!$B$12+L$10*'Red Fermentation Total'!$C$12+L$11*'Red Fermentation Total'!$D$12)/1.09,L$6*L$8*0.7*($D44-'Wine storage'!$H$8)*(L$16*'Wine storage'!$B$10*'Wine storage'!$B$6/'Wine storage'!$B$4+L$17*'Wine storage'!$B$22*'Wine storage'!$B$18/'Wine storage'!$B$16+L$18*'Wine storage'!$B$36*'Wine storage'!$B$32/'Wine storage'!$B$30)/1000) -> 0 | M44: =IF('Red Fermentation Total'!$A$10<'Red Fermentation (1)'!$D$8,M$6*1.4*M$8*(M$9*'Red Fermentation Total'!$B$10+M$10*'Red Fermentation Total'!$C$10+M$11*'Red Fermentation Total'!$D$10)/1.09,M$6*M$8*0.7*($D44-'Wine storage'!$H$8)*(M$16*'Wine storage'!$B$10*'Wine storage'!$B$6/'Wine storage'!$B$4+M$17*'Wine storage'!$B$22*'Wine storage'!$B$18/'Wine storage'!$B$16+M$18*'Wine storage'!$B$36*'Wine storage'!$B$32/'Wine storage'!$B$30)/1000) -> 0 | N44: =IF('Red Fermentation Total'!$A$8<'Red Fermentation (1)'!$D$8,N$6*1.4*N$8*(N$9*'Red Fermentation Total'!$B$8+N$10*'Red Fermentation Total'!$C$8+N$11*'Red Fermentation Total'!$D$8)/1.09,N$6*N$8*0.7*($D44-'Wine storage'!$H$8)*(N$16*'Wine storage'!$B$10*'Wine storage'!$B$6/'Wine storage'!$B$4+N$17*'Wine storage'!$B$22*'Wine storage'!$B$18/'Wine storage'!$B$16+N$18*'Wine storage'!$B$36*'Wine storage'!$B$32/'Wine storage'!$B$30)/1000) -> 0 | O44: =IF('Red Fermentation Total'!$A$6<'Red Fermentation (1)'!$D$8,O$6*1.4*O$8*(O$9*'Red Fermentation Total'!$B$6+O$10*'Red Fermentation Total'!$C$6+O$11*'Red Fermentation Total'!$D$6)/1.09,O$6*O$8*0.7*($D44-'Wine storage'!$H$8)*(O$16*'Wine storage'!$B$10*'Wine storage'!$B$6/'Wine storage'!$B$4+O$17*'Wine storage'!$B$22*'Wine storage'!$B$18/'Wine storage'!$B$16+O$18*'Wine storage'!$B$36*'Wine storage'!$B$32/'Wine storage'!$B$30)/1000) -> 0 | P44: =IF('Red Fermentation Total'!$A$4<'Red Fermentation (1)'!$D$8,P$6*1.4*P$8*(P$9*'Red Fermentation Total'!$B$4+P$10*'Red Fermentation Total'!$C$4+P$11*'Red Fermentation Total'!$D$4)/1.09,P$6*P$8*0.7*($D44-'Wine storage'!$H$8)*(P$16*'Wine storage'!$B$10*'Wine storage'!$B$6/'Wine storage'!$B$4+P$17*'Wine storage'!$B$22*'Wine storage'!$B$18/'Wine storage'!$B$16+P$18*'Wine storage'!$B$36*'Wine storage'!$B$32/'Wine storage'!$B$30)/1000) -> 0 | Q44: =Q$6*Q$8*($D44-$E44)*(Q$9*'Red Fermentation Equipment'!$B$11*'Red Fermentation Equipment'!$B$6/'Red Fermentation Equipment'!$B$3+Q$10*'Red Fermentation Equipment'!$B$23*'Red Fermentation Equipment'!$B$18/'Red Fermentation Equipment'!$B$15+'Cold Soak Red'!Q$11*'Red Fermentation Equipment'!$B$35*'Red Fermentation Equipment'!$B$30/'Red Fermentation Equipment'!$B$27) -> 0
D45: =LOOKUP(MONTH(F45),'Brine and COP'!$C$28:$N$28,'Brine and COP'!$C$30:$N$30) -> 26.71982625 | E45: ='Red Fermentation Equipment'!$B$40 -> 4 | F45: 2014-01-12T09:00:00 | G45: =IF('Red Fermentation Total'!$A$23<'Red Fermentation (1)'!$D$8,G$6*1.4*G$8*(G$9*'Red Fermentation Total'!$B$23+G$10*'Red Fermentation Total'!$C$23+G$11*'Red Fermentation Total'!$D$23)/1.09,G$6*G$8*0.7*($D45-'Wine storage'!$H$8)*(G$16*'Wine storage'!$B$10*'Wine storage'!$B$6/'Wine storage'!$B$4+G$17*'Wine storage'!$B$22*'Wine storage'!$B$18/'Wine storage'!$B$16+G$18*'Wine storage'!$B$36*'Wine storage'!$B$32/'Wine storage'!$B$30)/1000) -> 0 | H45: =IF('Red Fermentation Total'!$A$21<'Red Fermentation (1)'!$D$8,H$6*1.4*H$8*(H$9*'Red Fermentation Total'!$B$21+H$10*'Red Fermentation Total'!$C$21+H$11*'Red Fermentation Total'!$D$21)/1.09,H$6*H$8*0.7*($D45-'Wine storage'!$H$8)*(H$16*'Wine storage'!$B$10*'Wine storage'!$B$6/'Wine storage'!$B$4+H$17*'Wine storage'!$B$22*'Wine storage'!$B$18/'Wine storage'!$B$16+H$18*'Wine storage'!$B$36*'Wine storage'!$B$32/'Wine storage'!$B$30)/1000) -> 0 | I45: =IF('Red Fermentation Total'!$A$19<'Red Fermentation (1)'!$D$8,I$6*1.4*I$8*(I$9*'Red Fermentation Total'!$B$19+I$10*'Red Fermentation Total'!$C$19+I$11*'Red Fermentation Total'!$D$19)/1.09,I$6*I$8*0.7*($D45-'Wine storage'!$H$8)*(I$16*'Wine storage'!$B$10*'Wine storage'!$B$6/'Wine storage'!$B$4+I$17*'Wine storage'!$B$22*'Wine storage'!$B$18/'Wine storage'!$B$16+I$18*'Wine storage'!$B$36*'Wine storage'!$B$32/'Wine storage'!$B$30)/1000) -> 0 | J45: =IF('Red Fermentation Total'!$A$17<'Red Fermentation (1)'!$D$8,J$6*1.4*J$8*(J$9*'Red Fermentation Total'!$B$17+J$10*'Red Fermentation Total'!$C$17+J$11*'Red Fermentation Total'!$D$17)/1.09,J$6*J$8*0.7*($D45-'Wine storage'!$H$8)*(J$16*'Wine storage'!$B$10*'Wine storage'!$B$6/'Wine storage'!$B$4+J$17*'Wine storage'!$B$22*'Wine storage'!$B$18/'Wine storage'!$B$16+J$18*'Wine storage'!$B$36*'Wine storage'!$B$32/'Wine storage'!$B$30)/1000) -> 0 | K45: =IF('Red Fermentation Total'!$A$15<'Red Fermentation (1)'!$D$8,K$6*1.4*K$8*(K$9*'Red Fermentation Total'!$B$15+K$10*'Red Fermentation Total'!$C$15+K$11*'Red Fermentation Total'!$D$15)/1.09,K$6*K$8*0.7*($D45-'Wine storage'!$H$8)*(K$16*'Wine storage'!$B$10*'Wine storage'!$B$6/'Wine storage'!$B$4+K$17*'Wine storage'!$B$22*'Wine storage'!$B$18/'Wine storage'!$B$16+K$18*'Wine storage'!$B$36*'Wine storage'!$B$32/'Wine storage'!$B$30)/1000) -> 0 | L45: =IF('Red Fermentation Total'!$A$13<'Red Fermentation (1)'!$D$8,L$6*1.4*L$8*(L$9*'Red Fermentation Total'!$B$13+L$10*'Red Fermentation Total'!$C$13+L$11*'Red Fermentation Total'!$D$13)/1.09,L$6*L$8*0.7*($D45-'Wine storage'!$H$8)*(L$16*'Wine storage'!$B$10*'Wine storage'!$B$6/'Wine storage'!$B$4+L$17*'Wine storage'!$B$22*'Wine storage'!$B$18/'Wine storage'!$B$16+L$18*'Wine storage'!$B$36*'Wine storage'!$B$32/'Wine storage'!$B$30)/1000) -> 0 | M45: =IF('Red Fermentation Total'!$A$11<'Red Fermentation (1)'!$D$8,M$6*1.4*M$8*(M$9*'Red Fermentation Total'!$B$11+M$10*'Red Fermentation Total'!$C$11+M$11*'Red Fermentation Total'!$D$11)/1.09,M$6*M$8*0.7*($D45-'Wine storage'!$H$8)*(M$16*'Wine storage'!$B$10*'Wine storage'!$B$6/'Wine storage'!$B$4+M$17*'Wine storage'!$B$22*'Wine storage'!$B$18/'Wine storage'!$B$16+M$18*'Wine storage'!$B$36*'Wine storage'!$B$32/'Wine storage'!$B$30)/1000) -> 0 | N45: =IF('Red Fermentation Total'!$A$9<'Red Fermentation (1)'!$D$8,N$6*1.4*N$8*(N$9*'Red Fermentation Total'!$B$9+N$10*'Red Fermentation Total'!$C$9+N$11*'Red Fermentation Total'!$D$9)/1.09,N$6*N$8*0.7*($D45-'Wine storage'!$H$8)*(N$16*'Wine storage'!$B$10*'Wine storage'!$B$6/'Wine storage'!$B$4+N$17*'Wine storage'!$B$22*'Wine storage'!$B$18/'Wine storage'!$B$16+N$18*'Wine storage'!$B$36*'Wine storage'!$B$32/'Wine storage'!$B$30)/1000) -> 0 | O45: =IF('Red Fermentation Total'!$A$7<'Red Fermentation (1)'!$D$8,O$6*1.4*O$8*(O$9*'Red Fermentation Total'!$B$7+O$10*'Red Fermentation Total'!$C$7+O$11*'Red Fermentation Total'!$D$7)/1.09,O$6*O$8*0.7*($D45-'Wine storage'!$H$8)*(O$16*'Wine storage'!$B$10*'Wine storage'!$B$6/'Wine storage'!$B$4+O$17*'Wine storage'!$B$22*'Wine storage'!$B$18/'Wine storage'!$B$16+O$18*'Wine storage'!$B$36*'Wine storage'!$B$32/'Wine storage'!$B$30)/1000) -> 0 | P45: =IF('Red Fermentation Total'!$A$5<'Red Fermentation (1)'!$D$8,P$6*1.4*P$8*(P$9*'Red Fermentation Total'!$B$5+P$10*'Red Fermentation Total'!$C$5+P$11*'Red Fermentation Total'!$D$5)/1.09,P$6*P$8*0.7*($D45-'Wine storage'!$H$8)*(P$16*'Wine storage'!$B$10*'Wine storage'!$B$6/'Wine storage'!$B$4+P$17*'Wine storage'!$B$22*'Wine storage'!$B$18/'Wine storage'!$B$16+P$18*'Wine storage'!$B$36*'Wine storage'!$B$32/'Wine storage'!$B$30)/1000) -> 0 | Q45: =Q44 -> 0
D46: =LOOKUP(MONTH(F46),'Brine and COP'!$C$28:$N$28,'Brine and COP'!$C$30:$N$30) -> 26.71982625 | E46: ='Red Fermentation Equipment'!$B$40 -> 4 | F46: 2014-01-12T21:00:00 | G46: =IF('Red Fermentation Total'!$A$24<'Red Fermentation (1)'!$D$8,G$6*1.4*G$8*(G$9*'Red Fermentation Total'!$B$24+G$10*'Red Fermentation Total'!$C$24+G$11*'Red Fermentation Total'!$D$24)/1.09,G$6*G$8*0.7*($D46-'Wine storage'!$H$8)*(G$16*'Wine storage'!$B$10*'Wine storage'!$B$6/'Wine storage'!$B$4+G$17*'Wine storage'!$B$22*'Wine storage'!$B$18/'Wine storage'!$B$16+G$18*'Wine storage'!$B$36*'Wine storage'!$B$32/'Wine storage'!$B$30)/1000) -> 0 | H46: =IF('Red Fermentation Total'!$A$22<'Red Fermentation (1)'!$D$8,H$6*1.4*H$8*(H$9*'Red Fermentation Total'!$B$22+H$10*'Red Fermentation Total'!$C$22+H$11*'Red Fermentation Total'!$D$22)/1.09,H$6*H$8*0.7*($D46-'Wine storage'!$H$8)*(H$16*'Wine storage'!$B$10*'Wine storage'!$B$6/'Wine storage'!$B$4+H$17*'Wine storage'!$B$22*'Wine storage'!$B$18/'Wine storage'!$B$16+H$18*'Wine storage'!$B$36*'Wine storage'!$B$32/'Wine storage'!$B$30)/1000) -> 0 | I46: =IF('Red Fermentation Total'!$A$20<'Red Fermentation (1)'!$D$8,I$6*1.4*I$8*(I$9*'Red Fermentation Total'!$B$20+I$10*'Red Fermentation Total'!$C$20+I$11*'Red Fermentation Total'!$D$20)/1.09,I$6*I$8*0.7*($D46-'Wine storage'!$H$8)*(I$16*'Wine storage'!$B$10*'Wine storage'!$B$6/'Wine storage'!$B$4+I$17*'Wine storage'!$B$22*'Wine storage'!$B$18/'Wine storage'!$B$16+I$18*'Wine storage'!$B$36*'Wine storage'!$B$32/'Wine storage'!$B$30)/1000) -> 0 | J46: =IF('Red Fermentation Total'!$A$18<'Red Fermentation (1)'!$D$8,J$6*1.4*J$8*(J$9*'Red Fermentation Total'!$B$18+J$10*'Red Fermentation Total'!$C$18+J$11*'Red Fermentation Total'!$D$18)/1.09,J$6*J$8*0.7*($D46-'Wine storage'!$H$8)*(J$16*'Wine storage'!$B$10*'Wine storage'!$B$6/'Wine storage'!$B$4+J$17*'Wine storage'!$B$22*'Wine storage'!$B$18/'Wine storage'!$B$16+J$18*'Wine storage'!$B$36*'Wine storage'!$B$32/'Wine storage'!$B$30)/1000) -> 0 | K46: =IF('Red Fermentation Total'!$A$16<'Red Fermentation (1)'!$D$8,K$6*1.4*K$8*(K$9*'Red Fermentation Total'!$B$16+K$10*'Red Fermentation Total'!$C$16+K$11*'Red Fermentation Total'!$D$16)/1.09,K$6*K$8*0.7*($D46-'Wine storage'!$H$8)*(K$16*'Wine storage'!$B$10*'Wine storage'!$B$6/'Wine storage'!$B$4+K$17*'Wine storage'!$B$22*'Wine storage'!$B$18/'Wine storage'!$B$16+K$18*'Wine storage'!$B$36*'Wine storage'!$B$32/'Wine storage'!$B$30)/1000) -> 0 | L46: =IF('Red Fermentation Total'!$A$14<'Red Fermentation (1)'!$D$8,L$6*1.4*L$8*(L$9*'Red Fermentation Total'!$B$14+L$10*'Red Fermentation Total'!$C$14+L$11*'Red Fermentation Total'!$D$14)/1.09,L$6*L$8*0.7*($D46-'Wine storage'!$H$8)*(L$16*'Wine storage'!$B$10*'Wine storage'!$B$6/'Wine storage'!$B$4+L$17*'Wine storage'!$B$22*'Wine storage'!$B$18/'Wine storage'!$B$16+L$18*'Wine storage'!$B$36*'Wine storage'!$B$32/'Wine storage'!$B$30)/1000) -> 0 | M46: =IF('Red Fermentation Total'!$A$12<'Red Fermentation (1)'!$D$8,M$6*1.4*M$8*(M$9*'Red Fermentation Total'!$B$12+M$10*'Red Fermentation Total'!$C$12+M$11*'Red Fermentation Total'!$D$12)/1.09,M$6*M$8*0.7*($D46-'Wine storage'!$H$8)*(M$16*'Wine storage'!$B$10*'Wine storage'!$B$6/'Wine storage'!$B$4+M$17*'Wine storage'!$B$22*'Wine storage'!$B$18/'Wine storage'!$B$16+M$18*'Wine storage'!$B$36*'Wine storage'!$B$32/'Wine storage'!$B$30)/1000) -> 0 | N46: =IF('Red Fermentation Total'!$A$10<'Red Fermentation (1)'!$D$8,N$6*1.4*N$8*(N$9*'Red Fermentation Total'!$B$10+N$10*'Red Fermentation Total'!$C$10+N$11*'Red Fermentation Total'!$D$10)/1.09,N$6*N$8*0.7*($D46-'Wine storage'!$H$8)*(N$16*'Wine storage'!$B$10*'Wine storage'!$B$6/'Wine storage'!$B$4+N$17*'Wine storage'!$B$22*'Wine storage'!$B$18/'Wine storage'!$B$16+N$18*'Wine storage'!$B$36*'Wine storage'!$B$32/'Wine storage'!$B$30)/1000) -> 0 | O46: =IF('Red Fermentation Total'!$A$8<'Red Fermentation (1)'!$D$8,O$6*1.4*O$8*(O$9*'Red Fermentation Total'!$B$8+O$10*'Red Fermentation Total'!$C$8+O$11*'Red Fermentation Total'!$D$8)/1.09,O$6*O$8*0.7*($D46-'Wine storage'!$H$8)*(O$16*'Wine storage'!$B$10*'Wine storage'!$B$6/'Wine storage'!$B$4+O$17*'Wine storage'!$B$22*'Wine storage'!$B$18/'Wine storage'!$B$16+O$18*'Wine storage'!$B$36*'Wine storage'!$B$32/'Wine storage'!$B$30)/1000) -> 0 | P46: =IF('Red Fermentation Total'!$A$6<'Red Fermentation (1)'!$D$8,P$6*1.4*P$8*(P$9*'Red Fermentation Total'!$B$6+P$10*'Red Fermentation Total'!$C$6+P$11*'Red Fermentation Total'!$D$6)/1.09,P$6*P$8*0.7*($D46-'Wine storage'!$H$8)*(P$16*'Wine storage'!$B$10*'Wine storage'!$B$6/'Wine storage'!$B$4+P$17*'Wine storage'!$B$22*'Wine storage'!$B$18/'Wine storage'!$B$16+P$18*'Wine storage'!$B$36*'Wine storage'!$B$32/'Wine storage'!$B$30)/1000) -> 0 | Q46: =IF('Red Fermentation Total'!$A$4<'Red Fermentation (1)'!$D$8,Q$6*1.4*Q$8*(Q$9*'Red Fermentation Total'!$B$4+Q$10*'Red Fermentation Total'!$C$4+Q$11*'Red Fermentation Total'!$D$4)/1.09,Q$6*Q$8*0.7*($D46-'Wine storage'!$H$8)*(Q$16*'Wine storage'!$B$10*'Wine storage'!$B$6/'Wine storage'!$B$4+Q$17*'Wine storage'!$B$22*'Wine storage'!$B$18/'Wine storage'!$B$16+Q$18*'Wine storage'!$B$36*'Wine storage'!$B$32/'Wine storage'!$B$30)/1000) -> 0 | R46: =R$6*R$8*($D46-$E46)*(R$9*'Red Fermentation Equipment'!$B$11*'Red Fermentation Equipment'!$B$6/'Red Fermentation Equipment'!$B$3+R$10*'Red Fermentation Equipment'!$B$23*'Red Fermentation Equipment'!$B$18/'Red Fermentation Equipment'!$B$15+'Cold Soak Red'!R$11*'Red Fermentation Equipment'!$B$35*'Red Fermentation Equipment'!$B$30/'Red Fermentation Equipment'!$B$27) -> 0
D47: =LOOKUP(MONTH(F47),'Brine and COP'!$C$28:$N$28,'Brine and COP'!$C$30:$N$30) -> 26.71982625 | E47: ='Red Fermentation Equipment'!$B$40 -> 4 | F47: 2014-01-13T09:00:00 | G47: =IF('Red Fermentation Total'!$A$25<'Red Fermentation (1)'!$D$8,G$6*1.4*G$8*(G$9*'Red Fermentation Total'!$B$25+G$10*'Red Fermentation Total'!$C$25+G$11*'Red Fermentation Total'!$D$25)/1.09,G$6*G$8*0.7*($D47-'Wine storage'!$H$8)*(G$16*'Wine storage'!$B$10*'Wine storage'!$B$6/'Wine storage'!$B$4+G$17*'Wine storage'!$B$22*'Wine storage'!$B$18/'Wine storage'!$B$16+G$18*'Wine storage'!$B$36*'Wine storage'!$B$32/'Wine storage'!$B$30)/1000) -> 0 | H47: =IF('Red Fermentation Total'!$A$23<'Red Fermentation (1)'!$D$8,H$6*1.4*H$8*(H$9*'Red Fermentation Total'!$B$23+H$10*'Red Fermentation Total'!$C$23+H$11*'Red Fermentation Total'!$D$23)/1.09,H$6*H$8*0.7*($D47-'Wine storage'!$H$8)*(H$16*'Wine storage'!$B$10*'Wine storage'!$B$6/'Wine storage'!$B$4+H$17*'Wine storage'!$B$22*'Wine storage'!$B$18/'Wine storage'!$B$16+H$18*'Wine storage'!$B$36*'Wine storage'!$B$32/'Wine storage'!$B$30)/1000) -> 0 | I47: =IF('Red Fermentation Total'!$A$21<'Red Fermentation (1)'!$D$8,I$6*1.4*I$8*(I$9*'Red Fermentation Total'!$B$21+I$10*'Red Fermentation Total'!$C$21+I$11*'Red Fermentation Total'!$D$21)/1.09,I$6*I$8*0.7*($D47-'Wine storage'!$H$8)*(I$16*'Wine storage'!$B$10*'Wine storage'!$B$6/'Wine storage'!$B$4+I$17*'Wine storage'!$B$22*'Wine storage'!$B$18/'Wine storage'!$B$16+I$18*'Wine storage'!$B$36*'Wine storage'!$B$32/'Wine storage'!$B$30)/1000) -> 0 | J47: =IF('Red Fermentation Total'!$A$19<'Red Fermentation (1)'!$D$8,J$6*1.4*J$8*(J$9*'Red Fermentation Total'!$B$19+J$10*'Red Fermentation Total'!$C$19+J$11*'Red Fermentation Total'!$D$19)/1.09,J$6*J$8*0.7*($D47-'Wine storage'!$H$8)*(J$16*'Wine storage'!$B$10*'Wine storage'!$B$6/'Wine storage'!$B$4+J$17*'Wine storage'!$B$22*'Wine storage'!$B$18/'Wine storage'!$B$16+J$18*'Wine storage'!$B$36*'Wine storage'!$B$32/'Wine storage'!$B$30)/1000) -> 0 | K47: =IF('Red Fermentation Total'!$A$17<'Red Fermentation (1)'!$D$8,K$6*1.4*K$8*(K$9*'Red Fermentation Total'!$B$17+K$10*'Red Fermentation Total'!$C$17+K$11*'Red Fermentation Total'!$D$17)/1.09,K$6*K$8*0.7*($D47-'Wine storage'!$H$8)*(K$16*'Wine storage'!$B$10*'Wine storage'!$B$6/'Wine storage'!$B$4+K$17*'Wine storage'!$B$22*'Wine storage'!$B$18/'Wine storage'!$B$16+K$18*'Wine storage'!$B$36*'Wine storage'!$B$32/'Wine storage'!$B$30)/1000) -> 0 | L47: =IF('Red Fermentation Total'!$A$15<'Red Fermentation (1)'!$D$8,L$6*1.4*L$8*(L$9*'Red Fermentation Total'!$B$15+L$10*'Red Fermentation Total'!$C$15+L$11*'Red Fermentation Total'!$D$15)/1.09,L$6*L$8*0.7*($D47-'Wine storage'!$H$8)*(L$16*'Wine storage'!$B$10*'Wine storage'!$B$6/'Wine storage'!$B$4+L$17*'Wine storage'!$B$22*'Wine storage'!$B$18/'Wine storage'!$B$16+L$18*'Wine storage'!$B$36*'Wine storage'!$B$32/'Wine storage'!$B$30)/1000) -> 0 | M47: =IF('Red Fermentation Total'!$A$13<'Red Fermentation (1)'!$D$8,M$6*1.4*M$8*(M$9*'Red Fermentation Total'!$B$13+M$10*'Red Fermentation Total'!$C$13+M$11*'Red Fermentation Total'!$D$13)/1.09,M$6*M$8*0.7*($D47-'Wine storage'!$H$8)*(M$16*'Wine storage'!$B$10*'Wine storage'!$B$6/'Wine storage'!$B$4+M$17*'Wine storage'!$B$22*'Wine storage'!$B$18/'Wine storage'!$B$16+M$18*'Wine storage'!$B$36*'Wine storage'!$B$32/'Wine storage'!$B$30)/1000) -> 0 | N47: =IF('Red Fermentation Total'!$A$11<'Red Fermentation (1)'!$D$8,N$6*1.4*N$8*(N$9*'Red Fermentation Total'!$B$11+N$10*'Red Fermentation Total'!$C$11+N$11*'Red Fermentation Total'!$D$11)/1.09,N$6*N$8*0.7*($D47-'Wine storage'!$H$8)*(N$16*'Wine storage'!$B$10*'Wine storage'!$B$6/'Wine storage'!$B$4+N$17*'Wine storage'!$B$22*'Wine storage'!$B$18/'Wine storage'!$B$16+N$18*'Wine storage'!$B$36*'Wine storage'!$B$32/'Wine storage'!$B$30)/1000) -> 0 | O47: =IF('Red Fermentation Total'!$A$9<'Red Fermentation (1)'!$D$8,O$6*1.4*O$8*(O$9*'Red Fermentation Total'!$B$9+O$10*'Red Fermentation Total'!$C$9+O$11*'Red Fermentation Total'!$D$9)/1.09,O$6*O$8*0.7*($D47-'Wine storage'!$H$8)*(O$16*'Wine storage'!$B$10*'Wine storage'!$B$6/'Wine storage'!$B$4+O$17*'Wine storage'!$B$22*'Wine storage'!$B$18/'Wine storage'!$B$16+O$18*'Wine storage'!$B$36*'Wine storage'!$B$32/'Wine storage'!$B$30)/1000) -> 0 | P47: =IF('Red Fermentation Total'!$A$7<'Red Fermentation (1)'!$D$8,P$6*1.4*P$8*(P$9*'Red Fermentation Total'!$B$7+P$10*'Red Fermentation Total'!$C$7+P$11*'Red Fermentation Total'!$D$7)/1.09,P$6*P$8*0.7*($D47-'Wine storage'!$H$8)*(P$16*'Wine storage'!$B$10*'Wine storage'!$B$6/'Wine storage'!$B$4+P$17*'Wine storage'!$B$22*'Wine storage'!$B$18/'Wine storage'!$B$16+P$18*'Wine storage'!$B$36*'Wine storage'!$B$32/'Wine storage'!$B$30)/1000) -> 0 | Q47: =IF('Red Fermentation Total'!$A$5<'Red Fermentation (1)'!$D$8,Q$6*1.4*Q$8*(Q$9*'Red Fermentation Total'!$B$5+Q$10*'Red Fermentation Total'!$C$5+Q$11*'Red Fermentation Total'!$D$5)/1.09,Q$6*Q$8*0.7*($D47-'Wine storage'!$H$8)*(Q$16*'Wine storage'!$B$10*'Wine storage'!$B$6/'Wine storage'!$B$4+Q$17*'Wine storage'!$B$22*'Wine storage'!$B$18/'Wine storage'!$B$16+Q$18*'Wine storage'!$B$36*'Wine storage'!$B$32/'Wine storage'!$B$30)/1000) -> 0 | R47: =R46 -> 0
D48: =LOOKUP(MONTH(F48),'Brine and COP'!$C$28:$N$28,'Brine and COP'!$C$30:$N$30) -> 26.71982625 | E48: ='Red Fermentation Equipment'!$B$40 -> 4 | F48: 2014-01-13T21:00:00 | G48: =IF('Red Fermentation Total'!$A$26<'Red Fermentation (1)'!$D$8,G$6*1.4*G$8*(G$9*'Red Fermentation Total'!$B$26+G$10*'Red Fermentation Total'!$C$26+G$11*'Red Fermentation Total'!$D$26)/1.09,G$6*G$8*0.7*($D48-'Wine storage'!$H$8)*(G$16*'Wine storage'!$B$10*'Wine storage'!$B$6/'Wine storage'!$B$4+G$17*'Wine storage'!$B$22*'Wine storage'!$B$18/'Wine storage'!$B$16+G$18*'Wine storage'!$B$36*'Wine storage'!$B$32/'Wine storage'!$B$30)/1000) -> 0 | H48: =IF('Red Fermentation Total'!$A$24<'Red Fermentation (1)'!$D$8,H$6*1.4*H$8*(H$9*'Red Fermentation Total'!$B$24+H$10*'Red Fermentation Total'!$C$24+H$11*'Red Fermentation Total'!$D$24)/1.09,H$6*H$8*0.7*($D48-'Wine storage'!$H$8)*(H$16*'Wine storage'!$B$10*'Wine storage'!$B$6/'Wine storage'!$B$4+H$17*'Wine storage'!$B$22*'Wine storage'!$B$18/'Wine storage'!$B$16+H$18*'Wine storage'!$B$36*'Wine storage'!$B$32/'Wine storage'!$B$30)/1000) -> 0 | I48: =IF('Red Fermentation Total'!$A$22<'Red Fermentation (1)'!$D$8,I$6*1.4*I$8*(I$9*'Red Fermentation Total'!$B$22+I$10*'Red Fermentation Total'!$C$22+I$11*'Red Fermentation Total'!$D$22)/1.09,I$6*I$8*0.7*($D48-'Wine storage'!$H$8)*(I$16*'Wine storage'!$B$10*'Wine storage'!$B$6/'Wine storage'!$B$4+I$17*'Wine storage'!$B$22*'Wine storage'!$B$18/'Wine storage'!$B$16+I$18*'Wine storage'!$B$36*'Wine storage'!$B$32/'Wine storage'!$B$30)/1000) -> 0 | J48: =IF('Red Fermentation Total'!$A$20<'Red Fermentation (1)'!$D$8,J$6*1.4*J$8*(J$9*'Red Fermentation Total'!$B$20+J$10*'Red Fermentation Total'!$C$20+J$11*'Red Fermentation Total'!$D$20)/1.09,J$6*J$8*0.7*($D48-'Wine storage'!$H$8)*(J$16*'Wine storage'!$B$10*'Wine storage'!$B$6/'Wine storage'!$B$4+J$17*'Wine storage'!$B$22*'Wine storage'!$B$18/'Wine storage'!$B$16+J$18*'Wine storage'!$B$36*'Wine storage'!$B$32/'Wine storage'!$B$30)/1000) -> 0 | K48: =IF('Red Fermentation Total'!$A$18<'Red Fermentation (1)'!$D$8,K$6*1.4*K$8*(K$9*'Red Fermentation Total'!$B$18+K$10*'Red Fermentation Total'!$C$18+K$11*'Red Fermentation Total'!$D$18)/1.09,K$6*K$8*0.7*($D48-'Wine storage'!$H$8)*(K$16*'Wine storage'!$B$10*'Wine storage'!$B$6/'Wine storage'!$B$4+K$17*'Wine storage'!$B$22*'Wine storage'!$B$18/'Wine storage'!$B$16+K$18*'Wine storage'!$B$36*'Wine storage'!$B$32/'Wine storage'!$B$30)/1000) -> 0 | L48: =IF('Red Fermentation Total'!$A$16<'Red Fermentation (1)'!$D$8,L$6*1.4*L$8*(L$9*'Red Fermentation Total'!$B$16+L$10*'Red Fermentation Total'!$C$16+L$11*'Red Fermentation Total'!$D$16)/1.09,L$6*L$8*0.7*($D48-'Wine storage'!$H$8)*(L$16*'Wine storage'!$B$10*'Wine storage'!$B$6/'Wine storage'!$B$4+L$17*'Wine storage'!$B$22*'Wine storage'!$B$18/'Wine storage'!$B$16+L$18*'Wine storage'!$B$36*'Wine storage'!$B$32/'Wine storage'!$B$30)/1000) -> 0 | M48: =IF('Red Fermentation Total'!$A$14<'Red Fermentation (1)'!$D$8,M$6*1.4*M$8*(M$9*'Red Fermentation Total'!$B$14+M$10*'Red Fermentation Total'!$C$14+M$11*'Red Fermentation Total'!$D$14)/1.09,M$6*M$8*0.7*($D48-'Wine storage'!$H$8)*(M$16*'Wine storage'!$B$10*'Wine storage'!$B$6/'Wine storage'!$B$4+M$17*'Wine storage'!$B$22*'Wine storage'!$B$18/'Wine storage'!$B$16+M$18*'Wine storage'!$B$36*'Wine storage'!$B$32/'Wine storage'!$B$30)/1000) -> 0 | N48: =IF('Red Fermentation Total'!$A$12<'Red Fermentation (1)'!$D$8,N$6*1.4*N$8*(N$9*'Red Fermentation Total'!$B$12+N$10*'Red Fermentation Total'!$C$12+N$11*'Red Fermentation Total'!$D$12)/1.09,N$6*N$8*0.7*($D48-'Wine storage'!$H$8)*(N$16*'Wine storage'!$B$10*'Wine storage'!$B$6/'Wine storage'!$B$4+N$17*'Wine storage'!$B$22*'Wine storage'!$B$18/'Wine storage'!$B$16+N$18*'Wine storage'!$B$36*'Wine storage'!$B$32/'Wine storage'!$B$30)/1000) -> 0 | O48: =IF('Red Fermentation Total'!$A$10<'Red Fermentation (1)'!$D$8,O$6*1.4*O$8*(O$9*'Red Fermentation Total'!$B$10+O$10*'Red Fermentation Total'!$C$10+O$11*'Red Fermentation Total'!$D$10)/1.09,O$6*O$8*0.7*($D48-'Wine storage'!$H$8)*(O$16*'Wine storage'!$B$10*'Wine storage'!$B$6/'Wine storage'!$B$4+O$17*'Wine storage'!$B$22*'Wine storage'!$B$18/'Wine storage'!$B$16+O$18*'Wine storage'!$B$36*'Wine storage'!$B$32/'Wine storage'!$B$30)/1000) -> 0 | P48: =IF('Red Fermentation Total'!$A$8<'Red Fermentation (1)'!$D$8,P$6*1.4*P$8*(P$9*'Red Fermentation Total'!$B$8+P$10*'Red Fermentation Total'!$C$8+P$11*'Red Fermentation Total'!$D$8)/1.09,P$6*P$8*0.7*($D48-'Wine storage'!$H$8)*(P$16*'Wine storage'!$B$10*'Wine storage'!$B$6/'Wine storage'!$B$4+P$17*'Wine storage'!$B$22*'Wine storage'!$B$18/'Wine storage'!$B$16+P$18*'Wine storage'!$B$36*'Wine storage'!$B$32/'Wine storage'!$B$30)/1000) -> 0 | Q48: =IF('Red Fermentation Total'!$A$6<'Red Fermentation (1)'!$D$8,Q$6*1.4*Q$8*(Q$9*'Red Fermentation Total'!$B$6+Q$10*'Red Fermentation Total'!$C$6+Q$11*'Red Fermentation Total'!$D$6)/1.09,Q$6*Q$8*0.7*($D48-'Wine storage'!$H$8)*(Q$16*'Wine storage'!$B$10*'Wine storage'!$B$6/'Wine storage'!$B$4+Q$17*'Wine storage'!$B$22*'Wine storage'!$B$18/'Wine storage'!$B$16+Q$18*'Wine storage'!$B$36*'Wine storage'!$B$32/'Wine storage'!$B$30)/1000) -> 0 | R48: =IF('Red Fermentation Total'!$A$4<'Red Fermentation (1)'!$D$8,R$6*1.4*R$8*(R$9*'Red Fermentation Total'!$B$4+R$10*'Red Fermentation Total'!$C$4+R$11*'Red Fermentation Total'!$D$4)/1.09,R$6*R$8*0.7*($D48-'Wine storage'!$H$8)*(R$16*'Wine storage'!$B$10*'Wine storage'!$B$6/'Wine storage'!$B$4+R$17*'Wine storage'!$B$22*'Wine storage'!$B$18/'Wine storage'!$B$16+R$18*'Wine storage'!$B$36*'Wine storage'!$B$32/'Wine storage'!$B$30)/1000) -> 0 | S48: =S$6*S$8*($D48-$E48)*(S$9*'Red Fermentation Equipment'!$B$11*'Red Fermentation Equipment'!$B$6/'Red Fermentation Equipment'!$B$3+S$10*'Red Fermentation Equipment'!$B$23*'Red Fermentation Equipment'!$B$18/'Red Fermentation Equipment'!$B$15+'Cold Soak Red'!S$11*'Red Fermentation Equipment'!$B$35*'Red Fermentation Equipment'!$B$30/'Red Fermentation Equipment'!$B$27) -> 0
D49: =LOOKUP(MONTH(F49),'Brine and COP'!$C$28:$N$28,'Brine and COP'!$C$30:$N$30) -> 26.71982625 | E49: ='Red Fermentation Equipment'!$B$40 -> 4 | F49: 2014-01-14T09:00:00 | G49: =IF('Red Fermentation Total'!$A$27<'Red Fermentation (1)'!$D$8,G$6*1.4*G$8*(G$9*'Red Fermentation Total'!$B$27+G$10*'Red Fermentation Total'!$C$27+G$11*'Red Fermentation Total'!$D$27)/1.09,G$6*G$8*0.7*($D49-'Wine storage'!$H$8)*(G$16*'Wine storage'!$B$10*'Wine storage'!$B$6/'Wine storage'!$B$4+G$17*'Wine storage'!$B$22*'Wine storage'!$B$18/'Wine storage'!$B$16+G$18*'Wine storage'!$B$36*'Wine storage'!$B$32/'Wine storage'!$B$30)/1000) -> 0 | H49: =IF('Red Fermentation Total'!$A$25<'Red Fermentation (1)'!$D$8,H$6*1.4*H$8*(H$9*'Red Fermentation Total'!$B$25+H$10*'Red Fermentation Total'!$C$25+H$11*'Red Fermentation Total'!$D$25)/1.09,H$6*H$8*0.7*($D49-'Wine storage'!$H$8)*(H$16*'Wine storage'!$B$10*'Wine storage'!$B$6/'Wine storage'!$B$4+H$17*'Wine storage'!$B$22*'Wine storage'!$B$18/'Wine storage'!$B$16+H$18*'Wine storage'!$B$36*'Wine storage'!$B$32/'Wine storage'!$B$30)/1000) -> 0 | I49: =IF('Red Fermentation Total'!$A$23<'Red Fermentation (1)'!$D$8,I$6*1.4*I$8*(I$9*'Red Fermentation Total'!$B$23+I$10*'Red Fermentation Total'!$C$23+I$11*'Red Fermentation Total'!$D$23)/1.09,I$6*I$8*0.7*($D49-'Wine storage'!$H$8)*(I$16*'Wine storage'!$B$10*'Wine storage'!$B$6/'Wine storage'!$B$4+I$17*'Wine storage'!$B$22*'Wine storage'!$B$18/'Wine storage'!$B$16+I$18*'Wine storage'!$B$36*'Wine storage'!$B$32/'Wine storage'!$B$30)/1000) -> 0 | J49: =IF('Red Fermentation Total'!$A$21<'Red Fermentation (1)'!$D$8,J$6*1.4*J$8*(J$9*'Red Fermentation Total'!$B$21+J$10*'Red Fermentation Total'!$C$21+J$11*'Red Fermentation Total'!$D$21)/1.09,J$6*J$8*0.7*($D49-'Wine storage'!$H$8)*(J$16*'Wine storage'!$B$10*'Wine storage'!$B$6/'Wine storage'!$B$4+J$17*'Wine storage'!$B$22*'Wine storage'!$B$18/'Wine storage'!$B$16+J$18*'Wine storage'!$B$36*'Wine storage'!$B$32/'Wine storage'!$B$30)/1000) -> 0 | K49: =IF('Red Fermentation Total'!$A$19<'Red Fermentation (1)'!$D$8,K$6*1.4*K$8*(K$9*'Red Fermentation Total'!$B$19+K$10*'Red Fermentation Total'!$C$19+K$11*'Red Fermentation Total'!$D$19)/1.09,K$6*K$8*0.7*($D49-'Wine storage'!$H$8)*(K$16*'Wine storage'!$B$10*'Wine storage'!$B$6/'Wine storage'!$B$4+K$17*'Wine storage'!$B$22*'Wine storage'!$B$18/'Wine storage'!$B$16+K$18*'Wine storage'!$B$36*'Wine storage'!$B$32/'Wine storage'!$B$30)/1000) -> 0 | L49: =IF('Red Fermentation Total'!$A$17<'Red Fermentation (1)'!$D$8,L$6*1.4*L$8*(L$9*'Red Fermentation Total'!$B$17+L$10*'Red Fermentation Total'!$C$17+L$11*'Red Fermentation Total'!$D$17)/1.09,L$6*L$8*0.7*($D49-'Wine storage'!$H$8)*(L$16*'Wine storage'!$B$10*'Wine storage'!$B$6/'Wine storage'!$B$4+L$17*'Wine storage'!$B$22*'Wine storage'!$B$18/'Wine storage'!$B$16+L$18*'Wine storage'!$B$36*'Wine storage'!$B$32/'Wine storage'!$B$30)/1000) -> 0 | M49: =IF('Red Fermentation Total'!$A$15<'Red Fermentation (1)'!$D$8,M$6*1.4*M$8*(M$9*'Red Fermentation Total'!$B$15+M$10*'Red Fermentation Total'!$C$15+M$11*'Red Fermentation Total'!$D$15)/1.09,M$6*M$8*0.7*($D49-'Wine storage'!$H$8)*(M$16*'Wine storage'!$B$10*'Wine storage'!$B$6/'Wine storage'!$B$4+M$17*'Wine storage'!$B$22*'Wine storage'!$B$18/'Wine storage'!$B$16+M$18*'Wine storage'!$B$36*'Wine storage'!$B$32/'Wine storage'!$B$30)/1000) -> 0 | N49: =IF('Red Fermentation Total'!$A$13<'Red Fermentation (1)'!$D$8,N$6*1.4*N$8*(N$9*'Red Fermentation Total'!$B$13+N$10*'Red Fermentation Total'!$C$13+N$11*'Red Fermentation Total'!$D$13)/1.09,N$6*N$8*0.7*($D49-'Wine storage'!$H$8)*(N$16*'Wine storage'!$B$10*'Wine storage'!$B$6/'Wine storage'!$B$4+N$17*'Wine storage'!$B$22*'Wine storage'!$B$18/'Wine storage'!$B$16+N$18*'Wine storage'!$B$36*'Wine storage'!$B$32/'Wine storage'!$B$30)/1000) -> 0 | O49: =IF('Red Fermentation Total'!$A$11<'Red Fermentation (1)'!$D$8,O$6*1.4*O$8*(O$9*'Red Fermentation Total'!$B$11+O$10*'Red Fermentation Total'!$C$11+O$11*'Red Fermentation Total'!$D$11)/1.09,O$6*O$8*0.7*($D49-'Wine storage'!$H$8)*(O$16*'Wine storage'!$B$10*'Wine storage'!$B$6/'Wine storage'!$B$4+O$17*'Wine storage'!$B$22*'Wine storage'!$B$18/'Wine storage'!$B$16+O$18*'Wine storage'!$B$36*'Wine storage'!$B$32/'Wine storage'!$B$30)/1000) -> 0 | P49: =IF('Red Fermentation Total'!$A$9<'Red Fermentation (1)'!$D$8,P$6*1.4*P$8*(P$9*'Red Fermentation Total'!$B$9+P$10*'Red Fermentation Total'!$C$9+P$11*'Red Fermentation Total'!$D$9)/1.09,P$6*P$8*0.7*($D49-'Wine storage'!$H$8)*(P$16*'Wine storage'!$B$10*'Wine storage'!$B$6/'Wine storage'!$B$4+P$17*'Wine storage'!$B$22*'Wine storage'!$B$18/'Wine storage'!$B$16+P$18*'Wine storage'!$B$36*'Wine storage'!$B$32/'Wine storage'!$B$30)/1000) -> 0 | Q49: =IF('Red Fermentation Total'!$A$7<'Red Fermentation (1)'!$D$8,Q$6*1.4*Q$8*(Q$9*'Red Fermentation Total'!$B$7+Q$10*'Red Fermentation Total'!$C$7+Q$11*'Red Fermentation Total'!$D$7)/1.09,Q$6*Q$8*0.7*($D49-'Wine storage'!$H$8)*(Q$16*'Wine storage'!$B$10*'Wine storage'!$B$6/'Wine storage'!$B$4+Q$17*'Wine storage'!$B$22*'Wine storage'!$B$18/'Wine storage'!$B$16+Q$18*'Wine storage'!$B$36*'Wine storage'!$B$32/'Wine storage'!$B$30)/1000) -> 0 | R49: =IF('Red Fermentation Total'!$A$5<'Red Fermentation (1)'!$D$8,R$6*1.4*R$8*(R$9*'Red Fermentation Total'!$B$5+R$10*'Red Fermentation Total'!$C$5+R$11*'Red Fermentation Total'!$D$5)/1.09,R$6*R$8*0.7*($D49-'Wine storage'!$H$8)*(R$16*'Wine storage'!$B$10*'Wine storage'!$B$6/'Wine storage'!$B$4+R$17*'Wine storage'!$B$22*'Wine storage'!$B$18/'Wine storage'!$B$16+R$18*'Wine storage'!$B$36*'Wine storage'!$B$32/'Wine storage'!$B$30)/1000) -> 0 | S49: =S48 -> 0
D50: =LOOKUP(MONTH(F50),'Brine and COP'!$C$28:$N$28,'Brine and COP'!$C$30:$N$30) -> 26.71982625 | E50: ='Red Fermentation Equipment'!$B$40 -> 4 | F50: 2014-01-14T21:00:00 | G50: =IF('Red Fermentation Total'!$A$28<'Red Fermentation (1)'!$D$8,G$6*1.4*G$8*(G$9*'Red Fermentation Total'!$B$28+G$10*'Red Fermentation Total'!$C$28+G$11*'Red Fermentation Total'!$D$28)/1.09,G$6*G$8*0.7*($D50-'Wine storage'!$H$8)*(G$16*'Wine storage'!$B$10*'Wine storage'!$B$6/'Wine storage'!$B$4+G$17*'Wine storage'!$B$22*'Wine storage'!$B$18/'Wine storage'!$B$16+G$18*'Wine storage'!$B$36*'Wine storage'!$B$32/'Wine storage'!$B$30)/1000) -> 0 | H50: =IF('Red Fermentation Total'!$A$26<'Red Fermentation (1)'!$D$8,H$6*1.4*H$8*(H$9*'Red Fermentation Total'!$B$26+H$10*'Red Fermentation Total'!$C$26+H$11*'Red Fermentation Total'!$D$26)/1.09,H$6*H$8*0.7*($D50-'Wine storage'!$H$8)*(H$16*'Wine storage'!$B$10*'Wine storage'!$B$6/'Wine storage'!$B$4+H$17*'Wine storage'!$B$22*'Wine storage'!$B$18/'Wine storage'!$B$16+H$18*'Wine storage'!$B$36*'Wine storage'!$B$32/'Wine storage'!$B$30)/1000) -> 0 | I50: =IF('Red Fermentation Total'!$A$24<'Red Fermentation (1)'!$D$8,I$6*1.4*I$8*(I$9*'Red Fermentation Total'!$B$24+I$10*'Red Fermentation Total'!$C$24+I$11*'Red Fermentation Total'!$D$24)/1.09,I$6*I$8*0.7*($D50-'Wine storage'!$H$8)*(I$16*'Wine storage'!$B$10*'Wine storage'!$B$6/'Wine storage'!$B$4+I$17*'Wine storage'!$B$22*'Wine storage'!$B$18/'Wine storage'!$B$16+I$18*'Wine storage'!$B$36*'Wine storage'!$B$32/'Wine storage'!$B$30)/1000) -> 0 | J50: =IF('Red Fermentation Total'!$A$22<'Red Fermentation (1)'!$D$8,J$6*1.4*J$8*(J$9*'Red Fermentation Total'!$B$22+J$10*'Red Fermentation Total'!$C$22+J$11*'Red Fermentation Total'!$D$22)/1.09,J$6*J$8*0.7*($D50-'Wine storage'!$H$8)*(J$16*'Wine storage'!$B$10*'Wine storage'!$B$6/'Wine storage'!$B$4+J$17*'Wine storage'!$B$22*'Wine storage'!$B$18/'Wine storage'!$B$16+J$18*'Wine storage'!$B$36*'Wine storage'!$B$32/'Wine storage'!$B$30)/1000) -> 0 | K50: =IF('Red Fermentation Total'!$A$20<'Red Fermentation (1)'!$D$8,K$6*1.4*K$8*(K$9*'Red Fermentation Total'!$B$20+K$10*'Red Fermentation Total'!$C$20+K$11*'Red Fermentation Total'!$D$20)/1.09,K$6*K$8*0.7*($D50-'Wine storage'!$H$8)*(K$16*'Wine storage'!$B$10*'Wine storage'!$B$6/'Wine storage'!$B$4+K$17*'Wine storage'!$B$22*'Wine storage'!$B$18/'Wine storage'!$B$16+K$18*'Wine storage'!$B$36*'Wine storage'!$B$32/'Wine storage'!$B$30)/1000) -> 0 | L50: =IF('Red Fermentation Total'!$A$18<'Red Fermentation (1)'!$D$8,L$6*1.4*L$8*(L$9*'Red Fermentation Total'!$B$18+L$10*'Red Fermentation Total'!$C$18+L$11*'Red Fermentation Total'!$D$18)/1.09,L$6*L$8*0.7*($D50-'Wine storage'!$H$8)*(L$16*'Wine storage'!$B$10*'Wine storage'!$B$6/'Wine storage'!$B$4+L$17*'Wine storage'!$B$22*'Wine storage'!$B$18/'Wine storage'!$B$16+L$18*'Wine storage'!$B$36*'Wine storage'!$B$32/'Wine storage'!$B$30)/1000) -> 0 | M50: =IF('Red Fermentation Total'!$A$16<'Red Fermentation (1)'!$D$8,M$6*1.4*M$8*(M$9*'Red Fermentation Total'!$B$16+M$10*'Red Fermentation Total'!$C$16+M$11*'Red Fermentation Total'!$D$16)/1.09,M$6*M$8*0.7*($D50-'Wine storage'!$H$8)*(M$16*'Wine storage'!$B$10*'Wine storage'!$B$6/'Wine storage'!$B$4+M$17*'Wine storage'!$B$22*'Wine storage'!$B$18/'Wine storage'!$B$16+M$18*'Wine storage'!$B$36*'Wine storage'!$B$32/'Wine storage'!$B$30)/1000) -> 0 | N50: =IF('Red Fermentation Total'!$A$14<'Red Fermentation (1)'!$D$8,N$6*1.4*N$8*(N$9*'Red Fermentation Total'!$B$14+N$10*'Red Fermentation Total'!$C$14+N$11*'Red Fermentation Total'!$D$14)/1.09,N$6*N$8*0.7*($D50-'Wine storage'!$H$8)*(N$16*'Wine storage'!$B$10*'Wine storage'!$B$6/'Wine storage'!$B$4+N$17*'Wine storage'!$B$22*'Wine storage'!$B$18/'Wine storage'!$B$16+N$18*'Wine storage'!$B$36*'Wine storage'!$B$32/'Wine storage'!$B$30)/1000) -> 0 | O50: =IF('Red Fermentation Total'!$A$12<'Red Fermentation (1)'!$D$8,O$6*1.4*O$8*(O$9*'Red Fermentation Total'!$B$12+O$10*'Red Fermentation Total'!$C$12+O$11*'Red Fermentation Total'!$D$12)/1.09,O$6*O$8*0.7*($D50-'Wine storage'!$H$8)*(O$16*'Wine storage'!$B$10*'Wine storage'!$B$6/'Wine storage'!$B$4+O$17*'Wine storage'!$B$22*'Wine storage'!$B$18/'Wine storage'!$B$16+O$18*'Wine storage'!$B$36*'Wine storage'!$B$32/'Wine storage'!$B$30)/1000) -> 0 | P50: =IF('Red Fermentation Total'!$A$10<'Red Fermentation (1)'!$D$8,P$6*1.4*P$8*(P$9*'Red Fermentation Total'!$B$10+P$10*'Red Fermentation Total'!$C$10+P$11*'Red Fermentation Total'!$D$10)/1.09,P$6*P$8*0.7*($D50-'Wine storage'!$H$8)*(P$16*'Wine storage'!$B$10*'Wine storage'!$B$6/'Wine storage'!$B$4+P$17*'Wine storage'!$B$22*'Wine storage'!$B$18/'Wine storage'!$B$16+P$18*'Wine storage'!$B$36*'Wine storage'!$B$32/'Wine storage'!$B$30)/1000) -> 0 | Q50: =IF('Red Fermentation Total'!$A$8<'Red Fermentation (1)'!$D$8,Q$6*1.4*Q$8*(Q$9*'Red Fermentation Total'!$B$8+Q$10*'Red Fermentation Total'!$C$8+Q$11*'Red Fermentation Total'!$D$8)/1.09,Q$6*Q$8*0.7*($D50-'Wine storage'!$H$8)*(Q$16*'Wine storage'!$B$10*'Wine storage'!$B$6/'Wine storage'!$B$4+Q$17*'Wine storage'!$B$22*'Wine storage'!$B$18/'Wine storage'!$B$16+Q$18*'Wine storage'!$B$36*'Wine storage'!$B$32/'Wine storage'!$B$30)/1000) -> 0 | R50: =IF('Red Fermentation Total'!$A$6<'Red Fermentation (1)'!$D$8,R$6*1.4*R$8*(R$9*'Red Fermentation Total'!$B$6+R$10*'Red Fermentation Total'!$C$6+R$11*'Red Fermentation Total'!$D$6)/1.09,R$6*R$8*0.7*($D50-'Wine storage'!$H$8)*(R$16*'Wine storage'!$B$10*'Wine storage'!$B$6/'Wine storage'!$B$4+R$17*'Wine storage'!$B$22*'Wine storage'!$B$18/'Wine storage'!$B$16+R$18*'Wine storage'!$B$36*'Wine storage'!$B$32/'Wine storage'!$B$30)/1000) -> 0 | S50: =IF('Red Fermentation Total'!$A$4<'Red Fermentation (1)'!$D$8,S$6*1.4*S$8*(S$9*'Red Fermentation Total'!$B$4+S$10*'Red Fermentation Total'!$C$4+S$11*'Red Fermentation Total'!$D$4)/1.09,S$6*S$8*0.7*($D50-'Wine storage'!$H$8)*(S$16*'Wine storage'!$B$10*'Wine storage'!$B$6/'Wine storage'!$B$4+S$17*'Wine storage'!$B$22*'Wine storage'!$B$18/'Wine storage'!$B$16+S$18*'Wine storage'!$B$36*'Wine storage'!$B$32/'Wine storage'!$B$30)/1000) -> 0 | T50: =T$6*T$8*($D50-$E50)*(T$9*'Red Fermentation Equipment'!$B$11*'Red Fermentation Equipment'!$B$6/'Red Fermentation Equipment'!$B$3+T$10*'Red Fermentation Equipment'!$B$23*'Red Fermentation Equipment'!$B$18/'Red Fermentation Equipment'!$B$15+'Cold Soak Red'!T$11*'Red Fermentation Equipment'!$B$35*'Red Fermentation Equipment'!$B$30/'Red Fermentation Equipment'!$B$27) -> 0
D51: =LOOKUP(MONTH(F51),'Brine and COP'!$C$28:$N$28,'Brine and COP'!$C$30:$N$30) -> 26.71982625 | E51: ='Red Fermentation Equipment'!$B$40 -> 4 | F51: 2014-01-15T09:00:00 | G51: =IF('Red Fermentation Total'!$A$29<'Red Fermentation (1)'!$D$8,G$6*1.4*G$8*(G$9*'Red Fermentation Total'!$B$29+G$10*'Red Fermentation Total'!$C$29+G$11*'Red Fermentation Total'!$D$29)/1.09,G$6*G$8*0.7*($D51-'Wine storage'!$H$8)*(G$16*'Wine storage'!$B$10*'Wine storage'!$B$6/'Wine storage'!$B$4+G$17*'Wine storage'!$B$22*'Wine storage'!$B$18/'Wine storage'!$B$16+G$18*'Wine storage'!$B$36*'Wine storage'!$B$32/'Wine storage'!$B$30)/1000) -> 0 | H51: =IF('Red Fermentation Total'!$A$27<'Red Fermentation (1)'!$D$8,H$6*1.4*H$8*(H$9*'Red Fermentation Total'!$B$27+H$10*'Red Fermentation Total'!$C$27+H$11*'Red Fermentation Total'!$D$27)/1.09,H$6*H$8*0.7*($D51-'Wine storage'!$H$8)*(H$16*'Wine storage'!$B$10*'Wine storage'!$B$6/'Wine storage'!$B$4+H$17*'Wine storage'!$B$22*'Wine storage'!$B$18/'Wine storage'!$B$16+H$18*'Wine storage'!$B$36*'Wine storage'!$B$32/'Wine storage'!$B$30)/1000) -> 0 | I51: =IF('Red Fermentation Total'!$A$25<'Red Fermentation (1)'!$D$8,I$6*1.4*I$8*(I$9*'Red Fermentation Total'!$B$25+I$10*'Red Fermentation Total'!$C$25+I$11*'Red Fermentation Total'!$D$25)/1.09,I$6*I$8*0.7*($D51-'Wine storage'!$H$8)*(I$16*'Wine storage'!$B$10*'Wine storage'!$B$6/'Wine storage'!$B$4+I$17*'Wine storage'!$B$22*'Wine storage'!$B$18/'Wine storage'!$B$16+I$18*'Wine storage'!$B$36*'Wine storage'!$B$32/'Wine storage'!$B$30)/1000) -> 0 | J51: =IF('Red Fermentation Total'!$A$23<'Red Fermentation (1)'!$D$8,J$6*1.4*J$8*(J$9*'Red Fermentation Total'!$B$23+J$10*'Red Fermentation Total'!$C$23+J$11*'Red Fermentation Total'!$D$23)/1.09,J$6*J$8*0.7*($D51-'Wine storage'!$H$8)*(J$16*'Wine storage'!$B$10*'Wine storage'!$B$6/'Wine storage'!$B$4+J$17*'Wine storage'!$B$22*'Wine storage'!$B$18/'Wine storage'!$B$16+J$18*'Wine storage'!$B$36*'Wine storage'!$B$32/'Wine storage'!$B$30)/1000) -> 0 | K51: =IF('Red Fermentation Total'!$A$21<'Red Fermentation (1)'!$D$8,K$6*1.4*K$8*(K$9*'Red Fermentation Total'!$B$21+K$10*'Red Fermentation Total'!$C$21+K$11*'Red Fermentation Total'!$D$21)/1.09,K$6*K$8*0.7*($D51-'Wine storage'!$H$8)*(K$16*'Wine storage'!$B$10*'Wine storage'!$B$6/'Wine storage'!$B$4+K$17*'Wine storage'!$B$22*'Wine storage'!$B$18/'Wine storage'!$B$16+K$18*'Wine storage'!$B$36*'Wine storage'!$B$32/'Wine storage'!$B$30)/1000) -> 0 | L51: =IF('Red Fermentation Total'!$A$19<'Red Fermentation (1)'!$D$8,L$6*1.4*L$8*(L$9*'Red Fermentation Total'!$B$19+L$10*'Red Fermentation Total'!$C$19+L$11*'Red Fermentation Total'!$D$19)/1.09,L$6*L$8*0.7*($D51-'Wine storage'!$H$8)*(L$16*'Wine storage'!$B$10*'Wine storage'!$B$6/'Wine storage'!$B$4+L$17*'Wine storage'!$B$22*'Wine storage'!$B$18/'Wine storage'!$B$16+L$18*'Wine storage'!$B$36*'Wine storage'!$B$32/'Wine storage'!$B$30)/1000) -> 0 | M51: =IF('Red Fermentation Total'!$A$17<'Red Fermentation (1)'!$D$8,M$6*1.4*M$8*(M$9*'Red Fermentation Total'!$B$17+M$10*'Red Fermentation Total'!$C$17+M$11*'Red Fermentation Total'!$D$17)/1.09,M$6*M$8*0.7*($D51-'Wine storage'!$H$8)*(M$16*'Wine storage'!$B$10*'Wine storage'!$B$6/'Wine storage'!$B$4+M$17*'Wine storage'!$B$22*'Wine storage'!$B$18/'Wine storage'!$B$16+M$18*'Wine storage'!$B$36*'Wine storage'!$B$32/'Wine storage'!$B$30)/1000) -> 0 | N51: =IF('Red Fermentation Total'!$A$15<'Red Fermentation (1)'!$D$8,N$6*1.4*N$8*(N$9*'Red Fermentation Total'!$B$15+N$10*'Red Fermentation Total'!$C$15+N$11*'Red Fermentation Total'!$D$15)/1.09,N$6*N$8*0.7*($D51-'Wine storage'!$H$8)*(N$16*'Wine storage'!$B$10*'Wine storage'!$B$6/'Wine storage'!$B$4+N$17*'Wine storage'!$B$22*'Wine storage'!$B$18/'Wine storage'!$B$16+N$18*'Wine storage'!$B$36*'Wine storage'!$B$32/'Wine storage'!$B$30)/1000) -> 0 | O51: =IF('Red Fermentation Total'!$A$13<'Red Fermentation (1)'!$D$8,O$6*1.4*O$8*(O$9*'Red Fermentation Total'!$B$13+O$10*'Red Fermentation Total'!$C$13+O$11*'Red Fermentation Total'!$D$13)/1.09,O$6*O$8*0.7*($D51-'Wine storage'!$H$8)*(O$16*'Wine storage'!$B$10*'Wine storage'!$B$6/'Wine storage'!$B$4+O$17*'Wine storage'!$B$22*'Wine storage'!$B$18/'Wine storage'!$B$16+O$18*'Wine storage'!$B$36*'Wine storage'!$B$32/'Wine storage'!$B$30)/1000) -> 0 | P51: =IF('Red Fermentation Total'!$A$11<'Red Fermentation (1)'!$D$8,P$6*1.4*P$8*(P$9*'Red Fermentation Total'!$B$11+P$10*'Red Fermentation Total'!$C$11+P$11*'Red Fermentation Total'!$D$11)/1.09,P$6*P$8*0.7*($D51-'Wine storage'!$H$8)*(P$16*'Wine storage'!$B$10*'Wine storage'!$B$6/'Wine storage'!$B$4+P$17*'Wine storage'!$B$22*'Wine storage'!$B$18/'Wine storage'!$B$16+P$18*'Wine storage'!$B$36*'Wine storage'!$B$32/'Wine storage'!$B$30)/1000) -> 0 | Q51: =IF('Red Fermentation Total'!$A$9<'Red Fermentation (1)'!$D$8,Q$6*1.4*Q$8*(Q$9*'Red Fermentation Total'!$B$9+Q$10*'Red Fermentation Total'!$C$9+Q$11*'Red Fermentation Total'!$D$9)/1.09,Q$6*Q$8*0.7*($D51-'Wine storage'!$H$8)*(Q$16*'Wine storage'!$B$10*'Wine storage'!$B$6/'Wine storage'!$B$4+Q$17*'Wine storage'!$B$22*'Wine storage'!$B$18/'Wine storage'!$B$16+Q$18*'Wine storage'!$B$36*'Wine storage'!$B$32/'Wine storage'!$B$30)/1000) -> 0 | R51: =IF('Red Fermentation Total'!$A$7<'Red Fermentation (1)'!$D$8,R$6*1.4*R$8*(R$9*'Red Fermentation Total'!$B$7+R$10*'Red Fermentation Total'!$C$7+R$11*'Red Fermentation Total'!$D$7)/1.09,R$6*R$8*0.7*($D51-'Wine storage'!$H$8)*(R$16*'Wine storage'!$B$10*'Wine storage'!$B$6/'Wine storage'!$B$4+R$17*'Wine storage'!$B$22*'Wine storage'!$B$18/'Wine storage'!$B$16+R$18*'Wine storage'!$B$36*'Wine storage'!$B$32/'Wine storage'!$B$30)/1000) -> 0 | S51: =IF('Red Fermentation Total'!$A$5<'Red Fermentation (1)'!$D$8,S$6*1.4*S$8*(S$9*'Red Fermentation Total'!$B$5+S$10*'Red Fermentation Total'!$C$5+S$11*'Red Fermentation Total'!$D$5)/1.09,S$6*S$8*0.7*($D51-'Wine storage'!$H$8)*(S$16*'Wine storage'!$B$10*'Wine storage'!$B$6/'Wine storage'!$B$4+S$17*'Wine storage'!$B$22*'Wine storage'!$B$18/'Wine storage'!$B$16+S$18*'Wine storage'!$B$36*'Wine storage'!$B$32/'Wine storage'!$B$30)/1000) -> 0 | T51: =T50 -> 0
D52: =LOOKUP(MONTH(F52),'Brine and COP'!$C$28:$N$28,'Brine and COP'!$C$30:$N$30) -> 26.71982625 | E52: ='Red Fermentation Equipment'!$B$40 -> 4 | F52: 2014-01-15T21:00:00 | G52: =IF('Red Fermentation Total'!$A$30<'Red Fermentation (1)'!$D$8,G$6*1.4*G$8*(G$9*'Red Fermentation Total'!$B$30+G$10*'Red Fermentation Total'!$C$30+G$11*'Red Fermentation Total'!$D$30)/1.09,G$6*G$8*0.7*($D52-'Wine storage'!$H$8)*(G$16*'Wine storage'!$B$10*'Wine storage'!$B$6/'Wine storage'!$B$4+G$17*'Wine storage'!$B$22*'Wine storage'!$B$18/'Wine storage'!$B$16+G$18*'Wine storage'!$B$36*'Wine storage'!$B$32/'Wine storage'!$B$30)/1000) -> 0 | H52: =IF('Red Fermentation Total'!$A$28<'Red Fermentation (1)'!$D$8,H$6*1.4*H$8*(H$9*'Red Fermentation Total'!$B$28+H$10*'Red Fermentation Total'!$C$28+H$11*'Red Fermentation Total'!$D$28)/1.09,H$6*H$8*0.7*($D52-'Wine storage'!$H$8)*(H$16*'Wine storage'!$B$10*'Wine storage'!$B$6/'Wine storage'!$B$4+H$17*'Wine storage'!$B$22*'Wine storage'!$B$18/'Wine storage'!$B$16+H$18*'Wine storage'!$B$36*'Wine storage'!$B$32/'Wine storage'!$B$30)/1000) -> 0 | I52: =IF('Red Fermentation Total'!$A$26<'Red Fermentation (1)'!$D$8,I$6*1.4*I$8*(I$9*'Red Fermentation Total'!$B$26+I$10*'Red Fermentation Total'!$C$26+I$11*'Red Fermentation Total'!$D$26)/1.09,I$6*I$8*0.7*($D52-'Wine storage'!$H$8)*(I$16*'Wine storage'!$B$10*'Wine storage'!$B$6/'Wine storage'!$B$4+I$17*'Wine storage'!$B$22*'Wine storage'!$B$18/'Wine storage'!$B$16+I$18*'Wine storage'!$B$36*'Wine storage'!$B$32/'Wine storage'!$B$30)/1000) -> 0 | J52: =IF('Red Fermentation Total'!$A$24<'Red Fermentation (1)'!$D$8,J$6*1.4*J$8*(J$9*'Red Fermentation Total'!$B$24+J$10*'Red Fermentation Total'!$C$24+J$11*'Red Fermentation Total'!$D$24)/1.09,J$6*J$8*0.7*($D52-'Wine storage'!$H$8)*(J$16*'Wine storage'!$B$10*'Wine storage'!$B$6/'Wine storage'!$B$4+J$17*'Wine storage'!$B$22*'Wine storage'!$B$18/'Wine storage'!$B$16+J$18*'Wine storage'!$B$36*'Wine storage'!$B$32/'Wine storage'!$B$30)/1000) -> 0 | K52: =IF('Red Fermentation Total'!$A$22<'Red Fermentation (1)'!$D$8,K$6*1.4*K$8*(K$9*'Red Fermentation Total'!$B$22+K$10*'Red Fermentation Total'!$C$22+K$11*'Red Fermentation Total'!$D$22)/1.09,K$6*K$8*0.7*($D52-'Wine storage'!$H$8)*(K$16*'Wine storage'!$B$10*'Wine storage'!$B$6/'Wine storage'!$B$4+K$17*'Wine storage'!$B$22*'Wine storage'!$B$18/'Wine storage'!$B$16+K$18*'Wine storage'!$B$36*'Wine storage'!$B$32/'Wine storage'!$B$30)/1000) -> 0 | L52: =IF('Red Fermentation Total'!$A$20<'Red Fermentation (1)'!$D$8,L$6*1.4*L$8*(L$9*'Red Fermentation Total'!$B$20+L$10*'Red Fermentation Total'!$C$20+L$11*'Red Fermentation Total'!$D$20)/1.09,L$6*L$8*0.7*($D52-'Wine storage'!$H$8)*(L$16*'Wine storage'!$B$10*'Wine storage'!$B$6/'Wine storage'!$B$4+L$17*'Wine storage'!$B$22*'Wine storage'!$B$18/'Wine storage'!$B$16+L$18*'Wine storage'!$B$36*'Wine storage'!$B$32/'Wine storage'!$B$30)/1000) -> 0 | M52: =IF('Red Fermentation Total'!$A$18<'Red Fermentation (1)'!$D$8,M$6*1.4*M$8*(M$9*'Red Fermentation Total'!$B$18+M$10*'Red Fermentation Total'!$C$18+M$11*'Red Fermentation Total'!$D$18)/1.09,M$6*M$8*0.7*($D52-'Wine storage'!$H$8)*(M$16*'Wine storage'!$B$10*'Wine storage'!$B$6/'Wine storage'!$B$4+M$17*'Wine storage'!$B$22*'Wine storage'!$B$18/'Wine storage'!$B$16+M$18*'Wine storage'!$B$36*'Wine storage'!$B$32/'Wine storage'!$B$30)/1000) -> 0 | N52: =IF('Red Fermentation Total'!$A$16<'Red Fermentation (1)'!$D$8,N$6*1.4*N$8*(N$9*'Red Fermentation Total'!$B$16+N$10*'Red Fermentation Total'!$C$16+N$11*'Red Fermentation Total'!$D$16)/1.09,N$6*N$8*0.7*($D52-'Wine storage'!$H$8)*(N$16*'Wine storage'!$B$10*'Wine storage'!$B$6/'Wine storage'!$B$4+N$17*'Wine storage'!$B$22*'Wine storage'!$B$18/'Wine storage'!$B$16+N$18*'Wine storage'!$B$36*'Wine storage'!$B$32/'Wine storage'!$B$30)/1000) -> 0 | O52: =IF('Red Fermentation Total'!$A$14<'Red Fermentation (1)'!$D$8,O$6*1.4*O$8*(O$9*'Red Fermentation Total'!$B$14+O$10*'Red Fermentation Total'!$C$14+O$11*'Red Fermentation Total'!$D$14)/1.09,O$6*O$8*0.7*($D52-'Wine storage'!$H$8)*(O$16*'Wine storage'!$B$10*'Wine storage'!$B$6/'Wine storage'!$B$4+O$17*'Wine storage'!$B$22*'Wine storage'!$B$18/'Wine storage'!$B$16+O$18*'Wine storage'!$B$36*'Wine storage'!$B$32/'Wine storage'!$B$30)/1000) -> 0 | P52: =IF('Red Fermentation Total'!$A$12<'Red Fermentation (1)'!$D$8,P$6*1.4*P$8*(P$9*'Red Fermentation Total'!$B$12+P$10*'Red Fermentation Total'!$C$12+P$11*'Red Fermentation Total'!$D$12)/1.09,P$6*P$8*0.7*($D52-'Wine storage'!$H$8)*(P$16*'Wine storage'!$B$10*'Wine storage'!$B$6/'Wine storage'!$B$4+P$17*'Wine storage'!$B$22*'Wine storage'!$B$18/'Wine storage'!$B$16+P$18*'Wine storage'!$B$36*'Wine storage'!$B$32/'Wine storage'!$B$30)/1000) -> 0 | Q52: =IF('Red Fermentation Total'!$A$10<'Red Fermentation (1)'!$D$8,Q$6*1.4*Q$8*(Q$9*'Red Fermentation Total'!$B$10+Q$10*'Red Fermentation Total'!$C$10+Q$11*'Red Fermentation Total'!$D$10)/1.09,Q$6*Q$8*0.7*($D52-'Wine storage'!$H$8)*(Q$16*'Wine storage'!$B$10*'Wine storage'!$B$6/'Wine storage'!$B$4+Q$17*'Wine storage'!$B$22*'Wine storage'!$B$18/'Wine storage'!$B$16+Q$18*'Wine storage'!$B$36*'Wine storage'!$B$32/'Wine storage'!$B$30)/1000) -> 0 | R52: =IF('Red Fermentation Total'!$A$8<'Red Fermentation (1)'!$D$8,R$6*1.4*R$8*(R$9*'Red Fermentation Total'!$B$8+R$10*'Red Fermentation Total'!$C$8+R$11*'Red Fermentation Total'!$D$8)/1.09,R$6*R$8*0.7*($D52-'Wine storage'!$H$8)*(R$16*'Wine storage'!$B$10*'Wine storage'!$B$6/'Wine storage'!$B$4+R$17*'Wine storage'!$B$22*'Wine storage'!$B$18/'Wine storage'!$B$16+R$18*'Wine storage'!$B$36*'Wine storage'!$B$32/'Wine storage'!$B$30)/1000) -> 0 | S52: =IF('Red Fermentation Total'!$A$6<'Red Fermentation (1)'!$D$8,S$6*1.4*S$8*(S$9*'Red Fermentation Total'!$B$6+S$10*'Red Fermentation Total'!$C$6+S$11*'Red Fermentation Total'!$D$6)/1.09,S$6*S$8*0.7*($D52-'Wine storage'!$H$8)*(S$16*'Wine storage'!$B$10*'Wine storage'!$B$6/'Wine storage'!$B$4+S$17*'Wine storage'!$B$22*'Wine storage'!$B$18/'Wine storage'!$B$16+S$18*'Wine storage'!$B$36*'Wine storage'!$B$32/'Wine storage'!$B$30)/1000) -> 0 | T52: =IF('Red Fermentation Total'!$A$4<'Red Fermentation (1)'!$D$8,T$6*1.4*T$8*(T$9*'Red Fermentation Total'!$B$4+T$10*'Red Fermentation Total'!$C$4+T$11*'Red Fermentation Total'!$D$4)/1.09,T$6*T$8*0.7*($D52-'Wine storage'!$H$8)*(T$16*'Wine storage'!$B$10*'Wine storage'!$B$6/'Wine storage'!$B$4+T$17*'Wine storage'!$B$22*'Wine storage'!$B$18/'Wine storage'!$B$16+T$18*'Wine storage'!$B$36*'Wine storage'!$B$32/'Wine storage'!$B$30)/1000) -> 0 | U52: =U$6*U$8*($D52-$E52)*(U$9*'Red Fermentation Equipment'!$B$11*'Red Fermentation Equipment'!$B$6/'Red Fermentation Equipment'!$B$3+U$10*'Red Fermentation Equipment'!$B$23*'Red Fermentation Equipment'!$B$18/'Red Fermentation Equipment'!$B$15+'Cold Soak Red'!U$11*'Red Fermentation Equipment'!$B$35*'Red Fermentation Equipment'!$B$30/'Red Fermentation Equipment'!$B$27) -> 0
D53: =LOOKUP(MONTH(F53),'Brine and COP'!$C$28:$N$28,'Brine and COP'!$C$30:$N$30) -> 26.71982625 | E53: ='Red Fermentation Equipment'!$B$40 -> 4 | F53: 2014-01-16T09:00:00 | G53: =IF('Red Fermentation Total'!$A$31<'Red Fermentation (1)'!$D$8,G$6*1.4*G$8*(G$9*'Red Fermentation Total'!$B$31+G$10*'Red Fermentation Total'!$C$31+G$11*'Red Fermentation Total'!$D$31)/1.09,G$6*G$8*0.7*($D53-'Wine storage'!$H$8)*(G$16*'Wine storage'!$B$10*'Wine storage'!$B$6/'Wine storage'!$B$4+G$17*'Wine storage'!$B$22*'Wine storage'!$B$18/'Wine storage'!$B$16+G$18*'Wine storage'!$B$36*'Wine storage'!$B$32/'Wine storage'!$B$30)/1000) -> 0 | H53: =IF('Red Fermentation Total'!$A$29<'Red Fermentation (1)'!$D$8,H$6*1.4*H$8*(H$9*'Red Fermentation Total'!$B$29+H$10*'Red Fermentation Total'!$C$29+H$11*'Red Fermentation Total'!$D$29)/1.09,H$6*H$8*0.7*($D53-'Wine storage'!$H$8)*(H$16*'Wine storage'!$B$10*'Wine storage'!$B$6/'Wine storage'!$B$4+H$17*'Wine storage'!$B$22*'Wine storage'!$B$18/'Wine storage'!$B$16+H$18*'Wine storage'!$B$36*'Wine storage'!$B$32/'Wine storage'!$B$30)/1000) -> 0 | I53: =IF('Red Fermentation Total'!$A$27<'Red Fermentation (1)'!$D$8,I$6*1.4*I$8*(I$9*'Red Fermentation Total'!$B$27+I$10*'Red Fermentation Total'!$C$27+I$11*'Red Fermentation Total'!$D$27)/1.09,I$6*I$8*0.7*($D53-'Wine storage'!$H$8)*(I$16*'Wine storage'!$B$10*'Wine storage'!$B$6/'Wine storage'!$B$4+I$17*'Wine storage'!$B$22*'Wine storage'!$B$18/'Wine storage'!$B$16+I$18*'Wine storage'!$B$36*'Wine storage'!$B$32/'Wine storage'!$B$30)/1000) -> 0 | J53: =IF('Red Fermentation Total'!$A$25<'Red Fermentation (1)'!$D$8,J$6*1.4*J$8*(J$9*'Red Fermentation Total'!$B$25+J$10*'Red Fermentation Total'!$C$25+J$11*'Red Fermentation Total'!$D$25)/1.09,J$6*J$8*0.7*($D53-'Wine storage'!$H$8)*(J$16*'Wine storage'!$B$10*'Wine storage'!$B$6/'Wine storage'!$B$4+J$17*'Wine storage'!$B$22*'Wine storage'!$B$18/'Wine storage'!$B$16+J$18*'Wine storage'!$B$36*'Wine storage'!$B$32/'Wine storage'!$B$30)/1000) -> 0 | K53: =IF('Red Fermentation Total'!$A$23<'Red Fermentation (1)'!$D$8,K$6*1.4*K$8*(K$9*'Red Fermentation Total'!$B$23+K$10*'Red Fermentation Total'!$C$23+K$11*'Red Fermentation Total'!$D$23)/1.09,K$6*K$8*0.7*($D53-'Wine storage'!$H$8)*(K$16*'Wine storage'!$B$10*'Wine storage'!$B$6/'Wine storage'!$B$4+K$17*'Wine storage'!$B$22*'Wine storage'!$B$18/'Wine storage'!$B$16+K$18*'Wine storage'!$B$36*'Wine storage'!$B$32/'Wine storage'!$B$30)/1000) -> 0 | L53: =IF('Red Fermentation Total'!$A$21<'Red Fermentation (1)'!$D$8,L$6*1.4*L$8*(L$9*'Red Fermentation Total'!$B$21+L$10*'Red Fermentation Total'!$C$21+L$11*'Red Fermentation Total'!$D$21)/1.09,L$6*L$8*0.7*($D53-'Wine storage'!$H$8)*(L$16*'Wine storage'!$B$10*'Wine storage'!$B$6/'Wine storage'!$B$4+L$17*'Wine storage'!$B$22*'Wine storage'!$B$18/'Wine storage'!$B$16+L$18*'Wine storage'!$B$36*'Wine storage'!$B$32/'Wine storage'!$B$30)/1000) -> 0 | M53: =IF('Red Fermentation Total'!$A$19<'Red Fermentation (1)'!$D$8,M$6*1.4*M$8*(M$9*'Red Fermentation Total'!$B$19+M$10*'Red Fermentation Total'!$C$19+M$11*'Red Fermentation Total'!$D$19)/1.09,M$6*M$8*0.7*($D53-'Wine storage'!$H$8)*(M$16*'Wine storage'!$B$10*'Wine storage'!$B$6/'Wine storage'!$B$4+M$17*'Wine storage'!$B$22*'Wine storage'!$B$18/'Wine storage'!$B$16+M$18*'Wine storage'!$B$36*'Wine storage'!$B$32/'Wine storage'!$B$30)/1000) -> 0 | N53: =IF('Red Fermentation Total'!$A$17<'Red Fermentation (1)'!$D$8,N$6*1.4*N$8*(N$9*'Red Fermentation Total'!$B$17+N$10*'Red Fermentation Total'!$C$17+N$11*'Red Fermentation Total'!$D$17)/1.09,N$6*N$8*0.7*($D53-'Wine storage'!$H$8)*(N$16*'Wine storage'!$B$10*'Wine storage'!$B$6/'Wine storage'!$B$4+N$17*'Wine storage'!$B$22*'Wine storage'!$B$18/'Wine storage'!$B$16+N$18*'Wine storage'!$B$36*'Wine storage'!$B$32/'Wine storage'!$B$30)/1000) -> 0 | O53: =IF('Red Fermentation Total'!$A$15<'Red Fermentation (1)'!$D$8,O$6*1.4*O$8*(O$9*'Red Fermentation Total'!$B$15+O$10*'Red Fermentation Total'!$C$15+O$11*'Red Fermentation Total'!$D$15)/1.09,O$6*O$8*0.7*($D53-'Wine storage'!$H$8)*(O$16*'Wine storage'!$B$10*'Wine storage'!$B$6/'Wine storage'!$B$4+O$17*'Wine storage'!$B$22*'Wine storage'!$B$18/'Wine storage'!$B$16+O$18*'Wine storage'!$B$36*'Wine storage'!$B$32/'Wine storage'!$B$30)/1000) -> 0 | P53: =IF('Red Fermentation Total'!$A$13<'Red Fermentation (1)'!$D$8,P$6*1.4*P$8*(P$9*'Red Fermentation Total'!$B$13+P$10*'Red Fermentation Total'!$C$13+P$11*'Red Fermentation Total'!$D$13)/1.09,P$6*P$8*0.7*($D53-'Wine storage'!$H$8)*(P$16*'Wine storage'!$B$10*'Wine storage'!$B$6/'Wine storage'!$B$4+P$17*'Wine storage'!$B$22*'Wine storage'!$B$18/'Wine storage'!$B$16+P$18*'Wine storage'!$B$36*'Wine storage'!$B$32/'Wine storage'!$B$30)/1000) -> 0 | Q53: =IF('Red Fermentation Total'!$A$11<'Red Fermentation (1)'!$D$8,Q$6*1.4*Q$8*(Q$9*'Red Fermentation Total'!$B$11+Q$10*'Red Fermentation Total'!$C$11+Q$11*'Red Fermentation Total'!$D$11)/1.09,Q$6*Q$8*0.7*($D53-'Wine storage'!$H$8)*(Q$16*'Wine storage'!$B$10*'Wine storage'!$B$6/'Wine storage'!$B$4+Q$17*'Wine storage'!$B$22*'Wine storage'!$B$18/'Wine storage'!$B$16+Q$18*'Wine storage'!$B$36*'Wine storage'!$B$32/'Wine storage'!$B$30)/1000) -> 0 | R53: =IF('Red Fermentation Total'!$A$9<'Red Fermentation (1)'!$D$8,R$6*1.4*R$8*(R$9*'Red Fermentation Total'!$B$9+R$10*'Red Fermentation Total'!$C$9+R$11*'Red Fermentation Total'!$D$9)/1.09,R$6*R$8*0.7*($D53-'Wine storage'!$H$8)*(R$16*'Wine storage'!$B$10*'Wine storage'!$B$6/'Wine storage'!$B$4+R$17*'Wine storage'!$B$22*'Wine storage'!$B$18/'Wine storage'!$B$16+R$18*'Wine storage'!$B$36*'Wine storage'!$B$32/'Wine storage'!$B$30)/1000) -> 0 | S53: =IF('Red Fermentation Total'!$A$7<'Red Fermentation (1)'!$D$8,S$6*1.4*S$8*(S$9*'Red Fermentation Total'!$B$7+S$10*'Red Fermentation Total'!$C$7+S$11*'Red Fermentation Total'!$D$7)/1.09,S$6*S$8*0.7*($D53-'Wine storage'!$H$8)*(S$16*'Wine storage'!$B$10*'Wine storage'!$B$6/'Wine storage'!$B$4+S$17*'Wine storage'!$B$22*'Wine storage'!$B$18/'Wine storage'!$B$16+S$18*'Wine storage'!$B$36*'Wine storage'!$B$32/'Wine storage'!$B$30)/1000) -> 0 | T53: =IF('Red Fermentation Total'!$A$5<'Red Fermentation (1)'!$D$8,T$6*1.4*T$8*(T$9*'Red Fermentation Total'!$B$5+T$10*'Red Fermentation Total'!$C$5+T$11*'Red Fermentation Total'!$D$5)/1.09,T$6*T$8*0.7*($D53-'Wine storage'!$H$8)*(T$16*'Wine storage'!$B$10*'Wine storage'!$B$6/'Wine storage'!$B$4+T$17*'Wine storage'!$B$22*'Wine storage'!$B$18/'Wine storage'!$B$16+T$18*'Wine storage'!$B$36*'Wine storage'!$B$32/'Wine storage'!$B$30)/1000) -> 0 | U53: =U52 -> 0
D54: =LOOKUP(MONTH(F54),'Brine and COP'!$C$28:$N$28,'Brine and COP'!$C$30:$N$30) -> 26.71982625 | E54: ='Red Fermentation Equipment'!$B$40 -> 4 | F54: 2014-01-16T21:00:00 | G54: =IF('Red Fermentation Total'!$A$32<'Red Fermentation (1)'!$D$8,G$6*1.4*G$8*(G$9*'Red Fermentation Total'!$B$32+G$10*'Red Fermentation Total'!$C$32+G$11*'Red Fermentation Total'!$D$32)/1.09,G$6*G$8*0.7*($D54-'Wine storage'!$H$8)*(G$16*'Wine storage'!$B$10*'Wine storage'!$B$6/'Wine storage'!$B$4+G$17*'Wine storage'!$B$22*'Wine storage'!$B$18/'Wine storage'!$B$16+G$18*'Wine storage'!$B$36*'Wine storage'!$B$32/'Wine storage'!$B$30)/1000) -> 0 | H54: =IF('Red Fermentation Total'!$A$30<'Red Fermentation (1)'!$D$8,H$6*1.4*H$8*(H$9*'Red Fermentation Total'!$B$30+H$10*'Red Fermentation Total'!$C$30+H$11*'Red Fermentation Total'!$D$30)/1.09,H$6*H$8*0.7*($D54-'Wine storage'!$H$8)*(H$16*'Wine storage'!$B$10*'Wine storage'!$B$6/'Wine storage'!$B$4+H$17*'Wine storage'!$B$22*'Wine storage'!$B$18/'Wine storage'!$B$16+H$18*'Wine storage'!$B$36*'Wine storage'!$B$32/'Wine storage'!$B$30)/1000) -> 0 | I54: =IF('Red Fermentation Total'!$A$28<'Red Fermentation (1)'!$D$8,I$6*1.4*I$8*(I$9*'Red Fermentation Total'!$B$28+I$10*'Red Fermentation Total'!$C$28+I$11*'Red Fermentation Total'!$D$28)/1.09,I$6*I$8*0.7*($D54-'Wine storage'!$H$8)*(I$16*'Wine storage'!$B$10*'Wine storage'!$B$6/'Wine storage'!$B$4+I$17*'Wine storage'!$B$22*'Wine storage'!$B$18/'Wine storage'!$B$16+I$18*'Wine storage'!$B$36*'Wine storage'!$B$32/'Wine storage'!$B$30)/1000) -> 0 | J54: =IF('Red Fermentation Total'!$A$26<'Red Fermentation (1)'!$D$8,J$6*1.4*J$8*(J$9*'Red Fermentation Total'!$B$26+J$10*'Red Fermentation Total'!$C$26+J$11*'Red Fermentation Total'!$D$26)/1.09,J$6*J$8*0.7*($D54-'Wine storage'!$H$8)*(J$16*'Wine storage'!$B$10*'Wine storage'!$B$6/'Wine storage'!$B$4+J$17*'Wine storage'!$B$22*'Wine storage'!$B$18/'Wine storage'!$B$16+J$18*'Wine storage'!$B$36*'Wine storage'!$B$32/'Wine storage'!$B$30)/1000) -> 0 | K54: =IF('Red Fermentation Total'!$A$24<'Red Fermentation (1)'!$D$8,K$6*1.4*K$8*(K$9*'Red Fermentation Total'!$B$24+K$10*'Red Fermentation Total'!$C$24+K$11*'Red Fermentation Total'!$D$24)/1.09,K$6*K$8*0.7*($D54-'Wine storage'!$H$8)*(K$16*'Wine storage'!$B$10*'Wine storage'!$B$6/'Wine storage'!$B$4+K$17*'Wine storage'!$B$22*'Wine storage'!$B$18/'Wine storage'!$B$16+K$18*'Wine storage'!$B$36*'Wine storage'!$B$32/'Wine storage'!$B$30)/1000) -> 0 | L54: =IF('Red Fermentation Total'!$A$22<'Red Fermentation (1)'!$D$8,L$6*1.4*L$8*(L$9*'Red Fermentation Total'!$B$22+L$10*'Red Fermentation Total'!$C$22+L$11*'Red Fermentation Total'!$D$22)/1.09,L$6*L$8*0.7*($D54-'Wine storage'!$H$8)*(L$16*'Wine storage'!$B$10*'Wine storage'!$B$6/'Wine storage'!$B$4+L$17*'Wine storage'!$B$22*'Wine storage'!$B$18/'Wine storage'!$B$16+L$18*'Wine storage'!$B$36*'Wine storage'!$B$32/'Wine storage'!$B$30)/1000) -> 0 | M54: =IF('Red Fermentation Total'!$A$20<'Red Fermentation (1)'!$D$8,M$6*1.4*M$8*(M$9*'Red Fermentation Total'!$B$20+M$10*'Red Fermentation Total'!$C$20+M$11*'Red Fermentation Total'!$D$20)/1.09,M$6*M$8*0.7*($D54-'Wine storage'!$H$8)*(M$16*'Wine storage'!$B$10*'Wine storage'!$B$6/'Wine storage'!$B$4+M$17*'Wine storage'!$B$22*'Wine storage'!$B$18/'Wine storage'!$B$16+M$18*'Wine storage'!$B$36*'Wine storage'!$B$32/'Wine storage'!$B$30)/1000) -> 0 | N54: =IF('Red Fermentation Total'!$A$18<'Red Fermentation (1)'!$D$8,N$6*1.4*N$8*(N$9*'Red Fermentation Total'!$B$18+N$10*'Red Fermentation Total'!$C$18+N$11*'Red Fermentation Total'!$D$18)/1.09,N$6*N$8*0.7*($D54-'Wine storage'!$H$8)*(N$16*'Wine storage'!$B$10*'Wine storage'!$B$6/'Wine storage'!$B$4+N$17*'Wine storage'!$B$22*'Wine storage'!$B$18/'Wine storage'!$B$16+N$18*'Wine storage'!$B$36*'Wine storage'!$B$32/'Wine storage'!$B$30)/1000) -> 0 | O54: =IF('Red Fermentation Total'!$A$16<'Red Fermentation (1)'!$D$8,O$6*1.4*O$8*(O$9*'Red Fermentation Total'!$B$16+O$10*'Red Fermentation Total'!$C$16+O$11*'Red Fermentation Total'!$D$16)/1.09,O$6*O$8*0.7*($D54-'Wine storage'!$H$8)*(O$16*'Wine storage'!$B$10*'Wine storage'!$B$6/'Wine storage'!$B$4+O$17*'Wine storage'!$B$22*'Wine storage'!$B$18/'Wine storage'!$B$16+O$18*'Wine storage'!$B$36*'Wine storage'!$B$32/'Wine storage'!$B$30)/1000) -> 0 | P54: =IF('Red Fermentation Total'!$A$14<'Red Fermentation (1)'!$D$8,P$6*1.4*P$8*(P$9*'Red Fermentation Total'!$B$14+P$10*'Red Fermentation Total'!$C$14+P$11*'Red Fermentation Total'!$D$14)/1.09,P$6*P$8*0.7*($D54-'Wine storage'!$H$8)*(P$16*'Wine storage'!$B$10*'Wine storage'!$B$6/'Wine storage'!$B$4+P$17*'Wine storage'!$B$22*'Wine storage'!$B$18/'Wine storage'!$B$16+P$18*'Wine storage'!$B$36*'Wine storage'!$B$32/'Wine storage'!$B$30)/1000) -> 0 | Q54: =IF('Red Fermentation Total'!$A$12<'Red Fermentation (1)'!$D$8,Q$6*1.4*Q$8*(Q$9*'Red Fermentation Total'!$B$12+Q$10*'Red Fermentation Total'!$C$12+Q$11*'Red Fermentation Total'!$D$12)/1.09,Q$6*Q$8*0.7*($D54-'Wine storage'!$H$8)*(Q$16*'Wine storage'!$B$10*'Wine storage'!$B$6/'Wine storage'!$B$4+Q$17*'Wine storage'!$B$22*'Wine storage'!$B$18/'Wine storage'!$B$16+Q$18*'Wine storage'!$B$36*'Wine storage'!$B$32/'Wine storage'!$B$30)/1000) -> 0 | R54: =IF('Red Fermentation Total'!$A$10<'Red Fermentation (1)'!$D$8,R$6*1.4*R$8*(R$9*'Red Fermentation Total'!$B$10+R$10*'Red Fermentation Total'!$C$10+R$11*'Red Fermentation Total'!$D$10)/1.09,R$6*R$8*0.7*($D54-'Wine storage'!$H$8)*(R$16*'Wine storage'!$B$10*'Wine storage'!$B$6/'Wine storage'!$B$4+R$17*'Wine storage'!$B$22*'Wine storage'!$B$18/'Wine storage'!$B$16+R$18*'Wine storage'!$B$36*'Wine storage'!$B$32/'Wine storage'!$B$30)/1000) -> 0 | S54: =IF('Red Fermentation Total'!$A$8<'Red Fermentation (1)'!$D$8,S$6*1.4*S$8*(S$9*'Red Fermentation Total'!$B$8+S$10*'Red Fermentation Total'!$C$8+S$11*'Red Fermentation Total'!$D$8)/1.09,S$6*S$8*0.7*($D54-'Wine storage'!$H$8)*(S$16*'Wine storage'!$B$10*'Wine storage'!$B$6/'Wine storage'!$B$4+S$17*'Wine storage'!$B$22*'Wine storage'!$B$18/'Wine storage'!$B$16+S$18*'Wine storage'!$B$36*'Wine storage'!$B$32/'Wine storage'!$B$30)/1000) -> 0 | T54: =IF('Red Fermentation Total'!$A$6<'Red Fermentation (1)'!$D$8,T$6*1.4*T$8*(T$9*'Red Fermentation Total'!$B$6+T$10*'Red Fermentation Total'!$C$6+T$11*'Red Fermentation Total'!$D$6)/1.09,T$6*T$8*0.7*($D54-'Wine storage'!$H$8)*(T$16*'Wine storage'!$B$10*'Wine storage'!$B$6/'Wine storage'!$B$4+T$17*'Wine storage'!$B$22*'Wine storage'!$B$18/'Wine storage'!$B$16+T$18*'Wine storage'!$B$36*'Wine storage'!$B$32/'Wine storage'!$B$30)/1000) -> 0 | U54: =IF('Red Fermentation Total'!$A$4<'Red Fermentation (1)'!$D$8,U$6*1.4*U$8*(U$9*'Red Fermentation Total'!$B$4+U$10*'Red Fermentation Total'!$C$4+U$11*'Red Fermentation Total'!$D$4)/1.09,U$6*U$8*0.7*($D54-'Wine storage'!$H$8)*(U$16*'Wine storage'!$B$10*'Wine storage'!$B$6/'Wine storage'!$B$4+U$17*'Wine storage'!$B$22*'Wine storage'!$B$18/'Wine storage'!$B$16+U$18*'Wine storage'!$B$36*'Wine storage'!$B$32/'Wine storage'!$B$30)/1000) -> 0 | V54: =V$6*V$8*($D54-$E54)*(V$9*'Red Fermentation Equipment'!$B$11*'Red Fermentation Equipment'!$B$6/'Red Fermentation Equipment'!$B$3+V$10*'Red Fermentation Equipment'!$B$23*'Red Fermentation Equipment'!$B$18/'Red Fermentation Equipment'!$B$15+'Cold Soak Red'!V$11*'Red Fermentation Equipment'!$B$35*'Red Fermentation Equipment'!$B$30/'Red Fermentation Equipment'!$B$27) -> 0
D55: =LOOKUP(MONTH(F55),'Brine and COP'!$C$28:$N$28,'Brine and COP'!$C$30:$N$30) -> 26.71982625 | E55: ='Red Fermentation Equipment'!$B$40 -> 4 | F55: 2014-01-17T09:00:00 | G55: =IF('Red Fermentation Total'!$A$33<'Red Fermentation (1)'!$D$8,G$6*1.4*G$8*(G$9*'Red Fermentation Total'!$B$33+G$10*'Red Fermentation Total'!$C$33+G$11*'Red Fermentation Total'!$D$33)/1.09,G$6*G$8*0.7*($D55-'Wine storage'!$H$8)*(G$16*'Wine storage'!$B$10*'Wine storage'!$B$6/'Wine storage'!$B$4+G$17*'Wine storage'!$B$22*'Wine storage'!$B$18/'Wine storage'!$B$16+G$18*'Wine storage'!$B$36*'Wine storage'!$B$32/'Wine storage'!$B$30)/1000) -> 0 | H55: =IF('Red Fermentation Total'!$A$31<'Red Fermentation (1)'!$D$8,H$6*1.4*H$8*(H$9*'Red Fermentation Total'!$B$31+H$10*'Red Fermentation Total'!$C$31+H$11*'Red Fermentation Total'!$D$31)/1.09,H$6*H$8*0.7*($D55-'Wine storage'!$H$8)*(H$16*'Wine storage'!$B$10*'Wine storage'!$B$6/'Wine storage'!$B$4+H$17*'Wine storage'!$B$22*'Wine storage'!$B$18/'Wine storage'!$B$16+H$18*'Wine storage'!$B$36*'Wine storage'!$B$32/'Wine storage'!$B$30)/1000) -> 0 | I55: =IF('Red Fermentation Total'!$A$29<'Red Fermentation (1)'!$D$8,I$6*1.4*I$8*(I$9*'Red Fermentation Total'!$B$29+I$10*'Red Fermentation Total'!$C$29+I$11*'Red Fermentation Total'!$D$29)/1.09,I$6*I$8*0.7*($D55-'Wine storage'!$H$8)*(I$16*'Wine storage'!$B$10*'Wine storage'!$B$6/'Wine storage'!$B$4+I$17*'Wine storage'!$B$22*'Wine storage'!$B$18/'Wine storage'!$B$16+I$18*'Wine storage'!$B$36*'Wine storage'!$B$32/'Wine storage'!$B$30)/1000) -> 0 | J55: =IF('Red Fermentation Total'!$A$27<'Red Fermentation (1)'!$D$8,J$6*1.4*J$8*(J$9*'Red Fermentation Total'!$B$27+J$10*'Red Fermentation Total'!$C$27+J$11*'Red Fermentation Total'!$D$27)/1.09,J$6*J$8*0.7*($D55-'Wine storage'!$H$8)*(J$16*'Wine storage'!$B$10*'Wine storage'!$B$6/'Wine storage'!$B$4+J$17*'Wine storage'!$B$22*'Wine storage'!$B$18/'Wine storage'!$B$16+J$18*'Wine storage'!$B$36*'Wine storage'!$B$32/'Wine storage'!$B$30)/1000) -> 0 | K55: =IF('Red Fermentation Total'!$A$25<'Red Fermentation (1)'!$D$8,K$6*1.4*K$8*(K$9*'Red Fermentation Total'!$B$25+K$10*'Red Fermentation Total'!$C$25+K$11*'Red Fermentation Total'!$D$25)/1.09,K$6*K$8*0.7*($D55-'Wine storage'!$H$8)*(K$16*'Wine storage'!$B$10*'Wine storage'!$B$6/'Wine storage'!$B$4+K$17*'Wine storage'!$B$22*'Wine storage'!$B$18/'Wine storage'!$B$16+K$18*'Wine storage'!$B$36*'Wine storage'!$B$32/'Wine storage'!$B$30)/1000) -> 0 | L55: =IF('Red Fermentation Total'!$A$23<'Red Fermentation (1)'!$D$8,L$6*1.4*L$8*(L$9*'Red Fermentation Total'!$B$23+L$10*'Red Fermentation Total'!$C$23+L$11*'Red Fermentation Total'!$D$23)/1.09,L$6*L$8*0.7*($D55-'Wine storage'!$H$8)*(L$16*'Wine storage'!$B$10*'Wine storage'!$B$6/'Wine storage'!$B$4+L$17*'Wine storage'!$B$22*'Wine storage'!$B$18/'Wine storage'!$B$16+L$18*'Wine storage'!$B$36*'Wine storage'!$B$32/'Wine storage'!$B$30)/1000) -> 0 | M55: =IF('Red Fermentation Total'!$A$21<'Red Fermentation (1)'!$D$8,M$6*1.4*M$8*(M$9*'Red Fermentation Total'!$B$21+M$10*'Red Fermentation Total'!$C$21+M$11*'Red Fermentation Total'!$D$21)/1.09,M$6*M$8*0.7*($D55-'Wine storage'!$H$8)*(M$16*'Wine storage'!$B$10*'Wine storage'!$B$6/'Wine storage'!$B$4+M$17*'Wine storage'!$B$22*'Wine storage'!$B$18/'Wine storage'!$B$16+M$18*'Wine storage'!$B$36*'Wine storage'!$B$32/'Wine storage'!$B$30)/1000) -> 0 | N55: =IF('Red Fermentation Total'!$A$19<'Red Fermentation (1)'!$D$8,N$6*1.4*N$8*(N$9*'Red Fermentation Total'!$B$19+N$10*'Red Fermentation Total'!$C$19+N$11*'Red Fermentation Total'!$D$19)/1.09,N$6*N$8*0.7*($D55-'Wine storage'!$H$8)*(N$16*'Wine storage'!$B$10*'Wine storage'!$B$6/'Wine storage'!$B$4+N$17*'Wine storage'!$B$22*'Wine storage'!$B$18/'Wine storage'!$B$16+N$18*'Wine storage'!$B$36*'Wine storage'!$B$32/'Wine storage'!$B$30)/1000) -> 0 | O55: =IF('Red Fermentation Total'!$A$17<'Red Fermentation (1)'!$D$8,O$6*1.4*O$8*(O$9*'Red Fermentation Total'!$B$17+O$10*'Red Fermentation Total'!$C$17+O$11*'Red Fermentation Total'!$D$17)/1.09,O$6*O$8*0.7*($D55-'Wine storage'!$H$8)*(O$16*'Wine storage'!$B$10*'Wine storage'!$B$6/'Wine storage'!$B$4+O$17*'Wine storage'!$B$22*'Wine storage'!$B$18/'Wine storage'!$B$16+O$18*'Wine storage'!$B$36*'Wine storage'!$B$32/'Wine storage'!$B$30)/1000) -> 0 | P55: =IF('Red Fermentation Total'!$A$15<'Red Fermentation (1)'!$D$8,P$6*1.4*P$8*(P$9*'Red Fermentation Total'!$B$15+P$10*'Red Fermentation Total'!$C$15+P$11*'Red Fermentation Total'!$D$15)/1.09,P$6*P$8*0.7*($D55-'Wine storage'!$H$8)*(P$16*'Wine storage'!$B$10*'Wine storage'!$B$6/'Wine storage'!$B$4+P$17*'Wine storage'!$B$22*'Wine storage'!$B$18/'Wine storage'!$B$16+P$18*'Wine storage'!$B$36*'Wine storage'!$B$32/'Wine storage'!$B$30)/1000) -> 0 | Q55: =IF('Red Fermentation Total'!$A$13<'Red Fermentation (1)'!$D$8,Q$6*1.4*Q$8*(Q$9*'Red Fermentation Total'!$B$13+Q$10*'Red Fermentation Total'!$C$13+Q$11*'Red Fermentation Total'!$D$13)/1.09,Q$6*Q$8*0.7*($D55-'Wine storage'!$H$8)*(Q$16*'Wine storage'!$B$10*'Wine storage'!$B$6/'Wine storage'!$B$4+Q$17*'Wine storage'!$B$22*'Wine storage'!$B$18/'Wine storage'!$B$16+Q$18*'Wine storage'!$B$36*'Wine storage'!$B$32/'Wine storage'!$B$30)/1000) -> 0 | R55: =IF('Red Fermentation Total'!$A$11<'Red Fermentation (1)'!$D$8,R$6*1.4*R$8*(R$9*'Red Fermentation Total'!$B$11+R$10*'Red Fermentation Total'!$C$11+R$11*'Red Fermentation Total'!$D$11)/1.09,R$6*R$8*0.7*($D55-'Wine storage'!$H$8)*(R$16*'Wine storage'!$B$10*'Wine storage'!$B$6/'Wine storage'!$B$4+R$17*'Wine storage'!$B$22*'Wine storage'!$B$18/'Wine storage'!$B$16+R$18*'Wine storage'!$B$36*'Wine storage'!$B$32/'Wine storage'!$B$30)/1000) -> 0 | S55: =IF('Red Fermentation Total'!$A$9<'Red Fermentation (1)'!$D$8,S$6*1.4*S$8*(S$9*'Red Fermentation Total'!$B$9+S$10*'Red Fermentation Total'!$C$9+S$11*'Red Fermentation Total'!$D$9)/1.09,S$6*S$8*0.7*($D55-'Wine storage'!$H$8)*(S$16*'Wine storage'!$B$10*'Wine storage'!$B$6/'Wine storage'!$B$4+S$17*'Wine storage'!$B$22*'Wine storage'!$B$18/'Wine storage'!$B$16+S$18*'Wine storage'!$B$36*'Wine storage'!$B$32/'Wine storage'!$B$30)/1000) -> 0 | T55: =IF('Red Fermentation Total'!$A$7<'Red Fermentation (1)'!$D$8,T$6*1.4*T$8*(T$9*'Red Fermentation Total'!$B$7+T$10*'Red Fermentation Total'!$C$7+T$11*'Red Fermentation Total'!$D$7)/1.09,T$6*T$8*0.7*($D55-'Wine storage'!$H$8)*(T$16*'Wine storage'!$B$10*'Wine storage'!$B$6/'Wine storage'!$B$4+T$17*'Wine storage'!$B$22*'Wine storage'!$B$18/'Wine storage'!$B$16+T$18*'Wine storage'!$B$36*'Wine storage'!$B$32/'Wine storage'!$B$30)/1000) -> 0 | U55: =IF('Red Fermentation Total'!$A$5<'Red Fermentation (1)'!$D$8,U$6*1.4*U$8*(U$9*'Red Fermentation Total'!$B$5+U$10*'Red Fermentation Total'!$C$5+U$11*'Red Fermentation Total'!$D$5)/1.09,U$6*U$8*0.7*($D55-'Wine storage'!$H$8)*(U$16*'Wine storage'!$B$10*'Wine storage'!$B$6/'Wine storage'!$B$4+U$17*'Wine storage'!$B$22*'Wine storage'!$B$18/'Wine storage'!$B$16+U$18*'Wine storage'!$B$36*'Wine storage'!$B$32/'Wine storage'!$B$30)/1000) -> 0 | V55: =V54 -> 0
D56: =LOOKUP(MONTH(F56),'Brine and COP'!$C$28:$N$28,'Brine and COP'!$C$30:$N$30) -> 26.71982625 | E56: ='Red Fermentation Equipment'!$B$40 -> 4 | F56: 2014-01-17T21:00:00 | G56: =IF('Red Fermentation Total'!$A$34<'Red Fermentation (1)'!$D$8,G$6*1.4*G$8*(G$9*'Red Fermentation Total'!$B$34+G$10*'Red Fermentation Total'!$C$34+G$11*'Red Fermentation Total'!$D$34)/1.09,G$6*G$8*0.7*($D56-'Wine storage'!$H$8)*(G$16*'Wine storage'!$B$10*'Wine storage'!$B$6/'Wine storage'!$B$4+G$17*'Wine storage'!$B$22*'Wine storage'!$B$18/'Wine storage'!$B$16+G$18*'Wine storage'!$B$36*'Wine storage'!$B$32/'Wine storage'!$B$30)/1000) -> 0 | H56: =IF('Red Fermentation Total'!$A$32<'Red Fermentation (1)'!$D$8,H$6*1.4*H$8*(H$9*'Red Fermentation Total'!$B$32+H$10*'Red Fermentation Total'!$C$32+H$11*'Red Fermentation Total'!$D$32)/1.09,H$6*H$8*0.7*($D56-'Wine storage'!$H$8)*(H$16*'Wine storage'!$B$10*'Wine storage'!$B$6/'Wine storage'!$B$4+H$17*'Wine storage'!$B$22*'Wine storage'!$B$18/'Wine storage'!$B$16+H$18*'Wine storage'!$B$36*'Wine storage'!$B$32/'Wine storage'!$B$30)/1000) -> 0 | I56: =IF('Red Fermentation Total'!$A$30<'Red Fermentation (1)'!$D$8,I$6*1.4*I$8*(I$9*'Red Fermentation Total'!$B$30+I$10*'Red Fermentation Total'!$C$30+I$11*'Red Fermentation Total'!$D$30)/1.09,I$6*I$8*0.7*($D56-'Wine storage'!$H$8)*(I$16*'Wine storage'!$B$10*'Wine storage'!$B$6/'Wine storage'!$B$4+I$17*'Wine storage'!$B$22*'Wine storage'!$B$18/'Wine storage'!$B$16+I$18*'Wine storage'!$B$36*'Wine storage'!$B$32/'Wine storage'!$B$30)/1000) -> 0 | J56: =IF('Red Fermentation Total'!$A$28<'Red Fermentation (1)'!$D$8,J$6*1.4*J$8*(J$9*'Red Fermentation Total'!$B$28+J$10*'Red Fermentation Total'!$C$28+J$11*'Red Fermentation Total'!$D$28)/1.09,J$6*J$8*0.7*($D56-'Wine storage'!$H$8)*(J$16*'Wine storage'!$B$10*'Wine storage'!$B$6/'Wine storage'!$B$4+J$17*'Wine storage'!$B$22*'Wine storage'!$B$18/'Wine storage'!$B$16+J$18*'Wine storage'!$B$36*'Wine storage'!$B$32/'Wine storage'!$B$30)/1000) -> 0 | K56: =IF('Red Fermentation Total'!$A$26<'Red Fermentation (1)'!$D$8,K$6*1.4*K$8*(K$9*'Red Fermentation Total'!$B$26+K$10*'Red Fermentation Total'!$C$26+K$11*'Red Fermentation Total'!$D$26)/1.09,K$6*K$8*0.7*($D56-'Wine storage'!$H$8)*(K$16*'Wine storage'!$B$10*'Wine storage'!$B$6/'Wine storage'!$B$4+K$17*'Wine storage'!$B$22*'Wine storage'!$B$18/'Wine storage'!$B$16+K$18*'Wine storage'!$B$36*'Wine storage'!$B$32/'Wine storage'!$B$30)/1000) -> 0 | L56: =IF('Red Fermentation Total'!$A$24<'Red Fermentation (1)'!$D$8,L$6*1.4*L$8*(L$9*'Red Fermentation Total'!$B$24+L$10*'Red Fermentation Total'!$C$24+L$11*'Red Fermentation Total'!$D$24)/1.09,L$6*L$8*0.7*($D56-'Wine storage'!$H$8)*(L$16*'Wine storage'!$B$10*'Wine storage'!$B$6/'Wine storage'!$B$4+L$17*'Wine storage'!$B$22*'Wine storage'!$B$18/'Wine storage'!$B$16+L$18*'Wine storage'!$B$36*'Wine storage'!$B$32/'Wine storage'!$B$30)/1000) -> 0 | M56: =IF('Red Fermentation Total'!$A$22<'Red Fermentation (1)'!$D$8,M$6*1.4*M$8*(M$9*'Red Fermentation Total'!$B$22+M$10*'Red Fermentation Total'!$C$22+M$11*'Red Fermentation Total'!$D$22)/1.09,M$6*M$8*0.7*($D56-'Wine storage'!$H$8)*(M$16*'Wine storage'!$B$10*'Wine storage'!$B$6/'Wine storage'!$B$4+M$17*'Wine storage'!$B$22*'Wine storage'!$B$18/'Wine storage'!$B$16+M$18*'Wine storage'!$B$36*'Wine storage'!$B$32/'Wine storage'!$B$30)/1000) -> 0 | N56: =IF('Red Fermentation Total'!$A$20<'Red Fermentation (1)'!$D$8,N$6*1.4*N$8*(N$9*'Red Fermentation Total'!$B$20+N$10*'Red Fermentation Total'!$C$20+N$11*'Red Fermentation Total'!$D$20)/1.09,N$6*N$8*0.7*($D56-'Wine storage'!$H$8)*(N$16*'Wine storage'!$B$10*'Wine storage'!$B$6/'Wine storage'!$B$4+N$17*'Wine storage'!$B$22*'Wine storage'!$B$18/'Wine storage'!$B$16+N$18*'Wine storage'!$B$36*'Wine storage'!$B$32/'Wine storage'!$B$30)/1000) -> 0 | O56: =IF('Red Fermentation Total'!$A$18<'Red Fermentation (1)'!$D$8,O$6*1.4*O$8*(O$9*'Red Fermentation Total'!$B$18+O$10*'Red Fermentation Total'!$C$18+O$11*'Red Fermentation Total'!$D$18)/1.09,O$6*O$8*0.7*($D56-'Wine storage'!$H$8)*(O$16*'Wine storage'!$B$10*'Wine storage'!$B$6/'Wine storage'!$B$4+O$17*'Wine storage'!$B$22*'Wine storage'!$B$18/'Wine storage'!$B$16+O$18*'Wine storage'!$B$36*'Wine storage'!$B$32/'Wine storage'!$B$30)/1000) -> 0 | P56: =IF('Red Fermentation Total'!$A$16<'Red Fermentation (1)'!$D$8,P$6*1.4*P$8*(P$9*'Red Fermentation Total'!$B$16+P$10*'Red Fermentation Total'!$C$16+P$11*'Red Fermentation Total'!$D$16)/1.09,P$6*P$8*0.7*($D56-'Wine storage'!$H$8)*(P$16*'Wine storage'!$B$10*'Wine storage'!$B$6/'Wine storage'!$B$4+P$17*'Wine storage'!$B$22*'Wine storage'!$B$18/'Wine storage'!$B$16+P$18*'Wine storage'!$B$36*'Wine storage'!$B$32/'Wine storage'!$B$30)/1000) -> 0 | Q56: =IF('Red Fermentation Total'!$A$14<'Red Fermentation (1)'!$D$8,Q$6*1.4*Q$8*(Q$9*'Red Fermentation Total'!$B$14+Q$10*'Red Fermentation Total'!$C$14+Q$11*'Red Fermentation Total'!$D$14)/1.09,Q$6*Q$8*0.7*($D56-'Wine storage'!$H$8)*(Q$16*'Wine storage'!$B$10*'Wine storage'!$B$6/'Wine storage'!$B$4+Q$17*'Wine storage'!$B$22*'Wine storage'!$B$18/'Wine storage'!$B$16+Q$18*'Wine storage'!$B$36*'Wine storage'!$B$32/'Wine storage'!$B$30)/1000) -> 0 | R56: =IF('Red Fermentation Total'!$A$12<'Red Fermentation (1)'!$D$8,R$6*1.4*R$8*(R$9*'Red Fermentation Total'!$B$12+R$10*'Red Fermentation Total'!$C$12+R$11*'Red Fermentation Total'!$D$12)/1.09,R$6*R$8*0.7*($D56-'Wine storage'!$H$8)*(R$16*'Wine storage'!$B$10*'Wine storage'!$B$6/'Wine storage'!$B$4+R$17*'Wine storage'!$B$22*'Wine storage'!$B$18/'Wine storage'!$B$16+R$18*'Wine storage'!$B$36*'Wine storage'!$B$32/'Wine storage'!$B$30)/1000) -> 0 | S56: =IF('Red Fermentation Total'!$A$10<'Red Fermentation (1)'!$D$8,S$6*1.4*S$8*(S$9*'Red Fermentation Total'!$B$10+S$10*'Red Fermentation Total'!$C$10+S$11*'Red Fermentation Total'!$D$10)/1.09,S$6*S$8*0.7*($D56-'Wine storage'!$H$8)*(S$16*'Wine storage'!$B$10*'Wine storage'!$B$6/'Wine storage'!$B$4+S$17*'Wine storage'!$B$22*'Wine storage'!$B$18/'Wine storage'!$B$16+S$18*'Wine storage'!$B$36*'Wine storage'!$B$32/'Wine storage'!$B$30)/1000) -> 0 | T56: =IF('Red Fermentation Total'!$A$8<'Red Fermentation (1)'!$D$8,T$6*1.4*T$8*(T$9*'Red Fermentation Total'!$B$8+T$10*'Red Fermentation Total'!$C$8+T$11*'Red Fermentation Total'!$D$8)/1.09,T$6*T$8*0.7*($D56-'Wine storage'!$H$8)*(T$16*'Wine storage'!$B$10*'Wine storage'!$B$6/'Wine storage'!$B$4+T$17*'Wine storage'!$B$22*'Wine storage'!$B$18/'Wine storage'!$B$16+T$18*'Wine storage'!$B$36*'Wine storage'!$B$32/'Wine storage'!$B$30)/1000) -> 0 | U56: =IF('Red Fermentation Total'!$A$6<'Red Fermentation (1)'!$D$8,U$6*1.4*U$8*(U$9*'Red Fermentation Total'!$B$6+U$10*'Red Fermentation Total'!$C$6+U$11*'Red Fermentation Total'!$D$6)/1.09,U$6*U$8*0.7*($D56-'Wine storage'!$H$8)*(U$16*'Wine storage'!$B$10*'Wine storage'!$B$6/'Wine storage'!$B$4+U$17*'Wine storage'!$B$22*'Wine storage'!$B$18/'Wine storage'!$B$16+U$18*'Wine storage'!$B$36*'Wine storage'!$B$32/'Wine storage'!$B$30)/1000) -> 0 | V56: =IF('Red Fermentation Total'!$A$4<'Red Fermentation (1)'!$D$8,V$6*1.4*V$8*(V$9*'Red Fermentation Total'!$B$4+V$10*'Red Fermentation Total'!$C$4+V$11*'Red Fermentation Total'!$D$4)/1.09,V$6*V$8*0.7*($D56-'Wine storage'!$H$8)*(V$16*'Wine storage'!$B$10*'Wine storage'!$B$6/'Wine storage'!$B$4+V$17*'Wine storage'!$B$22*'Wine storage'!$B$18/'Wine storage'!$B$16+V$18*'Wine storage'!$B$36*'Wine storage'!$B$32/'Wine storage'!$B$30)/1000) -> 0 | W56: =W$6*W$8*($D56-$E56)*(W$9*'Red Fermentation Equipment'!$B$11*'Red Fermentation Equipment'!$B$6/'Red Fermentation Equipment'!$B$3+W$10*'Red Fermentation Equipment'!$B$23*'Red Fermentation Equipment'!$B$18/'Red Fermentation Equipment'!$B$15+'Cold Soak Red'!W$11*'Red Fermentation Equipment'!$B$35*'Red Fermentation Equipment'!$B$30/'Red Fermentation Equipment'!$B$27) -> 0
